Workbook

Sheet Pirámides extranjeros
A1: Pirámides de población extranjera
A4: Fuente: Censos de población anuales. Años 2021-2024. INE
A5: Elaboración. Instituto Aragonés de Estadística.
A7: Elegir territorio
C8: =VLOOKUP(F8,'2021'!#REF!,2) ->  | F8: 1
C10: CENSO 2024
C11: Población extranjera
B12: Edad | C12: Ambos Sexos | D12: Hombre | E12: Mujer
B13: 0 a 4 | C13: =D13+E13 -> 8737 | D13: =VLOOKUP($F$42,'2024'!$A$2:$AQ$769,5) -> 4488 | E13: =VLOOKUP($F$42,'2024'!$A$2:$AQ$769,25) -> 4249
B14: 5 a 9 | C14: 10095 | D14: =VLOOKUP($F$42,'2024'!$A$2:$AQ$769,6) -> 5213 | E14: =VLOOKUP($F$42,'2024'!$A$2:$AQ$769,26) -> 4882
B15: 10 a 14 | C15: 10263 | D15: =VLOOKUP($F$42,'2024'!$A$2:$AQ$769,7) -> 5311 | E15: =VLOOKUP($F$42,'2024'!$A$2:$AQ$769,27) -> 4952
B16: 15 a 19 | C16: 10219 | D16: =VLOOKUP($F$42,'2024'!$A$2:$AQ$769,8) -> 5581 | E16: =VLOOKUP($F$42,'2024'!$A$2:$AQ$769,28) -> 4638
B17: 20 a 24 | C17: 14063 | D17: =VLOOKUP($F$42,'2024'!$A$2:$AQ$769,9) -> 7621 | E17: =VLOOKUP($F$42,'2024'!$A$2:$AQ$769,29) -> 6442
B18: 25 a 29 | C18: 17527 | D18: =VLOOKUP($F$42,'2024'!$A$2:$AQ$769,10) -> 9042 | E18: =VLOOKUP($F$42,'2024'!$A$2:$AQ$769,30) -> 8485
B19: 30 a 34 | C19: 19877 | D19: =VLOOKUP($F$42,'2024'!$A$2:$AQ$769,11) -> 9802 | E19: =VLOOKUP($F$42,'2024'!$A$2:$AQ$769,31) -> 10075
B20: 35 a 39 | C20: 21210 | D20: =VLOOKUP($F$42,'2024'!$A$2:$AQ$769,12) -> 10272 | E20: =VLOOKUP($F$42,'2024'!$A$2:$AQ$769,32) -> 10938
B21: 40 a 44 | C21: 21258 | D21: =VLOOKUP($F$42,'2024'!$A$2:$AQ$769,13) -> 10760 | E21: =VLOOKUP($F$42,'2024'!$A$2:$AQ$769,33) -> 10498
B22: 45 a 49 | C22: 19492 | D22: =VLOOKUP($F$42,'2024'!$A$2:$AQ$769,14) -> 10284 | E22: =VLOOKUP($F$42,'2024'!$A$2:$AQ$769,34) -> 9208
B23: 50 a 54 | C23: 14632 | D23: =VLOOKUP($F$42,'2024'!$A$2:$AQ$769,15) -> 7670 | E23: =VLOOKUP($F$42,'2024'!$A$2:$AQ$769,35) -> 6962
B24: 55 a 59 | C24: 10104 | D24: =VLOOKUP($F$42,'2024'!$A$2:$AQ$769,16) -> 5197 | E24: =VLOOKUP($F$42,'2024'!$A$2:$AQ$769,36) -> 4907
B25: 60 a 64 | C25: 6212 | D25: =VLOOKUP($F$42,'2024'!$A$2:$AQ$769,17) -> 3119 | E25: =VLOOKUP($F$42,'2024'!$A$2:$AQ$769,37) -> 3093
B26: 65 a 69 | C26: 3763 | D26: =VLOOKUP($F$42,'2024'!$A$2:$AQ$769,18) -> 1755 | E26: =VLOOKUP($F$42,'2024'!$A$2:$AQ$769,38) -> 2008
B27: 70 a 74 | C27: 2115 | D27: =VLOOKUP($F$42,'2024'!$A$2:$AQ$769,19) -> 842 | E27: =VLOOKUP($F$42,'2024'!$A$2:$AQ$769,39) -> 1273
B28: 75 a 79 | C28: 1045 | D28: =VLOOKUP($F$42,'2024'!$A$2:$AQ$769,20) -> 397 | E28: =VLOOKUP($F$42,'2024'!$A$2:$AQ$769,40) -> 648
B29: 80 a 84 | C29: 491 | D29: =VLOOKUP($F$42,'2024'!$A$2:$AQ$769,21) -> 181 | E29: =VLOOKUP($F$42,'2024'!$A$2:$AQ$769,41) -> 310
B30: 85 a 89 | C30: 239 | D30: =VLOOKUP($F$42,'2024'!$A$2:$AQ$769,22) -> 71 | E30: =VLOOKUP($F$42,'2024'!$A$2:$AQ$769,42) -> 168
B31: 90 y más | C31: =D31+E31 -> 93 | D31: =VLOOKUP($F$42,'2024'!$A$2:$AQ$769,23) -> 28 | E31: =VLOOKUP($F$42,'2024'!$A$2:$AQ$769,43) -> 65
B32: Total general | C32: =SUM(C13:C31) -> 191435 | D32: =SUM(D13:D31) -> 97634 | E32: =SUM(E13:E31) -> 93801
A35: Pirámides de población extranjera
A38: Fuente: Censos de población anuales. Años 2021-2024. INE
A39: Elaboración. Instituto Aragonés de Estadística.
A41: Elegir territorio
C42: =VLOOKUP(F42,'2021'!A2:B769,2) -> ARAGÓN | F42: 1
C44: CENSO 2023
C45: Población extranjera
B46: Edad | C46: Ambos Sexos | D46: Hombre | E46: Mujer
B47: 0 a 4 | C47: =D47+E47 -> 9058 | D47: =VLOOKUP($F$42,'2023'!$A$2:$AQ$769,5) -> 4625 | E47: =VLOOKUP($F$42,'2023'!$A$2:$AQ$769,25) -> 4433
B48: 5 a 9 | C48: 9917 | D48: =VLOOKUP($F$42,'2023'!$A$2:$AQ$769,6) -> 5144 | E48: =VLOOKUP($F$42,'2023'!$A$2:$AQ$769,26) -> 4773
B49: 10 a 14 | C49: 9597 | D49: =VLOOKUP($F$42,'2023'!$A$2:$AQ$769,7) -> 4953 | E49: =VLOOKUP($F$42,'2023'!$A$2:$AQ$769,27) -> 4644
B50: 15 a 19 | C50: 9488 | D50: =VLOOKUP($F$42,'2023'!$A$2:$AQ$769,8) -> 5127 | E50: =VLOOKUP($F$42,'2023'!$A$2:$AQ$769,28) -> 4361
B51: 20 a 24 | C51: 13327 | D51: =VLOOKUP($F$42,'2023'!$A$2:$AQ$769,9) -> 7116 | E51: =VLOOKUP($F$42,'2023'!$A$2:$AQ$769,29) -> 6211
B52: 25 a 29 | C52: 16564 | D52: =VLOOKUP($F$42,'2023'!$A$2:$AQ$769,10) -> 8426 | E52: =VLOOKUP($F$42,'2023'!$A$2:$AQ$769,30) -> 8138
B53: 30 a 34 | C53: 18892 | D53: =VLOOKUP($F$42,'2023'!$A$2:$AQ$769,11) -> 9099 | E53: =VLOOKUP($F$42,'2023'!$A$2:$AQ$769,31) -> 9793
B54: 35 a 39 | C54: 20183 | D54: =VLOOKUP($F$42,'2023'!$A$2:$AQ$769,12) -> 9686 | E54: =VLOOKUP($F$42,'2023'!$A$2:$AQ$769,32) -> 10497
B55: 40 a 44 | C55: 20710 | D55: =VLOOKUP($F$42,'2023'!$A$2:$AQ$769,13) -> 10520 | E55: =VLOOKUP($F$42,'2023'!$A$2:$AQ$769,33) -> 10190
B56: 45 a 49 | C56: 18329 | D56: =VLOOKUP($F$42,'2023'!$A$2:$AQ$769,14) -> 9769 | E56: =VLOOKUP($F$42,'2023'!$A$2:$AQ$769,34) -> 8560
B57: 50 a 54 | C57: 13742 | D57: =VLOOKUP($F$42,'2023'!$A$2:$AQ$769,15) -> 7217 | E57: =VLOOKUP($F$42,'2023'!$A$2:$AQ$769,35) -> 6525
B58: 55 a 59 | C58: 8954 | D58: =VLOOKUP($F$42,'2023'!$A$2:$AQ$769,16) -> 4617 | E58: =VLOOKUP($F$42,'2023'!$A$2:$AQ$769,36) -> 4337
B59: 60 a 64 | C59: 5575 | D59: =VLOOKUP($F$42,'2023'!$A$2:$AQ$769,17) -> 2803 | E59: =VLOOKUP($F$42,'2023'!$A$2:$AQ$769,37) -> 2772
B60: 65 a 69 | C60: 3288 | D60: =VLOOKUP($F$42,'2023'!$A$2:$AQ$769,18) -> 1482 | E60: =VLOOKUP($F$42,'2023'!$A$2:$AQ$769,38) -> 1806
B61: 70 a 74 | C61: 1786 | D61: =VLOOKUP($F$42,'2023'!$A$2:$AQ$769,19) -> 725 | E61: =VLOOKUP($F$42,'2023'!$A$2:$AQ$769,39) -> 1061
B62: 75 a 79 | C62: 895 | D62: =VLOOKUP($F$42,'2023'!$A$2:$AQ$769,20) -> 345 | E62: =VLOOKUP($F$42,'2023'!$A$2:$AQ$769,40) -> 550
B63: 80 a 84 | C63: 470 | D63: =VLOOKUP($F$42,'2023'!$A$2:$AQ$769,21) -> 176 | E63: =VLOOKUP($F$42,'2023'!$A$2:$AQ$769,41) -> 294
B64: 85 a 89 | C64: 199 | D64: =VLOOKUP($F$42,'2023'!$A$2:$AQ$769,22) -> 62 | E64: =VLOOKUP($F$42,'2023'!$A$2:$AQ$769,42) -> 137
B65: 90 y más | C65: =D65+E65 -> 70 | D65: =VLOOKUP($F$42,'2023'!$A$2:$AQ$769,23) -> 24 | E65: =VLOOKUP($F$42,'2023'!$A$2:$AQ$769,43) -> 46
B66: Total general | C66: =SUM(C47:C65) -> 181044 | D66: =SUM(D47:D65) -> 91916 | E66: =SUM(E47:E65) -> 89128
A69: Pirámides de población extranjera
A72: Fuente: Censos de población anuales. Años 2021-2024. INE
A73: Elaboración. Instituto Aragonés de Estadística.
A75: Territorio | C75: =C42 -> ARAGÓN
C77: CENSO 2022 | H77: CENSO 2021
C78: Población extranjera | H78: Población extranjera
B79: Edad | C79: Ambos Sexos | D79: Hombre | E79: Mujer | G79: Edad | H79: Ambos Sexos | I79: Hombre | J79: Mujer
B80: 0 a 4 | C80: =D80+E80 -> 9008 | D80: =VLOOKUP($F$42,'2022'!$A$2:$AQ$769,5) -> 4625 | E80: =VLOOKUP($F$42,'2022'!$A$2:$AQ$769,25) -> 4383 | G80: 0 a 4 | H80: =I80+J80 -> 9521 | I80: =VLOOKUP($F$42,'2021'!$A$2:$AQ$769,5) -> 4931 | J80: =VLOOKUP($F$42,'2021'!$A$2:$AQ$769,25) -> 4590
B81: 5 a 9 | C81: 9319 | D81: =VLOOKUP($F$42,'2022'!$A$2:$AQ$769,6) -> 4838 | E81: =VLOOKUP($F$42,'2022'!$A$2:$AQ$769,26) -> 4481 | G81: 5 a 9 | H81: 9301 | I81: =VLOOKUP($F$42,'2021'!$A$2:$AQ$769,6) -> 4761 | J81: =VLOOKUP($F$42,'2021'!$A$2:$AQ$769,26) -> 4540
B82: 10 a 14 | C82: 8449 | D82: =VLOOKUP($F$42,'2022'!$A$2:$AQ$769,7) -> 4448 | E82: =VLOOKUP($F$42,'2022'!$A$2:$AQ$769,27) -> 4001 | G82: 10 a 14 | H82: 8064 | I82: =VLOOKUP($F$42,'2021'!$A$2:$AQ$769,7) -> 4209 | J82: =VLOOKUP($F$42,'2021'!$A$2:$AQ$769,27) -> 3855
B83: 15 a 19 | C83: 8332 | D83: =VLOOKUP($F$42,'2022'!$A$2:$AQ$769,8) -> 4555 | E83: =VLOOKUP($F$42,'2022'!$A$2:$AQ$769,28) -> 3777 | G83: 15 a 19 | H83: 8383 | I83: =VLOOKUP($F$42,'2021'!$A$2:$AQ$769,8) -> 4611 | J83: =VLOOKUP($F$42,'2021'!$A$2:$AQ$769,28) -> 3772
B84: 20 a 24 | C84: 11967 | D84: =VLOOKUP($F$42,'2022'!$A$2:$AQ$769,9) -> 6404 | E84: =VLOOKUP($F$42,'2022'!$A$2:$AQ$769,29) -> 5563 | G84: 20 a 24 | H84: 12421 | I84: =VLOOKUP($F$42,'2021'!$A$2:$AQ$769,9) -> 6489 | J84: =VLOOKUP($F$42,'2021'!$A$2:$AQ$769,29) -> 5932
B85: 25 a 29 | C85: 15066 | D85: =VLOOKUP($F$42,'2022'!$A$2:$AQ$769,10) -> 7700 | E85: =VLOOKUP($F$42,'2022'!$A$2:$AQ$769,30) -> 7366 | G85: 25 a 29 | H85: 15541 | I85: =VLOOKUP($F$42,'2021'!$A$2:$AQ$769,10) -> 7695 | J85: =VLOOKUP($F$42,'2021'!$A$2:$AQ$769,30) -> 7846
B86: 30 a 34 | C86: 17446 | D86: =VLOOKUP($F$42,'2022'!$A$2:$AQ$769,11) -> 8308 | E86: =VLOOKUP($F$42,'2022'!$A$2:$AQ$769,31) -> 9138 | G86: 30 a 34 | H86: 18497 | I86: =VLOOKUP($F$42,'2021'!$A$2:$AQ$769,11) -> 8820 | J86: =VLOOKUP($F$42,'2021'!$A$2:$AQ$769,31) -> 9677
B87: 35 a 39 | C87: 18856 | D87: =VLOOKUP($F$42,'2022'!$A$2:$AQ$769,12) -> 9203 | E87: =VLOOKUP($F$42,'2022'!$A$2:$AQ$769,32) -> 9653 | G87: 35 a 39 | H87: 19628 | I87: =VLOOKUP($F$42,'2021'!$A$2:$AQ$769,12) -> 9652 | J87: =VLOOKUP($F$42,'2021'!$A$2:$AQ$769,32) -> 9976
B88: 40 a 44 | C88: 19812 | D88: =VLOOKUP($F$42,'2022'!$A$2:$AQ$769,13) -> 10313 | E88: =VLOOKUP($F$42,'2022'!$A$2:$AQ$769,33) -> 9499 | G88: 40 a 44 | H88: 20066 | I88: =VLOOKUP($F$42,'2021'!$A$2:$AQ$769,13) -> 10640 | J88: =VLOOKUP($F$42,'2021'!$A$2:$AQ$769,33) -> 9426
B89: 45 a 49 | C89: 16612 | D89: =VLOOKUP($F$42,'2022'!$A$2:$AQ$769,14) -> 8952 | E89: =VLOOKUP($F$42,'2022'!$A$2:$AQ$769,34) -> 7660 | G89: 45 a 49 | H89: 16282 | I89: =VLOOKUP($F$42,'2021'!$A$2:$AQ$769,14) -> 8741 | J89: =VLOOKUP($F$42,'2021'!$A$2:$AQ$769,34) -> 7541
B90: 50 a 54 | C90: 12765 | D90: =VLOOKUP($F$42,'2022'!$A$2:$AQ$769,15) -> 6730 | E90: =VLOOKUP($F$42,'2022'!$A$2:$AQ$769,35) -> 6035 | G90: 50 a 54 | H90: 12160 | I90: =VLOOKUP($F$42,'2021'!$A$2:$AQ$769,15) -> 6437 | J90: =VLOOKUP($F$42,'2021'!$A$2:$AQ$769,35) -> 5723
B91: 55 a 59 | C91: 7673 | D91: =VLOOKUP($F$42,'2022'!$A$2:$AQ$769,16) -> 4047 | E91: =VLOOKUP($F$42,'2022'!$A$2:$AQ$769,36) -> 3626 | G91: 55 a 59 | H91: 7411 | I91: =VLOOKUP($F$42,'2021'!$A$2:$AQ$769,16) -> 3824 | J91: =VLOOKUP($F$42,'2021'!$A$2:$AQ$769,36) -> 3587
B92: 60 a 64 | C92: 4898 | D92: =VLOOKUP($F$42,'2022'!$A$2:$AQ$769,17) -> 2447 | E92: =VLOOKUP($F$42,'2022'!$A$2:$AQ$769,37) -> 2451 | G92: 60 a 64 | H92: 4753 | I92: =VLOOKUP($F$42,'2021'!$A$2:$AQ$769,17) -> 2317 | J92: =VLOOKUP($F$42,'2021'!$A$2:$AQ$769,37) -> 2436
B93: 65 a 69 | C93: 2851 | D93: =VLOOKUP($F$42,'2022'!$A$2:$AQ$769,18) -> 1321 | E93: =VLOOKUP($F$42,'2022'!$A$2:$AQ$769,38) -> 1530 | G93: 65 a 69 | H93: 2701 | I93: =VLOOKUP($F$42,'2021'!$A$2:$AQ$769,18) -> 1192 | J93: =VLOOKUP($F$42,'2021'!$A$2:$AQ$769,38) -> 1509
B94: 70 a 74 | C94: 1442 | D94: =VLOOKUP($F$42,'2022'!$A$2:$AQ$769,19) -> 591 | E94: =VLOOKUP($F$42,'2022'!$A$2:$AQ$769,39) -> 851 | G94: 70 a 74 | H94: 1337 | I94: =VLOOKUP($F$42,'2021'!$A$2:$AQ$769,19) -> 562 | J94: =VLOOKUP($F$42,'2021'!$A$2:$AQ$769,39) -> 775
B95: 75 a 79 | C95: 725 | D95: =VLOOKUP($F$42,'2022'!$A$2:$AQ$769,20) -> 278 | E95: =VLOOKUP($F$42,'2022'!$A$2:$AQ$769,40) -> 447 | G95: 75 a 79 | H95: 706 | I95: =VLOOKUP($F$42,'2021'!$A$2:$AQ$769,20) -> 273 | J95: =VLOOKUP($F$42,'2021'!$A$2:$AQ$769,40) -> 433
B96: 80 a 84 | C96: 382 | D96: =VLOOKUP($F$42,'2022'!$A$2:$AQ$769,21) -> 158 | E96: =VLOOKUP($F$42,'2022'!$A$2:$AQ$769,41) -> 224 | G96: 80 a 84 | H96: 369 | I96: =VLOOKUP($F$42,'2021'!$A$2:$AQ$769,21) -> 149 | J96: =VLOOKUP($F$42,'2021'!$A$2:$AQ$769,41) -> 220
B97: 85 a 89 | C97: 181 | D97: =VLOOKUP($F$42,'2022'!$A$2:$AQ$769,22) -> 62 | E97: =VLOOKUP($F$42,'2022'!$A$2:$AQ$769,42) -> 119 | G97: 85 a 89 | H97: 181 | I97: =VLOOKUP($F$42,'2021'!$A$2:$AQ$769,22) -> 65 | J97: =VLOOKUP($F$42,'2021'!$A$2:$AQ$769,42) -> 116
B98: 90 y más | C98: 69 | D98: =VLOOKUP($F$42,'2022'!$A$2:$AQ$769,23) -> 17 | E98: =VLOOKUP($F$42,'2022'!$A$2:$AQ$769,43) -> 52 | G98: 90 y más | H98: 69 | I98: =VLOOKUP($F$42,'2021'!$A$2:$AQ$769,23) -> 21 | J98: =VLOOKUP($F$42,'2021'!$A$2:$AQ$769,43) -> 48
B99: Total general | C99: =SUM(C80:C98) -> 165853 | D99: =SUM(D80:D98) -> 84997 | E99: =SUM(E80:E98) -> 80856 | G99: Total general | H99: =SUM(H80:H98) -> 167391 | I99: =SUM(I80:I98) -> 85389 | J99: =SUM(J80:J98) -> 82002

Sheet Hoja1 (hidden)

Sheet trabajo (hidden)
B5: 2024-01-01 | G5: 2023-01-01
B6: extranjeros | G6: extranjeros | L6: 2022-01-01 | Q6: 2021-01-01
L7: extranjeros | Q7: extranjeros
A9: datos dibujo | B9: Hombre | C9: Mujer | D9: TOTALES | F9: datos dibujo | G9: Hombre | H9: Mujer | I9: TOTALES | K9: datos dibujo | L9: Hombre | M9: Mujer | N9: TOTALES | P9: datos dibujo | Q9: Hombre | R9: Mujer | S9: TOTALES
A10: =F10 -> 0 a 4 | B10: =-'Pirámides extranjeros'!D13/'Pirámides extranjeros'!$C$32 -> -0.02344398882 | C10: ='Pirámides extranjeros'!E13/'Pirámides extranjeros'!$C$32 -> 0.02219552328 | D10: =C10-B10 -> 0.04563951211 | F10: ='Pirámides extranjeros'!B80 -> 0 a 4 | G10: =-'Pirámides extranjeros'!D47/'Pirámides extranjeros'!$C$66 -> -0.02554627604 | H10: ='Pirámides extranjeros'!E47/'Pirámides extranjeros'!$C$66 -> 0.02448576037 | I10: =H10-G10 -> 0.05003203641 | K10: =F10 -> 0 a 4 | L10: =-'Pirámides extranjeros'!D80/'Pirámides extranjeros'!$C$99 -> -0.02788614014 | M10: ='Pirámides extranjeros'!E80/'Pirámides extranjeros'!$C$99 -> 0.0264270167 | N10: =-L10+M10 -> 0.05431315683 | P10: =F10 -> 0 a 4 | Q10: =-'Pirámides extranjeros'!I80/'Pirámides extranjeros'!$H$99 -> -0.02945797564 | R10: ='Pirámides extranjeros'!J80/'Pirámides extranjeros'!$H$99 -> 0.02742082908 | S10: =-Q10+R10 -> 0.05687880471
A11: =F11 -> 5 a 9 | B11: =-'Pirámides extranjeros'!D14/'Pirámides extranjeros'!$C$32 -> -0.02723117507 | C11: ='Pirámides extranjeros'!E14/'Pirámides extranjeros'!$C$32 -> 0.02550212866 | D11: =C11-B11 -> 0.05273330373 | F11: ='Pirámides extranjeros'!B81 -> 5 a 9 | G11: =-'Pirámides extranjeros'!D48/'Pirámides extranjeros'!$C$66 -> -0.02841298248 | H11: ='Pirámides extranjeros'!E48/'Pirámides extranjeros'!$C$66 -> 0.02636375688 | I11: =H11-G11 -> 0.05477673936 | K11: =F11 -> 5 a 9 | L11: =-'Pirámides extranjeros'!D81/'Pirámides extranjeros'!$C$99 -> -0.02917040994 | M11: ='Pirámides extranjeros'!E81/'Pirámides extranjeros'!$C$99 -> 0.02701790139 | N11: =M11-L11 -> 0.05618831134 | P11: =F11 -> 5 a 9 | Q11: =-'Pirámides extranjeros'!I81/'Pirámides extranjeros'!$H$99 -> -0.02844238938 | R11: ='Pirámides extranjeros'!J81/'Pirámides extranjeros'!$H$99 -> 0.02712212724 | S11: =R11-Q11 -> 0.05556451661
A12: 10 a 14 | B12: =-'Pirámides extranjeros'!D15/'Pirámides extranjeros'!$C$32 -> -0.02774309818 | C12: ='Pirámides extranjeros'!E15/'Pirámides extranjeros'!$C$32 -> 0.02586778802 | D12: 0.0536108862 | F12: ='Pirámides extranjeros'!B82 -> 10 a 14 | G12: =-'Pirámides extranjeros'!D49/'Pirámides extranjeros'!$C$66 -> -0.02735799032 | H12: ='Pirámides extranjeros'!E49/'Pirámides extranjeros'!$C$66 -> 0.02565122291 | I12: 0.05300921323 | K12: 10 a 14 | L12: =-'Pirámides extranjeros'!D82/'Pirámides extranjeros'!$C$99 -> -0.02681893002 | M12: ='Pirámides extranjeros'!E82/'Pirámides extranjeros'!$C$99 -> 0.02412377226 | N12: 0.05094270227 | P12: 10 a 14 | Q12: =-'Pirámides extranjeros'!I82/'Pirámides extranjeros'!$H$99 -> -0.02514472104 | R12: ='Pirámides extranjeros'!J82/'Pirámides extranjeros'!$H$99 -> 0.023029912 | S12: 0.04817463304
A13: 15 a 19 | B13: =-'Pirámides extranjeros'!D16/'Pirámides extranjeros'!$C$32 -> -0.02915349858 | C13: ='Pirámides extranjeros'!E16/'Pirámides extranjeros'!$C$32 -> 0.0242275446 | D13: 0.05338104317 | F13: ='Pirámides extranjeros'!B83 -> 15 a 19 | G13: =-'Pirámides extranjeros'!D50/'Pirámides extranjeros'!$C$66 -> -0.02831908265 | H13: ='Pirámides extranjeros'!E50/'Pirámides extranjeros'!$C$66 -> 0.02408806699 | I13: 0.05240714964 | K13: 15 a 19 | L13: =-'Pirámides extranjeros'!D83/'Pirámides extranjeros'!$C$99 -> -0.02746407964 | M13: ='Pirámides extranjeros'!E83/'Pirámides extranjeros'!$C$99 -> 0.02277317866 | N13: 0.05023725829 | P13: 15 a 19 | Q13: =-'Pirámides extranjeros'!I83/'Pirámides extranjeros'!$H$99 -> -0.02754628385 | R13: ='Pirámides extranjeros'!J83/'Pirámides extranjeros'!$H$99 -> 0.02253406695 | S13: 0.0500803508
A14: 20 a 24 | B14: =-'Pirámides extranjeros'!D17/'Pirámides extranjeros'!$C$32 -> -0.03980985713 | C14: ='Pirámides extranjeros'!E17/'Pirámides extranjeros'!$C$32 -> 0.03365110873 | D14: 0.07346096586 | F14: ='Pirámides extranjeros'!B84 -> 20 a 24 | G14: =-'Pirámides extranjeros'!D51/'Pirámides extranjeros'!$C$66 -> -0.03930536223 | H14: ='Pirámides extranjeros'!E51/'Pirámides extranjeros'!$C$66 -> 0.03430657741 | I14: 0.07361193964 | K14: 20 a 24 | L14: =-'Pirámides extranjeros'!D84/'Pirámides extranjeros'!$C$99 -> -0.03861250626 | M14: ='Pirámides extranjeros'!E84/'Pirámides extranjeros'!$C$99 -> 0.03354175083 | N14: 0.07215425708 | P14: 20 a 24 | Q14: =-'Pirámides extranjeros'!I84/'Pirámides extranjeros'!$H$99 -> -0.03876552503 | R14: ='Pirámides extranjeros'!J84/'Pirámides extranjeros'!$H$99 -> 0.03543798651 | S14: 0.07420351154
A15: 25 a 29 | B15: =-'Pirámides extranjeros'!D18/'Pirámides extranjeros'!$C$32 -> -0.04723274218 | C15: ='Pirámides extranjeros'!E18/'Pirámides extranjeros'!$C$32 -> 0.0443231384 | D15: 0.09155588059 | F15: ='Pirámides extranjeros'!B85 -> 25 a 29 | G15: =-'Pirámides extranjeros'!D52/'Pirámides extranjeros'!$C$66 -> -0.04654117231 | H15: ='Pirámides extranjeros'!E52/'Pirámides extranjeros'!$C$66 -> 0.0449503988 | I15: 0.09149157111 | K15: 25 a 29 | L15: =-'Pirámides extranjeros'!D85/'Pirámides extranjeros'!$C$99 -> -0.04642665493 | M15: ='Pirámides extranjeros'!E85/'Pirámides extranjeros'!$C$99 -> 0.0444128234 | N15: 0.09083947833 | P15: 25 a 29 | Q15: =-'Pirámides extranjeros'!I85/'Pirámides extranjeros'!$H$99 -> -0.04597021345 | R15: ='Pirámides extranjeros'!J85/'Pirámides extranjeros'!$H$99 -> 0.04687229301 | S15: 0.09284250647
A16: 30 a 34 | B16: =-'Pirámides extranjeros'!D19/'Pirámides extranjeros'!$C$32 -> -0.05120275812 | C16: ='Pirámides extranjeros'!E19/'Pirámides extranjeros'!$C$32 -> 0.05262882963 | D16: 0.1038315877 | F16: ='Pirámides extranjeros'!B86 -> 30 a 34 | G16: =-'Pirámides extranjeros'!D53/'Pirámides extranjeros'!$C$66 -> -0.0502585007 | H16: ='Pirámides extranjeros'!E53/'Pirámides extranjeros'!$C$66 -> 0.05409182298 | I16: 0.1043503237 | K16: 30 a 34 | L16: =-'Pirámides extranjeros'!D86/'Pirámides extranjeros'!$C$99 -> -0.05009255184 | M16: ='Pirámides extranjeros'!E86/'Pirámides extranjeros'!$C$99 -> 0.05509698347 | N16: 0.1051895353 | P16: 30 a 34 | Q16: =-'Pirámides extranjeros'!I86/'Pirámides extranjeros'!$H$99 -> -0.05269100489 | R16: ='Pirámides extranjeros'!J86/'Pirámides extranjeros'!$H$99 -> 0.05781075446 | S16: 0.1105017594
A17: 35 a 39 | B17: =-'Pirámides extranjeros'!D20/'Pirámides extranjeros'!$C$32 -> -0.05365789955 | C17: ='Pirámides extranjeros'!E20/'Pirámides extranjeros'!$C$32 -> 0.05713688719 | D17: 0.1107947867 | F17: ='Pirámides extranjeros'!B87 -> 35 a 39 | G17: =-'Pirámides extranjeros'!D54/'Pirámides extranjeros'!$C$66 -> -0.05350080643 | H17: ='Pirámides extranjeros'!E54/'Pirámides extranjeros'!$C$66 -> 0.05798038046 | I17: 0.1114811869 | K17: 35 a 39 | L17: =-'Pirámides extranjeros'!D87/'Pirámides extranjeros'!$C$99 -> -0.05548889679 | M17: ='Pirámides extranjeros'!E87/'Pirámides extranjeros'!$C$99 -> 0.05820214286 | N17: 0.1136910397 | P17: 35 a 39 | Q17: =-'Pirámides extranjeros'!I87/'Pirámides extranjeros'!$H$99 -> -0.05766140354 | R17: ='Pirámides extranjeros'!J87/'Pirámides extranjeros'!$H$99 -> 0.05959699148 | S17: 0.117258395
A18: 40 a 44 | B18: =-'Pirámides extranjeros'!D21/'Pirámides extranjeros'!$C$32 -> -0.05620706767 | C18: ='Pirámides extranjeros'!E21/'Pirámides extranjeros'!$C$32 -> 0.05483845692 | D18: 0.1110455246 | F18: ='Pirámides extranjeros'!B88 -> 40 a 44 | G18: =-'Pirámides extranjeros'!D55/'Pirámides extranjeros'!$C$66 -> -0.0581074214 | H18: ='Pirámides extranjeros'!E55/'Pirámides extranjeros'!$C$66 -> 0.05628466008 | I18: 0.1143920815 | K18: 40 a 44 | L18: =-'Pirámides extranjeros'!D88/'Pirámides extranjeros'!$C$99 -> -0.06218157043 | M18: ='Pirámides extranjeros'!E88/'Pirámides extranjeros'!$C$99 -> 0.05727360976 | N18: 0.1194551802 | P18: 40 a 44 | Q18: =-'Pirámides extranjeros'!I88/'Pirámides extranjeros'!$H$99 -> -0.06356375193 | R18: ='Pirámides extranjeros'!J88/'Pirámides extranjeros'!$H$99 -> 0.05631127122 | S18: 0.1198750231
A19: 45 a 49 | B19: =-'Pirámides extranjeros'!D22/'Pirámides extranjeros'!$C$32 -> -0.05372058401 | C19: ='Pirámides extranjeros'!E22/'Pirámides extranjeros'!$C$32 -> 0.04809987724 | D19: 0.1018204613 | F19: ='Pirámides extranjeros'!B89 -> 45 a 49 | G19: =-'Pirámides extranjeros'!D56/'Pirámides extranjeros'!$C$66 -> -0.05395925852 | H19: ='Pirámides extranjeros'!E56/'Pirámides extranjeros'!$C$66 -> 0.04728132388 | I19: 0.1012405824 | K19: 45 a 49 | L19: =-'Pirámides extranjeros'!D89/'Pirámides extranjeros'!$C$99 -> -0.05397550843 | M19: ='Pirámides extranjeros'!E89/'Pirámides extranjeros'!$C$99 -> 0.0461854775 | N19: 0.1001609859 | P19: 45 a 49 | Q19: =-'Pirámides extranjeros'!I89/'Pirámides extranjeros'!$H$99 -> -0.05221905598 | R19: ='Pirámides extranjeros'!J89/'Pirámides extranjeros'!$H$99 -> 0.04505021178 | S19: 0.09726926776
A20: 50 a 54 | B20: =-'Pirámides extranjeros'!D23/'Pirámides extranjeros'!$C$32 -> -0.04006581869 | C20: ='Pirámides extranjeros'!E23/'Pirámides extranjeros'!$C$32 -> 0.03636743542 | D20: 0.07643325411 | F20: ='Pirámides extranjeros'!B90 -> 50 a 54 | G20: =-'Pirámides extranjeros'!D57/'Pirámides extranjeros'!$C$66 -> -0.03986323767 | H20: ='Pirámides extranjeros'!E57/'Pirámides extranjeros'!$C$66 -> 0.03604096242 | I20: 0.07590420008 | K20: 50 a 54 | L20: =-'Pirámides extranjeros'!D90/'Pirámides extranjeros'!$C$99 -> -0.0405781023 | M20: ='Pirámides extranjeros'!E90/'Pirámides extranjeros'!$C$99 -> 0.03638764448 | N20: 0.07696574678 | P20: 50 a 54 | Q20: =-'Pirámides extranjeros'!I90/'Pirámides extranjeros'!$H$99 -> -0.03845487511 | R20: ='Pirámides extranjeros'!J90/'Pirámides extranjeros'!$H$99 -> 0.03418941281 | S20: 0.07264428792
A21: 55 a 59 | B21: =-'Pirámides extranjeros'!D24/'Pirámides extranjeros'!$C$32 -> -0.02714759579 | C21: ='Pirámides extranjeros'!E24/'Pirámides extranjeros'!$C$32 -> 0.02563272129 | D21: 0.05278031708 | F21: ='Pirámides extranjeros'!B91 -> 55 a 59 | G21: =-'Pirámides extranjeros'!D58/'Pirámides extranjeros'!$C$66 -> -0.02550208789 | H21: ='Pirámides extranjeros'!E58/'Pirámides extranjeros'!$C$66 -> 0.02395550253 | I21: 0.04945759042 | K21: 55 a 59 | L21: =-'Pirámides extranjeros'!D91/'Pirámides extranjeros'!$C$99 -> -0.0244011263 | M21: ='Pirámides extranjeros'!E91/'Pirámides extranjeros'!$C$99 -> 0.02186273387 | N21: 0.04626386017 | P21: 55 a 59 | Q21: =-'Pirámides extranjeros'!I91/'Pirámides extranjeros'!$H$99 -> -0.02284471686 | R21: ='Pirámides extranjeros'!J91/'Pirámides extranjeros'!$H$99 -> 0.02142887013 | S21: 0.04427358699
A22: 60 a 64 | B22: =-'Pirámides extranjeros'!D25/'Pirámides extranjeros'!$C$32 -> -0.01629273644 | C22: ='Pirámides extranjeros'!E25/'Pirámides extranjeros'!$C$32 -> 0.0161569201 | D22: 0.03244965654 | F22: ='Pirámides extranjeros'!B92 -> 60 a 64 | G22: =-'Pirámides extranjeros'!D59/'Pirámides extranjeros'!$C$66 -> -0.01548242416 | H22: ='Pirámides extranjeros'!E59/'Pirámides extranjeros'!$C$66 -> 0.01531119507 | I22: 0.03079361923 | K22: 60 a 64 | L22: =-'Pirámides extranjeros'!D92/'Pirámides extranjeros'!$C$99 -> -0.01475402917 | M22: ='Pirámides extranjeros'!E92/'Pirámides extranjeros'!$C$99 -> 0.01477814691 | N22: 0.02953217608 | P22: 60 a 64 | Q22: =-'Pirámides extranjeros'!I92/'Pirámides extranjeros'!$H$99 -> -0.01384184335 | R22: ='Pirámides extranjeros'!J92/'Pirámides extranjeros'!$H$99 -> 0.01455275373 | S22: 0.02839459708
A23: 65 a 69 | B23: =-'Pirámides extranjeros'!D26/'Pirámides extranjeros'!$C$32 -> -0.009167602581 | C23: ='Pirámides extranjeros'!E26/'Pirámides extranjeros'!$C$32 -> 0.01048919999 | D23: 0.01965680257 | F23: ='Pirámides extranjeros'!B93 -> 65 a 69 | G23: =-'Pirámides extranjeros'!D60/'Pirámides extranjeros'!$C$66 -> -0.008185855372 | H23: ='Pirámides extranjeros'!E60/'Pirámides extranjeros'!$C$66 -> 0.009975475575 | I23: 0.01816133095 | K23: 65 a 69 | L23: =-'Pirámides extranjeros'!D93/'Pirámides extranjeros'!$C$99 -> -0.007964884566 | M23: ='Pirámides extranjeros'!E93/'Pirámides extranjeros'!$C$99 -> 0.009225036629 | N23: 0.0171899212 | P23: 65 a 69 | Q23: =-'Pirámides extranjeros'!I93/'Pirámides extranjeros'!$H$99 -> -0.007121051908 | R23: ='Pirámides extranjeros'!J93/'Pirámides extranjeros'!$H$99 -> 0.009014821585 | S23: 0.01613587349
A24: 70 a 74 | B24: =-'Pirámides extranjeros'!D27/'Pirámides extranjeros'!$C$32 -> -0.004398359757 | C24: ='Pirámides extranjeros'!E27/'Pirámides extranjeros'!$C$32 -> 0.006649776687 | D24: 0.01104813644 | F24: ='Pirámides extranjeros'!B94 -> 70 a 74 | G24: =-'Pirámides extranjeros'!D61/'Pirámides extranjeros'!$C$66 -> -0.00400455138 | H24: ='Pirámides extranjeros'!E61/'Pirámides extranjeros'!$C$66 -> 0.005860453812 | I24: 0.009865005192 | K24: 70 a 74 | L24: =-'Pirámides extranjeros'!D94/'Pirámides extranjeros'!$C$99 -> -0.003563396502 | M24: ='Pirámides extranjeros'!E94/'Pirámides extranjeros'!$C$99 -> 0.005131049785 | N24: 0.008694446287 | P24: 70 a 74 | Q24: =-'Pirámides extranjeros'!I94/'Pirámides extranjeros'!$H$99 -> -0.003357408702 | R24: ='Pirámides extranjeros'!J94/'Pirámides extranjeros'!$H$99 -> 0.004629878548 | S24: 0.00798728725
A25: 75 a 79 | B25: =-'Pirámides extranjeros'!D28/'Pirámides extranjeros'!$C$32 -> -0.002073810954 | C25: ='Pirámides extranjeros'!E28/'Pirámides extranjeros'!$C$32 -> 0.003384960953 | D25: 0.005458771907 | F25: ='Pirámides extranjeros'!B95 -> 75 a 79 | G25: =-'Pirámides extranjeros'!D62/'Pirámides extranjeros'!$C$66 -> -0.001905614105 | H25: ='Pirámides extranjeros'!E62/'Pirámides extranjeros'!$C$66 -> 0.003037935529 | I25: 0.004943549634 | K25: 75 a 79 | L25: =-'Pirámides extranjeros'!D95/'Pirámides extranjeros'!$C$99 -> -0.001676183126 | M25: ='Pirámides extranjeros'!E95/'Pirámides extranjeros'!$C$99 -> 0.00269515776 | N25: 0.004371340886 | P25: 75 a 79 | Q25: =-'Pirámides extranjeros'!I95/'Pirámides extranjeros'!$H$99 -> -0.001630912056 | R25: ='Pirámides extranjeros'!J95/'Pirámides extranjeros'!$H$99 -> 0.00258675795 | S25: 0.004217670006
A26: 80 a 84 | B26: =-'Pirámides extranjeros'!D29/'Pirámides extranjeros'!$C$32 -> -0.0009454906365 | C26: ='Pirámides extranjeros'!E29/'Pirámides extranjeros'!$C$32 -> 0.001619348604 | D26: 0.00256483924 | F26: ='Pirámides extranjeros'!B96 -> 80 a 84 | G26: =-'Pirámides extranjeros'!D63/'Pirámides extranjeros'!$C$66 -> -0.0009721393694 | H26: ='Pirámides extranjeros'!E63/'Pirámides extranjeros'!$C$66 -> 0.001623914628 | I26: 0.002596053998 | K26: 80 a 84 | L26: =-'Pirámides extranjeros'!D96/'Pirámides extranjeros'!$C$99 -> -0.0009526508414 | M26: ='Pirámides extranjeros'!E96/'Pirámides extranjeros'!$C$99 -> 0.001350593598 | N26: 0.002303244439 | P26: 80 a 84 | Q26: =-'Pirámides extranjeros'!I96/'Pirámides extranjeros'!$H$99 -> -0.0008901314886 | R26: ='Pirámides extranjeros'!J96/'Pirámides extranjeros'!$H$99 -> 0.001314288104 | S26: 0.002204419592
A27: 85 a 89 | B27: =-'Pirámides extranjeros'!D30/'Pirámides extranjeros'!$C$32 -> -0.0003708830674 | C27: ='Pirámides extranjeros'!E30/'Pirámides extranjeros'!$C$32 -> 0.0008775824692 | D27: 0.001248465537 | F27: ='Pirámides extranjeros'!B97 -> 85 a 89 | G27: =-'Pirámides extranjeros'!D64/'Pirámides extranjeros'!$C$66 -> -0.000342458187 | H27: ='Pirámides extranjeros'!E64/'Pirámides extranjeros'!$C$66 -> 0.0007567221228 | I27: 0.00109918031 | K27: 85 a 89 | L27: =-'Pirámides extranjeros'!D97/'Pirámides extranjeros'!$C$99 -> -0.0003738250137 | M27: ='Pirámides extranjeros'!E97/'Pirámides extranjeros'!$C$99 -> 0.0007175028489 | N27: 0.001091327863 | P27: 85 a 89 | Q27: =-'Pirámides extranjeros'!I97/'Pirámides extranjeros'!$H$99 -> -0.0003883123943 | R27: ='Pirámides extranjeros'!J97/'Pirámides extranjeros'!$H$99 -> 0.000692988273 | S27: 0.001081300667
A28: 90 y más | B28: =-'Pirámides extranjeros'!D31/'Pirámides extranjeros'!$C$32 -> -0.0001462637449 | C28: ='Pirámides extranjeros'!E31/'Pirámides extranjeros'!$C$32 -> 0.0003395408363 | D28: 0.0004858045812 | F28: ='Pirámides extranjeros'!B98 -> 90 y más | G28: =-'Pirámides extranjeros'!D65/'Pirámides extranjeros'!$C$66 -> -0.0001325644595 | H28: ='Pirámides extranjeros'!E65/'Pirámides extranjeros'!$C$66 -> 0.0002540818806 | I28: 0.0003866463401 | K28: 90 y más | L28: =-'Pirámides extranjeros'!D98/'Pirámides extranjeros'!$C$99 -> -0.000102500407 | M28: ='Pirámides extranjeros'!E98/'Pirámides extranjeros'!$C$99 -> 0.0003135306567 | N28: 0.0004160310637 | P28: 90 y más | Q28: =-'Pirámides extranjeros'!I98/'Pirámides extranjeros'!$H$99 -> -0.0001254547736 | R28: ='Pirámides extranjeros'!J98/'Pirámides extranjeros'!$H$99 -> 0.0002867537681 | S28: 0.0004122085417
B29: =-'Pirámides extranjeros'!D32/'Pirámides extranjeros'!$C$32 -> -0.510011231 | C29: =-'Pirámides extranjeros'!E32/'Pirámides extranjeros'!$C$32 -> -0.489988769 | D29: 0.02002246193 | G29: =-'Pirámides extranjeros'!D66/'Pirámides extranjeros'!$C$66 -> -0.5076997857 | H29: ='Pirámides extranjeros'!E66/'Pirámides extranjeros'!$C$66 -> 0.4923002143 | I29: 1 | L29: =-'Pirámides extranjeros'!D99/'Pirámides extranjeros'!$C$99 -> -0.5124839466 | M29: ='Pirámides extranjeros'!E99/'Pirámides extranjeros'!$C$99 -> 0.4875160534 | N29: 1 | Q29: =-'Pirámides extranjeros'!I99/'Pirámides extranjeros'!$H$99 -> -0.5101170314 | R29: ='Pirámides extranjeros'!J99/'Pirámides extranjeros'!$H$99 -> 0.4898829686 | S29: 1

Sheet 2021 (hidden)
A1: 2021 extranjeros | B1: referencia geográfica | C1: código | D1: TOTAL VARONES | E1: 01- de 0 a 4 | F1: 02- de 5 a 9 | G1: 03- de 10 a 14 | H1: 04- de 15 a 19 | I1: 05- de 20 a 24 | J1: 06- de 25 a 29 | K1: 07- de 30 a 34 | L1: 08- de 35 a 39 | M1: 09- de 40 a 44 | N1: 10- de 45 a 49 | O1: 11- de 50 a 54 | P1: 12- de 55 a 59 | Q1: 13- de 60 a 64 | R1: 14- de 65 a 69 | S1: 15- de 70 a 74 | T1: 16- de 75 a 79 | U1: 17- de 80 a 84 | V1: 18- de 85 a 89 | W1: 19- de 90 a 94 | X1: TOTAL MUJERES | Y1: 01- de 0 a 4 | Z1: 02- de 5 a 9 | AA1: 03- de 10 a 14 | AB1: 04- de 15 a 19 | AC1: 05- de 20 a 24 | AD1: 06- de 25 a 29 | AE1: 07- de 30 a 34 | AF1: 08- de 35 a 39 | AG1: 09- de 40 a 44 | AH1: 10- de 45 a 49 | AI1: 11- de 50 a 54 | AJ1: 12- de 55 a 59 | AK1: 13- de 60 a 64 | AL1: 14- de 65 a 69 | AM1: 15- de 70 a 74 | AN1: 16- de 75 a 79 | AO1: 17- de 80 a 84 | AP1: 18- de 85 a 89 | AQ1: 19- de 90 a 94 | AR1: Total 2023
A2: 1 | B2: ARAGÓN | C2: 2 | D2: 85389 | E2: 4931 | F2: 4761 | G2: 4209 | H2: 4611 | I2: 6489 | J2: 7695 | K2: 8820 | L2: 9652 | M2: 10640 | N2: 8741 | O2: 6437 | P2: 3824 | Q2: 2317 | R2: 1192 | S2: 562 | T2: 273 | U2: 149 | V2: 65 | W2: 21 | X2: 82002 | Y2: 4590 | Z2: 4540 | AA2: 3855 | AB2: 3772 | AC2: 5932 | AD2: 7846 | AE2: 9677 | AF2: 9976 | AG2: 9426 | AH2: 7541 | AI2: 5723 | AJ2: 3587 | AK2: 2436 | AL2: 1509 | AM2: 775 | AN2: 433 | AO2: 220 | AP2: 116 | AQ2: 48 | AR2: 1341289
A3: 2 | B3: PROVINCIA DE HUESCA | C3: 22 | D3: 15253 | E3: 877 | F3: 792 | G3: 716 | H3: 729 | I3: 1186 | J3: 1418 | K3: 1575 | L3: 1776 | M3: 1991 | N3: 1598 | O3: 1155 | P3: 642 | Q3: 389 | R3: 200 | S3: 105 | T3: 64 | U3: 24 | V3: 10 | W3: 6 | X3: 13228 | Y3: 765 | Z3: 718 | AA3: 590 | AB3: 598 | AC3: 957 | AD3: 1206 | AE3: 1600 | AF3: 1660 | AG3: 1550 | AH3: 1231 | AI3: 932 | AJ3: 587 | AK3: 347 | AL3: 230 | AM3: 111 | AN3: 68 | AO3: 38 | AP3: 28 | AQ3: 12 | AR3: 226878
A4: 3 | B4: PROVINCIA DE TERUEL | C4: 44 | D4: 7738 | E4: 490 | F4: 502 | G4: 426 | H4: 462 | I4: 611 | J4: 593 | K4: 698 | L4: 824 | M4: 977 | N4: 805 | O4: 532 | P4: 372 | Q4: 236 | R4: 100 | S4: 62 | T4: 30 | U4: 9 | V4: 6 | W4: 3 | X4: 7234 | Y4: 495 | Z4: 509 | AA4: 383 | AB4: 374 | AC4: 545 | AD4: 676 | AE4: 745 | AF4: 773 | AG4: 797 | AH4: 653 | AI4: 495 | AJ4: 300 | AK4: 232 | AL4: 121 | AM4: 63 | AN4: 32 | AO4: 30 | AP4: 8 | AQ4: 3 | AR4: 135046
A5: 4 | B5: PROVINCIA DE ZARAGOZA | C5: 50 | D5: 62398 | E5: 3564 | F5: 3467 | G5: 3067 | H5: 3420 | I5: 4692 | J5: 5684 | K5: 6547 | L5: 7052 | M5: 7672 | N5: 6338 | O5: 4750 | P5: 2810 | Q5: 1692 | R5: 892 | S5: 395 | T5: 179 | U5: 116 | V5: 49 | W5: 12 | X5: 61540 | Y5: 3330 | Z5: 3313 | AA5: 2882 | AB5: 2800 | AC5: 4430 | AD5: 5964 | AE5: 7332 | AF5: 7543 | AG5: 7079 | AH5: 5657 | AI5: 4296 | AJ5: 2700 | AK5: 1857 | AL5: 1158 | AM5: 601 | AN5: 333 | AO5: 152 | AP5: 80 | AQ5: 33 | AR5: 979365
A6: 5 | B6: LA JACETANIA | C6: 1 | D6: 559 | E6: 22 | F6: 22 | G6: 34 | H6: 23 | I6: 46 | J6: 54 | K6: 58 | L6: 67 | M6: 65 | N6: 52 | O6: 48 | P6: 26 | Q6: 15 | R6: 8 | S6: 10 | T6: 4 | U6: 4 | V6: 1 | W6: 0 | X6: 682 | Y6: 21 | Z6: 37 | AA6: 20 | AB6: 31 | AC6: 60 | AD6: 73 | AE6: 73 | AF6: 72 | AG6: 84 | AH6: 58 | AI6: 55 | AJ6: 35 | AK6: 20 | AL6: 14 | AM6: 13 | AN6: 9 | AO6: 4 | AP6: 1 | AQ6: 2 | AR6: 18575
A7: 6 | B7: ALTO GÁLLEGO | C7: 2 | D7: 756 | E7: 36 | F7: 42 | G7: 39 | H7: 36 | I7: 49 | J7: 60 | K7: 51 | L7: 73 | M7: 95 | N7: 109 | O7: 59 | P7: 43 | Q7: 31 | R7: 18 | S7: 6 | T7: 6 | U7: 0 | V7: 2 | W7: 1 | X7: 728 | Y7: 37 | Z7: 38 | AA7: 29 | AB7: 37 | AC7: 44 | AD7: 52 | AE7: 82 | AF7: 97 | AG7: 94 | AH7: 69 | AI7: 58 | AJ7: 41 | AK7: 15 | AL7: 17 | AM7: 7 | AN7: 4 | AO7: 2 | AP7: 5 | AQ7: 0 | AR7: 14007
A8: 7 | B8: SOBRARBE | C8: 3 | D8: 486 | E8: 24 | F8: 35 | G8: 29 | H8: 21 | I8: 24 | J8: 32 | K8: 55 | L8: 48 | M8: 57 | N8: 41 | O8: 39 | P8: 37 | Q8: 21 | R8: 12 | S8: 5 | T8: 5 | U8: 1 | V8: 0 | W8: 0 | X8: 489 | Y8: 24 | Z8: 10 | AA8: 17 | AB8: 12 | AC8: 27 | AD8: 42 | AE8: 73 | AF8: 57 | AG8: 42 | AH8: 59 | AI8: 42 | AJ8: 43 | AK8: 15 | AL8: 9 | AM8: 7 | AN8: 5 | AO8: 3 | AP8: 2 | AQ8: 0 | AR8: 7862
A9: 8 | B9: RIBAGORZA | C9: 4 | D9: 823 | E9: 45 | F9: 43 | G9: 27 | H9: 24 | I9: 57 | J9: 75 | K9: 97 | L9: 80 | M9: 109 | N9: 85 | O9: 65 | P9: 46 | Q9: 26 | R9: 21 | S9: 11 | T9: 8 | U9: 4 | V9: 0 | W9: 0 | X9: 810 | Y9: 36 | Z9: 34 | AA9: 39 | AB9: 36 | AC9: 45 | AD9: 81 | AE9: 83 | AF9: 100 | AG9: 98 | AH9: 85 | AI9: 62 | AJ9: 40 | AK9: 29 | AL9: 22 | AM9: 10 | AN9: 4 | AO9: 4 | AP9: 1 | AQ9: 1 | AR9: 12683
A10: 9 | B10: CINCO VILLAS | C10: 5 | D10: 2411 | E10: 139 | F10: 132 | G10: 130 | H10: 130 | I10: 171 | J10: 232 | K10: 225 | L10: 258 | M10: 308 | N10: 253 | O10: 205 | P10: 112 | Q10: 75 | R10: 27 | S10: 10 | T10: 2 | U10: 1 | V10: 1 | W10: 0 | X10: 1914 | Y10: 135 | Z10: 134 | AA10: 117 | AB10: 104 | AC10: 134 | AD10: 161 | AE10: 237 | AF10: 213 | AG10: 205 | AH10: 161 | AI10: 127 | AJ10: 89 | AK10: 54 | AL10: 24 | AM10: 8 | AN10: 6 | AO10: 2 | AP10: 2 | AQ10: 1 | AR10: 30775
A11: 10 | B11: HOYA DE HUESCA/PLANA DE UESCA | C11: 6 | D11: 3290 | E11: 200 | F11: 211 | G11: 172 | H11: 200 | I11: 270 | J11: 299 | K11: 350 | L11: 390 | M11: 358 | N11: 321 | O11: 206 | P11: 124 | Q11: 93 | R11: 47 | S11: 24 | T11: 14 | U11: 5 | V11: 3 | W11: 3 | X11: 3391 | Y11: 188 | Z11: 191 | AA11: 157 | AB11: 147 | AC11: 249 | AD11: 313 | AE11: 421 | AF11: 450 | AG11: 382 | AH11: 278 | AI11: 221 | AJ11: 146 | AK11: 103 | AL11: 62 | AM11: 39 | AN11: 20 | AO11: 11 | AP11: 8 | AQ11: 5 | AR11: 69653
A12: 11 | B12: SOMONTANO DE BARBASTRO | C12: 7 | D12: 1242 | E12: 84 | F12: 65 | G12: 49 | H12: 65 | I12: 85 | J12: 103 | K12: 122 | L12: 142 | M12: 187 | N12: 116 | O12: 95 | P12: 43 | Q12: 36 | R12: 20 | S12: 14 | T12: 10 | U12: 3 | V12: 1 | W12: 2 | X12: 1287 | Y12: 60 | Z12: 51 | AA12: 58 | AB12: 50 | AC12: 95 | AD12: 137 | AE12: 149 | AF12: 173 | AG12: 138 | AH12: 107 | AI12: 86 | AJ12: 71 | AK12: 35 | AL12: 36 | AM12: 14 | AN12: 11 | AO12: 7 | AP12: 6 | AQ12: 3 | AR12: 24212
A13: 12 | B13: CINCA MEDIO | C13: 8 | D13: 2092 | E13: 128 | F13: 108 | G13: 102 | H13: 100 | I13: 156 | J13: 192 | K13: 194 | L13: 250 | M13: 274 | N13: 223 | O13: 189 | P13: 93 | Q13: 42 | R13: 22 | S13: 10 | T13: 7 | U13: 2 | V13: 0 | W13: 0 | X13: 1653 | Y13: 112 | Z13: 99 | AA13: 71 | AB13: 87 | AC13: 132 | AD13: 164 | AE13: 190 | AF13: 181 | AG13: 189 | AH13: 178 | AI13: 117 | AJ13: 60 | AK13: 36 | AL13: 19 | AM13: 11 | AN13: 3 | AO13: 3 | AP13: 1 | AQ13: 0 | AR13: 24579
A14: 13 | B14: LA LITERA/LA LLITERA | C14: 9 | D14: 1814 | E14: 83 | F14: 71 | G14: 75 | H14: 97 | I14: 167 | J14: 215 | K14: 172 | L14: 202 | M14: 273 | N14: 186 | O14: 143 | P14: 69 | Q14: 30 | R14: 10 | S14: 13 | T14: 4 | U14: 3 | V14: 1 | W14: 0 | X14: 1130 | Y14: 86 | Z14: 62 | AA14: 62 | AB14: 58 | AC14: 93 | AD14: 92 | AE14: 152 | AF14: 141 | AG14: 133 | AH14: 103 | AI14: 56 | AJ14: 41 | AK14: 20 | AL14: 17 | AM14: 4 | AN14: 6 | AO14: 1 | AP14: 3 | AQ14: 0 | AR14: 18995
A15: 14 | B15: LOS MONEGROS | C15: 10 | D15: 1117 | E15: 74 | F15: 61 | G15: 53 | H15: 45 | I15: 82 | J15: 111 | K15: 123 | L15: 124 | M15: 149 | N15: 115 | O15: 81 | P15: 41 | Q15: 31 | R15: 17 | S15: 3 | T15: 3 | U15: 2 | V15: 2 | W15: 0 | X15: 1056 | Y15: 67 | Z15: 57 | AA15: 44 | AB15: 45 | AC15: 61 | AD15: 94 | AE15: 131 | AF15: 132 | AG15: 123 | AH15: 104 | AI15: 81 | AJ15: 50 | AK15: 37 | AL15: 17 | AM15: 5 | AN15: 3 | AO15: 4 | AP15: 1 | AQ15: 0 | AR15: 18357
A16: 15 | B16: BAJO CINCA/BAIX CINCA | C16: 11 | D16: 3361 | E16: 192 | F16: 146 | G16: 150 | H16: 133 | I16: 265 | J16: 304 | K16: 384 | L16: 427 | M16: 466 | N16: 377 | O16: 262 | P16: 137 | Q16: 70 | R16: 29 | S16: 11 | T16: 6 | U16: 2 | V16: 0 | W16: 0 | X16: 2256 | Y16: 145 | Z16: 156 | AA16: 101 | AB16: 108 | AC16: 160 | AD16: 178 | AE16: 285 | AF16: 283 | AG16: 300 | AH16: 210 | AI16: 177 | AJ16: 72 | AK16: 49 | AL16: 24 | AM16: 4 | AN16: 3 | AO16: 0 | AP16: 0 | AQ16: 1 | AR16: 24883
A17: 16 | B17: TARAZONA Y EL MONCAYO | C17: 12 | D17: 558 | E17: 28 | F17: 35 | G17: 23 | H17: 33 | I17: 53 | J17: 40 | K17: 64 | L17: 78 | M17: 71 | N17: 45 | O17: 42 | P17: 19 | Q17: 13 | R17: 9 | S17: 4 | T17: 1 | U17: 0 | V17: 0 | W17: 0 | X17: 492 | Y17: 29 | Z17: 23 | AA17: 29 | AB17: 21 | AC17: 42 | AD17: 52 | AE17: 58 | AF17: 69 | AG17: 52 | AH17: 35 | AI17: 26 | AJ17: 22 | AK17: 21 | AL17: 5 | AM17: 2 | AN17: 4 | AO17: 1 | AP17: 0 | AQ17: 1 | AR17: 14052
A18: 17 | B18: CAMPO DE BORJA | C18: 13 | D18: 970 | E18: 63 | F18: 69 | G18: 65 | H18: 51 | I18: 55 | J18: 74 | K18: 84 | L18: 108 | M18: 127 | N18: 120 | O18: 71 | P18: 50 | Q18: 15 | R18: 10 | S18: 7 | T18: 1 | U18: 0 | V18: 0 | W18: 0 | X18: 780 | Y18: 51 | Z18: 47 | AA18: 39 | AB18: 38 | AC18: 52 | AD18: 74 | AE18: 93 | AF18: 98 | AG18: 107 | AH18: 78 | AI18: 44 | AJ18: 23 | AK18: 18 | AL18: 5 | AM18: 4 | AN18: 5 | AO18: 4 | AP18: 0 | AQ18: 0 | AR18: 13826
A19: 18 | B19: ARANDA | C19: 14 | D19: 240 | E19: 8 | F19: 5 | G19: 13 | H19: 20 | I19: 11 | J19: 18 | K19: 16 | L19: 25 | M19: 32 | N19: 45 | O19: 22 | P19: 14 | Q19: 5 | R19: 4 | S19: 1 | T19: 1 | U19: 0 | V19: 0 | W19: 0 | X19: 254 | Y19: 8 | Z19: 9 | AA19: 12 | AB19: 13 | AC19: 14 | AD19: 16 | AE19: 32 | AF19: 27 | AG19: 34 | AH19: 34 | AI19: 23 | AJ19: 8 | AK19: 13 | AL19: 7 | AM19: 3 | AN19: 0 | AO19: 0 | AP19: 1 | AQ19: 0 | AR19: 6147
A20: 19 | B20: RIBERA ALTA DEL EBRO | C20: 15 | D20: 1496 | E20: 68 | F20: 69 | G20: 75 | H20: 74 | I20: 90 | J20: 114 | K20: 137 | L20: 171 | M20: 177 | N20: 180 | O20: 156 | P20: 93 | Q20: 53 | R20: 23 | S20: 9 | T20: 5 | U20: 2 | V20: 0 | W20: 0 | X20: 1445 | Y20: 47 | Z20: 85 | AA20: 72 | AB20: 70 | AC20: 79 | AD20: 124 | AE20: 157 | AF20: 162 | AG20: 174 | AH20: 154 | AI20: 123 | AJ20: 83 | AK20: 49 | AL20: 23 | AM20: 22 | AN20: 12 | AO20: 5 | AP20: 4 | AQ20: 0 | AR20: 27951
A21: 20 | B21: VALDEJALÓN | C21: 16 | D21: 3664 | E21: 241 | F21: 203 | G21: 176 | H21: 161 | I21: 229 | J21: 259 | K21: 381 | L21: 379 | M21: 479 | N21: 424 | O21: 349 | P21: 179 | Q21: 113 | R21: 61 | S21: 19 | T21: 7 | U21: 2 | V21: 2 | W21: 0 | X21: 3066 | Y21: 211 | Z21: 192 | AA21: 128 | AB21: 121 | AC21: 194 | AD21: 252 | AE21: 354 | AF21: 388 | AG21: 360 | AH21: 312 | AI21: 250 | AJ21: 126 | AK21: 88 | AL21: 46 | AM21: 26 | AN21: 5 | AO21: 8 | AP21: 3 | AQ21: 2 | AR21: 30133
A22: 21 | B22: CENTRAL | C22: 17 | D22: 45424 | E22: 2608 | F22: 2528 | G22: 2233 | H22: 2547 | I22: 3545 | J22: 4264 | K22: 4859 | L22: 5181 | M22: 5505 | N22: 4477 | O22: 3276 | P22: 1999 | Q22: 1183 | R22: 633 | S22: 299 | T22: 132 | U22: 102 | V22: 43 | W22: 10 | X22: 47273 | Y22: 2401 | Z22: 2458 | AA22: 2149 | AB22: 2100 | AC22: 3489 | AD22: 4746 | AE22: 5708 | AF22: 5865 | AG22: 5462 | AH22: 4256 | AI22: 3246 | AJ22: 2092 | AK22: 1412 | AL22: 924 | AM22: 477 | AN22: 271 | AO22: 122 | AP22: 68 | AQ22: 27 | AR22: 769428
A23: 22 | B23: RIBERA BAJA DEL EBRO | C23: 18 | D23: 381 | E23: 20 | F23: 26 | G23: 22 | H23: 18 | I23: 32 | J23: 38 | K23: 30 | L23: 49 | M23: 39 | N23: 33 | O23: 19 | P23: 24 | Q23: 18 | R23: 4 | S23: 5 | T23: 3 | U23: 1 | V23: 0 | W23: 0 | X23: 367 | Y23: 37 | Z23: 32 | AA23: 20 | AB23: 19 | AC23: 24 | AD23: 33 | AE23: 29 | AF23: 58 | AG23: 37 | AH23: 27 | AI23: 15 | AJ23: 9 | AK23: 9 | AL23: 9 | AM23: 5 | AN23: 3 | AO23: 1 | AP23: 0 | AQ23: 0 | AR23: 8494
A24: 23 | B24: BAJO ARAGÓN-CASPE/BAIX ARAGÓ-CASP | C24: 19 | D24: 2418 | E24: 151 | F24: 154 | G24: 95 | H24: 147 | I24: 188 | J24: 238 | K24: 242 | L24: 269 | M24: 291 | N24: 237 | O24: 172 | P24: 104 | Q24: 69 | R24: 38 | S24: 12 | T24: 8 | U24: 1 | V24: 1 | W24: 1 | X24: 1541 | Y24: 148 | Z24: 101 | AA24: 92 | AB24: 96 | AC24: 119 | AD24: 137 | AE24: 175 | AF24: 156 | AG24: 142 | AH24: 133 | AI24: 109 | AJ24: 48 | AK24: 38 | AL24: 27 | AM24: 8 | AN24: 8 | AO24: 2 | AP24: 1 | AQ24: 1 | AR24: 15415
A25: 24 | B25: COMUNIDAD DE CALATAYUD | C25: 20 | D25: 2789 | E25: 137 | F25: 144 | G25: 144 | H25: 159 | I25: 193 | J25: 236 | K25: 260 | L25: 299 | M25: 363 | N25: 290 | O25: 250 | P25: 132 | Q25: 93 | R25: 51 | S25: 21 | T25: 11 | U25: 4 | V25: 1 | W25: 1 | X25: 2691 | Y25: 133 | Z25: 120 | AA25: 141 | AB25: 132 | AC25: 174 | AD25: 214 | AE25: 307 | AF25: 309 | AG25: 312 | AH25: 287 | AI25: 221 | AJ25: 123 | AK25: 102 | AL25: 59 | AM25: 39 | AN25: 13 | AO25: 4 | AP25: 0 | AQ25: 1 | AR25: 36056
A26: 25 | B26: CAMPO DE CARIÑENA | C26: 21 | D26: 1245 | E26: 63 | F26: 59 | G26: 46 | H26: 41 | I26: 82 | J26: 99 | K26: 150 | L26: 154 | M26: 161 | N26: 146 | O26: 121 | P26: 56 | Q26: 37 | R26: 22 | S26: 3 | T26: 3 | U26: 1 | V26: 1 | W26: 0 | X26: 973 | Y26: 73 | Z26: 60 | AA26: 60 | AB26: 53 | AC26: 54 | AD26: 83 | AE26: 86 | AF26: 119 | AG26: 106 | AH26: 109 | AI26: 62 | AJ26: 55 | AK26: 30 | AL26: 15 | AM26: 2 | AN26: 4 | AO26: 1 | AP26: 1 | AQ26: 0 | AR26: 10092
A27: 26 | B27: CAMPO DE BELCHITE | C27: 22 | D27: 164 | E27: 4 | F27: 13 | G27: 14 | H27: 13 | I27: 8 | J27: 11 | K27: 14 | L27: 14 | M27: 31 | N27: 17 | O27: 8 | P27: 5 | Q27: 6 | R27: 3 | S27: 2 | T27: 1 | U27: 0 | V27: 0 | W27: 0 | X27: 182 | Y27: 20 | Z27: 14 | AA27: 5 | AB27: 11 | AC27: 19 | AD27: 11 | AE27: 19 | AF27: 26 | AG27: 19 | AH27: 18 | AI27: 7 | AJ27: 5 | AK27: 4 | AL27: 2 | AM27: 2 | AN27: 0 | AO27: 0 | AP27: 0 | AQ27: 0 | AR27: 4556
A28: 27 | B28: BAJO MARTÍN | C28: 23 | D28: 419 | E28: 27 | F28: 23 | G28: 19 | H28: 27 | I28: 37 | J28: 39 | K28: 37 | L28: 46 | M28: 54 | N28: 42 | O28: 28 | P28: 14 | Q28: 16 | R28: 4 | S28: 5 | T28: 1 | U28: 0 | V28: 0 | W28: 0 | X28: 354 | Y28: 31 | Z28: 33 | AA28: 23 | AB28: 23 | AC28: 25 | AD28: 36 | AE28: 36 | AF28: 20 | AG28: 37 | AH28: 30 | AI28: 20 | AJ28: 11 | AK28: 13 | AL28: 3 | AM28: 5 | AN28: 3 | AO28: 2 | AP28: 3 | AQ28: 0 | AR28: 6281
A29: 28 | B29: CAMPO DE DAROCA | C29: 24 | D29: 351 | E29: 23 | F29: 18 | G29: 17 | H29: 11 | I29: 20 | J29: 34 | K29: 54 | L29: 40 | M29: 46 | N29: 44 | O29: 27 | P29: 6 | Q29: 6 | R29: 3 | S29: 1 | T29: 1 | U29: 0 | V29: 0 | W29: 0 | X29: 308 | Y29: 26 | Z29: 21 | AA29: 10 | AB29: 9 | AC29: 27 | AD29: 41 | AE29: 38 | AF29: 27 | AG29: 36 | AH29: 33 | AI29: 20 | AJ29: 5 | AK29: 7 | AL29: 5 | AM29: 0 | AN29: 2 | AO29: 1 | AP29: 0 | AQ29: 0 | AR29: 5512
A30: 29 | B30: JILOCA | C30: 25 | D30: 835 | E30: 73 | F30: 58 | G30: 61 | H30: 49 | I30: 56 | J30: 57 | K30: 77 | L30: 89 | M30: 94 | N30: 100 | O30: 55 | P30: 31 | Q30: 20 | R30: 8 | S30: 3 | T30: 2 | U30: 2 | V30: 0 | W30: 0 | X30: 825 | Y30: 60 | Z30: 73 | AA30: 45 | AB30: 49 | AC30: 75 | AD30: 82 | AE30: 85 | AF30: 85 | AG30: 83 | AH30: 72 | AI30: 47 | AJ30: 29 | AK30: 22 | AL30: 11 | AM30: 4 | AN30: 0 | AO30: 2 | AP30: 0 | AQ30: 1 | AR30: 12492
A31: 30 | B31: CUENCAS MINERAS | C31: 26 | D31: 375 | E31: 23 | F31: 34 | G31: 25 | H31: 19 | I31: 38 | J31: 29 | K31: 31 | L31: 29 | M31: 46 | N31: 36 | O31: 22 | P31: 21 | Q31: 10 | R31: 9 | S31: 2 | T31: 1 | U31: 0 | V31: 0 | W31: 0 | X31: 329 | Y31: 28 | Z31: 22 | AA31: 21 | AB31: 15 | AC31: 19 | AD31: 35 | AE31: 44 | AF31: 29 | AG31: 36 | AH31: 27 | AI31: 22 | AJ31: 12 | AK31: 12 | AL31: 3 | AM31: 2 | AN31: 1 | AO31: 1 | AP31: 0 | AQ31: 0 | AR31: 7829
A32: 31 | B32: ANDORRA-SIERRA DE ARCOS | C32: 27 | D32: 442 | E32: 29 | F32: 31 | G32: 27 | H32: 32 | I32: 32 | J32: 25 | K32: 38 | L32: 41 | M32: 60 | N32: 43 | O32: 24 | P32: 33 | Q32: 16 | R32: 4 | S32: 3 | T32: 2 | U32: 1 | V32: 1 | W32: 0 | X32: 427 | Y32: 25 | Z32: 27 | AA32: 28 | AB32: 23 | AC32: 39 | AD32: 33 | AE32: 49 | AF32: 43 | AG32: 46 | AH32: 39 | AI32: 28 | AJ32: 22 | AK32: 11 | AL32: 8 | AM32: 3 | AN32: 1 | AO32: 2 | AP32: 0 | AQ32: 0 | AR32: 9531
A33: 32 | B33: BAJO ARAGÓN | C33: 28 | D33: 1903 | E33: 116 | F33: 129 | G33: 122 | H33: 101 | I33: 148 | J33: 138 | K33: 167 | L33: 205 | M33: 247 | N33: 221 | O33: 138 | P33: 81 | Q33: 43 | R33: 28 | S33: 9 | T33: 4 | U33: 2 | V33: 3 | W33: 1 | X33: 1884 | Y33: 138 | Z33: 136 | AA33: 97 | AB33: 96 | AC33: 118 | AD33: 178 | AE33: 188 | AF33: 208 | AG33: 228 | AH33: 174 | AI33: 144 | AJ33: 71 | AK33: 48 | AL33: 28 | AM33: 14 | AN33: 8 | AO33: 8 | AP33: 2 | AQ33: 0 | AR33: 28702
A34: 33 | B34: COMUNIDAD DE TERUEL | C34: 29 | D34: 2264 | E34: 146 | F34: 140 | G34: 96 | H34: 149 | I34: 197 | J34: 214 | K34: 220 | L34: 227 | M34: 265 | N34: 218 | O34: 151 | P34: 118 | Q34: 76 | R34: 20 | S34: 16 | T34: 7 | U34: 1 | V34: 1 | W34: 2 | X34: 2219 | Y34: 132 | Z34: 130 | AA34: 108 | AB34: 122 | AC34: 201 | AD34: 209 | AE34: 223 | AF34: 241 | AG34: 242 | AH34: 210 | AI34: 160 | AJ34: 84 | AK34: 77 | AL34: 41 | AM34: 19 | AN34: 5 | AO34: 11 | AP34: 3 | AQ34: 1 | AR34: 46492
A35: 34 | B35: MAESTRAZGO | C35: 30 | D35: 171 | E35: 6 | F35: 13 | G35: 9 | H35: 9 | I35: 12 | J35: 13 | K35: 16 | L35: 20 | M35: 23 | N35: 18 | O35: 19 | P35: 2 | Q35: 4 | R35: 2 | S35: 3 | T35: 1 | U35: 0 | V35: 1 | W35: 0 | X35: 137 | Y35: 11 | Z35: 9 | AA35: 10 | AB35: 4 | AC35: 5 | AD35: 9 | AE35: 17 | AF35: 18 | AG35: 14 | AH35: 11 | AI35: 11 | AJ35: 8 | AK35: 3 | AL35: 3 | AM35: 2 | AN35: 2 | AO35: 0 | AP35: 0 | AQ35: 0 | AR35: 3152
A36: 35 | B36: SIERRA DE ALBARRACÍN | C36: 31 | D36: 125 | E36: 5 | F36: 3 | G36: 4 | H36: 8 | I36: 9 | J36: 4 | K36: 9 | L36: 20 | M36: 19 | N36: 17 | O36: 9 | P36: 11 | Q36: 6 | R36: 1 | S36: 0 | T36: 0 | U36: 0 | V36: 0 | W36: 0 | X36: 126 | Y36: 5 | Z36: 7 | AA36: 5 | AB36: 4 | AC36: 9 | AD36: 8 | AE36: 12 | AF36: 13 | AG36: 19 | AH36: 14 | AI36: 5 | AJ36: 10 | AK36: 6 | AL36: 3 | AM36: 3 | AN36: 2 | AO36: 0 | AP36: 0 | AQ36: 1 | AR36: 4517
A37: 36 | B37: GÚDAR-JAVALAMBRE | C37: 32 | D37: 509 | E37: 30 | F37: 38 | G37: 32 | H37: 22 | I37: 38 | J37: 39 | K37: 41 | L37: 74 | M37: 64 | N37: 38 | O37: 38 | P37: 24 | Q37: 17 | R37: 6 | S37: 6 | T37: 2 | U37: 0 | V37: 0 | W37: 0 | X37: 400 | Y37: 29 | Z37: 35 | AA37: 26 | AB37: 11 | AC37: 28 | AD37: 44 | AE37: 37 | AF37: 50 | AG37: 40 | AH37: 38 | AI37: 25 | AJ37: 16 | AK37: 9 | AL37: 7 | AM37: 2 | AN37: 2 | AO37: 1 | AP37: 0 | AQ37: 0 | AR37: 7739
A38: 37 | B38: MATARRAÑA/MATARRANYA | C38: 33 | D38: 695 | E38: 35 | F38: 33 | G38: 31 | H38: 46 | I38: 44 | J38: 35 | K38: 62 | L38: 73 | M38: 105 | N38: 72 | O38: 48 | P38: 37 | Q38: 28 | R38: 18 | S38: 15 | T38: 10 | U38: 3 | V38: 0 | W38: 0 | X38: 533 | Y38: 36 | Z38: 37 | AA38: 20 | AB38: 27 | AC38: 26 | AD38: 42 | AE38: 54 | AF38: 66 | AG38: 52 | AH38: 38 | AI38: 33 | AJ38: 37 | AK38: 31 | AL38: 14 | AM38: 9 | AN38: 8 | AO38: 3 | AP38: 0 | AQ38: 0 | AR38: 8311
A39: 38 | B39: 22001 Abiego | C39: 22001 | D39: 5 | E39: 0 | F39: 1 | G39: 1 | H39: 0 | I39: 0 | J39: 0 | K39: 1 | L39: 1 | M39: 1 | N39: 0 | O39: 0 | P39: 0 | Q39: 0 | R39: 0 | S39: 0 | T39: 0 | U39: 0 | V39: 0 | W39: 0 | X39: 9 | Y39: 0 | Z39: 2 | AA39: 0 | AB39: 0 | AC39: 0 | AD39: 1 | AE39: 1 | AF39: 1 | AG39: 0 | AH39: 1 | AI39: 1 | AJ39: 1 | AK39: 0 | AL39: 0 | AM39: 0 | AN39: 1 | AO39: 0 | AP39: 0 | AQ39: 0 | AR39: 261
A40: 39 | B40: 22002 Abizanda | C40: 22002 | D40: 13 | E40: 0 | F40: 0 | G40: 0 | H40: 0 | I40: 0 | J40: 0 | K40: 2 | L40: 2 | M40: 1 | N40: 2 | O40: 1 | P40: 3 | Q40: 0 | R40: 0 | S40: 0 | T40: 2 | U40: 0 | V40: 0 | W40: 0 | X40: 11 | Y40: 0 | Z40: 0 | AA40: 0 | AB40: 0 | AC40: 0 | AD40: 1 | AE40: 1 | AF40: 2 | AG40: 0 | AH40: 0 | AI40: 3 | AJ40: 1 | AK40: 1 | AL40: 0 | AM40: 1 | AN40: 1 | AO40: 0 | AP40: 0 | AQ40: 0 | AR40: 162
A41: 40 | B41: 22003 Adahuesca | C41: 22003 | D41: 11 | E41: 0 | F41: 1 | G41: 0 | H41: 1 | I41: 2 | J41: 0 | K41: 1 | L41: 1 | M41: 2 | N41: 2 | O41: 0 | P41: 1 | Q41: 0 | R41: 0 | S41: 0 | T41: 0 | U41: 0 | V41: 0 | W41: 0 | X41: 9 | Y41: 0 | Z41: 0 | AA41: 1 | AB41: 0 | AC41: 1 | AD41: 1 | AE41: 1 | AF41: 3 | AG41: 1 | AH41: 1 | AI41: 0 | AJ41: 0 | AK41: 0 | AL41: 0 | AM41: 0 | AN41: 0 | AO41: 0 | AP41: 0 | AQ41: 0 | AR41: 207
A42: 41 | B42: 22004 Agüero | C42: 22004 | D42: 3 | E42: 0 | F42: 0 | G42: 0 | H42: 0 | I42: 0 | J42: 0 | K42: 1 | L42: 1 | M42: 0 | N42: 0 | O42: 0 | P42: 0 | Q42: 0 | R42: 1 | S42: 0 | T42: 0 | U42: 0 | V42: 0 | W42: 0 | X42: 2 | Y42: 0 | Z42: 0 | AA42: 0 | AB42: 0 | AC42: 0 | AD42: 1 | AE42: 0 | AF42: 0 | AG42: 1 | AH42: 0 | AI42: 0 | AJ42: 0 | AK42: 0 | AL42: 0 | AM42: 0 | AN42: 0 | AO42: 0 | AP42: 0 | AQ42: 0 | AR42: 143
A43: 42 | B43: 22006 Aísa | C43: 22006 | D43: 8 | E43: 0 | F43: 0 | G43: 0 | H43: 0 | I43: 1 | J43: 1 | K43: 1 | L43: 0 | M43: 3 | N43: 1 | O43: 0 | P43: 0 | Q43: 0 | R43: 0 | S43: 0 | T43: 0 | U43: 1 | V43: 0 | W43: 0 | X43: 10 | Y43: 0 | Z43: 2 | AA43: 0 | AB43: 1 | AC43: 1 | AD43: 1 | AE43: 1 | AF43: 0 | AG43: 3 | AH43: 0 | AI43: 0 | AJ43: 1 | AK43: 0 | AL43: 0 | AM43: 0 | AN43: 0 | AO43: 0 | AP43: 0 | AQ43: 0 | AR43: 325
A44: 43 | B44: 22007 Albalate de Cinca | C44: 22007 | D44: 163 | E44: 5 | F44: 8 | G44: 2 | H44: 3 | I44: 11 | J44: 17 | K44: 21 | L44: 16 | M44: 14 | N44: 21 | O44: 23 | P44: 6 | Q44: 10 | R44: 3 | S44: 3 | T44: 0 | U44: 0 | V44: 0 | W44: 0 | X44: 97 | Y44: 3 | Z44: 8 | AA44: 4 | AB44: 4 | AC44: 4 | AD44: 12 | AE44: 16 | AF44: 7 | AG44: 10 | AH44: 19 | AI44: 6 | AJ44: 3 | AK44: 1 | AL44: 0 | AM44: 0 | AN44: 0 | AO44: 0 | AP44: 0 | AQ44: 0 | AR44: 1159
A45: 44 | B45: 22008 Albalatillo | C45: 22008 | D45: 16 | E45: 0 | F45: 0 | G45: 1 | H45: 1 | I45: 2 | J45: 5 | K45: 1 | L45: 0 | M45: 2 | N45: 1 | O45: 1 | P45: 1 | Q45: 0 | R45: 0 | S45: 0 | T45: 0 | U45: 0 | V45: 1 | W45: 0 | X45: 25 | Y45: 2 | Z45: 4 | AA45: 1 | AB45: 1 | AC45: 3 | AD45: 5 | AE45: 1 | AF45: 1 | AG45: 2 | AH45: 2 | AI45: 2 | AJ45: 0 | AK45: 1 | AL45: 0 | AM45: 0 | AN45: 0 | AO45: 0 | AP45: 0 | AQ45: 0 | AR45: 200
A46: 45 | B46: 22009 Albelda | C46: 22009 | D46: 27 | E46: 2 | F46: 4 | G46: 0 | H46: 2 | I46: 3 | J46: 0 | K46: 1 | L46: 5 | M46: 2 | N46: 2 | O46: 2 | P46: 3 | Q46: 1 | R46: 0 | S46: 0 | T46: 0 | U46: 0 | V46: 0 | W46: 0 | X46: 15 | Y46: 0 | Z46: 1 | AA46: 1 | AB46: 0 | AC46: 1 | AD46: 1 | AE46: 1 | AF46: 3 | AG46: 3 | AH46: 1 | AI46: 1 | AJ46: 1 | AK46: 1 | AL46: 0 | AM46: 0 | AN46: 0 | AO46: 0 | AP46: 0 | AQ46: 0 | AR46: 701
A47: 46 | B47: 22011 Albero Alto | C47: 22011 | D47: 1 | E47: 0 | F47: 0 | G47: 0 | H47: 0 | I47: 0 | J47: 0 | K47: 0 | L47: 0 | M47: 0 | N47: 0 | O47: 0 | P47: 0 | Q47: 1 | R47: 0 | S47: 0 | T47: 0 | U47: 0 | V47: 0 | W47: 0 | X47: 2 | Y47: 0 | Z47: 0 | AA47: 0 | AB47: 0 | AC47: 0 | AD47: 0 | AE47: 0 | AF47: 0 | AG47: 0 | AH47: 0 | AI47: 1 | AJ47: 0 | AK47: 0 | AL47: 0 | AM47: 1 | AN47: 0 | AO47: 0 | AP47: 0 | AQ47: 0 | AR47: 124
A48: 47 | B48: 22012 Albero Bajo | C48: 22012 | D48: 3 | E48: 0 | F48: 0 | G48: 0 | H48: 0 | I48: 0 | J48: 0 | K48: 1 | L48: 0 | M48: 0 | N48: 0 | O48: 0 | P48: 0 | Q48: 1 | R48: 0 | S48: 1 | T48: 0 | U48: 0 | V48: 0 | W48: 0 | X48: 7 | Y48: 0 | Z48: 0 | AA48: 0 | AB48: 0 | AC48: 1 | AD48: 0 | AE48: 1 | AF48: 1 | AG48: 0 | AH48: 2 | AI48: 1 | AJ48: 0 | AK48: 0 | AL48: 1 | AM48: 0 | AN48: 0 | AO48: 0 | AP48: 0 | AQ48: 0 | AR48: 130
A49: 48 | B49: 22013 Alberuela de Tubo | C49: 22013 | D49: 5 | E49: 0 | F49: 1 | G49: 0 | H49: 0 | I49: 0 | J49: 0 | K49: 1 | L49: 0 | M49: 2 | N49: 0 | O49: 1 | P49: 0 | Q49: 0 | R49: 0 | S49: 0 | T49: 0 | U49: 0 | V49: 0 | W49: 0 | X49: 10 | Y49: 0 | Z49: 0 | AA49: 0 | AB49: 1 | AC49: 0 | AD49: 2 | AE49: 1 | AF49: 2 | AG49: 1 | AH49: 0 | AI49: 1 | AJ49: 2 | AK49: 0 | AL49: 0 | AM49: 0 | AN49: 0 | AO49: 0 | AP49: 0 | AQ49: 0 | AR49: 306
A50: 49 | B50: 22014 Alcalá de Gurrea | C50: 22014 | D50: 0 | E50: 0 | F50: 0 | G50: 0 | H50: 0 | I50: 0 | J50: 0 | K50: 0 | L50: 0 | M50: 0 | N50: 0 | O50: 0 | P50: 0 | Q50: 0 | R50: 0 | S50: 0 | T50: 0 | U50: 0 | V50: 0 | W50: 0 | X50: 0 | Y50: 0 | Z50: 0 | AA50: 0 | AB50: 0 | AC50: 0 | AD50: 0 | AE50: 0 | AF50: 0 | AG50: 0 | AH50: 0 | AI50: 0 | AJ50: 0 | AK50: 0 | AL50: 0 | AM50: 0 | AN50: 0 | AO50: 0 | AP50: 0 | AQ50: 0 | AR50: 229
A51: 50 | B51: 22015 Alcalá del Obispo | C51: 22015 | D51: 5 | E51: 1 | F51: 3 | G51: 0 | H51: 0 | I51: 0 | J51: 0 | K51: 0 | L51: 0 | M51: 1 | N51: 0 | O51: 0 | P51: 0 | Q51: 0 | R51: 0 | S51: 0 | T51: 0 | U51: 0 | V51: 0 | W51: 0 | X51: 2 | Y51: 0 | Z51: 1 | AA51: 0 | AB51: 0 | AC51: 0 | AD51: 0 | AE51: 0 | AF51: 1 | AG51: 0 | AH51: 0 | AI51: 0 | AJ51: 0 | AK51: 0 | AL51: 0 | AM51: 0 | AN51: 0 | AO51: 0 | AP51: 0 | AQ51: 0 | AR51: 372
A52: 51 | B52: 22016 Alcampell | C52: 22016 | D52: 14 | E52: 2 | F52: 1 | G52: 2 | H52: 0 | I52: 1 | J52: 0 | K52: 1 | L52: 0 | M52: 2 | N52: 1 | O52: 2 | P52: 2 | Q52: 0 | R52: 0 | S52: 0 | T52: 0 | U52: 0 | V52: 0 | W52: 0 | X52: 13 | Y52: 3 | Z52: 0 | AA52: 0 | AB52: 1 | AC52: 1 | AD52: 1 | AE52: 1 | AF52: 3 | AG52: 1 | AH52: 1 | AI52: 1 | AJ52: 0 | AK52: 0 | AL52: 0 | AM52: 0 | AN52: 0 | AO52: 0 | AP52: 0 | AQ52: 0 | AR52: 623
A53: 52 | B53: 22017 Alcolea de Cinca | C53: 22017 | D53: 142 | E53: 3 | F53: 4 | G53: 1 | H53: 3 | I53: 9 | J53: 12 | K53: 19 | L53: 22 | M53: 20 | N53: 23 | O53: 19 | P53: 4 | Q53: 3 | R53: 0 | S53: 0 | T53: 0 | U53: 0 | V53: 0 | W53: 0 | X53: 74 | Y53: 5 | Z53: 6 | AA53: 4 | AB53: 5 | AC53: 4 | AD53: 13 | AE53: 6 | AF53: 5 | AG53: 10 | AH53: 9 | AI53: 4 | AJ53: 2 | AK53: 1 | AL53: 0 | AM53: 0 | AN53: 0 | AO53: 0 | AP53: 0 | AQ53: 0 | AR53: 1100
A54: 53 | B54: 22018 Alcubierre | C54: 22018 | D54: 19 | E54: 2 | F54: 0 | G54: 2 | H54: 0 | I54: 0 | J54: 4 | K54: 1 | L54: 3 | M54: 3 | N54: 1 | O54: 0 | P54: 1 | Q54: 0 | R54: 1 | S54: 0 | T54: 0 | U54: 0 | V54: 1 | W54: 0 | X54: 12 | Y54: 0 | Z54: 0 | AA54: 0 | AB54: 1 | AC54: 0 | AD54: 0 | AE54: 2 | AF54: 5 | AG54: 1 | AH54: 0 | AI54: 1 | AJ54: 1 | AK54: 0 | AL54: 1 | AM54: 0 | AN54: 0 | AO54: 0 | AP54: 0 | AQ54: 0 | AR54: 412
A55: 54 | B55: 22019 Alerre | C55: 22019 | D55: 3 | E55: 0 | F55: 0 | G55: 0 | H55: 0 | I55: 0 | J55: 0 | K55: 0 | L55: 0 | M55: 1 | N55: 1 | O55: 0 | P55: 0 | Q55: 1 | R55: 0 | S55: 0 | T55: 0 | U55: 0 | V55: 0 | W55: 0 | X55: 3 | Y55: 0 | Z55: 0 | AA55: 0 | AB55: 0 | AC55: 0 | AD55: 0 | AE55: 1 | AF55: 0 | AG55: 0 | AH55: 0 | AI55: 0 | AJ55: 0 | AK55: 1 | AL55: 1 | AM55: 0 | AN55: 0 | AO55: 0 | AP55: 0 | AQ55: 0 | AR55: 221
A56: 55 | B56: 22020 Alfántega | C56: 22020 | D56: 11 | E56: 0 | F56: 0 | G56: 0 | H56: 0 | I56: 2 | J56: 2 | K56: 2 | L56: 0 | M56: 2 | N56: 1 | O56: 2 | P56: 0 | Q56: 0 | R56: 0 | S56: 0 | T56: 0 | U56: 0 | V56: 0 | W56: 0 | X56: 5 | Y56: 0 | Z56: 0 | AA56: 0 | AB56: 0 | AC56: 0 | AD56: 0 | AE56: 1 | AF56: 0 | AG56: 2 | AH56: 1 | AI56: 0 | AJ56: 0 | AK56: 0 | AL56: 0 | AM56: 1 | AN56: 0 | AO56: 0 | AP56: 0 | AQ56: 0 | AR56: 136
A57: 56 | B57: 22021 Almudévar | C57: 22021 | D57: 69 | E57: 1 | F57: 8 | G57: 3 | H57: 5 | I57: 3 | J57: 6 | K57: 7 | L57: 8 | M57: 11 | N57: 3 | O57: 7 | P57: 2 | Q57: 1 | R57: 1 | S57: 0 | T57: 1 | U57: 1 | V57: 1 | W57: 0 | X57: 80 | Y57: 4 | Z57: 3 | AA57: 7 | AB57: 3 | AC57: 4 | AD57: 8 | AE57: 12 | AF57: 10 | AG57: 7 | AH57: 4 | AI57: 10 | AJ57: 1 | AK57: 3 | AL57: 2 | AM57: 1 | AN57: 1 | AO57: 0 | AP57: 0 | AQ57: 0 | AR57: 2435
A58: 57 | B58: 22022 Almunia de San Juan | C58: 22022 | D58: 15 | E58: 1 | F58: 1 | G58: 2 | H58: 0 | I58: 0 | J58: 1 | K58: 2 | L58: 0 | M58: 2 | N58: 2 | O58: 2 | P58: 0 | Q58: 0 | R58: 1 | S58: 1 | T58: 0 | U58: 0 | V58: 0 | W58: 0 | X58: 19 | Y58: 0 | Z58: 1 | AA58: 0 | AB58: 1 | AC58: 1 | AD58: 3 | AE58: 3 | AF58: 1 | AG58: 3 | AH58: 2 | AI58: 1 | AJ58: 2 | AK58: 1 | AL58: 0 | AM58: 0 | AN58: 0 | AO58: 0 | AP58: 0 | AQ58: 0 | AR58: 725
A59: 58 | B59: 22023 Almuniente | C59: 22023 | D59: 17 | E59: 0 | F59: 0 | G59: 1 | H59: 0 | I59: 0 | J59: 2 | K59: 1 | L59: 6 | M59: 2 | N59: 2 | O59: 0 | P59: 2 | Q59: 1 | R59: 0 | S59: 0 | T59: 0 | U59: 0 | V59: 0 | W59: 0 | X59: 14 | Y59: 0 | Z59: 2 | AA59: 2 | AB59: 1 | AC59: 0 | AD59: 1 | AE59: 3 | AF59: 1 | AG59: 0 | AH59: 0 | AI59: 2 | AJ59: 2 | AK59: 0 | AL59: 0 | AM59: 0 | AN59: 0 | AO59: 0 | AP59: 0 | AQ59: 0 | AR59: 443
A60: 59 | B60: 22024 Alquézar | C60: 22024 | D60: 31 | E60: 1 | F60: 1 | G60: 2 | H60: 1 | I60: 0 | J60: 3 | K60: 2 | L60: 6 | M60: 1 | N60: 1 | O60: 1 | P60: 1 | Q60: 6 | R60: 3 | S60: 0 | T60: 1 | U60: 1 | V60: 0 | W60: 0 | X60: 38 | Y60: 3 | Z60: 0 | AA60: 0 | AB60: 1 | AC60: 4 | AD60: 3 | AE60: 2 | AF60: 4 | AG60: 4 | AH60: 2 | AI60: 2 | AJ60: 4 | AK60: 1 | AL60: 3 | AM60: 0 | AN60: 1 | AO60: 3 | AP60: 0 | AQ60: 1 | AR60: 347
A61: 60 | B61: 22025 Altorricón | C61: 22025 | D61: 194 | E61: 8 | F61: 13 | G61: 6 | H61: 8 | I61: 21 | J61: 13 | K61: 25 | L61: 25 | M61: 24 | N61: 25 | O61: 15 | P61: 5 | Q61: 3 | R61: 2 | S61: 0 | T61: 1 | U61: 0 | V61: 0 | W61: 0 | X61: 89 | Y61: 7 | Z61: 4 | AA61: 6 | AB61: 6 | AC61: 8 | AD61: 9 | AE61: 10 | AF61: 13 | AG61: 10 | AH61: 6 | AI61: 2 | AJ61: 5 | AK61: 2 | AL61: 0 | AM61: 1 | AN61: 0 | AO61: 0 | AP61: 0 | AQ61: 0 | AR61: 1426
A62: 61 | B62: 22027 Angüés | C62: 22027 | D62: 12 | E62: 0 | F62: 0 | G62: 0 | H62: 1 | I62: 0 | J62: 2 | K62: 0 | L62: 3 | M62: 2 | N62: 3 | O62: 0 | P62: 0 | Q62: 0 | R62: 1 | S62: 0 | T62: 0 | U62: 0 | V62: 0 | W62: 0 | X62: 13 | Y62: 0 | Z62: 0 | AA62: 2 | AB62: 1 | AC62: 2 | AD62: 0 | AE62: 1 | AF62: 2 | AG62: 0 | AH62: 2 | AI62: 1 | AJ62: 0 | AK62: 1 | AL62: 0 | AM62: 0 | AN62: 0 | AO62: 0 | AP62: 0 | AQ62: 1 | AR62: 376
A63: 62 | B63: 22028 Ansó | C63: 22028 | D63: 2 | E63: 0 | F63: 0 | G63: 0 | H63: 0 | I63: 0 | J63: 0 | K63: 0 | L63: 0 | M63: 0 | N63: 0 | O63: 0 | P63: 1 | Q63: 1 | R63: 0 | S63: 0 | T63: 0 | U63: 0 | V63: 0 | W63: 0 | X63: 2 | Y63: 0 | Z63: 0 | AA63: 0 | AB63: 0 | AC63: 1 | AD63: 0 | AE63: 0 | AF63: 1 | AG63: 0 | AH63: 0 | AI63: 0 | AJ63: 0 | AK63: 0 | AL63: 0 | AM63: 0 | AN63: 0 | AO63: 0 | AP63: 0 | AQ63: 0 | AR63: 422
A64: 63 | B64: 22029 Antillón | C64: 22029 | D64: 1 | E64: 0 | F64: 0 | G64: 0 | H64: 0 | I64: 0 | J64: 1 | K64: 0 | L64: 0 | M64: 0 | N64: 0 | O64: 0 | P64: 0 | Q64: 0 | R64: 0 | S64: 0 | T64: 0 | U64: 0 | V64: 0 | W64: 0 | X64: 5 | Y64: 0 | Z64: 0 | AA64: 0 | AB64: 0 | AC64: 0 | AD64: 0 | AE64: 1 | AF64: 1 | AG64: 1 | AH64: 0 | AI64: 2 | AJ64: 0 | AK64: 0 | AL64: 0 | AM64: 0 | AN64: 0 | AO64: 0 | AP64: 0 | AQ64: 0 | AR64: 132
A65: 64 | B65: 22032 Aragüés del Puerto | C65: 22032 | D65: 0 | E65: 0 | F65: 0 | G65: 0 | H65: 0 | I65: 0 | J65: 0 | K65: 0 | L65: 0 | M65: 0 | N65: 0 | O65: 0 | P65: 0 | Q65: 0 | R65: 0 | S65: 0 | T65: 0 | U65: 0 | V65: 0 | W65: 0 | X65: 0 | Y65: 0 | Z65: 0 | AA65: 0 | AB65: 0 | AC65: 0 | AD65: 0 | AE65: 0 | AF65: 0 | AG65: 0 | AH65: 0 | AI65: 0 | AJ65: 0 | AK65: 0 | AL65: 0 | AM65: 0 | AN65: 0 | AO65: 0 | AP65: 0 | AQ65: 0 | AR65: 120
A66: 65 | B66: 22035 Arén | C66: 22035 | D66: 33 | E66: 0 | F66: 0 | G66: 0 | H66: 0 | I66: 1 | J66: 4 | K66: 5 | L66: 3 | M66: 7 | N66: 4 | O66: 2 | P66: 2 | Q66: 2 | R66: 1 | S66: 1 | T66: 0 | U66: 1 | V66: 0 | W66: 0 | X66: 24 | Y66: 2 | Z66: 0 | AA66: 0 | AB66: 0 | AC66: 1 | AD66: 3 | AE66: 5 | AF66: 3 | AG66: 2 | AH66: 2 | AI66: 2 | AJ66: 0 | AK66: 2 | AL66: 2 | AM66: 0 | AN66: 0 | AO66: 0 | AP66: 0 | AQ66: 0 | AR66: 317
A67: 66 | B67: 22036 Argavieso | C67: 22036 | D67: 3 | E67: 0 | F67: 0 | G67: 1 | H67: 0 | I67: 0 | J67: 0 | K67: 0 | L67: 0 | M67: 1 | N67: 1 | O67: 0 | P67: 0 | Q67: 0 | R67: 0 | S67: 0 | T67: 0 | U67: 0 | V67: 0 | W67: 0 | X67: 2 | Y67: 0 | Z67: 0 | AA67: 1 | AB67: 0 | AC67: 0 | AD67: 0 | AE67: 0 | AF67: 0 | AG67: 0 | AH67: 0 | AI67: 1 | AJ67: 0 | AK67: 0 | AL67: 0 | AM67: 0 | AN67: 0 | AO67: 0 | AP67: 0 | AQ67: 0 | AR67: 119
A68: 67 | B68: 22037 Arguis | C68: 22037 | D68: 2 | E68: 0 | F68: 1 | G68: 0 | H68: 0 | I68: 0 | J68: 0 | K68: 0 | L68: 0 | M68: 1 | N68: 0 | O68: 0 | P68: 0 | Q68: 0 | R68: 0 | S68: 0 | T68: 0 | U68: 0 | V68: 0 | W68: 0 | X68: 3 | Y68: 0 | Z68: 0 | AA68: 0 | AB68: 0 | AC68: 1 | AD68: 0 | AE68: 1 | AF68: 0 | AG68: 0 | AH68: 0 | AI68: 1 | AJ68: 0 | AK68: 0 | AL68: 0 | AM68: 0 | AN68: 0 | AO68: 0 | AP68: 0 | AQ68: 0 | AR68: 160
A69: 68 | B69: 22039 Ayerbe | C69: 22039 | D69: 25 | E69: 1 | F69: 2 | G69: 1 | H69: 1 | I69: 2 | J69: 4 | K69: 0 | L69: 2 | M69: 5 | N69: 1 | O69: 0 | P69: 2 | Q69: 1 | R69: 1 | S69: 1 | T69: 0 | U69: 1 | V69: 0 | W69: 0 | X69: 31 | Y69: 1 | Z69: 2 | AA69: 2 | AB69: 3 | AC69: 2 | AD69: 1 | AE69: 7 | AF69: 3 | AG69: 6 | AH69: 1 | AI69: 2 | AJ69: 0 | AK69: 0 | AL69: 0 | AM69: 0 | AN69: 0 | AO69: 1 | AP69: 0 | AQ69: 0 | AR69: 1073
A70: 69 | B70: 22040 Azanuy-Alins | C70: 22040 | D70: 5 | E70: 1 | F70: 0 | G70: 0 | H70: 0 | I70: 0 | J70: 1 | K70: 1 | L70: 0 | M70: 0 | N70: 0 | O70: 0 | P70: 1 | Q70: 1 | R70: 0 | S70: 0 | T70: 0 | U70: 0 | V70: 0 | W70: 0 | X70: 4 | Y70: 1 | Z70: 0 | AA70: 0 | AB70: 0 | AC70: 0 | AD70: 0 | AE70: 1 | AF70: 0 | AG70: 1 | AH70: 0 | AI70: 0 | AJ70: 0 | AK70: 0 | AL70: 1 | AM70: 0 | AN70: 0 | AO70: 0 | AP70: 0 | AQ70: 0 | AR70: 177
A71: 70 | B71: 22041 Azara | C71: 22041 | D71: 2 | E71: 0 | F71: 0 | G71: 0 | H71: 0 | I71: 0 | J71: 0 | K71: 0 | L71: 0 | M71: 0 | N71: 0 | O71: 0 | P71: 2 | Q71: 0 | R71: 0 | S71: 0 | T71: 0 | U71: 0 | V71: 0 | W71: 0 | X71: 1 | Y71: 0 | Z71: 0 | AA71: 0 | AB71: 0 | AC71: 0 | AD71: 0 | AE71: 0 | AF71: 0 | AG71: 0 | AH71: 0 | AI71: 0 | AJ71: 0 | AK71: 1 | AL71: 0 | AM71: 0 | AN71: 0 | AO71: 0 | AP71: 0 | AQ71: 0 | AR71: 170
A72: 71 | B72: 22042 Azlor | C72: 22042 | D72: 4 | E72: 0 | F72: 0 | G72: 0 | H72: 0 | I72: 0 | J72: 1 | K72: 0 | L72: 1 | M72: 1 | N72: 0 | O72: 1 | P72: 0 | Q72: 0 | R72: 0 | S72: 0 | T72: 0 | U72: 0 | V72: 0 | W72: 0 | X72: 5 | Y72: 0 | Z72: 0 | AA72: 0 | AB72: 0 | AC72: 0 | AD72: 0 | AE72: 2 | AF72: 0 | AG72: 0 | AH72: 0 | AI72: 0 | AJ72: 1 | AK72: 1 | AL72: 1 | AM72: 0 | AN72: 0 | AO72: 0 | AP72: 0 | AQ72: 0 | AR72: 154
A73: 72 | B73: 22043 Baells | C73: 22043 | D73: 2 | E73: 0 | F73: 0 | G73: 0 | H73: 0 | I73: 0 | J73: 0 | K73: 0 | L73: 1 | M73: 0 | N73: 1 | O73: 0 | P73: 0 | Q73: 0 | R73: 0 | S73: 0 | T73: 0 | U73: 0 | V73: 0 | W73: 0 | X73: 2 | Y73: 0 | Z73: 0 | AA73: 0 | AB73: 0 | AC73: 0 | AD73: 0 | AE73: 0 | AF73: 0 | AG73: 1 | AH73: 0 | AI73: 1 | AJ73: 0 | AK73: 0 | AL73: 0 | AM73: 0 | AN73: 0 | AO73: 0 | AP73: 0 | AQ73: 0 | AR73: 91
A74: 73 | B74: 22044 Bailo | C74: 22044 | D74: 8 | E74: 0 | F74: 1 | G74: 0 | H74: 1 | I74: 0 | J74: 0 | K74: 0 | L74: 2 | M74: 1 | N74: 1 | O74: 1 | P74: 0 | Q74: 0 | R74: 0 | S74: 0 | T74: 1 | U74: 0 | V74: 0 | W74: 0 | X74: 6 | Y74: 0 | Z74: 0 | AA74: 0 | AB74: 0 | AC74: 0 | AD74: 0 | AE74: 0 | AF74: 1 | AG74: 0 | AH74: 0 | AI74: 0 | AJ74: 1 | AK74: 0 | AL74: 0 | AM74: 2 | AN74: 2 | AO74: 0 | AP74: 0 | AQ74: 0 | AR74: 263
A75: 74 | B75: 22045 Baldellou | C75: 22045 | D75: 0 | E75: 0 | F75: 0 | G75: 0 | H75: 0 | I75: 0 | J75: 0 | K75: 0 | L75: 0 | M75: 0 | N75: 0 | O75: 0 | P75: 0 | Q75: 0 | R75: 0 | S75: 0 | T75: 0 | U75: 0 | V75: 0 | W75: 0 | X75: 0 | Y75: 0 | Z75: 0 | AA75: 0 | AB75: 0 | AC75: 0 | AD75: 0 | AE75: 0 | AF75: 0 | AG75: 0 | AH75: 0 | AI75: 0 | AJ75: 0 | AK75: 0 | AL75: 0 | AM75: 0 | AN75: 0 | AO75: 0 | AP75: 0 | AQ75: 0 | AR75: 90
A76: 75 | B76: 22046 Ballobar | C76: 22046 | D76: 48 | E76: 1 | F76: 1 | G76: 2 | H76: 3 | I76: 5 | J76: 4 | K76: 4 | L76: 5 | M76: 9 | N76: 6 | O76: 4 | P76: 3 | Q76: 0 | R76: 1 | S76: 0 | T76: 0 | U76: 0 | V76: 0 | W76: 0 | X76: 31 | Y76: 2 | Z76: 3 | AA76: 0 | AB76: 1 | AC76: 1 | AD76: 5 | AE76: 0 | AF76: 6 | AG76: 1 | AH76: 7 | AI76: 3 | AJ76: 1 | AK76: 1 | AL76: 0 | AM76: 0 | AN76: 0 | AO76: 0 | AP76: 0 | AQ76: 0 | AR76: 884
A77: 76 | B77: 22047 Banastás | C77: 22047 | D77: 2 | E77: 0 | F77: 0 | G77: 0 | H77: 0 | I77: 1 | J77: 0 | K77: 0 | L77: 0 | M77: 0 | N77: 0 | O77: 1 | P77: 0 | Q77: 0 | R77: 0 | S77: 0 | T77: 0 | U77: 0 | V77: 0 | W77: 0 | X77: 7 | Y77: 1 | Z77: 1 | AA77: 0 | AB77: 0 | AC77: 0 | AD77: 0 | AE77: 0 | AF77: 3 | AG77: 0 | AH77: 1 | AI77: 0 | AJ77: 0 | AK77: 0 | AL77: 1 | AM77: 0 | AN77: 0 | AO77: 0 | AP77: 0 | AQ77: 0 | AR77: 335
A78: 77 | B78: 22048 Barbastro | C78: 22048 | D78: 1009 | E78: 77 | F78: 50 | G78: 42 | H78: 58 | I78: 74 | J78: 91 | K78: 95 | L78: 114 | M78: 162 | N78: 91 | O78: 76 | P78: 26 | Q78: 24 | R78: 12 | S78: 10 | T78: 5 | U78: 1 | V78: 0 | W78: 1 | X78: 1027 | Y78: 53 | Z78: 42 | AA78: 49 | AB78: 45 | AC78: 75 | AD78: 110 | AE78: 123 | AF78: 136 | AG78: 110 | AH78: 89 | AI78: 66 | AJ78: 53 | AK78: 23 | AL78: 25 | AM78: 11 | AN78: 9 | AO78: 3 | AP78: 4 | AQ78: 1 | AR78: 17308
A79: 78 | B79: 22049 Barbués | C79: 22049 | D79: 3 | E79: 0 | F79: 0 | G79: 1 | H79: 0 | I79: 0 | J79: 0 | K79: 0 | L79: 1 | M79: 0 | N79: 1 | O79: 0 | P79: 0 | Q79: 0 | R79: 0 | S79: 0 | T79: 0 | U79: 0 | V79: 0 | W79: 0 | X79: 5 | Y79: 0 | Z79: 0 | AA79: 1 | AB79: 0 | AC79: 0 | AD79: 0 | AE79: 0 | AF79: 1 | AG79: 2 | AH79: 0 | AI79: 1 | AJ79: 0 | AK79: 0 | AL79: 0 | AM79: 0 | AN79: 0 | AO79: 0 | AP79: 0 | AQ79: 0 | AR79: 86
A80: 79 | B80: 22050 Barbuñales | C80: 22050 | D80: 1 | E80: 0 | F80: 0 | G80: 0 | H80: 0 | I80: 0 | J80: 0 | K80: 0 | L80: 0 | M80: 0 | N80: 0 | O80: 0 | P80: 1 | Q80: 0 | R80: 0 | S80: 0 | T80: 0 | U80: 0 | V80: 0 | W80: 0 | X80: 1 | Y80: 0 | Z80: 0 | AA80: 0 | AB80: 0 | AC80: 0 | AD80: 0 | AE80: 0 | AF80: 0 | AG80: 0 | AH80: 0 | AI80: 1 | AJ80: 0 | AK80: 0 | AL80: 0 | AM80: 0 | AN80: 0 | AO80: 0 | AP80: 0 | AQ80: 0 | AR80: 96
A81: 80 | B81: 22051 Bárcabo | C81: 22051 | D81: 6 | E81: 0 | F81: 0 | G81: 0 | H81: 0 | I81: 0 | J81: 0 | K81: 0 | L81: 0 | M81: 1 | N81: 1 | O81: 0 | P81: 1 | Q81: 1 | R81: 2 | S81: 0 | T81: 0 | U81: 0 | V81: 0 | W81: 0 | X81: 6 | Y81: 0 | Z81: 0 | AA81: 0 | AB81: 0 | AC81: 0 | AD81: 0 | AE81: 1 | AF81: 0 | AG81: 1 | AH81: 1 | AI81: 1 | AJ81: 0 | AK81: 0 | AL81: 1 | AM81: 1 | AN81: 0 | AO81: 0 | AP81: 0 | AQ81: 0 | AR81: 116
A82: 81 | B82: 22052 Belver de Cinca | C82: 22052 | D82: 212 | E82: 10 | F82: 4 | G82: 7 | H82: 9 | I82: 20 | J82: 23 | K82: 23 | L82: 26 | M82: 35 | N82: 23 | O82: 19 | P82: 7 | Q82: 2 | R82: 3 | S82: 0 | T82: 1 | U82: 0 | V82: 0 | W82: 0 | X82: 73 | Y82: 7 | Z82: 4 | AA82: 3 | AB82: 3 | AC82: 4 | AD82: 9 | AE82: 11 | AF82: 9 | AG82: 8 | AH82: 5 | AI82: 4 | AJ82: 2 | AK82: 1 | AL82: 2 | AM82: 1 | AN82: 0 | AO82: 0 | AP82: 0 | AQ82: 0 | AR82: 1318
A83: 82 | B83: 22053 Benabarre | C83: 22053 | D83: 109 | E83: 11 | F83: 6 | G83: 9 | H83: 2 | I83: 7 | J83: 6 | K83: 13 | L83: 5 | M83: 14 | N83: 15 | O83: 11 | P83: 1 | Q83: 3 | R83: 4 | S83: 0 | T83: 2 | U83: 0 | V83: 0 | W83: 0 | X83: 106 | Y83: 4 | Z83: 3 | AA83: 6 | AB83: 10 | AC83: 10 | AD83: 10 | AE83: 12 | AF83: 10 | AG83: 15 | AH83: 14 | AI83: 6 | AJ83: 3 | AK83: 0 | AL83: 0 | AM83: 1 | AN83: 1 | AO83: 1 | AP83: 0 | AQ83: 0 | AR83: 1168
A84: 83 | B84: 22054 Benasque | C84: 22054 | D84: 86 | E84: 2 | F84: 4 | G84: 2 | H84: 2 | I84: 6 | J84: 14 | K84: 9 | L84: 11 | M84: 12 | N84: 10 | O84: 7 | P84: 3 | Q84: 2 | R84: 1 | S84: 0 | T84: 1 | U84: 0 | V84: 0 | W84: 0 | X84: 108 | Y84: 4 | Z84: 3 | AA84: 5 | AB84: 2 | AC84: 11 | AD84: 13 | AE84: 8 | AF84: 21 | AG84: 16 | AH84: 8 | AI84: 10 | AJ84: 1 | AK84: 2 | AL84: 1 | AM84: 2 | AN84: 0 | AO84: 0 | AP84: 1 | AQ84: 0 | AR84: 2312
A85: 84 | B85: 22055 Berbegal | C85: 22055 | D85: 8 | E85: 0 | F85: 1 | G85: 0 | H85: 1 | I85: 0 | J85: 1 | K85: 0 | L85: 0 | M85: 1 | N85: 1 | O85: 2 | P85: 1 | Q85: 0 | R85: 0 | S85: 0 | T85: 0 | U85: 0 | V85: 0 | W85: 0 | X85: 8 | Y85: 0 | Z85: 1 | AA85: 0 | AB85: 0 | AC85: 0 | AD85: 1 | AE85: 0 | AF85: 2 | AG85: 2 | AH85: 1 | AI85: 0 | AJ85: 0 | AK85: 1 | AL85: 0 | AM85: 0 | AN85: 0 | AO85: 0 | AP85: 0 | AQ85: 0 | AR85: 322
A86: 85 | B86: 22057 Bielsa | C86: 22057 | D86: 19 | E86: 0 | F86: 0 | G86: 1 | H86: 1 | I86: 1 | J86: 2 | K86: 2 | L86: 2 | M86: 4 | N86: 4 | O86: 0 | P86: 1 | Q86: 0 | R86: 0 | S86: 1 | T86: 0 | U86: 0 | V86: 0 | W86: 0 | X86: 19 | Y86: 0 | Z86: 0 | AA86: 0 | AB86: 2 | AC86: 3 | AD86: 1 | AE86: 3 | AF86: 0 | AG86: 1 | AH86: 2 | AI86: 1 | AJ86: 1 | AK86: 2 | AL86: 1 | AM86: 1 | AN86: 0 | AO86: 0 | AP86: 1 | AQ86: 0 | AR86: 483
A87: 86 | B87: 22058 Bierge | C87: 22058 | D87: 13 | E87: 1 | F87: 0 | G87: 1 | H87: 0 | I87: 1 | J87: 0 | K87: 1 | L87: 2 | M87: 2 | N87: 2 | O87: 0 | P87: 1 | Q87: 1 | R87: 0 | S87: 0 | T87: 1 | U87: 0 | V87: 0 | W87: 0 | X87: 17 | Y87: 0 | Z87: 0 | AA87: 0 | AB87: 0 | AC87: 1 | AD87: 3 | AE87: 2 | AF87: 3 | AG87: 1 | AH87: 1 | AI87: 1 | AJ87: 3 | AK87: 0 | AL87: 1 | AM87: 0 | AN87: 0 | AO87: 0 | AP87: 0 | AQ87: 1 | AR87: 253
A88: 87 | B88: 22059 Biescas | C88: 22059 | D88: 86 | E88: 3 | F88: 5 | G88: 4 | H88: 2 | I88: 5 | J88: 2 | K88: 6 | L88: 12 | M88: 6 | N88: 19 | O88: 2 | P88: 11 | Q88: 6 | R88: 2 | S88: 1 | T88: 0 | U88: 0 | V88: 0 | W88: 0 | X88: 78 | Y88: 4 | Z88: 2 | AA88: 3 | AB88: 4 | AC88: 5 | AD88: 7 | AE88: 11 | AF88: 9 | AG88: 8 | AH88: 7 | AI88: 5 | AJ88: 6 | AK88: 2 | AL88: 3 | AM88: 1 | AN88: 0 | AO88: 0 | AP88: 1 | AQ88: 0 | AR88: 1606
A89: 88 | B89: 22060 Binaced | C89: 22060 | D89: 184 | E89: 5 | F89: 3 | G89: 3 | H89: 9 | I89: 20 | J89: 31 | K89: 27 | L89: 33 | M89: 24 | N89: 14 | O89: 6 | P89: 4 | Q89: 3 | R89: 2 | S89: 0 | T89: 0 | U89: 0 | V89: 0 | W89: 0 | X89: 61 | Y89: 3 | Z89: 3 | AA89: 4 | AB89: 6 | AC89: 6 | AD89: 10 | AE89: 5 | AF89: 7 | AG89: 5 | AH89: 4 | AI89: 5 | AJ89: 1 | AK89: 1 | AL89: 1 | AM89: 0 | AN89: 0 | AO89: 0 | AP89: 0 | AQ89: 0 | AR89: 1591
A90: 89 | B90: 22061 Binéfar | C90: 22061 | D90: 1175 | E90: 56 | F90: 38 | G90: 49 | H90: 67 | I90: 110 | J90: 149 | K90: 108 | L90: 125 | M90: 191 | N90: 113 | O90: 94 | P90: 41 | Q90: 18 | R90: 6 | S90: 7 | T90: 2 | U90: 1 | V90: 0 | W90: 0 | X90: 731 | Y90: 58 | Z90: 45 | AA90: 34 | AB90: 36 | AC90: 60 | AD90: 57 | AE90: 104 | AF90: 93 | AG90: 92 | AH90: 62 | AI90: 41 | AJ90: 24 | AK90: 8 | AL90: 9 | AM90: 2 | AN90: 5 | AO90: 0 | AP90: 1 | AQ90: 0 | AR90: 10041
A91: 90 | B91: 22062 Bisaurri | C91: 22062 | D91: 1 | E91: 0 | F91: 0 | G91: 0 | H91: 0 | I91: 0 | J91: 0 | K91: 0 | L91: 0 | M91: 0 | N91: 0 | O91: 1 | P91: 0 | Q91: 0 | R91: 0 | S91: 0 | T91: 0 | U91: 0 | V91: 0 | W91: 0 | X91: 7 | Y91: 0 | Z91: 0 | AA91: 0 | AB91: 0 | AC91: 0 | AD91: 1 | AE91: 0 | AF91: 2 | AG91: 3 | AH91: 0 | AI91: 1 | AJ91: 0 | AK91: 0 | AL91: 0 | AM91: 0 | AN91: 0 | AO91: 0 | AP91: 0 | AQ91: 0 | AR91: 183
A92: 91 | B92: 22063 Biscarrués | C92: 22063 | D92: 7 | E92: 1 | F92: 0 | G92: 0 | H92: 0 | I92: 1 | J92: 1 | K92: 1 | L92: 0 | M92: 1 | N92: 0 | O92: 2 | P92: 0 | Q92: 0 | R92: 0 | S92: 0 | T92: 0 | U92: 0 | V92: 0 | W92: 0 | X92: 7 | Y92: 0 | Z92: 1 | AA92: 0 | AB92: 1 | AC92: 0 | AD92: 0 | AE92: 1 | AF92: 0 | AG92: 2 | AH92: 0 | AI92: 1 | AJ92: 0 | AK92: 1 | AL92: 0 | AM92: 0 | AN92: 0 | AO92: 0 | AP92: 0 | AQ92: 0 | AR92: 188
A93: 92 | B93: 22064 Blecua y Torres | C93: 22064 | D93: 5 | E93: 0 | F93: 0 | G93: 0 | H93: 0 | I93: 0 | J93: 0 | K93: 0 | L93: 2 | M93: 0 | N93: 0 | O93: 2 | P93: 0 | Q93: 1 | R93: 0 | S93: 0 | T93: 0 | U93: 0 | V93: 0 | W93: 0 | X93: 3 | Y93: 0 | Z93: 0 | AA93: 0 | AB93: 0 | AC93: 0 | AD93: 0 | AE93: 1 | AF93: 1 | AG93: 1 | AH93: 0 | AI93: 0 | AJ93: 0 | AK93: 0 | AL93: 0 | AM93: 0 | AN93: 0 | AO93: 0 | AP93: 0 | AQ93: 0 | AR93: 186
A94: 93 | B94: 22066 Boltaña | C94: 22066 | D94: 72 | E94: 4 | F94: 5 | G94: 3 | H94: 3 | I94: 2 | J94: 7 | K94: 8 | L94: 6 | M94: 10 | N94: 3 | O94: 8 | P94: 6 | Q94: 5 | R94: 2 | S94: 0 | T94: 0 | U94: 0 | V94: 0 | W94: 0 | X94: 69 | Y94: 4 | Z94: 0 | AA94: 1 | AB94: 1 | AC94: 3 | AD94: 5 | AE94: 12 | AF94: 8 | AG94: 6 | AH94: 9 | AI94: 5 | AJ94: 6 | AK94: 4 | AL94: 2 | AM94: 1 | AN94: 1 | AO94: 0 | AP94: 1 | AQ94: 0 | AR94: 1104
A95: 94 | B95: 22067 Bonansa | C95: 22067 | D95: 3 | E95: 0 | F95: 0 | G95: 0 | H95: 0 | I95: 0 | J95: 2 | K95: 0 | L95: 0 | M95: 0 | N95: 0 | O95: 1 | P95: 0 | Q95: 0 | R95: 0 | S95: 0 | T95: 0 | U95: 0 | V95: 0 | W95: 0 | X95: 2 | Y95: 0 | Z95: 0 | AA95: 0 | AB95: 0 | AC95: 0 | AD95: 0 | AE95: 0 | AF95: 1 | AG95: 0 | AH95: 0 | AI95: 0 | AJ95: 0 | AK95: 1 | AL95: 0 | AM95: 0 | AN95: 0 | AO95: 0 | AP95: 0 | AQ95: 0 | AR95: 89
A96: 95 | B96: 22068 Borau | C96: 22068 | D96: 2 | E96: 0 | F96: 0 | G96: 0 | H96: 0 | I96: 0 | J96: 0 | K96: 0 | L96: 0 | M96: 0 | N96: 0 | O96: 0 | P96: 0 | Q96: 1 | R96: 1 | S96: 0 | T96: 0 | U96: 0 | V96: 0 | W96: 0 | X96: 3 | Y96: 0 | Z96: 0 | AA96: 0 | AB96: 0 | AC96: 1 | AD96: 0 | AE96: 0 | AF96: 0 | AG96: 1 | AH96: 0 | AI96: 1 | AJ96: 0 | AK96: 0 | AL96: 0 | AM96: 0 | AN96: 0 | AO96: 0 | AP96: 0 | AQ96: 0 | AR96: 86
A97: 96 | B97: 22069 Broto | C97: 22069 | D97: 32 | E97: 2 | F97: 2 | G97: 1 | H97: 3 | I97: 1 | J97: 1 | K97: 4 | L97: 4 | M97: 5 | N97: 5 | O97: 1 | P97: 1 | Q97: 1 | R97: 0 | S97: 1 | T97: 0 | U97: 0 | V97: 0 | W97: 0 | X97: 25 | Y97: 1 | Z97: 0 | AA97: 1 | AB97: 0 | AC97: 1 | AD97: 2 | AE97: 5 | AF97: 4 | AG97: 3 | AH97: 4 | AI97: 0 | AJ97: 1 | AK97: 3 | AL97: 0 | AM97: 0 | AN97: 0 | AO97: 0 | AP97: 0 | AQ97: 0 | AR97: 603
A98: 97 | B98: 22072 Caldearenas | C98: 22072 | D98: 2 | E98: 0 | F98: 0 | G98: 0 | H98: 0 | I98: 0 | J98: 0 | K98: 0 | L98: 1 | M98: 1 | N98: 0 | O98: 0 | P98: 0 | Q98: 0 | R98: 0 | S98: 0 | T98: 0 | U98: 0 | V98: 0 | W98: 0 | X98: 3 | Y98: 0 | Z98: 0 | AA98: 0 | AB98: 0 | AC98: 0 | AD98: 0 | AE98: 0 | AF98: 1 | AG98: 0 | AH98: 0 | AI98: 0 | AJ98: 0 | AK98: 1 | AL98: 0 | AM98: 1 | AN98: 0 | AO98: 0 | AP98: 0 | AQ98: 0 | AR98: 243
A99: 98 | B99: 22074 Campo | C99: 22074 | D99: 41 | E99: 0 | F99: 4 | G99: 0 | H99: 2 | I99: 7 | J99: 6 | K99: 5 | L99: 5 | M99: 1 | N99: 2 | O99: 7 | P99: 1 | Q99: 0 | R99: 1 | S99: 0 | T99: 0 | U99: 0 | V99: 0 | W99: 0 | X99: 37 | Y99: 4 | Z99: 1 | AA99: 3 | AB99: 1 | AC99: 1 | AD99: 6 | AE99: 5 | AF99: 3 | AG99: 5 | AH99: 7 | AI99: 1 | AJ99: 0 | AK99: 0 | AL99: 0 | AM99: 0 | AN99: 0 | AO99: 0 | AP99: 0 | AQ99: 0 | AR99: 467
A100: 99 | B100: 22075 Camporrells | C100: 22075 | D100: 4 | E100: 0 | F100: 0 | G100: 0 | H100: 0 | I100: 0 | J100: 0 | K100: 1 | L100: 0 | M100: 0 | N100: 0 | O100: 2 | P100: 0 | Q100: 1 | R100: 0 | S100: 0 | T100: 0 | U100: 0 | V100: 0 | W100: 0 | X100: 4 | Y100: 0 | Z100: 1 | AA100: 0 | AB100: 0 | AC100: 0 | AD100: 0 | AE100: 0 | AF100: 0 | AG100: 0 | AH100: 2 | AI100: 0 | AJ100: 1 | AK100: 0 | AL100: 0 | AM100: 0 | AN100: 0 | AO100: 0 | AP100: 0 | AQ100: 0 | AR100: 151
A101: 100 | B101: 22076 Canal de Berdún | C101: 22076 | D101: 8 | E101: 0 | F101: 0 | G101: 1 | H101: 1 | I101: 0 | J101: 2 | K101: 0 | L101: 0 | M101: 0 | N101: 1 | O101: 1 | P101: 0 | Q101: 1 | R101: 0 | S101: 1 | T101: 0 | U101: 0 | V101: 0 | W101: 0 | X101: 17 | Y101: 0 | Z101: 1 | AA101: 1 | AB101: 1 | AC101: 0 | AD101: 0 | AE101: 3 | AF101: 0 | AG101: 1 | AH101: 1 | AI101: 4 | AJ101: 2 | AK101: 1 | AL101: 0 | AM101: 1 | AN101: 1 | AO101: 0 | AP101: 0 | AQ101: 0 | AR101: 340
A102: 101 | B102: 22077 Candasnos | C102: 22077 | D102: 19 | E102: 0 | F102: 0 | G102: 2 | H102: 0 | I102: 2 | J102: 0 | K102: 0 | L102: 2 | M102: 6 | N102: 2 | O102: 2 | P102: 1 | Q102: 2 | R102: 0 | S102: 0 | T102: 0 | U102: 0 | V102: 0 | W102: 0 | X102: 11 | Y102: 1 | Z102: 0 | AA102: 1 | AB102: 1 | AC102: 0 | AD102: 1 | AE102: 1 | AF102: 3 | AG102: 1 | AH102: 1 | AI102: 0 | AJ102: 0 | AK102: 1 | AL102: 0 | AM102: 0 | AN102: 0 | AO102: 0 | AP102: 0 | AQ102: 0 | AR102: 420
A103: 102 | B103: 22078 Canfranc | C103: 22078 | D103: 19 | E103: 0 | F103: 1 | G103: 2 | H103: 0 | I103: 2 | J103: 1 | K103: 2 | L103: 4 | M103: 2 | N103: 2 | O103: 3 | P103: 0 | Q103: 0 | R103: 0 | S103: 0 | T103: 0 | U103: 0 | V103: 0 | W103: 0 | X103: 22 | Y103: 0 | Z103: 0 | AA103: 0 | AB103: 1 | AC103: 5 | AD103: 2 | AE103: 2 | AF103: 3 | AG103: 3 | AH103: 3 | AI103: 1 | AJ103: 2 | AK103: 0 | AL103: 0 | AM103: 0 | AN103: 0 | AO103: 0 | AP103: 0 | AQ103: 0 | AR103: 596
A104: 103 | B104: 22079 Capdesaso | C104: 22079 | D104: 14 | E104: 0 | F104: 0 | G104: 1 | H104: 0 | I104: 0 | J104: 2 | K104: 1 | L104: 1 | M104: 2 | N104: 3 | O104: 1 | P104: 3 | Q104: 0 | R104: 0 | S104: 0 | T104: 0 | U104: 0 | V104: 0 | W104: 0 | X104: 62 | Y104: 0 | Z104: 0 | AA104: 0 | AB104: 0 | AC104: 0 | AD104: 1 | AE104: 5 | AF104: 8 | AG104: 12 | AH104: 17 | AI104: 13 | AJ104: 5 | AK104: 1 | AL104: 0 | AM104: 0 | AN104: 0 | AO104: 0 | AP104: 0 | AQ104: 0 | AR104: 212
A105: 104 | B105: 22080 Capella | C105: 22080 | D105: 38 | E105: 2 | F105: 3 | G105: 0 | H105: 1 | I105: 3 | J105: 4 | K105: 3 | L105: 4 | M105: 5 | N105: 4 | O105: 4 | P105: 0 | Q105: 1 | R105: 3 | S105: 0 | T105: 0 | U105: 1 | V105: 0 | W105: 0 | X105: 27 | Y105: 0 | Z105: 1 | AA105: 0 | AB105: 2 | AC105: 1 | AD105: 4 | AE105: 2 | AF105: 3 | AG105: 5 | AH105: 4 | AI105: 0 | AJ105: 1 | AK105: 2 | AL105: 1 | AM105: 0 | AN105: 1 | AO105: 0 | AP105: 0 | AQ105: 0 | AR105: 359
A106: 105 | B106: 22081 Casbas de Huesca | C106: 22081 | D106: 6 | E106: 0 | F106: 0 | G106: 0 | H106: 0 | I106: 0 | J106: 0 | K106: 1 | L106: 1 | M106: 0 | N106: 1 | O106: 0 | P106: 1 | Q106: 0 | R106: 1 | S106: 0 | T106: 1 | U106: 0 | V106: 0 | W106: 0 | X106: 8 | Y106: 0 | Z106: 0 | AA106: 0 | AB106: 1 | AC106: 0 | AD106: 0 | AE106: 2 | AF106: 0 | AG106: 1 | AH106: 1 | AI106: 2 | AJ106: 0 | AK106: 1 | AL106: 0 | AM106: 0 | AN106: 0 | AO106: 0 | AP106: 0 | AQ106: 0 | AR106: 291
A107: 106 | B107: 22082 Castejón del Puente | C107: 22082 | D107: 6 | E107: 0 | F107: 2 | G107: 0 | H107: 0 | I107: 0 | J107: 0 | K107: 2 | L107: 1 | M107: 0 | N107: 0 | O107: 0 | P107: 1 | Q107: 0 | R107: 0 | S107: 0 | T107: 0 | U107: 0 | V107: 0 | W107: 0 | X107: 6 | Y107: 0 | Z107: 0 | AA107: 0 | AB107: 0 | AC107: 0 | AD107: 3 | AE107: 2 | AF107: 0 | AG107: 0 | AH107: 0 | AI107: 1 | AJ107: 0 | AK107: 0 | AL107: 0 | AM107: 0 | AN107: 0 | AO107: 0 | AP107: 0 | AQ107: 0 | AR107: 328
A108: 107 | B108: 22083 Castejón de Monegros | C108: 22083 | D108: 21 | E108: 0 | F108: 1 | G108: 0 | H108: 2 | I108: 3 | J108: 3 | K108: 1 | L108: 1 | M108: 3 | N108: 3 | O108: 3 | P108: 0 | Q108: 1 | R108: 0 | S108: 0 | T108: 0 | U108: 0 | V108: 0 | W108: 0 | X108: 19 | Y108: 1 | Z108: 1 | AA108: 0 | AB108: 2 | AC108: 1 | AD108: 1 | AE108: 3 | AF108: 2 | AG108: 1 | AH108: 4 | AI108: 0 | AJ108: 2 | AK108: 1 | AL108: 0 | AM108: 0 | AN108: 0 | AO108: 0 | AP108: 0 | AQ108: 0 | AR108: 477
A109: 108 | B109: 22084 Castejón de Sos | C109: 22084 | D109: 29 | E109: 2 | F109: 3 | G109: 1 | H109: 2 | I109: 2 | J109: 3 | K109: 4 | L109: 2 | M109: 6 | N109: 1 | O109: 0 | P109: 2 | Q109: 0 | R109: 0 | S109: 0 | T109: 0 | U109: 1 | V109: 0 | W109: 0 | X109: 33 | Y109: 2 | Z109: 0 | AA109: 1 | AB109: 1 | AC109: 4 | AD109: 3 | AE109: 6 | AF109: 4 | AG109: 3 | AH109: 7 | AI109: 0 | AJ109: 1 | AK109: 1 | AL109: 0 | AM109: 0 | AN109: 0 | AO109: 0 | AP109: 0 | AQ109: 0 | AR109: 832
A110: 109 | B110: 22085 Castelflorite | C110: 22085 | D110: 3 | E110: 0 | F110: 0 | G110: 0 | H110: 1 | I110: 0 | J110: 0 | K110: 0 | L110: 0 | M110: 1 | N110: 0 | O110: 0 | P110: 1 | Q110: 0 | R110: 0 | S110: 0 | T110: 0 | U110: 0 | V110: 0 | W110: 0 | X110: 5 | Y110: 0 | Z110: 1 | AA110: 0 | AB110: 0 | AC110: 1 | AD110: 0 | AE110: 0 | AF110: 1 | AG110: 1 | AH110: 0 | AI110: 0 | AJ110: 1 | AK110: 0 | AL110: 0 | AM110: 0 | AN110: 0 | AO110: 0 | AP110: 0 | AQ110: 0 | AR110: 101
A111: 110 | B111: 22086 Castiello de Jaca | C111: 22086 | D111: 3 | E111: 0 | F111: 0 | G111: 0 | H111: 0 | I111: 1 | J111: 0 | K111: 0 | L111: 0 | M111: 0 | N111: 1 | O111: 0 | P111: 0 | Q111: 0 | R111: 1 | S111: 0 | T111: 0 | U111: 0 | V111: 0 | W111: 0 | X111: 4 | Y111: 0 | Z111: 0 | AA111: 0 | AB111: 0 | AC111: 0 | AD111: 0 | AE111: 0 | AF111: 1 | AG111: 2 | AH111: 0 | AI111: 0 | AJ111: 1 | AK111: 0 | AL111: 0 | AM111: 0 | AN111: 0 | AO111: 0 | AP111: 0 | AQ111: 0 | AR111: 244
A112: 111 | B112: 22087 Castigaleu | C112: 22087 | D112: 6 | E112: 0 | F112: 1 | G112: 0 | H112: 0 | I112: 0 | J112: 0 | K112: 2 | L112: 1 | M112: 1 | N112: 0 | O112: 1 | P112: 0 | Q112: 0 | R112: 0 | S112: 0 | T112: 0 | U112: 0 | V112: 0 | W112: 0 | X112: 4 | Y112: 0 | Z112: 0 | AA112: 0 | AB112: 0 | AC112: 0 | AD112: 1 | AE112: 1 | AF112: 0 | AG112: 0 | AH112: 2 | AI112: 0 | AJ112: 0 | AK112: 0 | AL112: 0 | AM112: 0 | AN112: 0 | AO112: 0 | AP112: 0 | AQ112: 0 | AR112: 95
A113: 112 | B113: 22088 Castillazuelo | C113: 22088 | D113: 6 | E113: 1 | F113: 1 | G113: 0 | H113: 0 | I113: 0 | J113: 0 | K113: 1 | L113: 0 | M113: 2 | N113: 0 | O113: 0 | P113: 1 | Q113: 0 | R113: 0 | S113: 0 | T113: 0 | U113: 0 | V113: 0 | W113: 0 | X113: 2 | Y113: 0 | Z113: 0 | AA113: 0 | AB113: 0 | AC113: 0 | AD113: 0 | AE113: 0 | AF113: 1 | AG113: 0 | AH113: 0 | AI113: 1 | AJ113: 0 | AK113: 0 | AL113: 0 | AM113: 0 | AN113: 0 | AO113: 0 | AP113: 0 | AQ113: 0 | AR113: 163
A114: 113 | B114: 22089 Castillonroy | C114: 22089 | D114: 13 | E114: 0 | F114: 2 | G114: 0 | H114: 1 | I114: 0 | J114: 4 | K114: 0 | L114: 2 | M114: 1 | N114: 2 | O114: 0 | P114: 0 | Q114: 1 | R114: 0 | S114: 0 | T114: 0 | U114: 0 | V114: 0 | W114: 0 | X114: 16 | Y114: 1 | Z114: 0 | AA114: 1 | AB114: 0 | AC114: 1 | AD114: 2 | AE114: 2 | AF114: 3 | AG114: 1 | AH114: 3 | AI114: 0 | AJ114: 1 | AK114: 0 | AL114: 1 | AM114: 0 | AN114: 0 | AO114: 0 | AP114: 0 | AQ114: 0 | AR114: 332
A115: 114 | B115: 22090 Colungo | C115: 22090 | D115: 8 | E115: 0 | F115: 1 | G115: 0 | H115: 1 | I115: 0 | J115: 0 | K115: 1 | L115: 1 | M115: 0 | N115: 2 | O115: 0 | P115: 0 | Q115: 0 | R115: 0 | S115: 0 | T115: 1 | U115: 1 | V115: 0 | W115: 0 | X115: 13 | Y115: 1 | Z115: 0 | AA115: 0 | AB115: 0 | AC115: 1 | AD115: 1 | AE115: 1 | AF115: 2 | AG115: 3 | AH115: 0 | AI115: 2 | AJ115: 0 | AK115: 0 | AL115: 0 | AM115: 1 | AN115: 0 | AO115: 0 | AP115: 1 | AQ115: 0 | AR115: 130
A116: 115 | B116: 22094 Chalamera | C116: 22094 | D116: 3 | E116: 0 | F116: 1 | G116: 0 | H116: 0 | I116: 1 | J116: 0 | K116: 0 | L116: 0 | M116: 0 | N116: 1 | O116: 0 | P116: 0 | Q116: 0 | R116: 0 | S116: 0 | T116: 0 | U116: 0 | V116: 0 | W116: 0 | X116: 6 | Y116: 0 | Z116: 0 | AA116: 1 | AB116: 1 | AC116: 1 | AD116: 0 | AE116: 0 | AF116: 1 | AG116: 0 | AH116: 1 | AI116: 1 | AJ116: 0 | AK116: 0 | AL116: 0 | AM116: 0 | AN116: 0 | AO116: 0 | AP116: 0 | AQ116: 0 | AR116: 128
A117: 116 | B117: 22095 Chía | C117: 22095 | D117: 1 | E117: 0 | F117: 0 | G117: 0 | H117: 0 | I117: 0 | J117: 0 | K117: 0 | L117: 0 | M117: 0 | N117: 0 | O117: 0 | P117: 0 | Q117: 0 | R117: 1 | S117: 0 | T117: 0 | U117: 0 | V117: 0 | W117: 0 | X117: 1 | Y117: 0 | Z117: 0 | AA117: 0 | AB117: 0 | AC117: 0 | AD117: 0 | AE117: 0 | AF117: 0 | AG117: 1 | AH117: 0 | AI117: 0 | AJ117: 0 | AK117: 0 | AL117: 0 | AM117: 0 | AN117: 0 | AO117: 0 | AP117: 0 | AQ117: 0 | AR117: 92
A118: 117 | B118: 22096 Chimillas | C118: 22096 | D118: 5 | E118: 2 | F118: 0 | G118: 0 | H118: 1 | I118: 0 | J118: 0 | K118: 0 | L118: 1 | M118: 1 | N118: 0 | O118: 0 | P118: 0 | Q118: 0 | R118: 0 | S118: 0 | T118: 0 | U118: 0 | V118: 0 | W118: 0 | X118: 3 | Y118: 0 | Z118: 0 | AA118: 1 | AB118: 0 | AC118: 0 | AD118: 0 | AE118: 1 | AF118: 0 | AG118: 1 | AH118: 0 | AI118: 0 | AJ118: 0 | AK118: 0 | AL118: 0 | AM118: 0 | AN118: 0 | AO118: 0 | AP118: 0 | AQ118: 0 | AR118: 396
A119: 118 | B119: 22099 Esplús | C119: 22099 | D119: 43 | E119: 0 | F119: 3 | G119: 2 | H119: 2 | I119: 2 | J119: 6 | K119: 5 | L119: 6 | M119: 6 | N119: 4 | O119: 1 | P119: 3 | Q119: 0 | R119: 0 | S119: 1 | T119: 0 | U119: 1 | V119: 1 | W119: 0 | X119: 33 | Y119: 4 | Z119: 1 | AA119: 0 | AB119: 3 | AC119: 3 | AD119: 4 | AE119: 2 | AF119: 5 | AG119: 2 | AH119: 4 | AI119: 3 | AJ119: 0 | AK119: 0 | AL119: 1 | AM119: 0 | AN119: 0 | AO119: 0 | AP119: 1 | AQ119: 0 | AR119: 671
A120: 119 | B120: 22102 Estada | C120: 22102 | D120: 6 | E120: 0 | F120: 2 | G120: 0 | H120: 1 | I120: 0 | J120: 0 | K120: 1 | L120: 0 | M120: 0 | N120: 2 | O120: 0 | P120: 0 | Q120: 0 | R120: 0 | S120: 0 | T120: 0 | U120: 0 | V120: 0 | W120: 0 | X120: 9 | Y120: 0 | Z120: 0 | AA120: 2 | AB120: 0 | AC120: 0 | AD120: 1 | AE120: 2 | AF120: 0 | AG120: 1 | AH120: 1 | AI120: 0 | AJ120: 1 | AK120: 1 | AL120: 0 | AM120: 0 | AN120: 0 | AO120: 0 | AP120: 0 | AQ120: 0 | AR120: 203
A121: 120 | B121: 22103 Estadilla | C121: 22103 | D121: 16 | E121: 2 | F121: 0 | G121: 2 | H121: 1 | I121: 0 | J121: 0 | K121: 1 | L121: 3 | M121: 3 | N121: 2 | O121: 2 | P121: 0 | Q121: 0 | R121: 0 | S121: 0 | T121: 0 | U121: 0 | V121: 0 | W121: 0 | X121: 20 | Y121: 0 | Z121: 1 | AA121: 1 | AB121: 0 | AC121: 1 | AD121: 2 | AE121: 3 | AF121: 5 | AG121: 2 | AH121: 2 | AI121: 1 | AJ121: 1 | AK121: 0 | AL121: 0 | AM121: 0 | AN121: 0 | AO121: 0 | AP121: 1 | AQ121: 0 | AR121: 840
A122: 121 | B122: 22105 Estopiñán del Castillo | C122: 22105 | D122: 3 | E122: 0 | F122: 0 | G122: 0 | H122: 0 | I122: 0 | J122: 0 | K122: 0 | L122: 0 | M122: 2 | N122: 0 | O122: 1 | P122: 0 | Q122: 0 | R122: 0 | S122: 0 | T122: 0 | U122: 0 | V122: 0 | W122: 0 | X122: 4 | Y122: 0 | Z122: 0 | AA122: 0 | AB122: 0 | AC122: 0 | AD122: 1 | AE122: 0 | AF122: 0 | AG122: 0 | AH122: 1 | AI122: 0 | AJ122: 1 | AK122: 0 | AL122: 1 | AM122: 0 | AN122: 0 | AO122: 0 | AP122: 0 | AQ122: 0 | AR122: 122
A123: 122 | B123: 22106 Fago | C123: 22106 | D123: 0 | E123: 0 | F123: 0 | G123: 0 | H123: 0 | I123: 0 | J123: 0 | K123: 0 | L123: 0 | M123: 0 | N123: 0 | O123: 0 | P123: 0 | Q123: 0 | R123: 0 | S123: 0 | T123: 0 | U123: 0 | V123: 0 | W123: 0 | X123: 0 | Y123: 0 | Z123: 0 | AA123: 0 | AB123: 0 | AC123: 0 | AD123: 0 | AE123: 0 | AF123: 0 | AG123: 0 | AH123: 0 | AI123: 0 | AJ123: 0 | AK123: 0 | AL123: 0 | AM123: 0 | AN123: 0 | AO123: 0 | AP123: 0 | AQ123: 0 | AR123: 26
A124: 123 | B124: 22107 Fanlo | C124: 22107 | D124: 3 | E124: 0 | F124: 2 | G124: 0 | H124: 0 | I124: 0 | J124: 0 | K124: 0 | L124: 0 | M124: 1 | N124: 0 | O124: 0 | P124: 0 | Q124: 0 | R124: 0 | S124: 0 | T124: 0 | U124: 0 | V124: 0 | W124: 0 | X124: 3 | Y124: 0 | Z124: 0 | AA124: 0 | AB124: 0 | AC124: 0 | AD124: 0 | AE124: 0 | AF124: 0 | AG124: 0 | AH124: 1 | AI124: 2 | AJ124: 0 | AK124: 0 | AL124: 0 | AM124: 0 | AN124: 0 | AO124: 0 | AP124: 0 | AQ124: 0 | AR124: 112
A125: 124 | B125: 22109 Fiscal | C125: 22109 | D125: 16 | E125: 0 | F125: 2 | G125: 0 | H125: 0 | I125: 1 | J125: 2 | K125: 1 | L125: 1 | M125: 1 | N125: 1 | O125: 4 | P125: 2 | Q125: 0 | R125: 1 | S125: 0 | T125: 0 | U125: 0 | V125: 0 | W125: 0 | X125: 21 | Y125: 0 | Z125: 0 | AA125: 3 | AB125: 0 | AC125: 1 | AD125: 3 | AE125: 1 | AF125: 2 | AG125: 3 | AH125: 3 | AI125: 3 | AJ125: 1 | AK125: 0 | AL125: 1 | AM125: 0 | AN125: 0 | AO125: 0 | AP125: 0 | AQ125: 0 | AR125: 392
A126: 125 | B126: 22110 Fonz | C126: 22110 | D126: 39 | E126: 2 | F126: 1 | G126: 1 | H126: 4 | I126: 5 | J126: 5 | K126: 4 | L126: 1 | M126: 4 | N126: 8 | O126: 1 | P126: 1 | Q126: 1 | R126: 0 | S126: 0 | T126: 0 | U126: 1 | V126: 0 | W126: 0 | X126: 30 | Y126: 0 | Z126: 3 | AA126: 0 | AB126: 1 | AC126: 5 | AD126: 1 | AE126: 5 | AF126: 5 | AG126: 4 | AH126: 2 | AI126: 1 | AJ126: 0 | AK126: 0 | AL126: 2 | AM126: 1 | AN126: 0 | AO126: 0 | AP126: 0 | AQ126: 0 | AR126: 885
A127: 126 | B127: 22111 Foradada del Toscar | C127: 22111 | D127: 5 | E127: 0 | F127: 0 | G127: 2 | H127: 0 | I127: 0 | J127: 0 | K127: 0 | L127: 0 | M127: 2 | N127: 0 | O127: 0 | P127: 0 | Q127: 1 | R127: 0 | S127: 0 | T127: 0 | U127: 0 | V127: 0 | W127: 0 | X127: 7 | Y127: 0 | Z127: 0 | AA127: 0 | AB127: 0 | AC127: 0 | AD127: 0 | AE127: 2 | AF127: 0 | AG127: 2 | AH127: 1 | AI127: 0 | AJ127: 2 | AK127: 0 | AL127: 0 | AM127: 0 | AN127: 0 | AO127: 0 | AP127: 0 | AQ127: 0 | AR127: 158
A128: 127 | B128: 22112 Fraga | C128: 22112 | D128: 2028 | E128: 147 | F128: 112 | G128: 117 | H128: 89 | I128: 157 | J128: 157 | K128: 204 | L128: 247 | M128: 267 | N128: 228 | O128: 143 | P128: 82 | Q128: 48 | R128: 18 | S128: 9 | T128: 3 | U128: 0 | V128: 0 | W128: 0 | X128: 1520 | Y128: 101 | Z128: 116 | AA128: 75 | AB128: 67 | AC128: 103 | AD128: 113 | AE128: 207 | AF128: 200 | AG128: 203 | AH128: 134 | AI128: 95 | AJ128: 55 | AK128: 29 | AL128: 15 | AM128: 3 | AN128: 3 | AO128: 0 | AP128: 0 | AQ128: 1 | AR128: 15243
A129: 128 | B129: 22113 Fueva (La) | C129: 22113 | D129: 31 | E129: 0 | F129: 1 | G129: 3 | H129: 1 | I129: 1 | J129: 4 | K129: 2 | L129: 1 | M129: 5 | N129: 1 | O129: 3 | P129: 3 | Q129: 2 | R129: 3 | S129: 0 | T129: 0 | U129: 1 | V129: 0 | W129: 0 | X129: 23 | Y129: 2 | Z129: 0 | AA129: 0 | AB129: 1 | AC129: 1 | AD129: 1 | AE129: 4 | AF129: 3 | AG129: 2 | AH129: 1 | AI129: 2 | AJ129: 4 | AK129: 0 | AL129: 0 | AM129: 1 | AN129: 1 | AO129: 0 | AP129: 0 | AQ129: 0 | AR129: 615
A130: 129 | B130: 22114 Gistaín | C130: 22114 | D130: 0 | E130: 0 | F130: 0 | G130: 0 | H130: 0 | I130: 0 | J130: 0 | K130: 0 | L130: 0 | M130: 0 | N130: 0 | O130: 0 | P130: 0 | Q130: 0 | R130: 0 | S130: 0 | T130: 0 | U130: 0 | V130: 0 | W130: 0 | X130: 0 | Y130: 0 | Z130: 0 | AA130: 0 | AB130: 0 | AC130: 0 | AD130: 0 | AE130: 0 | AF130: 0 | AG130: 0 | AH130: 0 | AI130: 0 | AJ130: 0 | AK130: 0 | AL130: 0 | AM130: 0 | AN130: 0 | AO130: 0 | AP130: 0 | AQ130: 0 | AR130: 122
A131: 130 | B131: 22115 Grado (El) | C131: 22115 | D131: 9 | E131: 0 | F131: 0 | G131: 0 | H131: 0 | I131: 0 | J131: 0 | K131: 2 | L131: 1 | M131: 0 | N131: 1 | O131: 2 | P131: 0 | Q131: 0 | R131: 1 | S131: 1 | T131: 0 | U131: 0 | V131: 0 | W131: 1 | X131: 16 | Y131: 0 | Z131: 1 | AA131: 1 | AB131: 0 | AC131: 1 | AD131: 4 | AE131: 1 | AF131: 0 | AG131: 0 | AH131: 1 | AI131: 4 | AJ131: 0 | AK131: 1 | AL131: 1 | AM131: 1 | AN131: 0 | AO131: 0 | AP131: 0 | AQ131: 0 | AR131: 389
A132: 131 | B132: 22116 Grañén | C132: 22116 | D132: 118 | E132: 8 | F132: 7 | G132: 8 | H132: 8 | I132: 11 | J132: 8 | K132: 11 | L132: 10 | M132: 14 | N132: 11 | O132: 12 | P132: 3 | Q132: 6 | R132: 1 | S132: 0 | T132: 0 | U132: 0 | V132: 0 | W132: 0 | X132: 120 | Y132: 9 | Z132: 2 | AA132: 10 | AB132: 6 | AC132: 7 | AD132: 10 | AE132: 16 | AF132: 12 | AG132: 16 | AH132: 7 | AI132: 12 | AJ132: 5 | AK132: 2 | AL132: 2 | AM132: 1 | AN132: 2 | AO132: 1 | AP132: 0 | AQ132: 0 | AR132: 1736
A133: 132 | B133: 22117 Graus | C133: 22117 | D133: 319 | E133: 22 | F133: 14 | G133: 12 | H133: 12 | I133: 17 | J133: 24 | K133: 38 | L133: 31 | M133: 41 | N133: 39 | O133: 19 | P133: 24 | Q133: 11 | R133: 8 | S133: 4 | T133: 3 | U133: 0 | V133: 0 | W133: 0 | X133: 295 | Y133: 15 | Z133: 22 | AA133: 17 | AB133: 16 | AC133: 10 | AD133: 25 | AE133: 25 | AF133: 32 | AG133: 30 | AH133: 29 | AI133: 30 | AJ133: 17 | AK133: 13 | AL133: 8 | AM133: 3 | AN133: 2 | AO133: 0 | AP133: 0 | AQ133: 1 | AR133: 3397
A134: 133 | B134: 22119 Gurrea de Gállego | C134: 22119 | D134: 37 | E134: 2 | F134: 1 | G134: 1 | H134: 1 | I134: 2 | J134: 3 | K134: 5 | L134: 3 | M134: 7 | N134: 3 | O134: 5 | P134: 3 | Q134: 0 | R134: 1 | S134: 0 | T134: 0 | U134: 0 | V134: 0 | W134: 0 | X134: 43 | Y134: 2 | Z134: 3 | AA134: 0 | AB134: 1 | AC134: 1 | AD134: 1 | AE134: 5 | AF134: 7 | AG134: 3 | AH134: 8 | AI134: 7 | AJ134: 2 | AK134: 1 | AL134: 0 | AM134: 1 | AN134: 1 | AO134: 0 | AP134: 0 | AQ134: 0 | AR134: 1443
A135: 134 | B135: 22122 Hoz de Jaca | C135: 22122 | D135: 0 | E135: 0 | F135: 0 | G135: 0 | H135: 0 | I135: 0 | J135: 0 | K135: 0 | L135: 0 | M135: 0 | N135: 0 | O135: 0 | P135: 0 | Q135: 0 | R135: 0 | S135: 0 | T135: 0 | U135: 0 | V135: 0 | W135: 0 | X135: 0 | Y135: 0 | Z135: 0 | AA135: 0 | AB135: 0 | AC135: 0 | AD135: 0 | AE135: 0 | AF135: 0 | AG135: 0 | AH135: 0 | AI135: 0 | AJ135: 0 | AK135: 0 | AL135: 0 | AM135: 0 | AN135: 0 | AO135: 0 | AP135: 0 | AQ135: 0 | AR135: 77
A136: 135 | B136: 22124 Huerto | C136: 22124 | D136: 11 | E136: 1 | F136: 2 | G136: 0 | H136: 0 | I136: 0 | J136: 1 | K136: 1 | L136: 3 | M136: 2 | N136: 0 | O136: 0 | P136: 0 | Q136: 0 | R136: 0 | S136: 0 | T136: 1 | U136: 0 | V136: 0 | W136: 0 | X136: 10 | Y136: 0 | Z136: 1 | AA136: 1 | AB136: 0 | AC136: 1 | AD136: 1 | AE136: 0 | AF136: 2 | AG136: 0 | AH136: 1 | AI136: 2 | AJ136: 1 | AK136: 0 | AL136: 0 | AM136: 0 | AN136: 0 | AO136: 0 | AP136: 0 | AQ136: 0 | AR136: 227
A137: 136 | B137: 22125 Huesca | C137: 22125 | D137: 2891 | E137: 178 | F137: 189 | G137: 157 | H137: 176 | I137: 242 | J137: 270 | K137: 317 | L137: 345 | M137: 304 | N137: 288 | O137: 179 | P137: 103 | Q137: 77 | R137: 35 | S137: 17 | T137: 9 | U137: 0 | V137: 2 | W137: 3 | X137: 2975 | Y137: 171 | Z137: 170 | AA137: 138 | AB137: 129 | AC137: 230 | AD137: 281 | AE137: 369 | AF137: 398 | AG137: 336 | AH137: 250 | AI137: 178 | AJ137: 129 | AK137: 90 | AL137: 46 | AM137: 28 | AN137: 12 | AO137: 8 | AP137: 8 | AQ137: 4 | AR137: 53938
A138: 137 | B138: 22126 Ibieca | C138: 22126 | D138: 2 | E138: 0 | F138: 0 | G138: 0 | H138: 0 | I138: 0 | J138: 0 | K138: 1 | L138: 1 | M138: 0 | N138: 0 | O138: 0 | P138: 0 | Q138: 0 | R138: 0 | S138: 0 | T138: 0 | U138: 0 | V138: 0 | W138: 0 | X138: 3 | Y138: 1 | Z138: 0 | AA138: 0 | AB138: 0 | AC138: 0 | AD138: 1 | AE138: 0 | AF138: 0 | AG138: 0 | AH138: 0 | AI138: 0 | AJ138: 1 | AK138: 0 | AL138: 0 | AM138: 0 | AN138: 0 | AO138: 0 | AP138: 0 | AQ138: 0 | AR138: 111
A139: 138 | B139: 22127 Igriés | C139: 22127 | D139: 15 | E139: 0 | F139: 0 | G139: 1 | H139: 1 | I139: 2 | J139: 0 | K139: 1 | L139: 2 | M139: 3 | N139: 3 | O139: 0 | P139: 0 | Q139: 1 | R139: 1 | S139: 0 | T139: 0 | U139: 0 | V139: 0 | W139: 0 | X139: 19 | Y139: 1 | Z139: 0 | AA139: 1 | AB139: 0 | AC139: 1 | AD139: 2 | AE139: 4 | AF139: 2 | AG139: 2 | AH139: 0 | AI139: 1 | AJ139: 1 | AK139: 0 | AL139: 2 | AM139: 2 | AN139: 0 | AO139: 0 | AP139: 0 | AQ139: 0 | AR139: 717
A140: 139 | B140: 22128 Ilche | C140: 22128 | D140: 7 | E140: 0 | F140: 1 | G140: 0 | H140: 0 | I140: 0 | J140: 0 | K140: 4 | L140: 0 | M140: 0 | N140: 0 | O140: 1 | P140: 0 | Q140: 1 | R140: 0 | S140: 0 | T140: 0 | U140: 0 | V140: 0 | W140: 0 | X140: 5 | Y140: 0 | Z140: 0 | AA140: 0 | AB140: 0 | AC140: 0 | AD140: 0 | AE140: 1 | AF140: 0 | AG140: 0 | AH140: 0 | AI140: 2 | AJ140: 1 | AK140: 1 | AL140: 0 | AM140: 0 | AN140: 0 | AO140: 0 | AP140: 0 | AQ140: 0 | AR140: 193
A141: 140 | B141: 22129 Isábena | C141: 22129 | D141: 29 | E141: 0 | F141: 0 | G141: 0 | H141: 1 | I141: 5 | J141: 4 | K141: 6 | L141: 5 | M141: 2 | N141: 0 | O141: 4 | P141: 1 | Q141: 1 | R141: 0 | S141: 0 | T141: 0 | U141: 0 | V141: 0 | W141: 0 | X141: 26 | Y141: 0 | Z141: 0 | AA141: 2 | AB141: 1 | AC141: 1 | AD141: 4 | AE141: 4 | AF141: 1 | AG141: 1 | AH141: 3 | AI141: 4 | AJ141: 2 | AK141: 1 | AL141: 2 | AM141: 0 | AN141: 0 | AO141: 0 | AP141: 0 | AQ141: 0 | AR141: 233
A142: 141 | B142: 22130 Jaca | C142: 22130 | D142: 452 | E142: 19 | F142: 16 | G142: 30 | H142: 18 | I142: 40 | J142: 48 | K142: 51 | L142: 53 | M142: 50 | N142: 38 | O142: 38 | P142: 23 | Q142: 11 | R142: 4 | S142: 9 | T142: 1 | U142: 2 | V142: 1 | W142: 0 | X142: 552 | Y142: 18 | Z142: 30 | AA142: 19 | AB142: 26 | AC142: 46 | AD142: 67 | AE142: 57 | AF142: 60 | AG142: 65 | AH142: 46 | AI142: 46 | AJ142: 26 | AK142: 16 | AL142: 12 | AM142: 7 | AN142: 6 | AO142: 2 | AP142: 1 | AQ142: 2 | AR142: 13594
A143: 142 | B143: 22131 Jasa | C143: 22131 | D143: 0 | E143: 0 | F143: 0 | G143: 0 | H143: 0 | I143: 0 | J143: 0 | K143: 0 | L143: 0 | M143: 0 | N143: 0 | O143: 0 | P143: 0 | Q143: 0 | R143: 0 | S143: 0 | T143: 0 | U143: 0 | V143: 0 | W143: 0 | X143: 2 | Y143: 0 | Z143: 0 | AA143: 0 | AB143: 0 | AC143: 1 | AD143: 0 | AE143: 0 | AF143: 0 | AG143: 1 | AH143: 0 | AI143: 0 | AJ143: 0 | AK143: 0 | AL143: 0 | AM143: 0 | AN143: 0 | AO143: 0 | AP143: 0 | AQ143: 0 | AR143: 102
A144: 143 | B144: 22133 Labuerda | C144: 22133 | D144: 16 | E144: 1 | F144: 3 | G144: 0 | H144: 1 | I144: 0 | J144: 3 | K144: 3 | L144: 2 | M144: 0 | N144: 1 | O144: 0 | P144: 1 | Q144: 1 | R144: 0 | S144: 0 | T144: 0 | U144: 0 | V144: 0 | W144: 0 | X144: 15 | Y144: 1 | Z144: 0 | AA144: 1 | AB144: 1 | AC144: 2 | AD144: 1 | AE144: 3 | AF144: 1 | AG144: 0 | AH144: 1 | AI144: 2 | AJ144: 1 | AK144: 1 | AL144: 0 | AM144: 0 | AN144: 0 | AO144: 0 | AP144: 0 | AQ144: 0 | AR144: 161
A145: 144 | B145: 22135 Laluenga | C145: 22135 | D145: 3 | E145: 0 | F145: 0 | G145: 0 | H145: 0 | I145: 2 | J145: 0 | K145: 1 | L145: 0 | M145: 0 | N145: 0 | O145: 0 | P145: 0 | Q145: 0 | R145: 0 | S145: 0 | T145: 0 | U145: 0 | V145: 0 | W145: 0 | X145: 3 | Y145: 0 | Z145: 0 | AA145: 0 | AB145: 0 | AC145: 0 | AD145: 2 | AE145: 0 | AF145: 0 | AG145: 0 | AH145: 0 | AI145: 1 | AJ145: 0 | AK145: 0 | AL145: 0 | AM145: 0 | AN145: 0 | AO145: 0 | AP145: 0 | AQ145: 0 | AR145: 201
A146: 145 | B146: 22136 Lalueza | C146: 22136 | D146: 41 | E146: 2 | F146: 1 | G146: 1 | H146: 2 | I146: 8 | J146: 5 | K146: 2 | L146: 2 | M146: 8 | N146: 2 | O146: 3 | P146: 1 | Q146: 1 | R146: 1 | S146: 1 | T146: 0 | U146: 1 | V146: 0 | W146: 0 | X146: 42 | Y146: 1 | Z146: 7 | AA146: 1 | AB146: 2 | AC146: 4 | AD146: 4 | AE146: 2 | AF146: 9 | AG146: 4 | AH146: 4 | AI146: 0 | AJ146: 1 | AK146: 3 | AL146: 0 | AM146: 0 | AN146: 0 | AO146: 0 | AP146: 0 | AQ146: 0 | AR146: 879
A147: 146 | B147: 22137 Lanaja | C147: 22137 | D147: 48 | E147: 2 | F147: 2 | G147: 1 | H147: 0 | I147: 2 | J147: 6 | K147: 8 | L147: 9 | M147: 5 | N147: 6 | O147: 3 | P147: 1 | Q147: 2 | R147: 1 | S147: 0 | T147: 0 | U147: 0 | V147: 0 | W147: 0 | X147: 43 | Y147: 4 | Z147: 2 | AA147: 2 | AB147: 1 | AC147: 3 | AD147: 3 | AE147: 5 | AF147: 7 | AG147: 8 | AH147: 5 | AI147: 1 | AJ147: 2 | AK147: 0 | AL147: 0 | AM147: 0 | AN147: 0 | AO147: 0 | AP147: 0 | AQ147: 0 | AR147: 1175
A148: 147 | B148: 22139 Laperdiguera | C148: 22139 | D148: 5 | E148: 0 | F148: 0 | G148: 0 | H148: 0 | I148: 0 | J148: 1 | K148: 0 | L148: 0 | M148: 1 | N148: 0 | O148: 0 | P148: 1 | Q148: 2 | R148: 0 | S148: 0 | T148: 0 | U148: 0 | V148: 0 | W148: 0 | X148: 2 | Y148: 0 | Z148: 0 | AA148: 0 | AB148: 0 | AC148: 0 | AD148: 0 | AE148: 0 | AF148: 0 | AG148: 1 | AH148: 0 | AI148: 0 | AJ148: 1 | AK148: 0 | AL148: 0 | AM148: 0 | AN148: 0 | AO148: 0 | AP148: 0 | AQ148: 0 | AR148: 91
A149: 148 | B149: 22141 Lascellas-Ponzano | C149: 22141 | D149: 0 | E149: 0 | F149: 0 | G149: 0 | H149: 0 | I149: 0 | J149: 0 | K149: 0 | L149: 0 | M149: 0 | N149: 0 | O149: 0 | P149: 0 | Q149: 0 | R149: 0 | S149: 0 | T149: 0 | U149: 0 | V149: 0 | W149: 0 | X149: 2 | Y149: 0 | Z149: 0 | AA149: 0 | AB149: 0 | AC149: 1 | AD149: 0 | AE149: 0 | AF149: 0 | AG149: 0 | AH149: 0 | AI149: 0 | AJ149: 0 | AK149: 1 | AL149: 0 | AM149: 0 | AN149: 0 | AO149: 0 | AP149: 0 | AQ149: 0 | AR149: 134
A150: 149 | B150: 22142 Lascuarre | C150: 22142 | D150: 12 | E150: 0 | F150: 1 | G150: 1 | H150: 0 | I150: 2 | J150: 2 | K150: 0 | L150: 1 | M150: 2 | N150: 0 | O150: 0 | P150: 1 | Q150: 0 | R150: 1 | S150: 0 | T150: 0 | U150: 1 | V150: 0 | W150: 0 | X150: 11 | Y150: 0 | Z150: 1 | AA150: 0 | AB150: 0 | AC150: 1 | AD150: 2 | AE150: 0 | AF150: 0 | AG150: 1 | AH150: 0 | AI150: 0 | AJ150: 1 | AK150: 2 | AL150: 1 | AM150: 0 | AN150: 0 | AO150: 2 | AP150: 0 | AQ150: 0 | AR150: 139
A151: 150 | B151: 22143 Laspaúles | C151: 22143 | D151: 9 | E151: 0 | F151: 2 | G151: 0 | H151: 0 | I151: 0 | J151: 1 | K151: 0 | L151: 1 | M151: 2 | N151: 1 | O151: 0 | P151: 1 | Q151: 0 | R151: 0 | S151: 1 | T151: 0 | U151: 0 | V151: 0 | W151: 0 | X151: 12 | Y151: 0 | Z151: 0 | AA151: 1 | AB151: 2 | AC151: 0 | AD151: 1 | AE151: 1 | AF151: 3 | AG151: 0 | AH151: 2 | AI151: 1 | AJ151: 1 | AK151: 0 | AL151: 0 | AM151: 0 | AN151: 0 | AO151: 0 | AP151: 0 | AQ151: 0 | AR151: 236
A152: 151 | B152: 22144 Laspuña | C152: 22144 | D152: 3 | E152: 0 | F152: 0 | G152: 0 | H152: 0 | I152: 0 | J152: 0 | K152: 0 | L152: 0 | M152: 1 | N152: 0 | O152: 1 | P152: 1 | Q152: 0 | R152: 0 | S152: 0 | T152: 0 | U152: 0 | V152: 0 | W152: 0 | X152: 5 | Y152: 1 | Z152: 0 | AA152: 0 | AB152: 0 | AC152: 0 | AD152: 0 | AE152: 1 | AF152: 1 | AG152: 1 | AH152: 0 | AI152: 0 | AJ152: 0 | AK152: 0 | AL152: 0 | AM152: 0 | AN152: 0 | AO152: 1 | AP152: 0 | AQ152: 0 | AR152: 279
A153: 152 | B153: 22149 Loarre | C153: 22149 | D153: 0 | E153: 0 | F153: 0 | G153: 0 | H153: 0 | I153: 0 | J153: 0 | K153: 0 | L153: 0 | M153: 0 | N153: 0 | O153: 0 | P153: 0 | Q153: 0 | R153: 0 | S153: 0 | T153: 0 | U153: 0 | V153: 0 | W153: 0 | X153: 1 | Y153: 0 | Z153: 0 | AA153: 0 | AB153: 0 | AC153: 1 | AD153: 0 | AE153: 0 | AF153: 0 | AG153: 0 | AH153: 0 | AI153: 0 | AJ153: 0 | AK153: 0 | AL153: 0 | AM153: 0 | AN153: 0 | AO153: 0 | AP153: 0 | AQ153: 0 | AR153: 350
A154: 153 | B154: 22150 Loporzano | C154: 22150 | D154: 8 | E154: 0 | F154: 0 | G154: 1 | H154: 0 | I154: 1 | J154: 0 | K154: 0 | L154: 0 | M154: 0 | N154: 0 | O154: 1 | P154: 0 | Q154: 1 | R154: 0 | S154: 1 | T154: 2 | U154: 1 | V154: 0 | W154: 0 | X154: 12 | Y154: 0 | Z154: 0 | AA154: 0 | AB154: 0 | AC154: 1 | AD154: 0 | AE154: 2 | AF154: 0 | AG154: 4 | AH154: 0 | AI154: 1 | AJ154: 0 | AK154: 0 | AL154: 1 | AM154: 1 | AN154: 2 | AO154: 0 | AP154: 0 | AQ154: 0 | AR154: 579
A155: 154 | B155: 22151 Loscorrales | C155: 22151 | D155: 0 | E155: 0 | F155: 0 | G155: 0 | H155: 0 | I155: 0 | J155: 0 | K155: 0 | L155: 0 | M155: 0 | N155: 0 | O155: 0 | P155: 0 | Q155: 0 | R155: 0 | S155: 0 | T155: 0 | U155: 0 | V155: 0 | W155: 0 | X155: 1 | Y155: 0 | Z155: 0 | AA155: 0 | AB155: 0 | AC155: 0 | AD155: 1 | AE155: 0 | AF155: 0 | AG155: 0 | AH155: 0 | AI155: 0 | AJ155: 0 | AK155: 0 | AL155: 0 | AM155: 0 | AN155: 0 | AO155: 0 | AP155: 0 | AQ155: 0 | AR155: 99
A156: 155 | B156: 22155 Monesma y Cajigar | C156: 22155 | D156: 3 | E156: 0 | F156: 0 | G156: 0 | H156: 0 | I156: 1 | J156: 0 | K156: 0 | L156: 1 | M156: 0 | N156: 0 | O156: 1 | P156: 0 | Q156: 0 | R156: 0 | S156: 0 | T156: 0 | U156: 0 | V156: 0 | W156: 0 | X156: 3 | Y156: 0 | Z156: 0 | AA156: 0 | AB156: 0 | AC156: 0 | AD156: 0 | AE156: 1 | AF156: 1 | AG156: 0 | AH156: 0 | AI156: 0 | AJ156: 0 | AK156: 0 | AL156: 1 | AM156: 0 | AN156: 0 | AO156: 0 | AP156: 0 | AQ156: 0 | AR156: 65
A157: 156 | B157: 22156 Monflorite-Lascasas | C157: 22156 | D157: 21 | E157: 2 | F157: 1 | G157: 3 | H157: 1 | I157: 2 | J157: 1 | K157: 4 | L157: 2 | M157: 2 | N157: 1 | O157: 0 | P157: 0 | Q157: 2 | R157: 0 | S157: 0 | T157: 0 | U157: 0 | V157: 0 | W157: 0 | X157: 19 | Y157: 1 | Z157: 0 | AA157: 2 | AB157: 3 | AC157: 0 | AD157: 2 | AE157: 3 | AF157: 1 | AG157: 2 | AH157: 2 | AI157: 2 | AJ157: 0 | AK157: 0 | AL157: 0 | AM157: 0 | AN157: 1 | AO157: 0 | AP157: 0 | AQ157: 0 | AR157: 469
A158: 157 | B158: 22157 Montanuy | C158: 22157 | D158: 5 | E158: 0 | F158: 0 | G158: 0 | H158: 0 | I158: 0 | J158: 0 | K158: 0 | L158: 1 | M158: 3 | N158: 1 | O158: 0 | P158: 0 | Q158: 0 | R158: 0 | S158: 0 | T158: 0 | U158: 0 | V158: 0 | W158: 0 | X158: 9 | Y158: 0 | Z158: 0 | AA158: 1 | AB158: 0 | AC158: 0 | AD158: 2 | AE158: 1 | AF158: 1 | AG158: 1 | AH158: 1 | AI158: 0 | AJ158: 0 | AK158: 1 | AL158: 1 | AM158: 0 | AN158: 0 | AO158: 0 | AP158: 0 | AQ158: 0 | AR158: 241
A159: 158 | B159: 22158 Monzón | C159: 22158 | D159: 1484 | E159: 109 | F159: 85 | G159: 87 | H159: 79 | I159: 107 | J159: 120 | K159: 115 | L159: 168 | M159: 202 | N159: 149 | O159: 134 | P159: 75 | Q159: 24 | R159: 16 | S159: 6 | T159: 7 | U159: 1 | V159: 0 | W159: 0 | X159: 1306 | Y159: 95 | Z159: 74 | AA159: 59 | AB159: 68 | AC159: 105 | AD159: 118 | AE159: 143 | AF159: 150 | AG159: 150 | AH159: 137 | AI159: 96 | AJ159: 51 | AK159: 29 | AL159: 15 | AM159: 9 | AN159: 3 | AO159: 3 | AP159: 1 | AQ159: 0 | AR159: 17856
A160: 159 | B160: 22160 Naval | C160: 22160 | D160: 15 | E160: 0 | F160: 0 | G160: 0 | H160: 0 | I160: 1 | J160: 1 | K160: 0 | L160: 2 | M160: 1 | N160: 1 | O160: 3 | P160: 2 | Q160: 0 | R160: 0 | S160: 3 | T160: 0 | U160: 0 | V160: 1 | W160: 0 | X160: 7 | Y160: 0 | Z160: 0 | AA160: 0 | AB160: 0 | AC160: 0 | AD160: 0 | AE160: 1 | AF160: 1 | AG160: 1 | AH160: 1 | AI160: 0 | AJ160: 1 | AK160: 0 | AL160: 1 | AM160: 0 | AN160: 0 | AO160: 1 | AP160: 0 | AQ160: 0 | AR160: 263
A161: 160 | B161: 22162 Novales | C161: 22162 | D161: 10 | E161: 1 | F161: 1 | G161: 0 | H161: 0 | I161: 1 | J161: 1 | K161: 0 | L161: 2 | M161: 3 | N161: 0 | O161: 0 | P161: 0 | Q161: 1 | R161: 0 | S161: 0 | T161: 0 | U161: 0 | V161: 0 | W161: 0 | X161: 5 | Y161: 0 | Z161: 0 | AA161: 0 | AB161: 1 | AC161: 0 | AD161: 1 | AE161: 0 | AF161: 2 | AG161: 0 | AH161: 0 | AI161: 1 | AJ161: 0 | AK161: 0 | AL161: 0 | AM161: 0 | AN161: 0 | AO161: 0 | AP161: 0 | AQ161: 0 | AR161: 176
A162: 161 | B162: 22163 Nueno | C162: 22163 | D162: 17 | E162: 1 | F162: 0 | G162: 0 | H162: 0 | I162: 2 | J162: 0 | K162: 1 | L162: 2 | M162: 0 | N162: 1 | O162: 1 | P162: 1 | Q162: 2 | R162: 2 | S162: 3 | T162: 0 | U162: 1 | V162: 0 | W162: 0 | X162: 12 | Y162: 2 | Z162: 0 | AA162: 0 | AB162: 0 | AC162: 2 | AD162: 2 | AE162: 1 | AF162: 0 | AG162: 1 | AH162: 1 | AI162: 1 | AJ162: 0 | AK162: 0 | AL162: 1 | AM162: 1 | AN162: 0 | AO162: 0 | AP162: 0 | AQ162: 0 | AR162: 573
A163: 162 | B163: 22164 Olvena | C163: 22164 | D163: 1 | E163: 0 | F163: 0 | G163: 0 | H163: 0 | I163: 0 | J163: 0 | K163: 0 | L163: 0 | M163: 1 | N163: 0 | O163: 0 | P163: 0 | Q163: 0 | R163: 0 | S163: 0 | T163: 0 | U163: 0 | V163: 0 | W163: 0 | X163: 2 | Y163: 0 | Z163: 0 | AA163: 0 | AB163: 0 | AC163: 1 | AD163: 0 | AE163: 0 | AF163: 0 | AG163: 0 | AH163: 1 | AI163: 0 | AJ163: 0 | AK163: 0 | AL163: 0 | AM163: 0 | AN163: 0 | AO163: 0 | AP163: 0 | AQ163: 0 | AR163: 67
A164: 163 | B164: 22165 Ontiñena | C164: 22165 | D164: 23 | E164: 1 | F164: 0 | G164: 0 | H164: 2 | I164: 1 | J164: 1 | K164: 3 | L164: 4 | M164: 5 | N164: 4 | O164: 1 | P164: 1 | Q164: 0 | R164: 0 | S164: 0 | T164: 0 | U164: 0 | V164: 0 | W164: 0 | X164: 17 | Y164: 0 | Z164: 1 | AA164: 2 | AB164: 0 | AC164: 1 | AD164: 1 | AE164: 4 | AF164: 2 | AG164: 2 | AH164: 1 | AI164: 1 | AJ164: 0 | AK164: 2 | AL164: 0 | AM164: 0 | AN164: 0 | AO164: 0 | AP164: 0 | AQ164: 0 | AR164: 518
A165: 164 | B165: 22167 Osso de Cinca | C165: 22167 | D165: 119 | E165: 3 | F165: 0 | G165: 1 | H165: 4 | I165: 6 | J165: 9 | K165: 11 | L165: 18 | M165: 18 | N165: 19 | O165: 11 | P165: 11 | Q165: 6 | R165: 2 | S165: 0 | T165: 0 | U165: 0 | V165: 0 | W165: 0 | X165: 49 | Y165: 0 | Z165: 4 | AA165: 0 | AB165: 4 | AC165: 5 | AD165: 4 | AE165: 6 | AF165: 4 | AG165: 3 | AH165: 7 | AI165: 8 | AJ165: 3 | AK165: 1 | AL165: 0 | AM165: 0 | AN165: 0 | AO165: 0 | AP165: 0 | AQ165: 0 | AR165: 644
A166: 165 | B166: 22168 Palo | C166: 22168 | D166: 0 | E166: 0 | F166: 0 | G166: 0 | H166: 0 | I166: 0 | J166: 0 | K166: 0 | L166: 0 | M166: 0 | N166: 0 | O166: 0 | P166: 0 | Q166: 0 | R166: 0 | S166: 0 | T166: 0 | U166: 0 | V166: 0 | W166: 0 | X166: 2 | Y166: 0 | Z166: 0 | AA166: 0 | AB166: 0 | AC166: 0 | AD166: 0 | AE166: 0 | AF166: 1 | AG166: 0 | AH166: 0 | AI166: 0 | AJ166: 1 | AK166: 0 | AL166: 0 | AM166: 0 | AN166: 0 | AO166: 0 | AP166: 0 | AQ166: 0 | AR166: 31
A167: 166 | B167: 22170 Panticosa | C167: 22170 | D167: 21 | E167: 0 | F167: 0 | G167: 0 | H167: 0 | I167: 2 | J167: 0 | K167: 4 | L167: 1 | M167: 3 | N167: 5 | O167: 3 | P167: 1 | Q167: 0 | R167: 0 | S167: 1 | T167: 1 | U167: 0 | V167: 0 | W167: 0 | X167: 13 | Y167: 0 | Z167: 1 | AA167: 0 | AB167: 0 | AC167: 2 | AD167: 2 | AE167: 2 | AF167: 1 | AG167: 1 | AH167: 1 | AI167: 2 | AJ167: 1 | AK167: 0 | AL167: 0 | AM167: 0 | AN167: 0 | AO167: 0 | AP167: 0 | AQ167: 0 | AR167: 901
A168: 167 | B168: 22172 Peñalba | C168: 22172 | D168: 108 | E168: 3 | F168: 5 | G168: 2 | H168: 0 | I168: 15 | J168: 10 | K168: 26 | L168: 11 | M168: 17 | N168: 11 | O168: 4 | P168: 2 | Q168: 2 | R168: 0 | S168: 0 | T168: 0 | U168: 0 | V168: 0 | W168: 0 | X168: 52 | Y168: 6 | Z168: 1 | AA168: 0 | AB168: 2 | AC168: 6 | AD168: 6 | AE168: 4 | AF168: 4 | AG168: 7 | AH168: 9 | AI168: 1 | AJ168: 2 | AK168: 3 | AL168: 1 | AM168: 0 | AN168: 0 | AO168: 0 | AP168: 0 | AQ168: 0 | AR168: 737
A169: 168 | B169: 22173 Peñas de Riglos (Las) | C169: 22173 | D169: 6 | E169: 0 | F169: 1 | G169: 0 | H169: 0 | I169: 0 | J169: 0 | K169: 0 | L169: 0 | M169: 1 | N169: 1 | O169: 0 | P169: 0 | Q169: 1 | R169: 1 | S169: 0 | T169: 0 | U169: 1 | V169: 0 | W169: 0 | X169: 9 | Y169: 0 | Z169: 1 | AA169: 0 | AB169: 0 | AC169: 0 | AD169: 1 | AE169: 0 | AF169: 2 | AG169: 0 | AH169: 1 | AI169: 0 | AJ169: 1 | AK169: 1 | AL169: 0 | AM169: 0 | AN169: 1 | AO169: 1 | AP169: 0 | AQ169: 0 | AR169: 272
A170: 169 | B170: 22174 Peralta de Alcofea | C170: 22174 | D170: 35 | E170: 1 | F170: 2 | G170: 1 | H170: 1 | I170: 3 | J170: 3 | K170: 3 | L170: 2 | M170: 6 | N170: 6 | O170: 3 | P170: 2 | Q170: 1 | R170: 1 | S170: 0 | T170: 0 | U170: 0 | V170: 0 | W170: 0 | X170: 40 | Y170: 2 | Z170: 3 | AA170: 1 | AB170: 3 | AC170: 3 | AD170: 0 | AE170: 2 | AF170: 7 | AG170: 9 | AH170: 2 | AI170: 0 | AJ170: 3 | AK170: 2 | AL170: 2 | AM170: 1 | AN170: 0 | AO170: 0 | AP170: 0 | AQ170: 0 | AR170: 617
A171: 170 | B171: 22175 Peralta de Calasanz | C171: 22175 | D171: 7 | E171: 0 | F171: 0 | G171: 0 | H171: 0 | I171: 0 | J171: 1 | K171: 0 | L171: 0 | M171: 2 | N171: 0 | O171: 3 | P171: 1 | Q171: 0 | R171: 0 | S171: 0 | T171: 0 | U171: 0 | V171: 0 | W171: 0 | X171: 9 | Y171: 0 | Z171: 0 | AA171: 0 | AB171: 0 | AC171: 2 | AD171: 1 | AE171: 0 | AF171: 0 | AG171: 3 | AH171: 1 | AI171: 0 | AJ171: 0 | AK171: 2 | AL171: 0 | AM171: 0 | AN171: 0 | AO171: 0 | AP171: 0 | AQ171: 0 | AR171: 270
A172: 171 | B172: 22176 Peraltilla | C172: 22176 | D172: 5 | E172: 0 | F172: 0 | G172: 0 | H172: 0 | I172: 0 | J172: 0 | K172: 1 | L172: 0 | M172: 0 | N172: 1 | O172: 3 | P172: 0 | Q172: 0 | R172: 0 | S172: 0 | T172: 0 | U172: 0 | V172: 0 | W172: 0 | X172: 8 | Y172: 0 | Z172: 0 | AA172: 1 | AB172: 0 | AC172: 1 | AD172: 1 | AE172: 2 | AF172: 0 | AG172: 1 | AH172: 0 | AI172: 2 | AJ172: 0 | AK172: 0 | AL172: 0 | AM172: 0 | AN172: 0 | AO172: 0 | AP172: 0 | AQ172: 0 | AR172: 224
A173: 172 | B173: 22177 Perarrúa | C173: 22177 | D173: 4 | E173: 1 | F173: 0 | G173: 0 | H173: 0 | I173: 0 | J173: 0 | K173: 1 | L173: 0 | M173: 1 | N173: 1 | O173: 0 | P173: 0 | Q173: 0 | R173: 0 | S173: 0 | T173: 0 | U173: 0 | V173: 0 | W173: 0 | X173: 5 | Y173: 0 | Z173: 1 | AA173: 1 | AB173: 0 | AC173: 0 | AD173: 1 | AE173: 0 | AF173: 0 | AG173: 1 | AH173: 0 | AI173: 0 | AJ173: 0 | AK173: 1 | AL173: 0 | AM173: 0 | AN173: 0 | AO173: 0 | AP173: 0 | AQ173: 0 | AR173: 112
A174: 173 | B174: 22178 Pertusa | C174: 22178 | D174: 3 | E174: 0 | F174: 0 | G174: 0 | H174: 0 | I174: 0 | J174: 1 | K174: 0 | L174: 1 | M174: 1 | N174: 0 | O174: 0 | P174: 0 | Q174: 0 | R174: 0 | S174: 0 | T174: 0 | U174: 0 | V174: 0 | W174: 0 | X174: 3 | Y174: 0 | Z174: 0 | AA174: 0 | AB174: 0 | AC174: 0 | AD174: 1 | AE174: 0 | AF174: 0 | AG174: 0 | AH174: 1 | AI174: 0 | AJ174: 0 | AK174: 0 | AL174: 0 | AM174: 1 | AN174: 0 | AO174: 0 | AP174: 0 | AQ174: 0 | AR174: 138
A175: 174 | B175: 22181 Piracés | C175: 22181 | D175: 1 | E175: 0 | F175: 0 | G175: 0 | H175: 0 | I175: 0 | J175: 0 | K175: 1 | L175: 0 | M175: 0 | N175: 0 | O175: 0 | P175: 0 | Q175: 0 | R175: 0 | S175: 0 | T175: 0 | U175: 0 | V175: 0 | W175: 0 | X175: 2 | Y175: 0 | Z175: 0 | AA175: 0 | AB175: 0 | AC175: 0 | AD175: 0 | AE175: 0 | AF175: 0 | AG175: 1 | AH175: 1 | AI175: 0 | AJ175: 0 | AK175: 0 | AL175: 0 | AM175: 0 | AN175: 0 | AO175: 0 | AP175: 0 | AQ175: 0 | AR175: 97
A176: 175 | B176: 22182 Plan | C176: 22182 | D176: 7 | E176: 0 | F176: 0 | G176: 0 | H176: 0 | I176: 0 | J176: 2 | K176: 2 | L176: 0 | M176: 0 | N176: 2 | O176: 0 | P176: 0 | Q176: 0 | R176: 0 | S176: 1 | T176: 0 | U176: 0 | V176: 0 | W176: 0 | X176: 9 | Y176: 0 | Z176: 0 | AA176: 0 | AB176: 2 | AC176: 0 | AD176: 2 | AE176: 2 | AF176: 0 | AG176: 0 | AH176: 1 | AI176: 1 | AJ176: 1 | AK176: 0 | AL176: 0 | AM176: 0 | AN176: 0 | AO176: 0 | AP176: 0 | AQ176: 0 | AR176: 284
A177: 176 | B177: 22184 Poleñino | C177: 22184 | D177: 3 | E177: 0 | F177: 0 | G177: 0 | H177: 0 | I177: 0 | J177: 0 | K177: 0 | L177: 1 | M177: 1 | N177: 0 | O177: 0 | P177: 0 | Q177: 1 | R177: 0 | S177: 0 | T177: 0 | U177: 0 | V177: 0 | W177: 0 | X177: 9 | Y177: 0 | Z177: 0 | AA177: 2 | AB177: 0 | AC177: 0 | AD177: 0 | AE177: 1 | AF177: 2 | AG177: 1 | AH177: 2 | AI177: 0 | AJ177: 0 | AK177: 1 | AL177: 0 | AM177: 0 | AN177: 0 | AO177: 0 | AP177: 0 | AQ177: 0 | AR177: 196
A178: 177 | B178: 22186 Pozán de Vero | C178: 22186 | D178: 3 | E178: 0 | F178: 0 | G178: 0 | H178: 0 | I178: 0 | J178: 0 | K178: 0 | L178: 1 | M178: 1 | N178: 1 | O178: 0 | P178: 0 | Q178: 0 | R178: 0 | S178: 0 | T178: 0 | U178: 0 | V178: 0 | W178: 0 | X178: 2 | Y178: 0 | Z178: 0 | AA178: 1 | AB178: 0 | AC178: 0 | AD178: 0 | AE178: 0 | AF178: 0 | AG178: 1 | AH178: 0 | AI178: 0 | AJ178: 0 | AK178: 0 | AL178: 0 | AM178: 0 | AN178: 0 | AO178: 0 | AP178: 0 | AQ178: 0 | AR178: 233
A179: 178 | B179: 22187 Puebla de Castro (La) | C179: 22187 | D179: 23 | E179: 3 | F179: 1 | G179: 0 | H179: 1 | I179: 2 | J179: 0 | K179: 1 | L179: 3 | M179: 3 | N179: 1 | O179: 0 | P179: 3 | Q179: 1 | R179: 1 | S179: 2 | T179: 1 | U179: 0 | V179: 0 | W179: 0 | X179: 16 | Y179: 1 | Z179: 0 | AA179: 1 | AB179: 0 | AC179: 0 | AD179: 1 | AE179: 2 | AF179: 1 | AG179: 2 | AH179: 1 | AI179: 0 | AJ179: 2 | AK179: 1 | AL179: 2 | AM179: 2 | AN179: 0 | AO179: 0 | AP179: 0 | AQ179: 0 | AR179: 419
A180: 179 | B180: 22188 Puente de Montañana | C180: 22188 | D180: 6 | E180: 1 | F180: 1 | G180: 0 | H180: 0 | I180: 1 | J180: 0 | K180: 1 | L180: 1 | M180: 0 | N180: 1 | O180: 0 | P180: 0 | Q180: 0 | R180: 0 | S180: 0 | T180: 0 | U180: 0 | V180: 0 | W180: 0 | X180: 7 | Y180: 0 | Z180: 0 | AA180: 0 | AB180: 0 | AC180: 1 | AD180: 1 | AE180: 0 | AF180: 2 | AG180: 0 | AH180: 0 | AI180: 0 | AJ180: 2 | AK180: 0 | AL180: 0 | AM180: 1 | AN180: 0 | AO180: 0 | AP180: 0 | AQ180: 0 | AR180: 100
A181: 180 | B181: 22189 Puértolas | C181: 22189 | D181: 2 | E181: 0 | F181: 0 | G181: 0 | H181: 0 | I181: 0 | J181: 1 | K181: 0 | L181: 1 | M181: 0 | N181: 0 | O181: 0 | P181: 0 | Q181: 0 | R181: 0 | S181: 0 | T181: 0 | U181: 0 | V181: 0 | W181: 0 | X181: 8 | Y181: 0 | Z181: 0 | AA181: 0 | AB181: 0 | AC181: 0 | AD181: 2 | AE181: 1 | AF181: 0 | AG181: 1 | AH181: 2 | AI181: 0 | AJ181: 0 | AK181: 0 | AL181: 1 | AM181: 1 | AN181: 0 | AO181: 0 | AP181: 0 | AQ181: 0 | AR181: 224
A182: 181 | B182: 22190 Pueyo de Araguás (El) | C182: 22190 | D182: 8 | E182: 0 | F182: 0 | G182: 0 | H182: 0 | I182: 1 | J182: 1 | K182: 1 | L182: 0 | M182: 0 | N182: 1 | O182: 1 | P182: 0 | Q182: 2 | R182: 1 | S182: 0 | T182: 0 | U182: 0 | V182: 0 | W182: 0 | X182: 2 | Y182: 0 | Z182: 0 | AA182: 0 | AB182: 0 | AC182: 0 | AD182: 0 | AE182: 0 | AF182: 0 | AG182: 0 | AH182: 2 | AI182: 0 | AJ182: 0 | AK182: 0 | AL182: 0 | AM182: 0 | AN182: 0 | AO182: 0 | AP182: 0 | AQ182: 0 | AR182: 173
A183: 182 | B183: 22193 Pueyo de Santa Cruz | C183: 22193 | D183: 9 | E183: 0 | F183: 1 | G183: 0 | H183: 0 | I183: 0 | J183: 1 | K183: 2 | L183: 3 | M183: 0 | N183: 0 | O183: 0 | P183: 1 | Q183: 1 | R183: 0 | S183: 0 | T183: 0 | U183: 0 | V183: 0 | W183: 0 | X183: 16 | Y183: 2 | Z183: 1 | AA183: 0 | AB183: 0 | AC183: 1 | AD183: 2 | AE183: 4 | AF183: 2 | AG183: 1 | AH183: 2 | AI183: 1 | AJ183: 0 | AK183: 0 | AL183: 0 | AM183: 0 | AN183: 0 | AO183: 0 | AP183: 0 | AQ183: 0 | AR183: 330
A184: 183 | B184: 22195 Quicena | C184: 22195 | D184: 7 | E184: 0 | F184: 1 | G184: 0 | H184: 0 | I184: 1 | J184: 0 | K184: 0 | L184: 2 | M184: 2 | N184: 0 | O184: 0 | P184: 0 | Q184: 0 | R184: 0 | S184: 1 | T184: 0 | U184: 0 | V184: 0 | W184: 0 | X184: 8 | Y184: 0 | Z184: 0 | AA184: 0 | AB184: 0 | AC184: 0 | AD184: 0 | AE184: 0 | AF184: 4 | AG184: 1 | AH184: 0 | AI184: 0 | AJ184: 1 | AK184: 1 | AL184: 0 | AM184: 0 | AN184: 1 | AO184: 0 | AP184: 0 | AQ184: 0 | AR184: 328
A185: 184 | B185: 22197 Robres | C185: 22197 | D185: 19 | E185: 0 | F185: 1 | G185: 2 | H185: 1 | I185: 0 | J185: 2 | K185: 2 | L185: 1 | M185: 2 | N185: 1 | O185: 3 | P185: 3 | Q185: 0 | R185: 0 | S185: 0 | T185: 1 | U185: 0 | V185: 0 | W185: 0 | X185: 23 | Y185: 3 | Z185: 3 | AA185: 0 | AB185: 0 | AC185: 2 | AD185: 2 | AE185: 2 | AF185: 4 | AG185: 2 | AH185: 0 | AI185: 3 | AJ185: 0 | AK185: 1 | AL185: 1 | AM185: 0 | AN185: 0 | AO185: 0 | AP185: 0 | AQ185: 0 | AR185: 526
A186: 185 | B186: 22199 Sabiñánigo | C186: 22199 | D186: 583 | E186: 31 | F186: 34 | G186: 33 | H186: 32 | I186: 41 | J186: 55 | K186: 33 | L186: 50 | M186: 71 | N186: 77 | O186: 52 | P186: 29 | Q186: 24 | R186: 13 | S186: 3 | T186: 3 | U186: 0 | V186: 2 | W186: 0 | X186: 565 | Y186: 30 | Z186: 33 | AA186: 23 | AB186: 29 | AC186: 33 | AD186: 41 | AE186: 60 | AF186: 77 | AG186: 77 | AH186: 56 | AI186: 44 | AJ186: 31 | AK186: 10 | AL186: 9 | AM186: 4 | AN186: 3 | AO186: 2 | AP186: 3 | AQ186: 0 | AR186: 9394
A187: 186 | B187: 22200 Sahún | C187: 22200 | D187: 8 | E187: 0 | F187: 1 | G187: 0 | H187: 0 | I187: 0 | J187: 0 | K187: 1 | L187: 1 | M187: 1 | N187: 1 | O187: 0 | P187: 3 | Q187: 0 | R187: 0 | S187: 0 | T187: 0 | U187: 0 | V187: 0 | W187: 0 | X187: 15 | Y187: 0 | Z187: 0 | AA187: 0 | AB187: 0 | AC187: 0 | AD187: 1 | AE187: 3 | AF187: 2 | AG187: 1 | AH187: 1 | AI187: 4 | AJ187: 1 | AK187: 1 | AL187: 0 | AM187: 1 | AN187: 0 | AO187: 0 | AP187: 0 | AQ187: 0 | AR187: 321
A188: 187 | B188: 22201 Salas Altas | C188: 22201 | D188: 8 | E188: 0 | F188: 0 | G188: 0 | H188: 0 | I188: 0 | J188: 0 | K188: 3 | L188: 2 | M188: 0 | N188: 1 | O188: 0 | P188: 0 | Q188: 1 | R188: 1 | S188: 0 | T188: 0 | U188: 0 | V188: 0 | W188: 0 | X188: 7 | Y188: 0 | Z188: 0 | AA188: 0 | AB188: 0 | AC188: 2 | AD188: 1 | AE188: 0 | AF188: 1 | AG188: 0 | AH188: 2 | AI188: 0 | AJ188: 0 | AK188: 0 | AL188: 1 | AM188: 0 | AN188: 0 | AO188: 0 | AP188: 0 | AQ188: 0 | AR188: 305
A189: 188 | B189: 22202 Salas Bajas | C189: 22202 | D189: 9 | E189: 1 | F189: 0 | G189: 0 | H189: 0 | I189: 0 | J189: 1 | K189: 2 | L189: 1 | M189: 2 | N189: 0 | O189: 0 | P189: 2 | Q189: 0 | R189: 0 | S189: 0 | T189: 0 | U189: 0 | V189: 0 | W189: 0 | X189: 10 | Y189: 1 | Z189: 0 | AA189: 1 | AB189: 1 | AC189: 3 | AD189: 2 | AE189: 0 | AF189: 2 | AG189: 0 | AH189: 0 | AI189: 0 | AJ189: 0 | AK189: 0 | AL189: 0 | AM189: 0 | AN189: 0 | AO189: 0 | AP189: 0 | AQ189: 0 | AR189: 191
A190: 189 | B190: 22203 Salillas | C190: 22203 | D190: 9 | E190: 2 | F190: 0 | G190: 0 | H190: 2 | I190: 1 | J190: 0 | K190: 0 | L190: 1 | M190: 1 | N190: 1 | O190: 0 | P190: 0 | Q190: 1 | R190: 0 | S190: 0 | T190: 0 | U190: 0 | V190: 0 | W190: 0 | X190: 11 | Y190: 1 | Z190: 2 | AA190: 0 | AB190: 0 | AC190: 1 | AD190: 0 | AE190: 1 | AF190: 1 | AG190: 3 | AH190: 0 | AI190: 0 | AJ190: 1 | AK190: 0 | AL190: 0 | AM190: 0 | AN190: 0 | AO190: 1 | AP190: 0 | AQ190: 0 | AR190: 104
A191: 190 | B191: 22204 Sallent de Gállego | C191: 22204 | D191: 61 | E191: 2 | F191: 3 | G191: 2 | H191: 2 | I191: 1 | J191: 3 | K191: 8 | L191: 9 | M191: 14 | N191: 7 | O191: 2 | P191: 2 | Q191: 1 | R191: 3 | S191: 1 | T191: 1 | U191: 0 | V191: 0 | W191: 0 | X191: 64 | Y191: 3 | Z191: 2 | AA191: 3 | AB191: 4 | AC191: 4 | AD191: 2 | AE191: 8 | AF191: 9 | AG191: 8 | AH191: 5 | AI191: 6 | AJ191: 2 | AK191: 2 | AL191: 5 | AM191: 1 | AN191: 0 | AO191: 0 | AP191: 0 | AQ191: 0 | AR191: 1562
A192: 191 | B192: 22205 San Esteban de Litera | C192: 22205 | D192: 42 | E192: 0 | F192: 1 | G192: 0 | H192: 1 | I192: 5 | J192: 5 | K192: 8 | L192: 9 | M192: 7 | N192: 2 | O192: 3 | P192: 0 | Q192: 0 | R192: 0 | S192: 1 | T192: 0 | U192: 0 | V192: 0 | W192: 0 | X192: 25 | Y192: 1 | Z192: 0 | AA192: 5 | AB192: 0 | AC192: 2 | AD192: 3 | AE192: 3 | AF192: 2 | AG192: 2 | AH192: 5 | AI192: 0 | AJ192: 1 | AK192: 1 | AL192: 0 | AM192: 0 | AN192: 0 | AO192: 0 | AP192: 0 | AQ192: 0 | AR192: 620
A193: 192 | B193: 22206 Sangarrén | C193: 22206 | D193: 17 | E193: 0 | F193: 0 | G193: 0 | H193: 0 | I193: 1 | J193: 1 | K193: 2 | L193: 5 | M193: 0 | N193: 3 | O193: 1 | P193: 2 | Q193: 0 | R193: 2 | S193: 0 | T193: 0 | U193: 0 | V193: 0 | W193: 0 | X193: 17 | Y193: 2 | Z193: 1 | AA193: 2 | AB193: 1 | AC193: 0 | AD193: 0 | AE193: 4 | AF193: 1 | AG193: 1 | AH193: 0 | AI193: 4 | AJ193: 0 | AK193: 0 | AL193: 0 | AM193: 0 | AN193: 0 | AO193: 1 | AP193: 0 | AQ193: 0 | AR193: 213
A194: 193 | B194: 22207 San Juan de Plan | C194: 22207 | D194: 0 | E194: 0 | F194: 0 | G194: 0 | H194: 0 | I194: 0 | J194: 0 | K194: 0 | L194: 0 | M194: 0 | N194: 0 | O194: 0 | P194: 0 | Q194: 0 | R194: 0 | S194: 0 | T194: 0 | U194: 0 | V194: 0 | W194: 0 | X194: 3 | Y194: 0 | Z194: 0 | AA194: 0 | AB194: 0 | AC194: 0 | AD194: 1 | AE194: 0 | AF194: 0 | AG194: 0 | AH194: 1 | AI194: 1 | AJ194: 0 | AK194: 0 | AL194: 0 | AM194: 0 | AN194: 0 | AO194: 0 | AP194: 0 | AQ194: 0 | AR194: 154
A195: 194 | B195: 22208 Santa Cilia | C195: 22208 | D195: 8 | E195: 0 | F195: 0 | G195: 0 | H195: 0 | I195: 0 | J195: 0 | K195: 0 | L195: 3 | M195: 1 | N195: 2 | O195: 1 | P195: 0 | Q195: 0 | R195: 0 | S195: 0 | T195: 0 | U195: 1 | V195: 0 | W195: 0 | X195: 6 | Y195: 1 | Z195: 0 | AA195: 0 | AB195: 0 | AC195: 0 | AD195: 0 | AE195: 1 | AF195: 1 | AG195: 2 | AH195: 0 | AI195: 0 | AJ195: 1 | AK195: 0 | AL195: 0 | AM195: 0 | AN195: 0 | AO195: 0 | AP195: 0 | AQ195: 0 | AR195: 256
A196: 195 | B196: 22209 Santa Cruz de la Serós | C196: 22209 | D196: 4 | E196: 0 | F196: 0 | G196: 0 | H196: 0 | I196: 1 | J196: 1 | K196: 0 | L196: 1 | M196: 0 | N196: 0 | O196: 0 | P196: 0 | Q196: 0 | R196: 1 | S196: 0 | T196: 0 | U196: 0 | V196: 0 | W196: 0 | X196: 2 | Y196: 0 | Z196: 0 | AA196: 0 | AB196: 0 | AC196: 0 | AD196: 0 | AE196: 0 | AF196: 1 | AG196: 0 | AH196: 0 | AI196: 0 | AJ196: 0 | AK196: 1 | AL196: 0 | AM196: 0 | AN196: 0 | AO196: 0 | AP196: 0 | AQ196: 0 | AR196: 191
A197: 196 | B197: 22212 Santaliestra y San Quílez | C197: 22212 | D197: 2 | E197: 0 | F197: 0 | G197: 0 | H197: 0 | I197: 0 | J197: 0 | K197: 0 | L197: 0 | M197: 0 | N197: 0 | O197: 0 | P197: 0 | Q197: 0 | R197: 0 | S197: 1 | T197: 1 | U197: 0 | V197: 0 | W197: 0 | X197: 1 | Y197: 0 | Z197: 0 | AA197: 0 | AB197: 0 | AC197: 0 | AD197: 0 | AE197: 0 | AF197: 0 | AG197: 0 | AH197: 0 | AI197: 0 | AJ197: 1 | AK197: 0 | AL197: 0 | AM197: 0 | AN197: 0 | AO197: 0 | AP197: 0 | AQ197: 0 | AR197: 77
A198: 197 | B198: 22213 Sariñena | C198: 22213 | D198: 436 | E198: 39 | F198: 27 | G198: 25 | H198: 21 | I198: 27 | J198: 45 | K198: 43 | L198: 44 | M198: 55 | N198: 45 | O198: 33 | P198: 12 | Q198: 11 | R198: 8 | S198: 0 | T198: 0 | U198: 1 | V198: 0 | W198: 0 | X198: 348 | Y198: 30 | Z198: 16 | AA198: 11 | AB198: 14 | AC198: 18 | AD198: 37 | AE198: 46 | AF198: 45 | AG198: 36 | AH198: 31 | AI198: 26 | AJ198: 16 | AK198: 8 | AL198: 8 | AM198: 3 | AN198: 1 | AO198: 2 | AP198: 0 | AQ198: 0 | AR198: 4093
A199: 198 | B199: 22214 Secastilla | C199: 22214 | D199: 10 | E199: 0 | F199: 1 | G199: 0 | H199: 1 | I199: 1 | J199: 1 | K199: 3 | L199: 1 | M199: 0 | N199: 0 | O199: 1 | P199: 1 | Q199: 0 | R199: 0 | S199: 0 | T199: 0 | U199: 0 | V199: 0 | W199: 0 | X199: 8 | Y199: 1 | Z199: 2 | AA199: 0 | AB199: 0 | AC199: 1 | AD199: 0 | AE199: 1 | AF199: 2 | AG199: 0 | AH199: 0 | AI199: 0 | AJ199: 1 | AK199: 0 | AL199: 0 | AM199: 0 | AN199: 0 | AO199: 0 | AP199: 0 | AQ199: 0 | AR199: 152
A200: 199 | B200: 22215 Seira | C200: 22215 | D200: 5 | E200: 1 | F200: 0 | G200: 0 | H200: 0 | I200: 1 | J200: 1 | K200: 0 | L200: 1 | M200: 0 | N200: 0 | O200: 0 | P200: 0 | Q200: 1 | R200: 0 | S200: 0 | T200: 0 | U200: 0 | V200: 0 | W200: 0 | X200: 7 | Y200: 1 | Z200: 0 | AA200: 0 | AB200: 0 | AC200: 0 | AD200: 0 | AE200: 2 | AF200: 1 | AG200: 1 | AH200: 0 | AI200: 1 | AJ200: 1 | AK200: 0 | AL200: 0 | AM200: 0 | AN200: 0 | AO200: 0 | AP200: 0 | AQ200: 0 | AR200: 160
... 570 more rows

Sheet 2022 (hidden)
A1: 2022 extranjeros | B1: referencia geográfica | C1: código | D1: TOTAL VARONES | E1: 01- de 0 a 4 | F1: 02- de 5 a 9 | G1: 03- de 10 a 14 | H1: 04- de 15 a 19 | I1: 05- de 20 a 24 | J1: 06- de 25 a 29 | K1: 07- de 30 a 34 | L1: 08- de 35 a 39 | M1: 09- de 40 a 44 | N1: 10- de 45 a 49 | O1: 11- de 50 a 54 | P1: 12- de 55 a 59 | Q1: 13- de 60 a 64 | R1: 14- de 65 a 69 | S1: 15- de 70 a 74 | T1: 16- de 75 a 79 | U1: 17- de 80 a 84 | V1: 18- de 85 a 89 | W1: 19- de 90 a 94 | X1: TOTAL MUJERES | Y1: 01- de 0 a 4 | Z1: 02- de 5 a 9 | AA1: 03- de 10 a 14 | AB1: 04- de 15 a 19 | AC1: 05- de 20 a 24 | AD1: 06- de 25 a 29 | AE1: 07- de 30 a 34 | AF1: 08- de 35 a 39 | AG1: 09- de 40 a 44 | AH1: 10- de 45 a 49 | AI1: 11- de 50 a 54 | AJ1: 12- de 55 a 59 | AK1: 13- de 60 a 64 | AL1: 14- de 65 a 69 | AM1: 15- de 70 a 74 | AN1: 16- de 75 a 79 | AO1: 17- de 80 a 84 | AP1: 18- de 85 a 89 | AQ1: 19- de 90 a 94 | AR1: Total 2023
A2: 1 | B2: ARAGÓN | C2: 2 | D2: 84997 | E2: 4625 | F2: 4838 | G2: 4448 | H2: 4555 | I2: 6404 | J2: 7700 | K2: 8308 | L2: 9203 | M2: 10313 | N2: 8952 | O2: 6730 | P2: 4047 | Q2: 2447 | R2: 1321 | S2: 591 | T2: 278 | U2: 158 | V2: 62 | W2: 17 | X2: 80856 | Y2: 4383 | Z2: 4481 | AA2: 4001 | AB2: 3777 | AC2: 5563 | AD2: 7366 | AE2: 9138 | AF2: 9653 | AG2: 9499 | AH2: 7660 | AI2: 6035 | AJ2: 3626 | AK2: 2451 | AL2: 1530 | AM2: 851 | AN2: 447 | AO2: 224 | AP2: 119 | AQ2: 52 | AR2: 1341289 | AV2: 0
A3: 2 | B3: PROVINCIA DE HUESCA | C3: 22 | D3: 15778 | E3: 822 | F3: 848 | G3: 775 | H3: 834 | I3: 1147 | J3: 1465 | K3: 1537 | L3: 1791 | M3: 2041 | N3: 1703 | O3: 1240 | P3: 718 | Q3: 395 | R3: 236 | S3: 114 | T3: 69 | U3: 25 | V3: 13 | W3: 5 | X3: 13572 | Y3: 773 | Z3: 729 | AA3: 635 | AB3: 619 | AC3: 939 | AD3: 1209 | AE3: 1555 | AF3: 1657 | AG3: 1605 | AH3: 1287 | AI3: 1025 | AJ3: 646 | AK3: 360 | AL3: 245 | AM3: 131 | AN3: 76 | AO3: 39 | AP3: 29 | AQ3: 13 | AR3: 226878
A4: 3 | B4: PROVINCIA DE TERUEL | C4: 44 | D4: 7939 | E4: 487 | F4: 552 | G4: 451 | H4: 451 | I4: 659 | J4: 622 | K4: 692 | L4: 811 | M4: 963 | N4: 806 | O4: 583 | P4: 385 | Q4: 246 | R4: 117 | S4: 67 | T4: 27 | U4: 14 | V4: 5 | W4: 1 | X4: 7367 | Y4: 503 | Z4: 523 | AA4: 411 | AB4: 374 | AC4: 510 | AD4: 645 | AE4: 778 | AF4: 752 | AG4: 817 | AH4: 679 | AI4: 551 | AJ4: 290 | AK4: 235 | AL4: 144 | AM4: 75 | AN4: 32 | AO4: 33 | AP4: 11 | AQ4: 4 | AR4: 135046
A5: 4 | B5: PROVINCIA DE ZARAGOZA | C5: 50 | D5: 61280 | E5: 3316 | F5: 3438 | G5: 3222 | H5: 3270 | I5: 4598 | J5: 5613 | K5: 6079 | L5: 6601 | M5: 7309 | N5: 6443 | O5: 4907 | P5: 2944 | Q5: 1806 | R5: 968 | S5: 410 | T5: 182 | U5: 119 | V5: 44 | W5: 11 | X5: 59917 | Y5: 3107 | Z5: 3229 | AA5: 2955 | AB5: 2784 | AC5: 4114 | AD5: 5512 | AE5: 6805 | AF5: 7244 | AG5: 7077 | AH5: 5694 | AI5: 4459 | AJ5: 2690 | AK5: 1856 | AL5: 1141 | AM5: 645 | AN5: 339 | AO5: 152 | AP5: 79 | AQ5: 35 | AR5: 979365
A6: 5 | B6: LA JACETANIA | C6: 1 | D6: 583 | E6: 20 | F6: 19 | G6: 28 | H6: 31 | I6: 38 | J6: 57 | K6: 57 | L6: 69 | M6: 65 | N6: 64 | O6: 45 | P6: 38 | Q6: 21 | R6: 10 | S6: 12 | T6: 5 | U6: 1 | V6: 3 | W6: 0 | X6: 691 | Y6: 22 | Z6: 27 | AA6: 28 | AB6: 34 | AC6: 60 | AD6: 61 | AE6: 83 | AF6: 66 | AG6: 96 | AH6: 53 | AI6: 56 | AJ6: 42 | AK6: 20 | AL6: 11 | AM6: 16 | AN6: 7 | AO6: 6 | AP6: 1 | AQ6: 2 | AR6: 18575
A7: 6 | B7: ALTO GÁLLEGO | C7: 2 | D7: 768 | E7: 34 | F7: 46 | G7: 43 | H7: 35 | I7: 49 | J7: 61 | K7: 56 | L7: 71 | M7: 93 | N7: 90 | O7: 75 | P7: 40 | Q7: 37 | R7: 21 | S7: 8 | T7: 7 | U7: 0 | V7: 2 | W7: 0 | X7: 763 | Y7: 40 | Z7: 40 | AA7: 31 | AB7: 41 | AC7: 45 | AD7: 60 | AE7: 79 | AF7: 100 | AG7: 85 | AH7: 77 | AI7: 55 | AJ7: 43 | AK7: 24 | AL7: 19 | AM7: 9 | AN7: 6 | AO7: 4 | AP7: 3 | AQ7: 2 | AR7: 14007
A8: 7 | B8: SOBRARBE | C8: 3 | D8: 491 | E8: 25 | F8: 34 | G8: 33 | H8: 24 | I8: 30 | J8: 31 | K8: 42 | L8: 49 | M8: 55 | N8: 40 | O8: 39 | P8: 38 | Q8: 19 | R8: 18 | S8: 8 | T8: 5 | U8: 1 | V8: 0 | W8: 0 | X8: 495 | Y8: 20 | Z8: 14 | AA8: 15 | AB8: 18 | AC8: 29 | AD8: 34 | AE8: 69 | AF8: 54 | AG8: 42 | AH8: 51 | AI8: 52 | AJ8: 41 | AK8: 22 | AL8: 15 | AM8: 9 | AN8: 6 | AO8: 2 | AP8: 2 | AQ8: 0 | AR8: 7862
A9: 8 | B9: RIBAGORZA | C9: 4 | D9: 835 | E9: 44 | F9: 41 | G9: 32 | H9: 29 | I9: 53 | J9: 77 | K9: 88 | L9: 93 | M9: 97 | N9: 97 | O9: 70 | P9: 44 | Q9: 25 | R9: 19 | S9: 13 | T9: 8 | U9: 5 | V9: 0 | W9: 0 | X9: 837 | Y9: 30 | Z9: 38 | AA9: 35 | AB9: 30 | AC9: 57 | AD9: 80 | AE9: 82 | AF9: 98 | AG9: 109 | AH9: 86 | AI9: 74 | AJ9: 49 | AK9: 30 | AL9: 19 | AM9: 8 | AN9: 7 | AO9: 3 | AP9: 1 | AQ9: 1 | AR9: 12683
A10: 9 | B10: CINCO VILLAS | C10: 5 | D10: 2565 | E10: 131 | F10: 140 | G10: 133 | H10: 135 | I10: 201 | J10: 262 | K10: 255 | L10: 262 | M10: 297 | N10: 281 | O10: 214 | P10: 124 | Q10: 74 | R10: 36 | S10: 13 | T10: 4 | U10: 1 | V10: 1 | W10: 1 | X10: 2012 | Y10: 140 | Z10: 135 | AA10: 132 | AB10: 114 | AC10: 131 | AD10: 194 | AE10: 210 | AF10: 218 | AG10: 222 | AH10: 160 | AI10: 143 | AJ10: 93 | AK10: 62 | AL10: 27 | AM10: 18 | AN10: 6 | AO10: 5 | AP10: 2 | AQ10: 0 | AR10: 30775
A11: 10 | B11: HOYA DE HUESCA/PLANA DE UESCA | C11: 6 | D11: 3359 | E11: 173 | F11: 218 | G11: 186 | H11: 222 | I11: 263 | J11: 327 | K11: 337 | L11: 369 | M11: 397 | N11: 308 | O11: 233 | P11: 128 | Q11: 88 | R11: 62 | S11: 22 | T11: 16 | U11: 3 | V11: 4 | W11: 3 | X11: 3371 | Y11: 179 | Z11: 189 | AA11: 168 | AB11: 154 | AC11: 225 | AD11: 314 | AE11: 381 | AF11: 423 | AG11: 405 | AH11: 312 | AI11: 230 | AJ11: 151 | AK11: 88 | AL11: 64 | AM11: 45 | AN11: 19 | AO11: 12 | AP11: 8 | AQ11: 4 | AR11: 69653
A12: 11 | B12: SOMONTANO DE BARBASTRO | C12: 7 | D12: 1346 | E12: 77 | F12: 71 | G12: 62 | H12: 78 | I12: 93 | J12: 114 | K12: 125 | L12: 142 | M12: 195 | N12: 136 | O12: 93 | P12: 62 | Q12: 41 | R12: 20 | S12: 18 | T12: 11 | U12: 5 | V12: 1 | W12: 2 | X12: 1293 | Y12: 56 | Z12: 49 | AA12: 56 | AB12: 49 | AC12: 93 | AD12: 124 | AE12: 163 | AF12: 161 | AG12: 148 | AH12: 110 | AI12: 89 | AJ12: 73 | AK12: 43 | AL12: 34 | AM12: 19 | AN12: 11 | AO12: 6 | AP12: 8 | AQ12: 1 | AR12: 24212
A13: 12 | B13: CINCA MEDIO | C13: 8 | D13: 2209 | E13: 130 | F13: 123 | G13: 121 | H13: 127 | I13: 154 | J13: 197 | K13: 188 | L13: 258 | M13: 271 | N13: 242 | O13: 196 | P13: 108 | Q13: 50 | R13: 23 | S13: 10 | T13: 6 | U13: 5 | V13: 0 | W13: 0 | X13: 1770 | Y13: 111 | Z13: 118 | AA13: 87 | AB13: 83 | AC13: 126 | AD13: 186 | AE13: 201 | AF13: 196 | AG13: 194 | AH13: 183 | AI13: 134 | AJ13: 75 | AK13: 32 | AL13: 24 | AM13: 9 | AN13: 6 | AO13: 4 | AP13: 1 | AQ13: 0 | AR13: 24579
A14: 13 | B14: LA LITERA/LA LLITERA | C14: 9 | D14: 1902 | E14: 84 | F14: 80 | G14: 71 | H14: 102 | I14: 155 | J14: 212 | K14: 199 | L14: 210 | M14: 282 | N14: 227 | O14: 139 | P14: 75 | Q14: 29 | R14: 16 | S14: 14 | T14: 3 | U14: 3 | V14: 1 | W14: 0 | X14: 1173 | Y14: 89 | Z14: 57 | AA14: 74 | AB14: 54 | AC14: 92 | AD14: 104 | AE14: 133 | AF14: 153 | AG14: 136 | AH14: 110 | AI14: 70 | AJ14: 43 | AK14: 25 | AL14: 19 | AM14: 4 | AN14: 7 | AO14: 1 | AP14: 2 | AQ14: 0 | AR14: 18995
A15: 14 | B15: LOS MONEGROS | C15: 10 | D15: 1253 | E15: 71 | F15: 61 | G15: 63 | H15: 63 | I15: 81 | J15: 128 | K15: 147 | L15: 135 | M15: 171 | N15: 133 | O15: 97 | P15: 41 | Q15: 28 | R15: 22 | S15: 4 | T15: 4 | U15: 2 | V15: 2 | W15: 0 | X15: 1107 | Y15: 79 | Z15: 72 | AA15: 42 | AB15: 52 | AC15: 55 | AD15: 84 | AE15: 116 | AF15: 145 | AG15: 129 | AH15: 107 | AI15: 87 | AJ15: 54 | AK15: 39 | AL15: 23 | AM15: 13 | AN15: 3 | AO15: 2 | AP15: 2 | AQ15: 3 | AR15: 18357
A16: 15 | B16: BAJO CINCA/BAIX CINCA | C16: 11 | D16: 3336 | E16: 175 | F16: 173 | G16: 151 | H16: 139 | I16: 239 | J16: 289 | K16: 331 | L16: 422 | M16: 453 | N16: 400 | O16: 284 | P16: 164 | Q16: 65 | R16: 34 | S16: 7 | T16: 7 | U16: 2 | V16: 1 | W16: 0 | X16: 2333 | Y16: 162 | Z16: 144 | AA16: 108 | AB16: 116 | AC16: 169 | AD16: 181 | AE16: 277 | AF16: 289 | AG16: 295 | AH16: 220 | AI16: 199 | AJ16: 89 | AK16: 50 | AL16: 25 | AM16: 3 | AN16: 4 | AO16: 0 | AP16: 1 | AQ16: 1 | AR16: 24883
A17: 16 | B17: TARAZONA Y EL MONCAYO | C17: 12 | D17: 631 | E17: 37 | F17: 42 | G17: 29 | H17: 34 | I17: 52 | J17: 61 | K17: 59 | L17: 80 | M17: 73 | N17: 56 | O17: 39 | P17: 33 | Q17: 17 | R17: 11 | S17: 5 | T17: 3 | U17: 0 | V17: 0 | W17: 0 | X17: 558 | Y17: 39 | Z17: 29 | AA17: 26 | AB17: 23 | AC17: 40 | AD17: 52 | AE17: 71 | AF17: 75 | AG17: 60 | AH17: 42 | AI17: 28 | AJ17: 21 | AK17: 34 | AL17: 7 | AM17: 5 | AN17: 5 | AO17: 0 | AP17: 0 | AQ17: 1 | AR17: 14052
A18: 17 | B18: CAMPO DE BORJA | C18: 13 | D18: 973 | E18: 55 | F18: 64 | G18: 62 | H18: 56 | I18: 60 | J18: 94 | K18: 74 | L18: 105 | M18: 121 | N18: 108 | O18: 81 | P18: 54 | Q18: 18 | R18: 11 | S18: 9 | T18: 1 | U18: 0 | V18: 0 | W18: 0 | X18: 762 | Y18: 54 | Z18: 40 | AA18: 44 | AB18: 36 | AC18: 46 | AD18: 65 | AE18: 88 | AF18: 94 | AG18: 93 | AH18: 81 | AI18: 54 | AJ18: 25 | AK18: 22 | AL18: 5 | AM18: 3 | AN18: 7 | AO18: 4 | AP18: 1 | AQ18: 0 | AR18: 13826
A19: 18 | B19: ARANDA | C19: 14 | D19: 263 | E19: 5 | F19: 9 | G19: 11 | H19: 18 | I19: 19 | J19: 17 | K19: 20 | L19: 25 | M19: 35 | N19: 45 | O19: 29 | P19: 13 | Q19: 10 | R19: 3 | S19: 3 | T19: 1 | U19: 0 | V19: 0 | W19: 0 | X19: 252 | Y19: 8 | Z19: 10 | AA19: 10 | AB19: 14 | AC19: 13 | AD19: 19 | AE19: 25 | AF19: 34 | AG19: 31 | AH19: 31 | AI19: 24 | AJ19: 10 | AK19: 11 | AL19: 7 | AM19: 4 | AN19: 0 | AO19: 0 | AP19: 1 | AQ19: 0 | AR19: 6147
A20: 19 | B20: RIBERA ALTA DEL EBRO | C20: 15 | D20: 1591 | E20: 65 | F20: 73 | G20: 75 | H20: 76 | I20: 90 | J20: 125 | K20: 139 | L20: 183 | M20: 191 | N20: 187 | O20: 179 | P20: 102 | Q20: 60 | R20: 24 | S20: 9 | T20: 9 | U20: 4 | V20: 0 | W20: 0 | X20: 1520 | Y20: 57 | Z20: 93 | AA20: 78 | AB20: 69 | AC20: 94 | AD20: 124 | AE20: 169 | AF20: 172 | AG20: 169 | AH20: 158 | AI20: 131 | AJ20: 79 | AK20: 50 | AL20: 36 | AM20: 17 | AN20: 16 | AO20: 4 | AP20: 3 | AQ20: 1 | AR20: 27951
A21: 20 | B21: VALDEJALÓN | C21: 16 | D21: 3806 | E21: 233 | F21: 200 | G21: 185 | H21: 160 | I21: 249 | J21: 274 | K21: 376 | L21: 390 | M21: 478 | N21: 439 | O21: 405 | P21: 191 | Q21: 120 | R21: 75 | S21: 21 | T21: 4 | U21: 4 | V21: 2 | W21: 0 | X21: 3111 | Y21: 216 | Z21: 175 | AA21: 147 | AB21: 123 | AC21: 174 | AD21: 244 | AE21: 329 | AF21: 368 | AG21: 406 | AH21: 326 | AI21: 288 | AJ21: 130 | AK21: 84 | AL21: 54 | AM21: 24 | AN21: 11 | AO21: 8 | AP21: 2 | AQ21: 2 | AR21: 30133
A22: 21 | B22: CENTRAL | C22: 17 | D22: 43660 | E22: 2410 | F22: 2453 | G22: 2339 | H22: 2389 | I22: 3347 | J22: 4120 | K22: 4380 | L22: 4763 | M22: 5167 | N22: 4492 | O22: 3273 | P22: 2065 | Q22: 1227 | R22: 663 | S22: 303 | T22: 131 | U22: 92 | V22: 37 | W22: 9 | X22: 45199 | Y22: 2153 | Z22: 2354 | AA22: 2166 | AB22: 2057 | AC22: 3209 | AD22: 4293 | AE22: 5239 | AF22: 5562 | AG22: 5373 | AH22: 4255 | AI22: 3272 | AJ22: 2051 | AK22: 1370 | AL22: 861 | AM22: 510 | AN22: 261 | AO22: 119 | AP22: 67 | AQ22: 27 | AR22: 769428
A23: 22 | B23: RIBERA BAJA DEL EBRO | C23: 18 | D23: 408 | E23: 16 | F23: 24 | G23: 25 | H23: 15 | I23: 40 | J23: 35 | K23: 34 | L23: 52 | M23: 46 | N23: 39 | O23: 25 | P23: 24 | Q23: 18 | R23: 6 | S23: 4 | T23: 2 | U23: 3 | V23: 0 | W23: 0 | X23: 399 | Y23: 39 | Z23: 36 | AA23: 21 | AB23: 20 | AC23: 22 | AD23: 32 | AE23: 34 | AF23: 56 | AG23: 44 | AH23: 39 | AI23: 16 | AJ23: 10 | AK23: 6 | AL23: 12 | AM23: 4 | AN23: 6 | AO23: 1 | AP23: 1 | AQ23: 0 | AR23: 8494
A24: 23 | B24: BAJO ARAGÓN-CASPE/BAIX ARAGÓ-CASP | C24: 19 | D24: 2476 | E24: 142 | F24: 156 | G24: 118 | H24: 139 | I24: 231 | J24: 231 | K24: 243 | L24: 238 | M24: 278 | N24: 235 | O24: 193 | P24: 121 | Q24: 84 | R24: 38 | S24: 16 | T24: 8 | U24: 3 | V24: 1 | W24: 1 | X24: 1628 | Y24: 152 | Z24: 111 | AA24: 107 | AB24: 103 | AC24: 104 | AD24: 132 | AE24: 171 | AF24: 167 | AG24: 149 | AH24: 146 | AI24: 115 | AJ24: 69 | AK24: 50 | AL24: 28 | AM24: 11 | AN24: 8 | AO24: 3 | AP24: 1 | AQ24: 1 | AR24: 15415
A25: 24 | B25: COMUNIDAD DE CALATAYUD | C25: 20 | D25: 2761 | E25: 122 | F25: 157 | G25: 139 | H25: 151 | I25: 180 | J25: 214 | K25: 241 | L25: 291 | M25: 360 | N25: 307 | O25: 260 | P25: 134 | Q25: 109 | R25: 57 | S25: 20 | T25: 11 | U25: 6 | V25: 2 | W25: 0 | X25: 2674 | Y25: 115 | Z25: 125 | AA25: 130 | AB25: 127 | AC25: 167 | AD25: 200 | AE25: 283 | AF25: 302 | AG25: 331 | AH25: 284 | AI25: 251 | AJ25: 127 | AK25: 107 | AL25: 65 | AM25: 40 | AN25: 15 | AO25: 3 | AP25: 1 | AQ25: 1 | AR25: 36056
A26: 25 | B26: CAMPO DE CARIÑENA | C26: 21 | D26: 1273 | E26: 54 | F26: 63 | G26: 59 | H26: 44 | I26: 83 | J26: 105 | K26: 153 | L26: 129 | M26: 153 | N26: 157 | O26: 135 | P26: 53 | Q26: 47 | R26: 29 | S26: 4 | T26: 3 | U26: 2 | V26: 0 | W26: 0 | X26: 1019 | Y26: 78 | Z26: 61 | AA26: 68 | AB26: 59 | AC26: 60 | AD26: 85 | AE26: 103 | AF26: 112 | AG26: 110 | AH26: 98 | AI26: 78 | AJ26: 44 | AK26: 36 | AL26: 19 | AM26: 3 | AN26: 3 | AO26: 1 | AP26: 0 | AQ26: 1 | AR26: 10092
A27: 26 | B27: CAMPO DE BELCHITE | C27: 22 | D27: 169 | E27: 6 | F27: 13 | G27: 12 | H27: 18 | I27: 16 | J27: 11 | K27: 11 | L27: 17 | M27: 23 | N27: 20 | O27: 10 | P27: 2 | Q27: 5 | R27: 2 | S27: 1 | T27: 1 | U27: 1 | V27: 0 | W27: 0 | X27: 192 | Y27: 14 | Z27: 18 | AA27: 4 | AB27: 11 | AC27: 18 | AD27: 13 | AE27: 21 | AF27: 24 | AG27: 23 | AH27: 19 | AI27: 10 | AJ27: 8 | AK27: 4 | AL27: 3 | AM27: 2 | AN27: 0 | AO27: 0 | AP27: 0 | AQ27: 0 | AR27: 4556
A28: 27 | B28: BAJO MARTÍN | C28: 23 | D28: 394 | E28: 30 | F28: 27 | G28: 20 | H28: 27 | I28: 33 | J28: 32 | K28: 31 | L28: 42 | M28: 46 | N28: 38 | O28: 29 | P28: 14 | Q28: 15 | R28: 6 | S28: 3 | T28: 1 | U28: 0 | V28: 0 | W28: 0 | X28: 344 | Y28: 28 | Z28: 34 | AA28: 26 | AB28: 23 | AC28: 28 | AD28: 30 | AE28: 38 | AF28: 24 | AG28: 30 | AH28: 29 | AI28: 19 | AJ28: 9 | AK28: 11 | AL28: 5 | AM28: 5 | AN28: 1 | AO28: 1 | AP28: 3 | AQ28: 0 | AR28: 6281
A29: 28 | B29: CAMPO DE DAROCA | C29: 24 | D29: 400 | E29: 29 | F29: 26 | G29: 20 | H29: 19 | I29: 22 | J29: 36 | K29: 61 | L29: 39 | M29: 49 | N29: 43 | O29: 33 | P29: 8 | Q29: 9 | R29: 4 | S29: 0 | T29: 1 | U29: 1 | V29: 0 | W29: 0 | X29: 330 | Y29: 27 | Z29: 23 | AA29: 13 | AB29: 16 | AC29: 24 | AD29: 40 | AE29: 33 | AF29: 32 | AG29: 32 | AH29: 33 | AI29: 28 | AJ29: 9 | AK29: 7 | AL29: 9 | AM29: 0 | AN29: 1 | AO29: 3 | AP29: 0 | AQ29: 0 | AR29: 5512
A30: 29 | B30: JILOCA | C30: 25 | D30: 941 | E30: 69 | F30: 61 | G30: 71 | H30: 59 | I30: 78 | J30: 76 | K30: 91 | L30: 88 | M30: 104 | N30: 105 | O30: 67 | P30: 33 | Q30: 20 | R30: 8 | S30: 7 | T30: 1 | U30: 3 | V30: 0 | W30: 0 | X30: 865 | Y30: 58 | Z30: 66 | AA30: 55 | AB30: 45 | AC30: 75 | AD30: 78 | AE30: 96 | AF30: 80 | AG30: 103 | AH30: 66 | AI30: 63 | AJ30: 33 | AK30: 24 | AL30: 13 | AM30: 7 | AN30: 0 | AO30: 2 | AP30: 0 | AQ30: 1 | AR30: 12492
A31: 30 | B31: CUENCAS MINERAS | C31: 26 | D31: 406 | E31: 21 | F31: 36 | G31: 24 | H31: 17 | I31: 41 | J31: 40 | K31: 39 | L31: 35 | M31: 46 | N31: 36 | O31: 28 | P31: 23 | Q31: 8 | R31: 8 | S31: 3 | T31: 0 | U31: 1 | V31: 0 | W31: 0 | X31: 334 | Y31: 31 | Z31: 27 | AA31: 17 | AB31: 19 | AC31: 17 | AD31: 37 | AE31: 44 | AF31: 29 | AG31: 31 | AH31: 22 | AI31: 24 | AJ31: 14 | AK31: 12 | AL31: 6 | AM31: 2 | AN31: 1 | AO31: 1 | AP31: 0 | AQ31: 0 | AR31: 7829
A32: 31 | B32: ANDORRA-SIERRA DE ARCOS | C32: 27 | D32: 428 | E32: 26 | F32: 38 | G32: 21 | H32: 30 | I32: 40 | J32: 29 | K32: 33 | L32: 32 | M32: 56 | N32: 44 | O32: 29 | P32: 25 | Q32: 16 | R32: 5 | S32: 1 | T32: 1 | U32: 1 | V32: 1 | W32: 0 | X32: 396 | Y32: 17 | Z32: 28 | AA32: 26 | AB32: 19 | AC32: 37 | AD32: 31 | AE32: 43 | AF32: 40 | AG32: 44 | AH32: 47 | AI32: 31 | AJ32: 14 | AK32: 9 | AL32: 4 | AM32: 4 | AN32: 1 | AO32: 1 | AP32: 0 | AQ32: 0 | AR32: 9531
A33: 32 | B33: BAJO ARAGÓN | C33: 28 | D33: 1962 | E33: 105 | F33: 132 | G33: 123 | H33: 105 | I33: 146 | J33: 146 | K33: 168 | L33: 215 | M33: 259 | N33: 216 | O33: 154 | P33: 91 | Q33: 55 | R33: 27 | S33: 14 | T33: 3 | U33: 2 | V33: 1 | W33: 0 | X33: 1908 | Y33: 132 | Z33: 132 | AA33: 101 | AB33: 94 | AC33: 125 | AD33: 149 | AE33: 204 | AF33: 202 | AG33: 225 | AH33: 183 | AI33: 159 | AJ33: 75 | AK33: 57 | AL33: 33 | AM33: 16 | AN33: 9 | AO33: 9 | AP33: 3 | AQ33: 0 | AR33: 28702
A34: 33 | B34: COMUNIDAD DE TERUEL | C34: 29 | D34: 2280 | E34: 145 | F34: 166 | G34: 113 | H34: 131 | I34: 219 | J34: 199 | K34: 220 | L34: 213 | M34: 245 | N34: 212 | O34: 164 | P34: 114 | Q34: 77 | R34: 31 | S34: 15 | T34: 10 | U34: 4 | V34: 1 | W34: 1 | X34: 2264 | Y34: 152 | Z34: 130 | AA34: 124 | AB34: 126 | AC34: 166 | AD34: 215 | AE34: 222 | AF34: 238 | AG34: 244 | AH34: 222 | AI34: 171 | AJ34: 81 | AK34: 73 | AL34: 51 | AM34: 21 | AN34: 8 | AO34: 12 | AP34: 5 | AQ34: 3 | AR34: 46492
A35: 34 | B35: MAESTRAZGO | C35: 30 | D35: 166 | E35: 10 | F35: 14 | G35: 7 | H35: 11 | I35: 11 | J35: 11 | K35: 14 | L35: 23 | M35: 15 | N35: 17 | O35: 19 | P35: 3 | Q35: 4 | R35: 2 | S35: 3 | T35: 1 | U35: 0 | V35: 1 | W35: 0 | X35: 140 | Y35: 12 | Z35: 10 | AA35: 8 | AB35: 7 | AC35: 4 | AD35: 7 | AE35: 15 | AF35: 21 | AG35: 19 | AH35: 9 | AI35: 9 | AJ35: 7 | AK35: 5 | AL35: 3 | AM35: 2 | AN35: 2 | AO35: 0 | AP35: 0 | AQ35: 0 | AR35: 3152
A36: 35 | B36: SIERRA DE ALBARRACÍN | C36: 31 | D36: 127 | E36: 8 | F36: 3 | G36: 3 | H36: 10 | I36: 7 | J36: 9 | K36: 6 | L36: 20 | M36: 18 | N36: 14 | O36: 7 | P36: 14 | Q36: 5 | R36: 2 | S36: 0 | T36: 0 | U36: 0 | V36: 1 | W36: 0 | X36: 123 | Y36: 5 | Z36: 6 | AA36: 7 | AB36: 3 | AC36: 5 | AD36: 7 | AE36: 11 | AF36: 15 | AG36: 18 | AH36: 15 | AI36: 7 | AJ36: 7 | AK36: 7 | AL36: 3 | AM36: 3 | AN36: 3 | AO36: 1 | AP36: 0 | AQ36: 0 | AR36: 4517
A37: 36 | B37: GÚDAR-JAVALAMBRE | C37: 32 | D37: 507 | E37: 26 | F37: 43 | G37: 33 | H37: 23 | I37: 38 | J37: 40 | K37: 33 | L37: 61 | M37: 72 | N37: 48 | O37: 35 | P37: 24 | Q37: 18 | R37: 5 | S37: 6 | T37: 1 | U37: 1 | V37: 0 | W37: 0 | X37: 426 | Y37: 31 | Z37: 43 | AA37: 23 | AB37: 14 | AC37: 21 | AD37: 52 | AE37: 44 | AF37: 44 | AG37: 43 | AH37: 40 | AI37: 29 | AJ37: 19 | AK37: 13 | AL37: 6 | AM37: 2 | AN37: 0 | AO37: 2 | AP37: 0 | AQ37: 0 | AR37: 7739
A38: 37 | B38: MATARRAÑA/MATARRANYA | C38: 33 | D38: 728 | E38: 47 | F38: 32 | G38: 36 | H38: 38 | I38: 46 | J38: 40 | K38: 57 | L38: 82 | M38: 102 | N38: 76 | O38: 51 | P38: 44 | Q38: 28 | R38: 23 | S38: 15 | T38: 9 | U38: 2 | V38: 0 | W38: 0 | X38: 567 | Y38: 37 | Z38: 47 | AA38: 24 | AB38: 24 | AC38: 32 | AD38: 39 | AE38: 61 | AF38: 59 | AG38: 60 | AH38: 46 | AI38: 39 | AJ38: 31 | AK38: 24 | AL38: 20 | AM38: 13 | AN38: 7 | AO38: 4 | AP38: 0 | AQ38: 0 | AR38: 8311
A39: 38 | B39: 22001 Abiego | C39: 22001 | D39: 8 | E39: 0 | F39: 3 | G39: 2 | H39: 0 | I39: 0 | J39: 0 | K39: 0 | L39: 0 | M39: 1 | N39: 2 | O39: 0 | P39: 0 | Q39: 0 | R39: 0 | S39: 0 | T39: 0 | U39: 0 | V39: 0 | W39: 0 | X39: 14 | Y39: 0 | Z39: 2 | AA39: 1 | AB39: 0 | AC39: 1 | AD39: 2 | AE39: 2 | AF39: 1 | AG39: 2 | AH39: 0 | AI39: 0 | AJ39: 2 | AK39: 0 | AL39: 0 | AM39: 0 | AN39: 0 | AO39: 1 | AP39: 0 | AQ39: 0 | AR39: 261 | AS39: 0
A40: 39 | B40: 22002 Abizanda | C40: 22002 | D40: 14 | E40: 0 | F40: 0 | G40: 0 | H40: 0 | I40: 0 | J40: 0 | K40: 2 | L40: 2 | M40: 1 | N40: 2 | O40: 1 | P40: 4 | Q40: 0 | R40: 0 | S40: 0 | T40: 2 | U40: 0 | V40: 0 | W40: 0 | X40: 11 | Y40: 0 | Z40: 0 | AA40: 0 | AB40: 0 | AC40: 0 | AD40: 1 | AE40: 1 | AF40: 1 | AG40: 0 | AH40: 0 | AI40: 3 | AJ40: 1 | AK40: 2 | AL40: 0 | AM40: 2 | AN40: 0 | AO40: 0 | AP40: 0 | AQ40: 0 | AR40: 162
A41: 40 | B41: 22003 Adahuesca | C41: 22003 | D41: 11 | E41: 0 | F41: 2 | G41: 0 | H41: 1 | I41: 0 | J41: 1 | K41: 0 | L41: 1 | M41: 2 | N41: 2 | O41: 1 | P41: 1 | Q41: 0 | R41: 0 | S41: 0 | T41: 0 | U41: 0 | V41: 0 | W41: 0 | X41: 6 | Y41: 0 | Z41: 0 | AA41: 0 | AB41: 0 | AC41: 0 | AD41: 1 | AE41: 1 | AF41: 1 | AG41: 2 | AH41: 0 | AI41: 0 | AJ41: 1 | AK41: 0 | AL41: 0 | AM41: 0 | AN41: 0 | AO41: 0 | AP41: 0 | AQ41: 0 | AR41: 207
A42: 41 | B42: 22004 Agüero | C42: 22004 | D42: 3 | E42: 0 | F42: 0 | G42: 1 | H42: 0 | I42: 0 | J42: 0 | K42: 0 | L42: 1 | M42: 0 | N42: 0 | O42: 0 | P42: 0 | Q42: 0 | R42: 1 | S42: 0 | T42: 0 | U42: 0 | V42: 0 | W42: 0 | X42: 4 | Y42: 0 | Z42: 0 | AA42: 1 | AB42: 0 | AC42: 0 | AD42: 0 | AE42: 1 | AF42: 1 | AG42: 1 | AH42: 0 | AI42: 0 | AJ42: 0 | AK42: 0 | AL42: 0 | AM42: 0 | AN42: 0 | AO42: 0 | AP42: 0 | AQ42: 0 | AR42: 143
A43: 42 | B43: 22006 Aísa | C43: 22006 | D43: 8 | E43: 0 | F43: 0 | G43: 0 | H43: 0 | I43: 1 | J43: 1 | K43: 1 | L43: 0 | M43: 1 | N43: 3 | O43: 0 | P43: 0 | Q43: 0 | R43: 0 | S43: 0 | T43: 0 | U43: 0 | V43: 1 | W43: 0 | X43: 10 | Y43: 0 | Z43: 1 | AA43: 1 | AB43: 1 | AC43: 1 | AD43: 0 | AE43: 2 | AF43: 0 | AG43: 2 | AH43: 0 | AI43: 0 | AJ43: 1 | AK43: 1 | AL43: 0 | AM43: 0 | AN43: 0 | AO43: 0 | AP43: 0 | AQ43: 0 | AR43: 325
A44: 43 | B44: 22007 Albalate de Cinca | C44: 22007 | D44: 181 | E44: 7 | F44: 6 | G44: 3 | H44: 6 | I44: 13 | J44: 16 | K44: 15 | L44: 28 | M44: 13 | N44: 16 | O44: 32 | P44: 8 | Q44: 11 | R44: 4 | S44: 3 | T44: 0 | U44: 0 | V44: 0 | W44: 0 | X44: 103 | Y44: 3 | Z44: 7 | AA44: 3 | AB44: 4 | AC44: 3 | AD44: 11 | AE44: 15 | AF44: 10 | AG44: 10 | AH44: 16 | AI44: 12 | AJ44: 6 | AK44: 2 | AL44: 1 | AM44: 0 | AN44: 0 | AO44: 0 | AP44: 0 | AQ44: 0 | AR44: 1159
A45: 44 | B45: 22008 Albalatillo | C45: 22008 | D45: 26 | E45: 1 | F45: 1 | G45: 0 | H45: 2 | I45: 2 | J45: 5 | K45: 4 | L45: 1 | M45: 2 | N45: 2 | O45: 4 | P45: 1 | Q45: 0 | R45: 0 | S45: 0 | T45: 0 | U45: 0 | V45: 1 | W45: 0 | X45: 29 | Y45: 2 | Z45: 3 | AA45: 0 | AB45: 1 | AC45: 3 | AD45: 6 | AE45: 1 | AF45: 1 | AG45: 3 | AH45: 4 | AI45: 4 | AJ45: 0 | AK45: 1 | AL45: 0 | AM45: 0 | AN45: 0 | AO45: 0 | AP45: 0 | AQ45: 0 | AR45: 200
A46: 45 | B46: 22009 Albelda | C46: 22009 | D46: 27 | E46: 1 | F46: 5 | G46: 1 | H46: 1 | I46: 1 | J46: 2 | K46: 2 | L46: 4 | M46: 3 | N46: 3 | O46: 0 | P46: 1 | Q46: 3 | R46: 0 | S46: 0 | T46: 0 | U46: 0 | V46: 0 | W46: 0 | X46: 17 | Y46: 2 | Z46: 1 | AA46: 0 | AB46: 0 | AC46: 1 | AD46: 1 | AE46: 1 | AF46: 1 | AG46: 2 | AH46: 3 | AI46: 2 | AJ46: 2 | AK46: 1 | AL46: 0 | AM46: 0 | AN46: 0 | AO46: 0 | AP46: 0 | AQ46: 0 | AR46: 701
A47: 46 | B47: 22011 Albero Alto | C47: 22011 | D47: 2 | E47: 0 | F47: 0 | G47: 0 | H47: 0 | I47: 0 | J47: 0 | K47: 0 | L47: 0 | M47: 0 | N47: 0 | O47: 1 | P47: 0 | Q47: 0 | R47: 1 | S47: 0 | T47: 0 | U47: 0 | V47: 0 | W47: 0 | X47: 3 | Y47: 0 | Z47: 0 | AA47: 0 | AB47: 0 | AC47: 0 | AD47: 0 | AE47: 0 | AF47: 0 | AG47: 0 | AH47: 0 | AI47: 1 | AJ47: 1 | AK47: 0 | AL47: 0 | AM47: 1 | AN47: 0 | AO47: 0 | AP47: 0 | AQ47: 0 | AR47: 124
A48: 47 | B48: 22012 Albero Bajo | C48: 22012 | D48: 2 | E48: 0 | F48: 0 | G48: 0 | H48: 0 | I48: 0 | J48: 0 | K48: 1 | L48: 0 | M48: 0 | N48: 0 | O48: 0 | P48: 0 | Q48: 0 | R48: 0 | S48: 0 | T48: 1 | U48: 0 | V48: 0 | W48: 0 | X48: 7 | Y48: 0 | Z48: 0 | AA48: 0 | AB48: 0 | AC48: 1 | AD48: 0 | AE48: 1 | AF48: 1 | AG48: 0 | AH48: 2 | AI48: 1 | AJ48: 0 | AK48: 0 | AL48: 0 | AM48: 1 | AN48: 0 | AO48: 0 | AP48: 0 | AQ48: 0 | AR48: 130
A49: 48 | B49: 22013 Alberuela de Tubo | C49: 22013 | D49: 5 | E49: 0 | F49: 0 | G49: 1 | H49: 0 | I49: 0 | J49: 0 | K49: 1 | L49: 0 | M49: 1 | N49: 1 | O49: 1 | P49: 0 | Q49: 0 | R49: 0 | S49: 0 | T49: 0 | U49: 0 | V49: 0 | W49: 0 | X49: 7 | Y49: 0 | Z49: 0 | AA49: 0 | AB49: 1 | AC49: 0 | AD49: 1 | AE49: 0 | AF49: 1 | AG49: 2 | AH49: 0 | AI49: 0 | AJ49: 1 | AK49: 1 | AL49: 0 | AM49: 0 | AN49: 0 | AO49: 0 | AP49: 0 | AQ49: 0 | AR49: 306
A50: 49 | B50: 22014 Alcalá de Gurrea | C50: 22014 | D50: 1 | E50: 0 | F50: 0 | G50: 0 | H50: 0 | I50: 1 | J50: 0 | K50: 0 | L50: 0 | M50: 0 | N50: 0 | O50: 0 | P50: 0 | Q50: 0 | R50: 0 | S50: 0 | T50: 0 | U50: 0 | V50: 0 | W50: 0 | X50: 2 | Y50: 0 | Z50: 0 | AA50: 0 | AB50: 0 | AC50: 1 | AD50: 0 | AE50: 0 | AF50: 1 | AG50: 0 | AH50: 0 | AI50: 0 | AJ50: 0 | AK50: 0 | AL50: 0 | AM50: 0 | AN50: 0 | AO50: 0 | AP50: 0 | AQ50: 0 | AR50: 229
A51: 50 | B51: 22015 Alcalá del Obispo | C51: 22015 | D51: 15 | E51: 1 | F51: 5 | G51: 1 | H51: 1 | I51: 1 | J51: 1 | K51: 0 | L51: 1 | M51: 4 | N51: 0 | O51: 0 | P51: 0 | Q51: 0 | R51: 0 | S51: 0 | T51: 0 | U51: 0 | V51: 0 | W51: 0 | X51: 7 | Y51: 0 | Z51: 1 | AA51: 0 | AB51: 0 | AC51: 1 | AD51: 0 | AE51: 0 | AF51: 2 | AG51: 1 | AH51: 0 | AI51: 1 | AJ51: 1 | AK51: 0 | AL51: 0 | AM51: 0 | AN51: 0 | AO51: 0 | AP51: 0 | AQ51: 0 | AR51: 372
A52: 51 | B52: 22016 Alcampell | C52: 22016 | D52: 11 | E52: 1 | F52: 0 | G52: 0 | H52: 0 | I52: 0 | J52: 2 | K52: 3 | L52: 0 | M52: 1 | N52: 3 | O52: 0 | P52: 1 | Q52: 0 | R52: 0 | S52: 0 | T52: 0 | U52: 0 | V52: 0 | W52: 0 | X52: 10 | Y52: 2 | Z52: 0 | AA52: 0 | AB52: 0 | AC52: 1 | AD52: 1 | AE52: 2 | AF52: 4 | AG52: 0 | AH52: 0 | AI52: 0 | AJ52: 0 | AK52: 0 | AL52: 0 | AM52: 0 | AN52: 0 | AO52: 0 | AP52: 0 | AQ52: 0 | AR52: 623
A53: 52 | B53: 22017 Alcolea de Cinca | C53: 22017 | D53: 128 | E53: 7 | F53: 2 | G53: 1 | H53: 4 | I53: 8 | J53: 9 | K53: 14 | L53: 17 | M53: 24 | N53: 22 | O53: 12 | P53: 5 | Q53: 3 | R53: 0 | S53: 0 | T53: 0 | U53: 0 | V53: 0 | W53: 0 | X53: 70 | Y53: 4 | Z53: 3 | AA53: 4 | AB53: 4 | AC53: 8 | AD53: 13 | AE53: 5 | AF53: 4 | AG53: 6 | AH53: 7 | AI53: 6 | AJ53: 4 | AK53: 1 | AL53: 1 | AM53: 0 | AN53: 0 | AO53: 0 | AP53: 0 | AQ53: 0 | AR53: 1100
A54: 53 | B54: 22018 Alcubierre | C54: 22018 | D54: 25 | E54: 2 | F54: 2 | G54: 4 | H54: 0 | I54: 0 | J54: 4 | K54: 2 | L54: 1 | M54: 5 | N54: 3 | O54: 0 | P54: 0 | Q54: 0 | R54: 1 | S54: 0 | T54: 0 | U54: 0 | V54: 1 | W54: 0 | X54: 16 | Y54: 1 | Z54: 0 | AA54: 1 | AB54: 1 | AC54: 0 | AD54: 1 | AE54: 4 | AF54: 5 | AG54: 0 | AH54: 0 | AI54: 0 | AJ54: 1 | AK54: 1 | AL54: 1 | AM54: 0 | AN54: 0 | AO54: 0 | AP54: 0 | AQ54: 0 | AR54: 412
A55: 54 | B55: 22019 Alerre | C55: 22019 | D55: 5 | E55: 0 | F55: 0 | G55: 1 | H55: 0 | I55: 0 | J55: 0 | K55: 0 | L55: 0 | M55: 2 | N55: 0 | O55: 1 | P55: 0 | Q55: 1 | R55: 0 | S55: 0 | T55: 0 | U55: 0 | V55: 0 | W55: 0 | X55: 5 | Y55: 0 | Z55: 0 | AA55: 0 | AB55: 1 | AC55: 0 | AD55: 0 | AE55: 1 | AF55: 0 | AG55: 0 | AH55: 1 | AI55: 0 | AJ55: 0 | AK55: 1 | AL55: 0 | AM55: 1 | AN55: 0 | AO55: 0 | AP55: 0 | AQ55: 0 | AR55: 221
A56: 55 | B56: 22020 Alfántega | C56: 22020 | D56: 8 | E56: 0 | F56: 0 | G56: 0 | H56: 0 | I56: 0 | J56: 2 | K56: 2 | L56: 0 | M56: 0 | N56: 3 | O56: 0 | P56: 1 | Q56: 0 | R56: 0 | S56: 0 | T56: 0 | U56: 0 | V56: 0 | W56: 0 | X56: 7 | Y56: 0 | Z56: 0 | AA56: 0 | AB56: 0 | AC56: 0 | AD56: 1 | AE56: 2 | AF56: 0 | AG56: 1 | AH56: 2 | AI56: 0 | AJ56: 0 | AK56: 0 | AL56: 0 | AM56: 1 | AN56: 0 | AO56: 0 | AP56: 0 | AQ56: 0 | AR56: 136
A57: 56 | B57: 22021 Almudévar | C57: 22021 | D57: 74 | E57: 2 | F57: 8 | G57: 2 | H57: 7 | I57: 7 | J57: 3 | K57: 8 | L57: 10 | M57: 9 | N57: 4 | O57: 7 | P57: 1 | Q57: 2 | R57: 0 | S57: 1 | T57: 1 | U57: 1 | V57: 1 | W57: 0 | X57: 83 | Y57: 4 | Z57: 5 | AA57: 6 | AB57: 4 | AC57: 4 | AD57: 9 | AE57: 11 | AF57: 8 | AG57: 13 | AH57: 4 | AI57: 8 | AJ57: 2 | AK57: 2 | AL57: 1 | AM57: 1 | AN57: 1 | AO57: 0 | AP57: 0 | AQ57: 0 | AR57: 2435
A58: 57 | B58: 22022 Almunia de San Juan | C58: 22022 | D58: 23 | E58: 2 | F58: 1 | G58: 2 | H58: 2 | I58: 1 | J58: 2 | K58: 1 | L58: 3 | M58: 3 | N58: 1 | O58: 3 | P58: 0 | Q58: 0 | R58: 1 | S58: 1 | T58: 0 | U58: 0 | V58: 0 | W58: 0 | X58: 25 | Y58: 1 | Z58: 2 | AA58: 0 | AB58: 0 | AC58: 3 | AD58: 4 | AE58: 3 | AF58: 2 | AG58: 4 | AH58: 0 | AI58: 3 | AJ58: 1 | AK58: 1 | AL58: 0 | AM58: 1 | AN58: 0 | AO58: 0 | AP58: 0 | AQ58: 0 | AR58: 725
A59: 58 | B59: 22023 Almuniente | C59: 22023 | D59: 17 | E59: 0 | F59: 0 | G59: 1 | H59: 0 | I59: 0 | J59: 2 | K59: 2 | L59: 4 | M59: 3 | N59: 2 | O59: 0 | P59: 0 | Q59: 3 | R59: 0 | S59: 0 | T59: 0 | U59: 0 | V59: 0 | W59: 0 | X59: 18 | Y59: 0 | Z59: 4 | AA59: 2 | AB59: 1 | AC59: 1 | AD59: 1 | AE59: 4 | AF59: 1 | AG59: 0 | AH59: 1 | AI59: 1 | AJ59: 2 | AK59: 0 | AL59: 0 | AM59: 0 | AN59: 0 | AO59: 0 | AP59: 0 | AQ59: 0 | AR59: 443
A60: 59 | B60: 22024 Alquézar | C60: 22024 | D60: 36 | E60: 3 | F60: 0 | G60: 3 | H60: 1 | I60: 0 | J60: 3 | K60: 3 | L60: 5 | M60: 3 | N60: 0 | O60: 1 | P60: 2 | Q60: 5 | R60: 4 | S60: 1 | T60: 1 | U60: 0 | V60: 1 | W60: 0 | X60: 42 | Y60: 3 | Z60: 1 | AA60: 0 | AB60: 1 | AC60: 4 | AD60: 2 | AE60: 3 | AF60: 5 | AG60: 7 | AH60: 2 | AI60: 1 | AJ60: 2 | AK60: 3 | AL60: 3 | AM60: 0 | AN60: 1 | AO60: 3 | AP60: 0 | AQ60: 1 | AR60: 347
A61: 60 | B61: 22025 Altorricón | C61: 22025 | D61: 172 | E61: 5 | F61: 13 | G61: 5 | H61: 7 | I61: 19 | J61: 16 | K61: 17 | L61: 24 | M61: 20 | N61: 22 | O61: 12 | P61: 9 | Q61: 2 | R61: 0 | S61: 1 | T61: 0 | U61: 0 | V61: 0 | W61: 0 | X61: 87 | Y61: 8 | Z61: 3 | AA61: 6 | AB61: 5 | AC61: 6 | AD61: 9 | AE61: 10 | AF61: 12 | AG61: 9 | AH61: 8 | AI61: 5 | AJ61: 4 | AK61: 2 | AL61: 0 | AM61: 0 | AN61: 0 | AO61: 0 | AP61: 0 | AQ61: 0 | AR61: 1426
A62: 61 | B62: 22027 Angüés | C62: 22027 | D62: 18 | E62: 0 | F62: 1 | G62: 1 | H62: 3 | I62: 0 | J62: 1 | K62: 2 | L62: 1 | M62: 6 | N62: 2 | O62: 1 | P62: 0 | Q62: 0 | R62: 0 | S62: 0 | T62: 0 | U62: 0 | V62: 0 | W62: 0 | X62: 17 | Y62: 2 | Z62: 0 | AA62: 3 | AB62: 2 | AC62: 2 | AD62: 0 | AE62: 1 | AF62: 3 | AG62: 0 | AH62: 2 | AI62: 1 | AJ62: 0 | AK62: 1 | AL62: 0 | AM62: 0 | AN62: 0 | AO62: 0 | AP62: 0 | AQ62: 0 | AR62: 376
A63: 62 | B63: 22028 Ansó | C63: 22028 | D63: 3 | E63: 0 | F63: 0 | G63: 0 | H63: 0 | I63: 0 | J63: 0 | K63: 0 | L63: 0 | M63: 0 | N63: 1 | O63: 0 | P63: 1 | Q63: 1 | R63: 0 | S63: 0 | T63: 0 | U63: 0 | V63: 0 | W63: 0 | X63: 4 | Y63: 0 | Z63: 0 | AA63: 0 | AB63: 0 | AC63: 1 | AD63: 0 | AE63: 1 | AF63: 0 | AG63: 2 | AH63: 0 | AI63: 0 | AJ63: 0 | AK63: 0 | AL63: 0 | AM63: 0 | AN63: 0 | AO63: 0 | AP63: 0 | AQ63: 0 | AR63: 422
A64: 63 | B64: 22029 Antillón | C64: 22029 | D64: 2 | E64: 0 | F64: 0 | G64: 1 | H64: 0 | I64: 0 | J64: 1 | K64: 0 | L64: 0 | M64: 0 | N64: 0 | O64: 0 | P64: 0 | Q64: 0 | R64: 0 | S64: 0 | T64: 0 | U64: 0 | V64: 0 | W64: 0 | X64: 5 | Y64: 0 | Z64: 0 | AA64: 0 | AB64: 0 | AC64: 0 | AD64: 0 | AE64: 1 | AF64: 1 | AG64: 1 | AH64: 0 | AI64: 2 | AJ64: 0 | AK64: 0 | AL64: 0 | AM64: 0 | AN64: 0 | AO64: 0 | AP64: 0 | AQ64: 0 | AR64: 132
A65: 64 | B65: 22032 Aragüés del Puerto | C65: 22032 | D65: 0 | E65: 0 | F65: 0 | G65: 0 | H65: 0 | I65: 0 | J65: 0 | K65: 0 | L65: 0 | M65: 0 | N65: 0 | O65: 0 | P65: 0 | Q65: 0 | R65: 0 | S65: 0 | T65: 0 | U65: 0 | V65: 0 | W65: 0 | X65: 0 | Y65: 0 | Z65: 0 | AA65: 0 | AB65: 0 | AC65: 0 | AD65: 0 | AE65: 0 | AF65: 0 | AG65: 0 | AH65: 0 | AI65: 0 | AJ65: 0 | AK65: 0 | AL65: 0 | AM65: 0 | AN65: 0 | AO65: 0 | AP65: 0 | AQ65: 0 | AR65: 120
A66: 65 | B66: 22035 Arén | C66: 22035 | D66: 30 | E66: 0 | F66: 0 | G66: 0 | H66: 0 | I66: 0 | J66: 4 | K66: 2 | L66: 3 | M66: 5 | N66: 7 | O66: 3 | P66: 2 | Q66: 2 | R66: 0 | S66: 1 | T66: 0 | U66: 1 | V66: 0 | W66: 0 | X66: 27 | Y66: 0 | Z66: 1 | AA66: 0 | AB66: 0 | AC66: 0 | AD66: 4 | AE66: 5 | AF66: 5 | AG66: 2 | AH66: 3 | AI66: 2 | AJ66: 1 | AK66: 2 | AL66: 1 | AM66: 1 | AN66: 0 | AO66: 0 | AP66: 0 | AQ66: 0 | AR66: 317
A67: 66 | B67: 22036 Argavieso | C67: 22036 | D67: 11 | E67: 0 | F67: 0 | G67: 2 | H67: 2 | I67: 3 | J67: 0 | K67: 1 | L67: 0 | M67: 0 | N67: 3 | O67: 0 | P67: 0 | Q67: 0 | R67: 0 | S67: 0 | T67: 0 | U67: 0 | V67: 0 | W67: 0 | X67: 3 | Y67: 0 | Z67: 0 | AA67: 0 | AB67: 0 | AC67: 0 | AD67: 0 | AE67: 0 | AF67: 0 | AG67: 0 | AH67: 2 | AI67: 1 | AJ67: 0 | AK67: 0 | AL67: 0 | AM67: 0 | AN67: 0 | AO67: 0 | AP67: 0 | AQ67: 0 | AR67: 119
A68: 67 | B68: 22037 Arguis | C68: 22037 | D68: 1 | E68: 0 | F68: 0 | G68: 0 | H68: 0 | I68: 0 | J68: 0 | K68: 0 | L68: 0 | M68: 1 | N68: 0 | O68: 0 | P68: 0 | Q68: 0 | R68: 0 | S68: 0 | T68: 0 | U68: 0 | V68: 0 | W68: 0 | X68: 2 | Y68: 0 | Z68: 0 | AA68: 0 | AB68: 0 | AC68: 0 | AD68: 1 | AE68: 1 | AF68: 0 | AG68: 0 | AH68: 0 | AI68: 0 | AJ68: 0 | AK68: 0 | AL68: 0 | AM68: 0 | AN68: 0 | AO68: 0 | AP68: 0 | AQ68: 0 | AR68: 160
A69: 68 | B69: 22039 Ayerbe | C69: 22039 | D69: 32 | E69: 3 | F69: 3 | G69: 3 | H69: 0 | I69: 2 | J69: 3 | K69: 2 | L69: 2 | M69: 8 | N69: 2 | O69: 0 | P69: 2 | Q69: 0 | R69: 0 | S69: 1 | T69: 0 | U69: 0 | V69: 1 | W69: 0 | X69: 44 | Y69: 2 | Z69: 4 | AA69: 2 | AB69: 4 | AC69: 2 | AD69: 0 | AE69: 8 | AF69: 7 | AG69: 9 | AH69: 2 | AI69: 1 | AJ69: 1 | AK69: 1 | AL69: 0 | AM69: 0 | AN69: 0 | AO69: 0 | AP69: 1 | AQ69: 0 | AR69: 1073
A70: 69 | B70: 22040 Azanuy-Alins | C70: 22040 | D70: 5 | E70: 1 | F70: 0 | G70: 0 | H70: 0 | I70: 0 | J70: 0 | K70: 2 | L70: 0 | M70: 0 | N70: 0 | O70: 0 | P70: 1 | Q70: 0 | R70: 1 | S70: 0 | T70: 0 | U70: 0 | V70: 0 | W70: 0 | X70: 5 | Y70: 1 | Z70: 0 | AA70: 0 | AB70: 0 | AC70: 0 | AD70: 1 | AE70: 0 | AF70: 1 | AG70: 1 | AH70: 0 | AI70: 0 | AJ70: 0 | AK70: 0 | AL70: 1 | AM70: 0 | AN70: 0 | AO70: 0 | AP70: 0 | AQ70: 0 | AR70: 177
A71: 70 | B71: 22041 Azara | C71: 22041 | D71: 2 | E71: 0 | F71: 0 | G71: 0 | H71: 0 | I71: 0 | J71: 0 | K71: 0 | L71: 0 | M71: 0 | N71: 0 | O71: 0 | P71: 2 | Q71: 0 | R71: 0 | S71: 0 | T71: 0 | U71: 0 | V71: 0 | W71: 0 | X71: 1 | Y71: 0 | Z71: 0 | AA71: 0 | AB71: 0 | AC71: 0 | AD71: 0 | AE71: 0 | AF71: 0 | AG71: 0 | AH71: 0 | AI71: 0 | AJ71: 0 | AK71: 1 | AL71: 0 | AM71: 0 | AN71: 0 | AO71: 0 | AP71: 0 | AQ71: 0 | AR71: 170
A72: 71 | B72: 22042 Azlor | C72: 22042 | D72: 5 | E72: 0 | F72: 1 | G72: 0 | H72: 0 | I72: 0 | J72: 1 | K72: 0 | L72: 1 | M72: 1 | N72: 0 | O72: 0 | P72: 1 | Q72: 0 | R72: 0 | S72: 0 | T72: 0 | U72: 0 | V72: 0 | W72: 0 | X72: 5 | Y72: 0 | Z72: 0 | AA72: 0 | AB72: 0 | AC72: 0 | AD72: 0 | AE72: 2 | AF72: 0 | AG72: 0 | AH72: 0 | AI72: 0 | AJ72: 1 | AK72: 1 | AL72: 1 | AM72: 0 | AN72: 0 | AO72: 0 | AP72: 0 | AQ72: 0 | AR72: 154
A73: 72 | B73: 22043 Baells | C73: 22043 | D73: 3 | E73: 0 | F73: 0 | G73: 0 | H73: 0 | I73: 0 | J73: 0 | K73: 1 | L73: 0 | M73: 1 | N73: 0 | O73: 1 | P73: 0 | Q73: 0 | R73: 0 | S73: 0 | T73: 0 | U73: 0 | V73: 0 | W73: 0 | X73: 3 | Y73: 0 | Z73: 0 | AA73: 0 | AB73: 0 | AC73: 0 | AD73: 1 | AE73: 0 | AF73: 0 | AG73: 0 | AH73: 1 | AI73: 0 | AJ73: 0 | AK73: 1 | AL73: 0 | AM73: 0 | AN73: 0 | AO73: 0 | AP73: 0 | AQ73: 0 | AR73: 91
A74: 73 | B74: 22044 Bailo | C74: 22044 | D74: 11 | E74: 0 | F74: 0 | G74: 1 | H74: 1 | I74: 0 | J74: 0 | K74: 0 | L74: 2 | M74: 1 | N74: 2 | O74: 0 | P74: 1 | Q74: 1 | R74: 0 | S74: 1 | T74: 0 | U74: 1 | V74: 0 | W74: 0 | X74: 6 | Y74: 0 | Z74: 0 | AA74: 0 | AB74: 0 | AC74: 0 | AD74: 0 | AE74: 0 | AF74: 1 | AG74: 1 | AH74: 0 | AI74: 0 | AJ74: 0 | AK74: 0 | AL74: 0 | AM74: 2 | AN74: 1 | AO74: 1 | AP74: 0 | AQ74: 0 | AR74: 263
A75: 74 | B75: 22045 Baldellou | C75: 22045 | D75: 2 | E75: 0 | F75: 0 | G75: 0 | H75: 0 | I75: 0 | J75: 1 | K75: 0 | L75: 0 | M75: 0 | N75: 1 | O75: 0 | P75: 0 | Q75: 0 | R75: 0 | S75: 0 | T75: 0 | U75: 0 | V75: 0 | W75: 0 | X75: 1 | Y75: 0 | Z75: 0 | AA75: 0 | AB75: 0 | AC75: 0 | AD75: 0 | AE75: 0 | AF75: 1 | AG75: 0 | AH75: 0 | AI75: 0 | AJ75: 0 | AK75: 0 | AL75: 0 | AM75: 0 | AN75: 0 | AO75: 0 | AP75: 0 | AQ75: 0 | AR75: 90
A76: 75 | B76: 22046 Ballobar | C76: 22046 | D76: 51 | E76: 2 | F76: 1 | G76: 2 | H76: 3 | I76: 3 | J76: 6 | K76: 4 | L76: 5 | M76: 10 | N76: 9 | O76: 3 | P76: 2 | Q76: 0 | R76: 0 | S76: 1 | T76: 0 | U76: 0 | V76: 0 | W76: 0 | X76: 31 | Y76: 2 | Z76: 3 | AA76: 0 | AB76: 1 | AC76: 2 | AD76: 3 | AE76: 2 | AF76: 3 | AG76: 4 | AH76: 4 | AI76: 5 | AJ76: 1 | AK76: 1 | AL76: 0 | AM76: 0 | AN76: 0 | AO76: 0 | AP76: 0 | AQ76: 0 | AR76: 884
A77: 76 | B77: 22047 Banastás | C77: 22047 | D77: 2 | E77: 0 | F77: 0 | G77: 0 | H77: 0 | I77: 0 | J77: 0 | K77: 0 | L77: 0 | M77: 0 | N77: 0 | O77: 0 | P77: 2 | Q77: 0 | R77: 0 | S77: 0 | T77: 0 | U77: 0 | V77: 0 | W77: 0 | X77: 5 | Y77: 0 | Z77: 0 | AA77: 0 | AB77: 0 | AC77: 0 | AD77: 0 | AE77: 0 | AF77: 2 | AG77: 1 | AH77: 1 | AI77: 0 | AJ77: 0 | AK77: 0 | AL77: 1 | AM77: 0 | AN77: 0 | AO77: 0 | AP77: 0 | AQ77: 0 | AR77: 335
A78: 77 | B78: 22048 Barbastro | C78: 22048 | D78: 1091 | E78: 69 | F78: 56 | G78: 46 | H78: 72 | I78: 79 | J78: 102 | K78: 97 | L78: 117 | M78: 167 | N78: 112 | O78: 73 | P78: 45 | Q78: 26 | R78: 10 | S78: 11 | T78: 6 | U78: 2 | V78: 0 | W78: 1 | X78: 1016 | Y78: 47 | Z78: 41 | AA78: 47 | AB78: 44 | AC78: 72 | AD78: 98 | AE78: 131 | AF78: 129 | AG78: 113 | AH78: 89 | AI78: 71 | AJ78: 52 | AK78: 27 | AL78: 22 | AM78: 16 | AN78: 10 | AO78: 1 | AP78: 6 | AQ78: 0 | AR78: 17308
A79: 78 | B79: 22049 Barbués | C79: 22049 | D79: 3 | E79: 0 | F79: 0 | G79: 1 | H79: 0 | I79: 0 | J79: 0 | K79: 0 | L79: 1 | M79: 0 | N79: 1 | O79: 0 | P79: 0 | Q79: 0 | R79: 0 | S79: 0 | T79: 0 | U79: 0 | V79: 0 | W79: 0 | X79: 3 | Y79: 0 | Z79: 0 | AA79: 0 | AB79: 1 | AC79: 0 | AD79: 0 | AE79: 0 | AF79: 1 | AG79: 1 | AH79: 0 | AI79: 0 | AJ79: 0 | AK79: 0 | AL79: 0 | AM79: 0 | AN79: 0 | AO79: 0 | AP79: 0 | AQ79: 0 | AR79: 86
A80: 79 | B80: 22050 Barbuñales | C80: 22050 | D80: 2 | E80: 0 | F80: 0 | G80: 0 | H80: 0 | I80: 0 | J80: 0 | K80: 0 | L80: 0 | M80: 0 | N80: 0 | O80: 0 | P80: 1 | Q80: 0 | R80: 0 | S80: 0 | T80: 0 | U80: 1 | V80: 0 | W80: 0 | X80: 3 | Y80: 0 | Z80: 0 | AA80: 0 | AB80: 0 | AC80: 0 | AD80: 0 | AE80: 0 | AF80: 0 | AG80: 0 | AH80: 0 | AI80: 0 | AJ80: 1 | AK80: 1 | AL80: 0 | AM80: 0 | AN80: 0 | AO80: 1 | AP80: 0 | AQ80: 0 | AR80: 96
A81: 80 | B81: 22051 Bárcabo | C81: 22051 | D81: 9 | E81: 0 | F81: 0 | G81: 0 | H81: 0 | I81: 0 | J81: 0 | K81: 0 | L81: 0 | M81: 1 | N81: 2 | O81: 0 | P81: 1 | Q81: 0 | R81: 4 | S81: 0 | T81: 1 | U81: 0 | V81: 0 | W81: 0 | X81: 9 | Y81: 0 | Z81: 0 | AA81: 0 | AB81: 0 | AC81: 0 | AD81: 0 | AE81: 1 | AF81: 0 | AG81: 1 | AH81: 1 | AI81: 0 | AJ81: 1 | AK81: 0 | AL81: 3 | AM81: 1 | AN81: 1 | AO81: 0 | AP81: 0 | AQ81: 0 | AR81: 116
A82: 81 | B82: 22052 Belver de Cinca | C82: 22052 | D82: 220 | E82: 5 | F82: 7 | G82: 7 | H82: 8 | I82: 11 | J82: 30 | K82: 27 | L82: 32 | M82: 30 | N82: 30 | O82: 21 | P82: 7 | Q82: 1 | R82: 4 | S82: 0 | T82: 0 | U82: 0 | V82: 0 | W82: 0 | X82: 80 | Y82: 9 | Z82: 5 | AA82: 4 | AB82: 2 | AC82: 4 | AD82: 6 | AE82: 16 | AF82: 10 | AG82: 8 | AH82: 3 | AI82: 5 | AJ82: 4 | AK82: 1 | AL82: 2 | AM82: 1 | AN82: 0 | AO82: 0 | AP82: 0 | AQ82: 0 | AR82: 1318
A83: 82 | B83: 22053 Benabarre | C83: 22053 | D83: 122 | E83: 10 | F83: 8 | G83: 11 | H83: 6 | I83: 7 | J83: 8 | K83: 12 | L83: 10 | M83: 15 | N83: 15 | O83: 11 | P83: 1 | Q83: 2 | R83: 4 | S83: 0 | T83: 2 | U83: 0 | V83: 0 | W83: 0 | X83: 107 | Y83: 4 | Z83: 4 | AA83: 4 | AB83: 9 | AC83: 9 | AD83: 11 | AE83: 11 | AF83: 11 | AG83: 15 | AH83: 14 | AI83: 10 | AJ83: 2 | AK83: 0 | AL83: 0 | AM83: 1 | AN83: 1 | AO83: 1 | AP83: 0 | AQ83: 0 | AR83: 1168
A84: 83 | B84: 22054 Benasque | C84: 22054 | D84: 90 | E84: 2 | F84: 2 | G84: 6 | H84: 3 | I84: 7 | J84: 11 | K84: 8 | L84: 13 | M84: 14 | N84: 10 | O84: 7 | P84: 4 | Q84: 2 | R84: 1 | S84: 0 | T84: 0 | U84: 0 | V84: 0 | W84: 0 | X84: 118 | Y84: 0 | Z84: 4 | AA84: 7 | AB84: 2 | AC84: 14 | AD84: 12 | AE84: 12 | AF84: 19 | AG84: 19 | AH84: 11 | AI84: 10 | AJ84: 3 | AK84: 2 | AL84: 1 | AM84: 1 | AN84: 0 | AO84: 0 | AP84: 1 | AQ84: 0 | AR84: 2312
A85: 84 | B85: 22055 Berbegal | C85: 22055 | D85: 10 | E85: 0 | F85: 0 | G85: 1 | H85: 1 | I85: 0 | J85: 0 | K85: 1 | L85: 2 | M85: 2 | N85: 1 | O85: 2 | P85: 0 | Q85: 0 | R85: 0 | S85: 0 | T85: 0 | U85: 0 | V85: 0 | W85: 0 | X85: 11 | Y85: 0 | Z85: 0 | AA85: 0 | AB85: 0 | AC85: 1 | AD85: 2 | AE85: 1 | AF85: 3 | AG85: 2 | AH85: 1 | AI85: 1 | AJ85: 0 | AK85: 0 | AL85: 0 | AM85: 0 | AN85: 0 | AO85: 0 | AP85: 0 | AQ85: 0 | AR85: 322
A86: 85 | B86: 22057 Bielsa | C86: 22057 | D86: 22 | E86: 0 | F86: 0 | G86: 3 | H86: 0 | I86: 0 | J86: 2 | K86: 1 | L86: 4 | M86: 4 | N86: 4 | O86: 1 | P86: 1 | Q86: 0 | R86: 0 | S86: 2 | T86: 0 | U86: 0 | V86: 0 | W86: 0 | X86: 21 | Y86: 0 | Z86: 0 | AA86: 0 | AB86: 1 | AC86: 1 | AD86: 3 | AE86: 2 | AF86: 1 | AG86: 2 | AH86: 2 | AI86: 2 | AJ86: 1 | AK86: 1 | AL86: 3 | AM86: 1 | AN86: 0 | AO86: 0 | AP86: 1 | AQ86: 0 | AR86: 483
A87: 86 | B87: 22058 Bierge | C87: 22058 | D87: 11 | E87: 1 | F87: 0 | G87: 1 | H87: 0 | I87: 0 | J87: 0 | K87: 0 | L87: 2 | M87: 3 | N87: 1 | O87: 0 | P87: 1 | Q87: 0 | R87: 1 | S87: 0 | T87: 1 | U87: 0 | V87: 0 | W87: 0 | X87: 16 | Y87: 1 | Z87: 0 | AA87: 0 | AB87: 0 | AC87: 0 | AD87: 1 | AE87: 4 | AF87: 1 | AG87: 1 | AH87: 2 | AI87: 2 | AJ87: 2 | AK87: 1 | AL87: 1 | AM87: 0 | AN87: 0 | AO87: 0 | AP87: 0 | AQ87: 0 | AR87: 253
A88: 87 | B88: 22059 Biescas | C88: 22059 | D88: 84 | E88: 1 | F88: 8 | G88: 5 | H88: 2 | I88: 2 | J88: 4 | K88: 6 | L88: 11 | M88: 6 | N88: 13 | O88: 6 | P88: 7 | Q88: 8 | R88: 4 | S88: 1 | T88: 0 | U88: 0 | V88: 0 | W88: 0 | X88: 80 | Y88: 3 | Z88: 1 | AA88: 4 | AB88: 4 | AC88: 3 | AD88: 10 | AE88: 8 | AF88: 12 | AG88: 9 | AH88: 7 | AI88: 4 | AJ88: 8 | AK88: 1 | AL88: 4 | AM88: 1 | AN88: 0 | AO88: 0 | AP88: 1 | AQ88: 0 | AR88: 1606
A89: 88 | B89: 22060 Binaced | C89: 22060 | D89: 186 | E89: 3 | F89: 4 | G89: 4 | H89: 13 | I89: 13 | J89: 31 | K89: 25 | L89: 37 | M89: 26 | N89: 14 | O89: 6 | P89: 4 | Q89: 3 | R89: 2 | S89: 1 | T89: 0 | U89: 0 | V89: 0 | W89: 0 | X89: 67 | Y89: 3 | Z89: 5 | AA89: 2 | AB89: 5 | AC89: 7 | AD89: 9 | AE89: 6 | AF89: 10 | AG89: 8 | AH89: 4 | AI89: 5 | AJ89: 2 | AK89: 1 | AL89: 0 | AM89: 0 | AN89: 0 | AO89: 0 | AP89: 0 | AQ89: 0 | AR89: 1591
A90: 89 | B90: 22061 Binéfar | C90: 22061 | D90: 1229 | E90: 54 | F90: 47 | G90: 48 | H90: 70 | I90: 96 | J90: 139 | K90: 130 | L90: 132 | M90: 203 | N90: 141 | O90: 87 | P90: 46 | Q90: 15 | R90: 12 | S90: 6 | T90: 2 | U90: 1 | V90: 0 | W90: 0 | X90: 738 | Y90: 59 | Z90: 36 | AA90: 44 | AB90: 36 | AC90: 56 | AD90: 64 | AE90: 82 | AF90: 98 | AG90: 94 | AH90: 65 | AI90: 45 | AJ90: 26 | AK90: 13 | AL90: 10 | AM90: 3 | AN90: 6 | AO90: 0 | AP90: 1 | AQ90: 0 | AR90: 10041
A91: 90 | B91: 22062 Bisaurri | C91: 22062 | D91: 1 | E91: 0 | F91: 0 | G91: 0 | H91: 0 | I91: 0 | J91: 0 | K91: 0 | L91: 0 | M91: 0 | N91: 0 | O91: 1 | P91: 0 | Q91: 0 | R91: 0 | S91: 0 | T91: 0 | U91: 0 | V91: 0 | W91: 0 | X91: 6 | Y91: 0 | Z91: 0 | AA91: 0 | AB91: 0 | AC91: 0 | AD91: 1 | AE91: 0 | AF91: 0 | AG91: 2 | AH91: 2 | AI91: 0 | AJ91: 1 | AK91: 0 | AL91: 0 | AM91: 0 | AN91: 0 | AO91: 0 | AP91: 0 | AQ91: 0 | AR91: 183
A92: 91 | B92: 22063 Biscarrués | C92: 22063 | D92: 7 | E92: 0 | F92: 1 | G92: 0 | H92: 1 | I92: 1 | J92: 1 | K92: 0 | L92: 0 | M92: 1 | N92: 0 | O92: 2 | P92: 0 | Q92: 0 | R92: 0 | S92: 0 | T92: 0 | U92: 0 | V92: 0 | W92: 0 | X92: 5 | Y92: 0 | Z92: 0 | AA92: 0 | AB92: 1 | AC92: 0 | AD92: 0 | AE92: 0 | AF92: 0 | AG92: 1 | AH92: 0 | AI92: 2 | AJ92: 0 | AK92: 0 | AL92: 1 | AM92: 0 | AN92: 0 | AO92: 0 | AP92: 0 | AQ92: 0 | AR92: 188
A93: 92 | B93: 22064 Blecua y Torres | C93: 22064 | D93: 4 | E93: 0 | F93: 0 | G93: 0 | H93: 0 | I93: 0 | J93: 0 | K93: 0 | L93: 0 | M93: 1 | N93: 0 | O93: 2 | P93: 0 | Q93: 1 | R93: 0 | S93: 0 | T93: 0 | U93: 0 | V93: 0 | W93: 0 | X93: 4 | Y93: 0 | Z93: 0 | AA93: 0 | AB93: 0 | AC93: 0 | AD93: 0 | AE93: 1 | AF93: 1 | AG93: 2 | AH93: 0 | AI93: 0 | AJ93: 0 | AK93: 0 | AL93: 0 | AM93: 0 | AN93: 0 | AO93: 0 | AP93: 0 | AQ93: 0 | AR93: 186
A94: 93 | B94: 22066 Boltaña | C94: 22066 | D94: 72 | E94: 3 | F94: 5 | G94: 5 | H94: 2 | I94: 4 | J94: 4 | K94: 9 | L94: 4 | M94: 10 | N94: 4 | O94: 7 | P94: 6 | Q94: 5 | R94: 3 | S94: 1 | T94: 0 | U94: 0 | V94: 0 | W94: 0 | X94: 76 | Y94: 4 | Z94: 0 | AA94: 2 | AB94: 2 | AC94: 6 | AD94: 4 | AE94: 14 | AF94: 8 | AG94: 7 | AH94: 6 | AI94: 6 | AJ94: 5 | AK94: 6 | AL94: 3 | AM94: 1 | AN94: 1 | AO94: 0 | AP94: 1 | AQ94: 0 | AR94: 1104
A95: 94 | B95: 22067 Bonansa | C95: 22067 | D95: 3 | E95: 0 | F95: 0 | G95: 0 | H95: 0 | I95: 0 | J95: 1 | K95: 0 | L95: 0 | M95: 1 | N95: 0 | O95: 1 | P95: 0 | Q95: 0 | R95: 0 | S95: 0 | T95: 0 | U95: 0 | V95: 0 | W95: 0 | X95: 1 | Y95: 0 | Z95: 0 | AA95: 0 | AB95: 0 | AC95: 0 | AD95: 0 | AE95: 0 | AF95: 1 | AG95: 0 | AH95: 0 | AI95: 0 | AJ95: 0 | AK95: 0 | AL95: 0 | AM95: 0 | AN95: 0 | AO95: 0 | AP95: 0 | AQ95: 0 | AR95: 89
A96: 95 | B96: 22068 Borau | C96: 22068 | D96: 2 | E96: 0 | F96: 0 | G96: 0 | H96: 0 | I96: 0 | J96: 0 | K96: 0 | L96: 0 | M96: 0 | N96: 0 | O96: 0 | P96: 0 | Q96: 1 | R96: 1 | S96: 0 | T96: 0 | U96: 0 | V96: 0 | W96: 0 | X96: 3 | Y96: 0 | Z96: 0 | AA96: 0 | AB96: 0 | AC96: 0 | AD96: 1 | AE96: 0 | AF96: 0 | AG96: 1 | AH96: 0 | AI96: 1 | AJ96: 0 | AK96: 0 | AL96: 0 | AM96: 0 | AN96: 0 | AO96: 0 | AP96: 0 | AQ96: 0 | AR96: 86
A97: 96 | B97: 22069 Broto | C97: 22069 | D97: 34 | E97: 4 | F97: 2 | G97: 1 | H97: 3 | I97: 3 | J97: 2 | K97: 1 | L97: 6 | M97: 3 | N97: 4 | O97: 1 | P97: 2 | Q97: 0 | R97: 1 | S97: 1 | T97: 0 | U97: 0 | V97: 0 | W97: 0 | X97: 30 | Y97: 1 | Z97: 0 | AA97: 1 | AB97: 2 | AC97: 2 | AD97: 2 | AE97: 5 | AF97: 3 | AG97: 2 | AH97: 6 | AI97: 2 | AJ97: 1 | AK97: 3 | AL97: 0 | AM97: 0 | AN97: 0 | AO97: 0 | AP97: 0 | AQ97: 0 | AR97: 603
A98: 97 | B98: 22072 Caldearenas | C98: 22072 | D98: 3 | E98: 0 | F98: 0 | G98: 0 | H98: 0 | I98: 0 | J98: 0 | K98: 0 | L98: 1 | M98: 1 | N98: 0 | O98: 0 | P98: 0 | Q98: 0 | R98: 1 | S98: 0 | T98: 0 | U98: 0 | V98: 0 | W98: 0 | X98: 4 | Y98: 0 | Z98: 0 | AA98: 0 | AB98: 0 | AC98: 0 | AD98: 0 | AE98: 0 | AF98: 1 | AG98: 0 | AH98: 0 | AI98: 0 | AJ98: 1 | AK98: 1 | AL98: 0 | AM98: 1 | AN98: 0 | AO98: 0 | AP98: 0 | AQ98: 0 | AR98: 243
A99: 98 | B99: 22074 Campo | C99: 22074 | D99: 42 | E99: 1 | F99: 2 | G99: 1 | H99: 0 | I99: 4 | J99: 5 | K99: 4 | L99: 4 | M99: 3 | N99: 4 | O99: 11 | P99: 1 | Q99: 0 | R99: 1 | S99: 1 | T99: 0 | U99: 0 | V99: 0 | W99: 0 | X99: 41 | Y99: 2 | Z99: 2 | AA99: 2 | AB99: 0 | AC99: 3 | AD99: 6 | AE99: 2 | AF99: 3 | AG99: 8 | AH99: 7 | AI99: 3 | AJ99: 1 | AK99: 1 | AL99: 1 | AM99: 0 | AN99: 0 | AO99: 0 | AP99: 0 | AQ99: 0 | AR99: 467
A100: 99 | B100: 22075 Camporrells | C100: 22075 | D100: 3 | E100: 0 | F100: 0 | G100: 0 | H100: 0 | I100: 0 | J100: 0 | K100: 0 | L100: 0 | M100: 0 | N100: 0 | O100: 2 | P100: 0 | Q100: 1 | R100: 0 | S100: 0 | T100: 0 | U100: 0 | V100: 0 | W100: 0 | X100: 7 | Y100: 0 | Z100: 1 | AA100: 0 | AB100: 0 | AC100: 1 | AD100: 0 | AE100: 0 | AF100: 0 | AG100: 0 | AH100: 1 | AI100: 2 | AJ100: 2 | AK100: 0 | AL100: 0 | AM100: 0 | AN100: 0 | AO100: 0 | AP100: 0 | AQ100: 0 | AR100: 151
A101: 100 | B101: 22076 Canal de Berdún | C101: 22076 | D101: 8 | E101: 0 | F101: 0 | G101: 1 | H101: 0 | I101: 1 | J101: 1 | K101: 0 | L101: 0 | M101: 0 | N101: 1 | O101: 1 | P101: 1 | Q101: 1 | R101: 0 | S101: 1 | T101: 0 | U101: 0 | V101: 0 | W101: 0 | X101: 19 | Y101: 0 | Z101: 1 | AA101: 1 | AB101: 1 | AC101: 1 | AD101: 0 | AE101: 4 | AF101: 1 | AG101: 0 | AH101: 2 | AI101: 4 | AJ101: 2 | AK101: 0 | AL101: 0 | AM101: 1 | AN101: 0 | AO101: 1 | AP101: 0 | AQ101: 0 | AR101: 340
A102: 101 | B102: 22077 Candasnos | C102: 22077 | D102: 23 | E102: 0 | F102: 0 | G102: 3 | H102: 0 | I102: 2 | J102: 2 | K102: 1 | L102: 1 | M102: 5 | N102: 3 | O102: 2 | P102: 2 | Q102: 2 | R102: 0 | S102: 0 | T102: 0 | U102: 0 | V102: 0 | W102: 0 | X102: 18 | Y102: 2 | Z102: 0 | AA102: 1 | AB102: 1 | AC102: 0 | AD102: 3 | AE102: 1 | AF102: 4 | AG102: 4 | AH102: 1 | AI102: 0 | AJ102: 0 | AK102: 1 | AL102: 0 | AM102: 0 | AN102: 0 | AO102: 0 | AP102: 0 | AQ102: 0 | AR102: 420
A103: 102 | B103: 22078 Canfranc | C103: 22078 | D103: 25 | E103: 0 | F103: 1 | G103: 3 | H103: 0 | I103: 2 | J103: 5 | K103: 3 | L103: 4 | M103: 1 | N103: 3 | O103: 1 | P103: 2 | Q103: 0 | R103: 0 | S103: 0 | T103: 0 | U103: 0 | V103: 0 | W103: 0 | X103: 24 | Y103: 1 | Z103: 1 | AA103: 0 | AB103: 0 | AC103: 6 | AD103: 2 | AE103: 4 | AF103: 4 | AG103: 2 | AH103: 2 | AI103: 0 | AJ103: 2 | AK103: 0 | AL103: 0 | AM103: 0 | AN103: 0 | AO103: 0 | AP103: 0 | AQ103: 0 | AR103: 596
A104: 103 | B104: 22079 Capdesaso | C104: 22079 | D104: 14 | E104: 0 | F104: 0 | G104: 0 | H104: 1 | I104: 0 | J104: 1 | K104: 1 | L104: 0 | M104: 2 | N104: 5 | O104: 1 | P104: 3 | Q104: 0 | R104: 0 | S104: 0 | T104: 0 | U104: 0 | V104: 0 | W104: 0 | X104: 67 | Y104: 0 | Z104: 0 | AA104: 0 | AB104: 0 | AC104: 0 | AD104: 1 | AE104: 5 | AF104: 11 | AG104: 9 | AH104: 16 | AI104: 15 | AJ104: 7 | AK104: 3 | AL104: 0 | AM104: 0 | AN104: 0 | AO104: 0 | AP104: 0 | AQ104: 0 | AR104: 212
A105: 104 | B105: 22080 Capella | C105: 22080 | D105: 39 | E105: 1 | F105: 4 | G105: 0 | H105: 1 | I105: 4 | J105: 5 | K105: 4 | L105: 4 | M105: 3 | N105: 4 | O105: 4 | P105: 0 | Q105: 1 | R105: 2 | S105: 1 | T105: 0 | U105: 1 | V105: 0 | W105: 0 | X105: 29 | Y105: 1 | Z105: 1 | AA105: 0 | AB105: 1 | AC105: 1 | AD105: 4 | AE105: 3 | AF105: 4 | AG105: 7 | AH105: 1 | AI105: 1 | AJ105: 1 | AK105: 2 | AL105: 1 | AM105: 0 | AN105: 1 | AO105: 0 | AP105: 0 | AQ105: 0 | AR105: 359
A106: 105 | B106: 22081 Casbas de Huesca | C106: 22081 | D106: 5 | E106: 0 | F106: 0 | G106: 0 | H106: 0 | I106: 0 | J106: 0 | K106: 0 | L106: 1 | M106: 0 | N106: 1 | O106: 0 | P106: 1 | Q106: 0 | R106: 1 | S106: 0 | T106: 1 | U106: 0 | V106: 0 | W106: 0 | X106: 8 | Y106: 0 | Z106: 0 | AA106: 0 | AB106: 0 | AC106: 0 | AD106: 0 | AE106: 1 | AF106: 1 | AG106: 0 | AH106: 1 | AI106: 4 | AJ106: 0 | AK106: 0 | AL106: 1 | AM106: 0 | AN106: 0 | AO106: 0 | AP106: 0 | AQ106: 0 | AR106: 291
A107: 106 | B107: 22082 Castejón del Puente | C107: 22082 | D107: 6 | E107: 0 | F107: 2 | G107: 0 | H107: 0 | I107: 0 | J107: 0 | K107: 2 | L107: 1 | M107: 0 | N107: 0 | O107: 0 | P107: 1 | Q107: 0 | R107: 0 | S107: 0 | T107: 0 | U107: 0 | V107: 0 | W107: 0 | X107: 4 | Y107: 0 | Z107: 0 | AA107: 0 | AB107: 0 | AC107: 0 | AD107: 3 | AE107: 1 | AF107: 0 | AG107: 0 | AH107: 0 | AI107: 0 | AJ107: 0 | AK107: 0 | AL107: 0 | AM107: 0 | AN107: 0 | AO107: 0 | AP107: 0 | AQ107: 0 | AR107: 328
A108: 107 | B108: 22083 Castejón de Monegros | C108: 22083 | D108: 24 | E108: 1 | F108: 2 | G108: 1 | H108: 1 | I108: 5 | J108: 2 | K108: 1 | L108: 1 | M108: 5 | N108: 3 | O108: 2 | P108: 0 | Q108: 0 | R108: 0 | S108: 0 | T108: 0 | U108: 0 | V108: 0 | W108: 0 | X108: 22 | Y108: 1 | Z108: 0 | AA108: 1 | AB108: 2 | AC108: 2 | AD108: 1 | AE108: 2 | AF108: 5 | AG108: 0 | AH108: 4 | AI108: 0 | AJ108: 2 | AK108: 1 | AL108: 1 | AM108: 0 | AN108: 0 | AO108: 0 | AP108: 0 | AQ108: 0 | AR108: 477
A109: 108 | B109: 22084 Castejón de Sos | C109: 22084 | D109: 28 | E109: 1 | F109: 4 | G109: 1 | H109: 1 | I109: 2 | J109: 2 | K109: 2 | L109: 4 | M109: 2 | N109: 4 | O109: 1 | P109: 2 | Q109: 0 | R109: 0 | S109: 1 | T109: 0 | U109: 1 | V109: 0 | W109: 0 | X109: 34 | Y109: 1 | Z109: 1 | AA109: 1 | AB109: 1 | AC109: 3 | AD109: 2 | AE109: 7 | AF109: 2 | AG109: 6 | AH109: 5 | AI109: 3 | AJ109: 1 | AK109: 1 | AL109: 0 | AM109: 0 | AN109: 0 | AO109: 0 | AP109: 0 | AQ109: 0 | AR109: 832
A110: 109 | B110: 22085 Castelflorite | C110: 22085 | D110: 3 | E110: 0 | F110: 0 | G110: 0 | H110: 1 | I110: 0 | J110: 0 | K110: 0 | L110: 0 | M110: 0 | N110: 1 | O110: 0 | P110: 1 | Q110: 0 | R110: 0 | S110: 0 | T110: 0 | U110: 0 | V110: 0 | W110: 0 | X110: 5 | Y110: 0 | Z110: 1 | AA110: 0 | AB110: 0 | AC110: 1 | AD110: 0 | AE110: 0 | AF110: 1 | AG110: 1 | AH110: 0 | AI110: 0 | AJ110: 1 | AK110: 0 | AL110: 0 | AM110: 0 | AN110: 0 | AO110: 0 | AP110: 0 | AQ110: 0 | AR110: 101
A111: 110 | B111: 22086 Castiello de Jaca | C111: 22086 | D111: 5 | E111: 0 | F111: 0 | G111: 0 | H111: 0 | I111: 1 | J111: 0 | K111: 0 | L111: 0 | M111: 0 | N111: 3 | O111: 0 | P111: 0 | Q111: 0 | R111: 1 | S111: 0 | T111: 0 | U111: 0 | V111: 0 | W111: 0 | X111: 5 | Y111: 0 | Z111: 0 | AA111: 0 | AB111: 0 | AC111: 0 | AD111: 0 | AE111: 1 | AF111: 1 | AG111: 2 | AH111: 0 | AI111: 0 | AJ111: 1 | AK111: 0 | AL111: 0 | AM111: 0 | AN111: 0 | AO111: 0 | AP111: 0 | AQ111: 0 | AR111: 244
A112: 111 | B112: 22087 Castigaleu | C112: 22087 | D112: 10 | E112: 1 | F112: 1 | G112: 0 | H112: 0 | I112: 1 | J112: 1 | K112: 2 | L112: 2 | M112: 1 | N112: 0 | O112: 1 | P112: 0 | Q112: 0 | R112: 0 | S112: 0 | T112: 0 | U112: 0 | V112: 0 | W112: 0 | X112: 8 | Y112: 0 | Z112: 0 | AA112: 0 | AB112: 0 | AC112: 0 | AD112: 3 | AE112: 1 | AF112: 1 | AG112: 0 | AH112: 2 | AI112: 0 | AJ112: 0 | AK112: 1 | AL112: 0 | AM112: 0 | AN112: 0 | AO112: 0 | AP112: 0 | AQ112: 0 | AR112: 95
A113: 112 | B113: 22088 Castillazuelo | C113: 22088 | D113: 7 | E113: 1 | F113: 0 | G113: 1 | H113: 0 | I113: 0 | J113: 0 | K113: 2 | L113: 0 | M113: 2 | N113: 0 | O113: 0 | P113: 1 | Q113: 0 | R113: 0 | S113: 0 | T113: 0 | U113: 0 | V113: 0 | W113: 0 | X113: 2 | Y113: 0 | Z113: 0 | AA113: 0 | AB113: 0 | AC113: 0 | AD113: 0 | AE113: 0 | AF113: 1 | AG113: 0 | AH113: 0 | AI113: 1 | AJ113: 0 | AK113: 0 | AL113: 0 | AM113: 0 | AN113: 0 | AO113: 0 | AP113: 0 | AQ113: 0 | AR113: 163
A114: 113 | B114: 22089 Castillonroy | C114: 22089 | D114: 18 | E114: 0 | F114: 1 | G114: 1 | H114: 1 | I114: 0 | J114: 6 | K114: 2 | L114: 1 | M114: 2 | N114: 2 | O114: 1 | P114: 0 | Q114: 0 | R114: 1 | S114: 0 | T114: 0 | U114: 0 | V114: 0 | W114: 0 | X114: 19 | Y114: 2 | Z114: 0 | AA114: 3 | AB114: 0 | AC114: 1 | AD114: 2 | AE114: 2 | AF114: 3 | AG114: 1 | AH114: 3 | AI114: 0 | AJ114: 1 | AK114: 0 | AL114: 1 | AM114: 0 | AN114: 0 | AO114: 0 | AP114: 0 | AQ114: 0 | AR114: 332
A115: 114 | B115: 22090 Colungo | C115: 22090 | D115: 8 | E115: 0 | F115: 0 | G115: 1 | H115: 1 | I115: 0 | J115: 0 | K115: 1 | L115: 1 | M115: 0 | N115: 2 | O115: 0 | P115: 0 | Q115: 0 | R115: 0 | S115: 0 | T115: 1 | U115: 1 | V115: 0 | W115: 0 | X115: 13 | Y115: 1 | Z115: 0 | AA115: 0 | AB115: 0 | AC115: 1 | AD115: 1 | AE115: 1 | AF115: 1 | AG115: 4 | AH115: 0 | AI115: 1 | AJ115: 1 | AK115: 0 | AL115: 0 | AM115: 1 | AN115: 0 | AO115: 0 | AP115: 1 | AQ115: 0 | AR115: 130
A116: 115 | B116: 22094 Chalamera | C116: 22094 | D116: 4 | E116: 0 | F116: 1 | G116: 0 | H116: 0 | I116: 0 | J116: 1 | K116: 0 | L116: 1 | M116: 0 | N116: 1 | O116: 0 | P116: 0 | Q116: 0 | R116: 0 | S116: 0 | T116: 0 | U116: 0 | V116: 0 | W116: 0 | X116: 5 | Y116: 1 | Z116: 0 | AA116: 1 | AB116: 0 | AC116: 1 | AD116: 0 | AE116: 0 | AF116: 1 | AG116: 0 | AH116: 0 | AI116: 0 | AJ116: 1 | AK116: 0 | AL116: 0 | AM116: 0 | AN116: 0 | AO116: 0 | AP116: 0 | AQ116: 0 | AR116: 128
A117: 116 | B117: 22095 Chía | C117: 22095 | D117: 1 | E117: 0 | F117: 0 | G117: 0 | H117: 0 | I117: 0 | J117: 0 | K117: 0 | L117: 0 | M117: 0 | N117: 0 | O117: 0 | P117: 0 | Q117: 0 | R117: 0 | S117: 1 | T117: 0 | U117: 0 | V117: 0 | W117: 0 | X117: 1 | Y117: 0 | Z117: 0 | AA117: 0 | AB117: 0 | AC117: 0 | AD117: 0 | AE117: 0 | AF117: 0 | AG117: 1 | AH117: 0 | AI117: 0 | AJ117: 0 | AK117: 0 | AL117: 0 | AM117: 0 | AN117: 0 | AO117: 0 | AP117: 0 | AQ117: 0 | AR117: 92
A118: 117 | B118: 22096 Chimillas | C118: 22096 | D118: 4 | E118: 0 | F118: 0 | G118: 0 | H118: 1 | I118: 0 | J118: 0 | K118: 0 | L118: 1 | M118: 1 | N118: 0 | O118: 1 | P118: 0 | Q118: 0 | R118: 0 | S118: 0 | T118: 0 | U118: 0 | V118: 0 | W118: 0 | X118: 3 | Y118: 0 | Z118: 0 | AA118: 1 | AB118: 0 | AC118: 0 | AD118: 0 | AE118: 0 | AF118: 0 | AG118: 1 | AH118: 0 | AI118: 1 | AJ118: 0 | AK118: 0 | AL118: 0 | AM118: 0 | AN118: 0 | AO118: 0 | AP118: 0 | AQ118: 0 | AR118: 396
A119: 118 | B119: 22099 Esplús | C119: 22099 | D119: 51 | E119: 4 | F119: 2 | G119: 2 | H119: 2 | I119: 5 | J119: 3 | K119: 6 | L119: 7 | M119: 7 | N119: 6 | O119: 1 | P119: 3 | Q119: 0 | R119: 0 | S119: 1 | T119: 0 | U119: 1 | V119: 1 | W119: 0 | X119: 31 | Y119: 3 | Z119: 1 | AA119: 0 | AB119: 2 | AC119: 3 | AD119: 5 | AE119: 0 | AF119: 4 | AG119: 3 | AH119: 3 | AI119: 5 | AJ119: 0 | AK119: 0 | AL119: 1 | AM119: 0 | AN119: 0 | AO119: 0 | AP119: 1 | AQ119: 0 | AR119: 671
A120: 119 | B120: 22102 Estada | C120: 22102 | D120: 5 | E120: 1 | F120: 0 | G120: 0 | H120: 1 | I120: 0 | J120: 0 | K120: 0 | L120: 1 | M120: 1 | N120: 1 | O120: 0 | P120: 0 | Q120: 0 | R120: 0 | S120: 0 | T120: 0 | U120: 0 | V120: 0 | W120: 0 | X120: 7 | Y120: 0 | Z120: 0 | AA120: 1 | AB120: 0 | AC120: 0 | AD120: 1 | AE120: 1 | AF120: 1 | AG120: 0 | AH120: 1 | AI120: 0 | AJ120: 1 | AK120: 1 | AL120: 0 | AM120: 0 | AN120: 0 | AO120: 0 | AP120: 0 | AQ120: 0 | AR120: 203
A121: 120 | B121: 22103 Estadilla | C121: 22103 | D121: 19 | E121: 0 | F121: 2 | G121: 3 | H121: 0 | I121: 2 | J121: 1 | K121: 1 | L121: 1 | M121: 3 | N121: 1 | O121: 5 | P121: 0 | Q121: 0 | R121: 0 | S121: 0 | T121: 0 | U121: 0 | V121: 0 | W121: 0 | X121: 22 | Y121: 1 | Z121: 0 | AA121: 2 | AB121: 0 | AC121: 3 | AD121: 2 | AE121: 3 | AF121: 4 | AG121: 3 | AH121: 0 | AI121: 3 | AJ121: 0 | AK121: 0 | AL121: 0 | AM121: 0 | AN121: 0 | AO121: 0 | AP121: 1 | AQ121: 0 | AR121: 840
A122: 121 | B122: 22105 Estopiñán del Castillo | C122: 22105 | D122: 2 | E122: 0 | F122: 0 | G122: 0 | H122: 0 | I122: 0 | J122: 0 | K122: 0 | L122: 1 | M122: 1 | N122: 0 | O122: 0 | P122: 0 | Q122: 0 | R122: 0 | S122: 0 | T122: 0 | U122: 0 | V122: 0 | W122: 0 | X122: 3 | Y122: 0 | Z122: 0 | AA122: 0 | AB122: 0 | AC122: 0 | AD122: 1 | AE122: 1 | AF122: 0 | AG122: 0 | AH122: 0 | AI122: 1 | AJ122: 0 | AK122: 0 | AL122: 0 | AM122: 0 | AN122: 0 | AO122: 0 | AP122: 0 | AQ122: 0 | AR122: 122
A123: 122 | B123: 22106 Fago | C123: 22106 | D123: 1 | E123: 0 | F123: 0 | G123: 0 | H123: 0 | I123: 0 | J123: 0 | K123: 0 | L123: 0 | M123: 0 | N123: 1 | O123: 0 | P123: 0 | Q123: 0 | R123: 0 | S123: 0 | T123: 0 | U123: 0 | V123: 0 | W123: 0 | X123: 0 | Y123: 0 | Z123: 0 | AA123: 0 | AB123: 0 | AC123: 0 | AD123: 0 | AE123: 0 | AF123: 0 | AG123: 0 | AH123: 0 | AI123: 0 | AJ123: 0 | AK123: 0 | AL123: 0 | AM123: 0 | AN123: 0 | AO123: 0 | AP123: 0 | AQ123: 0 | AR123: 26
A124: 123 | B124: 22107 Fanlo | C124: 22107 | D124: 3 | E124: 0 | F124: 1 | G124: 1 | H124: 0 | I124: 0 | J124: 0 | K124: 0 | L124: 0 | M124: 1 | N124: 0 | O124: 0 | P124: 0 | Q124: 0 | R124: 0 | S124: 0 | T124: 0 | U124: 0 | V124: 0 | W124: 0 | X124: 3 | Y124: 0 | Z124: 0 | AA124: 0 | AB124: 0 | AC124: 0 | AD124: 0 | AE124: 1 | AF124: 0 | AG124: 0 | AH124: 0 | AI124: 2 | AJ124: 0 | AK124: 0 | AL124: 0 | AM124: 0 | AN124: 0 | AO124: 0 | AP124: 0 | AQ124: 0 | AR124: 112
A125: 124 | B125: 22109 Fiscal | C125: 22109 | D125: 13 | E125: 0 | F125: 2 | G125: 0 | H125: 0 | I125: 1 | J125: 2 | K125: 0 | L125: 1 | M125: 1 | N125: 0 | O125: 3 | P125: 2 | Q125: 0 | R125: 1 | S125: 0 | T125: 0 | U125: 0 | V125: 0 | W125: 0 | X125: 20 | Y125: 0 | Z125: 0 | AA125: 2 | AB125: 2 | AC125: 1 | AD125: 1 | AE125: 0 | AF125: 2 | AG125: 2 | AH125: 3 | AI125: 5 | AJ125: 1 | AK125: 0 | AL125: 0 | AM125: 1 | AN125: 0 | AO125: 0 | AP125: 0 | AQ125: 0 | AR125: 392
A126: 125 | B126: 22110 Fonz | C126: 22110 | D126: 41 | E126: 3 | F126: 2 | G126: 2 | H126: 2 | I126: 7 | J126: 5 | K126: 3 | L126: 4 | M126: 3 | N126: 5 | O126: 3 | P126: 1 | Q126: 0 | R126: 0 | S126: 0 | T126: 0 | U126: 1 | V126: 0 | W126: 0 | X126: 29 | Y126: 0 | Z126: 3 | AA126: 1 | AB126: 0 | AC126: 4 | AD126: 1 | AE126: 6 | AF126: 4 | AG126: 3 | AH126: 2 | AI126: 2 | AJ126: 2 | AK126: 0 | AL126: 0 | AM126: 0 | AN126: 1 | AO126: 0 | AP126: 0 | AQ126: 0 | AR126: 885
A127: 126 | B127: 22111 Foradada del Toscar | C127: 22111 | D127: 13 | E127: 1 | F127: 0 | G127: 1 | H127: 1 | I127: 1 | J127: 2 | K127: 1 | L127: 3 | M127: 0 | N127: 2 | O127: 0 | P127: 1 | Q127: 0 | R127: 0 | S127: 0 | T127: 0 | U127: 0 | V127: 0 | W127: 0 | X127: 11 | Y127: 1 | Z127: 0 | AA127: 0 | AB127: 0 | AC127: 2 | AD127: 0 | AE127: 1 | AF127: 2 | AG127: 1 | AH127: 1 | AI127: 1 | AJ127: 2 | AK127: 0 | AL127: 0 | AM127: 0 | AN127: 0 | AO127: 0 | AP127: 0 | AQ127: 0 | AR127: 158
A128: 127 | B128: 22112 Fraga | C128: 22112 | D128: 2023 | E128: 134 | F128: 133 | G128: 114 | H128: 94 | I128: 146 | J128: 146 | K128: 174 | L128: 246 | M128: 269 | N128: 240 | O128: 160 | P128: 95 | Q128: 43 | R128: 19 | S128: 5 | T128: 5 | U128: 0 | V128: 0 | W128: 0 | X128: 1572 | Y128: 110 | Z128: 109 | AA128: 84 | AB128: 80 | AC128: 108 | AD128: 115 | AE128: 197 | AF128: 207 | AG128: 199 | AH128: 144 | AI128: 111 | AJ128: 56 | AK128: 29 | AL128: 15 | AM128: 2 | AN128: 4 | AO128: 0 | AP128: 1 | AQ128: 1 | AR128: 15243
A129: 128 | B129: 22113 Fueva (La) | C129: 22113 | D129: 27 | E129: 0 | F129: 1 | G129: 3 | H129: 2 | I129: 0 | J129: 3 | K129: 2 | L129: 1 | M129: 4 | N129: 0 | O129: 1 | P129: 3 | Q129: 3 | R129: 3 | S129: 0 | T129: 0 | U129: 1 | V129: 0 | W129: 0 | X129: 22 | Y129: 0 | Z129: 0 | AA129: 0 | AB129: 1 | AC129: 2 | AD129: 1 | AE129: 3 | AF129: 4 | AG129: 3 | AH129: 2 | AI129: 1 | AJ129: 1 | AK129: 1 | AL129: 1 | AM129: 1 | AN129: 1 | AO129: 0 | AP129: 0 | AQ129: 0 | AR129: 615
A130: 129 | B130: 22114 Gistaín | C130: 22114 | D130: 0 | E130: 0 | F130: 0 | G130: 0 | H130: 0 | I130: 0 | J130: 0 | K130: 0 | L130: 0 | M130: 0 | N130: 0 | O130: 0 | P130: 0 | Q130: 0 | R130: 0 | S130: 0 | T130: 0 | U130: 0 | V130: 0 | W130: 0 | X130: 1 | Y130: 0 | Z130: 0 | AA130: 0 | AB130: 0 | AC130: 0 | AD130: 0 | AE130: 0 | AF130: 0 | AG130: 1 | AH130: 0 | AI130: 0 | AJ130: 0 | AK130: 0 | AL130: 0 | AM130: 0 | AN130: 0 | AO130: 0 | AP130: 0 | AQ130: 0 | AR130: 122
A131: 130 | B131: 22115 Grado (El) | C131: 22115 | D131: 13 | E131: 0 | F131: 1 | G131: 0 | H131: 0 | I131: 2 | J131: 0 | K131: 3 | L131: 0 | M131: 0 | N131: 1 | O131: 1 | P131: 1 | Q131: 0 | R131: 1 | S131: 2 | T131: 0 | U131: 0 | V131: 0 | W131: 1 | X131: 16 | Y131: 1 | Z131: 1 | AA131: 1 | AB131: 0 | AC131: 1 | AD131: 1 | AE131: 4 | AF131: 0 | AG131: 0 | AH131: 2 | AI131: 2 | AJ131: 0 | AK131: 1 | AL131: 1 | AM131: 1 | AN131: 0 | AO131: 0 | AP131: 0 | AQ131: 0 | AR131: 389
A132: 131 | B132: 22116 Grañén | C132: 22116 | D132: 119 | E132: 5 | F132: 5 | G132: 9 | H132: 9 | I132: 7 | J132: 10 | K132: 9 | L132: 12 | M132: 10 | N132: 20 | O132: 12 | P132: 4 | Q132: 6 | R132: 1 | S132: 0 | T132: 0 | U132: 0 | V132: 0 | W132: 0 | X132: 123 | Y132: 14 | Z132: 3 | AA132: 4 | AB132: 8 | AC132: 7 | AD132: 10 | AE132: 9 | AF132: 17 | AG132: 15 | AH132: 8 | AI132: 11 | AJ132: 6 | AK132: 3 | AL132: 1 | AM132: 3 | AN132: 2 | AO132: 0 | AP132: 1 | AQ132: 1 | AR132: 1736
A133: 132 | B133: 22117 Graus | C133: 22117 | D133: 310 | E133: 23 | F133: 13 | G133: 11 | H133: 14 | I133: 18 | J133: 25 | K133: 33 | L133: 35 | M133: 33 | N133: 39 | O133: 19 | P133: 19 | Q133: 12 | R133: 8 | S133: 2 | T133: 4 | U133: 2 | V133: 0 | W133: 0 | X133: 294 | Y133: 14 | Z133: 21 | AA133: 15 | AB133: 15 | AC133: 15 | AD133: 25 | AE133: 25 | AF133: 30 | AG133: 34 | AH133: 25 | AI133: 31 | AJ133: 21 | AK133: 12 | AL133: 5 | AM133: 1 | AN133: 4 | AO133: 0 | AP133: 0 | AQ133: 1 | AR133: 3397
A134: 133 | B134: 22119 Gurrea de Gállego | C134: 22119 | D134: 36 | E134: 2 | F134: 1 | G134: 1 | H134: 0 | I134: 1 | J134: 1 | K134: 5 | L134: 7 | M134: 5 | N134: 4 | O134: 3 | P134: 5 | Q134: 0 | R134: 0 | S134: 1 | T134: 0 | U134: 0 | V134: 0 | W134: 0 | X134: 43 | Y134: 4 | Z134: 3 | AA134: 0 | AB134: 0 | AC134: 2 | AD134: 1 | AE134: 3 | AF134: 5 | AG134: 3 | AH134: 7 | AI134: 10 | AJ134: 2 | AK134: 0 | AL134: 0 | AM134: 2 | AN134: 1 | AO134: 0 | AP134: 0 | AQ134: 0 | AR134: 1443
A135: 134 | B135: 22122 Hoz de Jaca | C135: 22122 | D135: 0 | E135: 0 | F135: 0 | G135: 0 | H135: 0 | I135: 0 | J135: 0 | K135: 0 | L135: 0 | M135: 0 | N135: 0 | O135: 0 | P135: 0 | Q135: 0 | R135: 0 | S135: 0 | T135: 0 | U135: 0 | V135: 0 | W135: 0 | X135: 0 | Y135: 0 | Z135: 0 | AA135: 0 | AB135: 0 | AC135: 0 | AD135: 0 | AE135: 0 | AF135: 0 | AG135: 0 | AH135: 0 | AI135: 0 | AJ135: 0 | AK135: 0 | AL135: 0 | AM135: 0 | AN135: 0 | AO135: 0 | AP135: 0 | AQ135: 0 | AR135: 77
A136: 135 | B136: 22124 Huerto | C136: 22124 | D136: 15 | E136: 0 | F136: 1 | G136: 2 | H136: 1 | I136: 1 | J136: 2 | K136: 2 | L136: 3 | M136: 2 | N136: 0 | O136: 0 | P136: 0 | Q136: 0 | R136: 0 | S136: 0 | T136: 1 | U136: 0 | V136: 0 | W136: 0 | X136: 12 | Y136: 0 | Z136: 1 | AA136: 1 | AB136: 2 | AC136: 0 | AD136: 1 | AE136: 2 | AF136: 2 | AG136: 0 | AH136: 0 | AI136: 1 | AJ136: 1 | AK136: 1 | AL136: 0 | AM136: 0 | AN136: 0 | AO136: 0 | AP136: 0 | AQ136: 0 | AR136: 227
A137: 136 | B137: 22125 Huesca | C137: 22125 | D137: 2907 | E137: 151 | F137: 181 | G137: 164 | H137: 192 | I137: 236 | J137: 296 | K137: 297 | L137: 330 | M137: 331 | N137: 271 | O137: 199 | P137: 111 | Q137: 74 | R137: 45 | S137: 15 | T137: 9 | U137: 0 | V137: 2 | W137: 3 | X137: 2930 | Y137: 162 | Z137: 169 | AA137: 149 | AB137: 133 | AC137: 206 | AD137: 292 | AE137: 328 | AF137: 365 | AG137: 351 | AH137: 276 | AI137: 181 | AJ137: 131 | AK137: 74 | AL137: 49 | AM137: 32 | AN137: 13 | AO137: 9 | AP137: 6 | AQ137: 4 | AR137: 53938
A138: 137 | B138: 22126 Ibieca | C138: 22126 | D138: 2 | E138: 0 | F138: 0 | G138: 0 | H138: 0 | I138: 0 | J138: 0 | K138: 1 | L138: 1 | M138: 0 | N138: 0 | O138: 0 | P138: 0 | Q138: 0 | R138: 0 | S138: 0 | T138: 0 | U138: 0 | V138: 0 | W138: 0 | X138: 1 | Y138: 0 | Z138: 0 | AA138: 0 | AB138: 0 | AC138: 0 | AD138: 0 | AE138: 0 | AF138: 0 | AG138: 0 | AH138: 0 | AI138: 0 | AJ138: 1 | AK138: 0 | AL138: 0 | AM138: 0 | AN138: 0 | AO138: 0 | AP138: 0 | AQ138: 0 | AR138: 111
A139: 138 | B139: 22127 Igriés | C139: 22127 | D139: 15 | E139: 0 | F139: 1 | G139: 0 | H139: 2 | I139: 1 | J139: 1 | K139: 1 | L139: 2 | M139: 2 | N139: 2 | O139: 1 | P139: 0 | Q139: 1 | R139: 1 | S139: 0 | T139: 0 | U139: 0 | V139: 0 | W139: 0 | X139: 14 | Y139: 0 | Z139: 0 | AA139: 0 | AB139: 0 | AC139: 0 | AD139: 0 | AE139: 3 | AF139: 1 | AG139: 1 | AH139: 3 | AI139: 0 | AJ139: 2 | AK139: 0 | AL139: 2 | AM139: 1 | AN139: 1 | AO139: 0 | AP139: 0 | AQ139: 0 | AR139: 717
A140: 139 | B140: 22128 Ilche | C140: 22128 | D140: 6 | E140: 0 | F140: 0 | G140: 0 | H140: 0 | I140: 0 | J140: 0 | K140: 3 | L140: 0 | M140: 0 | N140: 0 | O140: 1 | P140: 0 | Q140: 2 | R140: 0 | S140: 0 | T140: 0 | U140: 0 | V140: 0 | W140: 0 | X140: 8 | Y140: 0 | Z140: 0 | AA140: 0 | AB140: 0 | AC140: 0 | AD140: 0 | AE140: 0 | AF140: 0 | AG140: 1 | AH140: 0 | AI140: 2 | AJ140: 3 | AK140: 1 | AL140: 1 | AM140: 0 | AN140: 0 | AO140: 0 | AP140: 0 | AQ140: 0 | AR140: 193
A141: 140 | B141: 22129 Isábena | C141: 22129 | D141: 30 | E141: 0 | F141: 0 | G141: 0 | H141: 1 | I141: 3 | J141: 5 | K141: 7 | L141: 4 | M141: 3 | N141: 1 | O141: 3 | P141: 2 | Q141: 1 | R141: 0 | S141: 0 | T141: 0 | U141: 0 | V141: 0 | W141: 0 | X141: 28 | Y141: 0 | Z141: 0 | AA141: 2 | AB141: 0 | AC141: 3 | AD141: 3 | AE141: 4 | AF141: 3 | AG141: 1 | AH141: 3 | AI141: 1 | AJ141: 3 | AK141: 3 | AL141: 2 | AM141: 0 | AN141: 0 | AO141: 0 | AP141: 0 | AQ141: 0 | AR141: 233
A142: 141 | B142: 22130 Jaca | C142: 22130 | D142: 463 | E142: 18 | F142: 16 | G142: 20 | H142: 27 | I142: 32 | J142: 49 | K142: 49 | L142: 57 | M142: 52 | N142: 42 | O142: 37 | P142: 29 | Q142: 15 | R142: 6 | S142: 10 | T142: 3 | U142: 0 | V142: 1 | W142: 0 | X142: 556 | Y142: 19 | Z142: 19 | AA142: 26 | AB142: 30 | AC142: 46 | AD142: 55 | AE142: 61 | AF142: 53 | AG142: 76 | AH142: 42 | AI142: 47 | AJ142: 35 | AK142: 17 | AL142: 8 | AM142: 11 | AN142: 6 | AO142: 2 | AP142: 1 | AQ142: 2 | AR142: 13594
A143: 142 | B143: 22131 Jasa | C143: 22131 | D143: 1 | E143: 0 | F143: 0 | G143: 0 | H143: 0 | I143: 0 | J143: 0 | K143: 0 | L143: 0 | M143: 0 | N143: 0 | O143: 0 | P143: 1 | Q143: 0 | R143: 0 | S143: 0 | T143: 0 | U143: 0 | V143: 0 | W143: 0 | X143: 2 | Y143: 0 | Z143: 0 | AA143: 0 | AB143: 0 | AC143: 1 | AD143: 0 | AE143: 0 | AF143: 0 | AG143: 1 | AH143: 0 | AI143: 0 | AJ143: 0 | AK143: 0 | AL143: 0 | AM143: 0 | AN143: 0 | AO143: 0 | AP143: 0 | AQ143: 0 | AR143: 102
A144: 143 | B144: 22133 Labuerda | C144: 22133 | D144: 14 | E144: 0 | F144: 4 | G144: 0 | H144: 1 | I144: 0 | J144: 2 | K144: 1 | L144: 2 | M144: 1 | N144: 1 | O144: 0 | P144: 1 | Q144: 0 | R144: 1 | S144: 0 | T144: 0 | U144: 0 | V144: 0 | W144: 0 | X144: 13 | Y144: 1 | Z144: 0 | AA144: 1 | AB144: 1 | AC144: 0 | AD144: 1 | AE144: 2 | AF144: 2 | AG144: 0 | AH144: 0 | AI144: 3 | AJ144: 1 | AK144: 1 | AL144: 0 | AM144: 0 | AN144: 0 | AO144: 0 | AP144: 0 | AQ144: 0 | AR144: 161
A145: 144 | B145: 22135 Laluenga | C145: 22135 | D145: 3 | E145: 0 | F145: 1 | G145: 0 | H145: 0 | I145: 1 | J145: 1 | K145: 0 | L145: 0 | M145: 0 | N145: 0 | O145: 0 | P145: 0 | Q145: 0 | R145: 0 | S145: 0 | T145: 0 | U145: 0 | V145: 0 | W145: 0 | X145: 6 | Y145: 0 | Z145: 0 | AA145: 1 | AB145: 0 | AC145: 0 | AD145: 2 | AE145: 2 | AF145: 0 | AG145: 0 | AH145: 0 | AI145: 1 | AJ145: 0 | AK145: 0 | AL145: 0 | AM145: 0 | AN145: 0 | AO145: 0 | AP145: 0 | AQ145: 0 | AR145: 201
A146: 145 | B146: 22136 Lalueza | C146: 22136 | D146: 41 | E146: 3 | F146: 0 | G146: 0 | H146: 3 | I146: 7 | J146: 3 | K146: 5 | L146: 2 | M146: 7 | N146: 3 | O146: 4 | P146: 0 | Q146: 0 | R146: 2 | S146: 1 | T146: 0 | U146: 1 | V146: 0 | W146: 0 | X146: 43 | Y146: 2 | Z146: 8 | AA146: 1 | AB146: 1 | AC146: 1 | AD146: 5 | AE146: 4 | AF146: 7 | AG146: 4 | AH146: 5 | AI146: 3 | AJ146: 0 | AK146: 1 | AL146: 1 | AM146: 0 | AN146: 0 | AO146: 0 | AP146: 0 | AQ146: 0 | AR146: 879
A147: 146 | B147: 22137 Lanaja | C147: 22137 | D147: 58 | E147: 3 | F147: 3 | G147: 3 | H147: 1 | I147: 5 | J147: 7 | K147: 7 | L147: 7 | M147: 9 | N147: 5 | O147: 4 | P147: 0 | Q147: 3 | R147: 1 | S147: 0 | T147: 0 | U147: 0 | V147: 0 | W147: 0 | X147: 49 | Y147: 2 | Z147: 5 | AA147: 2 | AB147: 2 | AC147: 4 | AD147: 3 | AE147: 4 | AF147: 8 | AG147: 7 | AH147: 7 | AI147: 1 | AJ147: 1 | AK147: 1 | AL147: 0 | AM147: 1 | AN147: 0 | AO147: 0 | AP147: 0 | AQ147: 1 | AR147: 1175
A148: 147 | B148: 22139 Laperdiguera | C148: 22139 | D148: 4 | E148: 0 | F148: 0 | G148: 0 | H148: 0 | I148: 0 | J148: 0 | K148: 0 | L148: 0 | M148: 1 | N148: 0 | O148: 0 | P148: 0 | Q148: 3 | R148: 0 | S148: 0 | T148: 0 | U148: 0 | V148: 0 | W148: 0 | X148: 3 | Y148: 0 | Z148: 0 | AA148: 0 | AB148: 0 | AC148: 1 | AD148: 0 | AE148: 0 | AF148: 0 | AG148: 1 | AH148: 0 | AI148: 0 | AJ148: 1 | AK148: 0 | AL148: 0 | AM148: 0 | AN148: 0 | AO148: 0 | AP148: 0 | AQ148: 0 | AR148: 91
A149: 148 | B149: 22141 Lascellas-Ponzano | C149: 22141 | D149: 0 | E149: 0 | F149: 0 | G149: 0 | H149: 0 | I149: 0 | J149: 0 | K149: 0 | L149: 0 | M149: 0 | N149: 0 | O149: 0 | P149: 0 | Q149: 0 | R149: 0 | S149: 0 | T149: 0 | U149: 0 | V149: 0 | W149: 0 | X149: 2 | Y149: 0 | Z149: 0 | AA149: 0 | AB149: 0 | AC149: 1 | AD149: 0 | AE149: 0 | AF149: 0 | AG149: 0 | AH149: 0 | AI149: 0 | AJ149: 0 | AK149: 1 | AL149: 0 | AM149: 0 | AN149: 0 | AO149: 0 | AP149: 0 | AQ149: 0 | AR149: 134
A150: 149 | B150: 22142 Lascuarre | C150: 22142 | D150: 9 | E150: 0 | F150: 0 | G150: 1 | H150: 0 | I150: 2 | J150: 1 | K150: 1 | L150: 1 | M150: 1 | N150: 0 | O150: 0 | P150: 1 | Q150: 0 | R150: 1 | S150: 0 | T150: 0 | U150: 0 | V150: 0 | W150: 0 | X150: 10 | Y150: 0 | Z150: 1 | AA150: 0 | AB150: 0 | AC150: 2 | AD150: 0 | AE150: 1 | AF150: 0 | AG150: 1 | AH150: 0 | AI150: 0 | AJ150: 1 | AK150: 1 | AL150: 2 | AM150: 0 | AN150: 0 | AO150: 1 | AP150: 0 | AQ150: 0 | AR150: 139
A151: 150 | B151: 22143 Laspaúles | C151: 22143 | D151: 8 | E151: 0 | F151: 1 | G151: 0 | H151: 0 | I151: 0 | J151: 1 | K151: 0 | L151: 2 | M151: 0 | N151: 1 | O151: 1 | P151: 1 | Q151: 0 | R151: 0 | S151: 1 | T151: 0 | U151: 0 | V151: 0 | W151: 0 | X151: 13 | Y151: 0 | Z151: 0 | AA151: 1 | AB151: 2 | AC151: 0 | AD151: 1 | AE151: 1 | AF151: 2 | AG151: 1 | AH151: 2 | AI151: 2 | AJ151: 1 | AK151: 0 | AL151: 0 | AM151: 0 | AN151: 0 | AO151: 0 | AP151: 0 | AQ151: 0 | AR151: 236
A152: 151 | B152: 22144 Laspuña | C152: 22144 | D152: 3 | E152: 0 | F152: 0 | G152: 0 | H152: 0 | I152: 0 | J152: 0 | K152: 0 | L152: 0 | M152: 1 | N152: 0 | O152: 1 | P152: 1 | Q152: 0 | R152: 0 | S152: 0 | T152: 0 | U152: 0 | V152: 0 | W152: 0 | X152: 3 | Y152: 0 | Z152: 0 | AA152: 0 | AB152: 0 | AC152: 0 | AD152: 0 | AE152: 1 | AF152: 0 | AG152: 1 | AH152: 0 | AI152: 0 | AJ152: 0 | AK152: 0 | AL152: 0 | AM152: 0 | AN152: 0 | AO152: 1 | AP152: 0 | AQ152: 0 | AR152: 279
A153: 152 | B153: 22149 Loarre | C153: 22149 | D153: 1 | E153: 0 | F153: 0 | G153: 0 | H153: 0 | I153: 0 | J153: 0 | K153: 0 | L153: 0 | M153: 1 | N153: 0 | O153: 0 | P153: 0 | Q153: 0 | R153: 0 | S153: 0 | T153: 0 | U153: 0 | V153: 0 | W153: 0 | X153: 4 | Y153: 0 | Z153: 0 | AA153: 0 | AB153: 1 | AC153: 0 | AD153: 0 | AE153: 0 | AF153: 0 | AG153: 1 | AH153: 1 | AI153: 1 | AJ153: 0 | AK153: 0 | AL153: 0 | AM153: 0 | AN153: 0 | AO153: 0 | AP153: 0 | AQ153: 0 | AR153: 350
A154: 153 | B154: 22150 Loporzano | C154: 22150 | D154: 8 | E154: 0 | F154: 0 | G154: 1 | H154: 0 | I154: 1 | J154: 1 | K154: 0 | L154: 0 | M154: 0 | N154: 0 | O154: 1 | P154: 0 | Q154: 1 | R154: 0 | S154: 1 | T154: 2 | U154: 0 | V154: 0 | W154: 0 | X154: 10 | Y154: 0 | Z154: 0 | AA154: 0 | AB154: 0 | AC154: 1 | AD154: 0 | AE154: 0 | AF154: 0 | AG154: 3 | AH154: 1 | AI154: 1 | AJ154: 0 | AK154: 0 | AL154: 1 | AM154: 1 | AN154: 1 | AO154: 1 | AP154: 0 | AQ154: 0 | AR154: 579
A155: 154 | B155: 22151 Loscorrales | C155: 22151 | D155: 0 | E155: 0 | F155: 0 | G155: 0 | H155: 0 | I155: 0 | J155: 0 | K155: 0 | L155: 0 | M155: 0 | N155: 0 | O155: 0 | P155: 0 | Q155: 0 | R155: 0 | S155: 0 | T155: 0 | U155: 0 | V155: 0 | W155: 0 | X155: 1 | Y155: 0 | Z155: 0 | AA155: 0 | AB155: 0 | AC155: 0 | AD155: 0 | AE155: 1 | AF155: 0 | AG155: 0 | AH155: 0 | AI155: 0 | AJ155: 0 | AK155: 0 | AL155: 0 | AM155: 0 | AN155: 0 | AO155: 0 | AP155: 0 | AQ155: 0 | AR155: 99
A156: 155 | B156: 22155 Monesma y Cajigar | C156: 22155 | D156: 2 | E156: 0 | F156: 0 | G156: 0 | H156: 0 | I156: 0 | J156: 0 | K156: 0 | L156: 1 | M156: 0 | N156: 0 | O156: 1 | P156: 0 | Q156: 0 | R156: 0 | S156: 0 | T156: 0 | U156: 0 | V156: 0 | W156: 0 | X156: 2 | Y156: 0 | Z156: 0 | AA156: 0 | AB156: 0 | AC156: 0 | AD156: 0 | AE156: 0 | AF156: 1 | AG156: 0 | AH156: 0 | AI156: 0 | AJ156: 0 | AK156: 0 | AL156: 1 | AM156: 0 | AN156: 0 | AO156: 0 | AP156: 0 | AQ156: 0 | AR156: 65
A157: 156 | B157: 22156 Monflorite-Lascasas | C157: 22156 | D157: 26 | E157: 3 | F157: 6 | G157: 5 | H157: 2 | I157: 0 | J157: 2 | K157: 4 | L157: 0 | M157: 1 | N157: 1 | O157: 0 | P157: 0 | Q157: 0 | R157: 2 | S157: 0 | T157: 0 | U157: 0 | V157: 0 | W157: 0 | X157: 16 | Y157: 1 | Z157: 0 | AA157: 0 | AB157: 2 | AC157: 0 | AD157: 2 | AE157: 3 | AF157: 1 | AG157: 2 | AH157: 0 | AI157: 1 | AJ157: 3 | AK157: 0 | AL157: 0 | AM157: 0 | AN157: 0 | AO157: 1 | AP157: 0 | AQ157: 0 | AR157: 469
A158: 157 | B158: 22157 Montanuy | C158: 22157 | D158: 4 | E158: 0 | F158: 0 | G158: 0 | H158: 0 | I158: 0 | J158: 0 | K158: 0 | L158: 1 | M158: 2 | N158: 1 | O158: 0 | P158: 0 | Q158: 0 | R158: 0 | S158: 0 | T158: 0 | U158: 0 | V158: 0 | W158: 0 | X158: 8 | Y158: 0 | Z158: 0 | AA158: 0 | AB158: 0 | AC158: 0 | AD158: 2 | AE158: 0 | AF158: 2 | AG158: 1 | AH158: 1 | AI158: 0 | AJ158: 0 | AK158: 1 | AL158: 1 | AM158: 0 | AN158: 0 | AO158: 0 | AP158: 0 | AQ158: 0 | AR158: 241
A159: 158 | B159: 22158 Monzón | C159: 22158 | D159: 1588 | E159: 107 | F159: 103 | G159: 102 | H159: 98 | I159: 109 | J159: 129 | K159: 121 | L159: 161 | M159: 195 | N159: 175 | O159: 137 | P159: 87 | Q159: 33 | R159: 16 | S159: 5 | T159: 6 | U159: 4 | V159: 0 | W159: 0 | X159: 1407 | Y159: 95 | Z159: 94 | AA159: 76 | AB159: 67 | AC159: 94 | AD159: 143 | AE159: 153 | AF159: 158 | AG159: 158 | AH159: 147 | AI159: 102 | AJ159: 57 | AK159: 26 | AL159: 20 | AM159: 7 | AN159: 5 | AO159: 4 | AP159: 1 | AQ159: 0 | AR159: 17856
A160: 159 | B160: 22160 Naval | C160: 22160 | D160: 14 | E160: 0 | F160: 0 | G160: 0 | H160: 0 | I160: 1 | J160: 1 | K160: 0 | L160: 1 | M160: 1 | N160: 0 | O160: 4 | P160: 1 | Q160: 1 | R160: 0 | S160: 3 | T160: 1 | U160: 0 | V160: 0 | W160: 0 | X160: 7 | Y160: 0 | Z160: 0 | AA160: 0 | AB160: 0 | AC160: 0 | AD160: 1 | AE160: 0 | AF160: 1 | AG160: 1 | AH160: 1 | AI160: 1 | AJ160: 0 | AK160: 1 | AL160: 1 | AM160: 0 | AN160: 0 | AO160: 0 | AP160: 0 | AQ160: 0 | AR160: 263
A161: 160 | B161: 22162 Novales | C161: 22162 | D161: 15 | E161: 2 | F161: 2 | G161: 0 | H161: 1 | I161: 0 | J161: 1 | K161: 2 | L161: 3 | M161: 2 | N161: 0 | O161: 0 | P161: 1 | Q161: 1 | R161: 0 | S161: 0 | T161: 0 | U161: 0 | V161: 0 | W161: 0 | X161: 8 | Y161: 0 | Z161: 0 | AA161: 2 | AB161: 1 | AC161: 0 | AD161: 2 | AE161: 0 | AF161: 2 | AG161: 0 | AH161: 0 | AI161: 1 | AJ161: 0 | AK161: 0 | AL161: 0 | AM161: 0 | AN161: 0 | AO161: 0 | AP161: 0 | AQ161: 0 | AR161: 176
A162: 161 | B162: 22163 Nueno | C162: 22163 | D162: 19 | E162: 1 | F162: 0 | G162: 0 | H162: 0 | I162: 2 | J162: 1 | K162: 1 | L162: 1 | M162: 1 | N162: 1 | O162: 2 | P162: 1 | Q162: 1 | R162: 4 | S162: 2 | T162: 1 | U162: 0 | V162: 0 | W162: 0 | X162: 12 | Y162: 1 | Z162: 0 | AA162: 0 | AB162: 0 | AC162: 2 | AD162: 2 | AE162: 1 | AF162: 1 | AG162: 1 | AH162: 1 | AI162: 0 | AJ162: 1 | AK162: 0 | AL162: 1 | AM162: 1 | AN162: 0 | AO162: 0 | AP162: 0 | AQ162: 0 | AR162: 573
A163: 162 | B163: 22164 Olvena | C163: 22164 | D163: 1 | E163: 0 | F163: 0 | G163: 0 | H163: 0 | I163: 0 | J163: 0 | K163: 0 | L163: 0 | M163: 1 | N163: 0 | O163: 0 | P163: 0 | Q163: 0 | R163: 0 | S163: 0 | T163: 0 | U163: 0 | V163: 0 | W163: 0 | X163: 1 | Y163: 0 | Z163: 0 | AA163: 0 | AB163: 0 | AC163: 0 | AD163: 0 | AE163: 0 | AF163: 0 | AG163: 0 | AH163: 1 | AI163: 0 | AJ163: 0 | AK163: 0 | AL163: 0 | AM163: 0 | AN163: 0 | AO163: 0 | AP163: 0 | AQ163: 0 | AR163: 67
A164: 163 | B164: 22165 Ontiñena | C164: 22165 | D164: 34 | E164: 1 | F164: 0 | G164: 0 | H164: 3 | I164: 4 | J164: 4 | K164: 3 | L164: 3 | M164: 8 | N164: 3 | O164: 2 | P164: 2 | Q164: 1 | R164: 0 | S164: 0 | T164: 0 | U164: 0 | V164: 0 | W164: 0 | X164: 17 | Y164: 0 | Z164: 0 | AA164: 2 | AB164: 1 | AC164: 1 | AD164: 1 | AE164: 4 | AF164: 2 | AG164: 3 | AH164: 0 | AI164: 0 | AJ164: 1 | AK164: 2 | AL164: 0 | AM164: 0 | AN164: 0 | AO164: 0 | AP164: 0 | AQ164: 0 | AR164: 518
A165: 164 | B165: 22167 Osso de Cinca | C165: 22167 | D165: 115 | E165: 4 | F165: 0 | G165: 1 | H165: 4 | I165: 5 | J165: 5 | K165: 12 | L165: 20 | M165: 18 | N165: 15 | O165: 11 | P165: 11 | Q165: 6 | R165: 3 | S165: 0 | T165: 0 | U165: 0 | V165: 0 | W165: 0 | X165: 38 | Y165: 0 | Z165: 2 | AA165: 0 | AB165: 2 | AC165: 4 | AD165: 3 | AE165: 4 | AF165: 3 | AG165: 4 | AH165: 6 | AI165: 6 | AJ165: 3 | AK165: 1 | AL165: 0 | AM165: 0 | AN165: 0 | AO165: 0 | AP165: 0 | AQ165: 0 | AR165: 644
A166: 165 | B166: 22168 Palo | C166: 22168 | D166: 0 | E166: 0 | F166: 0 | G166: 0 | H166: 0 | I166: 0 | J166: 0 | K166: 0 | L166: 0 | M166: 0 | N166: 0 | O166: 0 | P166: 0 | Q166: 0 | R166: 0 | S166: 0 | T166: 0 | U166: 0 | V166: 0 | W166: 0 | X166: 3 | Y166: 0 | Z166: 0 | AA166: 0 | AB166: 0 | AC166: 0 | AD166: 0 | AE166: 0 | AF166: 1 | AG166: 0 | AH166: 0 | AI166: 0 | AJ166: 1 | AK166: 1 | AL166: 0 | AM166: 0 | AN166: 0 | AO166: 0 | AP166: 0 | AQ166: 0 | AR166: 31
A167: 166 | B167: 22170 Panticosa | C167: 22170 | D167: 18 | E167: 0 | F167: 0 | G167: 0 | H167: 0 | I167: 2 | J167: 2 | K167: 0 | L167: 1 | M167: 2 | N167: 3 | O167: 4 | P167: 2 | Q167: 0 | R167: 0 | S167: 1 | T167: 1 | U167: 0 | V167: 0 | W167: 0 | X167: 16 | Y167: 1 | Z167: 0 | AA167: 1 | AB167: 0 | AC167: 2 | AD167: 0 | AE167: 2 | AF167: 2 | AG167: 2 | AH167: 0 | AI167: 3 | AJ167: 2 | AK167: 0 | AL167: 0 | AM167: 0 | AN167: 0 | AO167: 1 | AP167: 0 | AQ167: 0 | AR167: 901
A168: 167 | B168: 22172 Peñalba | C168: 22172 | D168: 180 | E168: 2 | F168: 1 | G168: 4 | H168: 3 | I168: 24 | J168: 26 | K168: 42 | L168: 18 | M168: 24 | N168: 17 | O168: 9 | P168: 7 | Q168: 2 | R168: 0 | S168: 1 | T168: 0 | U168: 0 | V168: 0 | W168: 0 | X168: 52 | Y168: 6 | Z168: 1 | AA168: 0 | AB168: 1 | AC168: 3 | AD168: 4 | AE168: 4 | AF168: 4 | AG168: 8 | AH168: 9 | AI168: 4 | AJ168: 2 | AK168: 2 | AL168: 1 | AM168: 3 | AN168: 0 | AO168: 0 | AP168: 0 | AQ168: 0 | AR168: 737
A169: 168 | B169: 22173 Peñas de Riglos (Las) | C169: 22173 | D169: 7 | E169: 0 | F169: 1 | G169: 0 | H169: 0 | I169: 0 | J169: 1 | K169: 0 | L169: 0 | M169: 1 | N169: 1 | O169: 0 | P169: 0 | Q169: 1 | R169: 1 | S169: 0 | T169: 0 | U169: 1 | V169: 0 | W169: 0 | X169: 8 | Y169: 0 | Z169: 0 | AA169: 0 | AB169: 0 | AC169: 0 | AD169: 1 | AE169: 1 | AF169: 2 | AG169: 0 | AH169: 1 | AI169: 0 | AJ169: 0 | AK169: 1 | AL169: 0 | AM169: 0 | AN169: 1 | AO169: 0 | AP169: 1 | AQ169: 0 | AR169: 272
A170: 169 | B170: 22174 Peralta de Alcofea | C170: 22174 | D170: 46 | E170: 2 | F170: 2 | G170: 3 | H170: 0 | I170: 4 | J170: 2 | K170: 6 | L170: 2 | M170: 5 | N170: 10 | O170: 3 | P170: 3 | Q170: 2 | R170: 1 | S170: 1 | T170: 0 | U170: 0 | V170: 0 | W170: 0 | X170: 46 | Y170: 2 | Z170: 3 | AA170: 2 | AB170: 2 | AC170: 5 | AD170: 2 | AE170: 1 | AF170: 8 | AG170: 8 | AH170: 5 | AI170: 0 | AJ170: 4 | AK170: 2 | AL170: 2 | AM170: 0 | AN170: 0 | AO170: 0 | AP170: 0 | AQ170: 0 | AR170: 617
A171: 170 | B171: 22175 Peralta de Calasanz | C171: 22175 | D171: 8 | E171: 0 | F171: 0 | G171: 0 | H171: 0 | I171: 0 | J171: 0 | K171: 0 | L171: 0 | M171: 2 | N171: 1 | O171: 3 | P171: 2 | Q171: 0 | R171: 0 | S171: 0 | T171: 0 | U171: 0 | V171: 0 | W171: 0 | X171: 9 | Y171: 0 | Z171: 0 | AA171: 0 | AB171: 0 | AC171: 2 | AD171: 1 | AE171: 0 | AF171: 0 | AG171: 2 | AH171: 1 | AI171: 1 | AJ171: 0 | AK171: 2 | AL171: 0 | AM171: 0 | AN171: 0 | AO171: 0 | AP171: 0 | AQ171: 0 | AR171: 270
A172: 171 | B172: 22176 Peraltilla | C172: 22176 | D172: 3 | E172: 0 | F172: 0 | G172: 0 | H172: 0 | I172: 0 | J172: 0 | K172: 1 | L172: 0 | M172: 0 | N172: 1 | O172: 1 | P172: 0 | Q172: 0 | R172: 0 | S172: 0 | T172: 0 | U172: 0 | V172: 0 | W172: 0 | X172: 8 | Y172: 0 | Z172: 0 | AA172: 0 | AB172: 1 | AC172: 0 | AD172: 3 | AE172: 2 | AF172: 0 | AG172: 1 | AH172: 0 | AI172: 0 | AJ172: 1 | AK172: 0 | AL172: 0 | AM172: 0 | AN172: 0 | AO172: 0 | AP172: 0 | AQ172: 0 | AR172: 224
A173: 172 | B173: 22177 Perarrúa | C173: 22177 | D173: 4 | E173: 0 | F173: 1 | G173: 0 | H173: 0 | I173: 0 | J173: 0 | K173: 1 | L173: 0 | M173: 0 | N173: 2 | O173: 0 | P173: 0 | Q173: 0 | R173: 0 | S173: 0 | T173: 0 | U173: 0 | V173: 0 | W173: 0 | X173: 4 | Y173: 0 | Z173: 1 | AA173: 1 | AB173: 0 | AC173: 0 | AD173: 0 | AE173: 0 | AF173: 0 | AG173: 1 | AH173: 0 | AI173: 0 | AJ173: 0 | AK173: 1 | AL173: 0 | AM173: 0 | AN173: 0 | AO173: 0 | AP173: 0 | AQ173: 0 | AR173: 112
A174: 173 | B174: 22178 Pertusa | C174: 22178 | D174: 1 | E174: 0 | F174: 0 | G174: 0 | H174: 0 | I174: 0 | J174: 0 | K174: 0 | L174: 0 | M174: 1 | N174: 0 | O174: 0 | P174: 0 | Q174: 0 | R174: 0 | S174: 0 | T174: 0 | U174: 0 | V174: 0 | W174: 0 | X174: 3 | Y174: 0 | Z174: 0 | AA174: 0 | AB174: 0 | AC174: 0 | AD174: 1 | AE174: 0 | AF174: 0 | AG174: 0 | AH174: 1 | AI174: 0 | AJ174: 0 | AK174: 0 | AL174: 0 | AM174: 1 | AN174: 0 | AO174: 0 | AP174: 0 | AQ174: 0 | AR174: 138
A175: 174 | B175: 22181 Piracés | C175: 22181 | D175: 1 | E175: 0 | F175: 0 | G175: 0 | H175: 0 | I175: 0 | J175: 0 | K175: 1 | L175: 0 | M175: 0 | N175: 0 | O175: 0 | P175: 0 | Q175: 0 | R175: 0 | S175: 0 | T175: 0 | U175: 0 | V175: 0 | W175: 0 | X175: 4 | Y175: 0 | Z175: 0 | AA175: 0 | AB175: 0 | AC175: 0 | AD175: 0 | AE175: 1 | AF175: 0 | AG175: 0 | AH175: 2 | AI175: 1 | AJ175: 0 | AK175: 0 | AL175: 0 | AM175: 0 | AN175: 0 | AO175: 0 | AP175: 0 | AQ175: 0 | AR175: 97
A176: 175 | B176: 22182 Plan | C176: 22182 | D176: 6 | E176: 0 | F176: 0 | G176: 0 | H176: 0 | I176: 0 | J176: 2 | K176: 1 | L176: 1 | M176: 0 | N176: 1 | O176: 0 | P176: 0 | Q176: 0 | R176: 0 | S176: 1 | T176: 0 | U176: 0 | V176: 0 | W176: 0 | X176: 4 | Y176: 0 | Z176: 0 | AA176: 0 | AB176: 1 | AC176: 0 | AD176: 1 | AE176: 0 | AF176: 0 | AG176: 0 | AH176: 1 | AI176: 0 | AJ176: 1 | AK176: 0 | AL176: 0 | AM176: 0 | AN176: 0 | AO176: 0 | AP176: 0 | AQ176: 0 | AR176: 284
A177: 176 | B177: 22184 Poleñino | C177: 22184 | D177: 5 | E177: 0 | F177: 1 | G177: 1 | H177: 0 | I177: 0 | J177: 0 | K177: 0 | L177: 0 | M177: 2 | N177: 0 | O177: 0 | P177: 0 | Q177: 1 | R177: 0 | S177: 0 | T177: 0 | U177: 0 | V177: 0 | W177: 0 | X177: 9 | Y177: 0 | Z177: 1 | AA177: 2 | AB177: 0 | AC177: 0 | AD177: 0 | AE177: 1 | AF177: 0 | AG177: 2 | AH177: 2 | AI177: 0 | AJ177: 0 | AK177: 1 | AL177: 0 | AM177: 0 | AN177: 0 | AO177: 0 | AP177: 0 | AQ177: 0 | AR177: 196
A178: 177 | B178: 22186 Pozán de Vero | C178: 22186 | D178: 3 | E178: 0 | F178: 0 | G178: 0 | H178: 0 | I178: 1 | J178: 0 | K178: 0 | L178: 1 | M178: 0 | N178: 1 | O178: 0 | P178: 0 | Q178: 0 | R178: 0 | S178: 0 | T178: 0 | U178: 0 | V178: 0 | W178: 0 | X178: 0 | Y178: 0 | Z178: 0 | AA178: 0 | AB178: 0 | AC178: 0 | AD178: 0 | AE178: 0 | AF178: 0 | AG178: 0 | AH178: 0 | AI178: 0 | AJ178: 0 | AK178: 0 | AL178: 0 | AM178: 0 | AN178: 0 | AO178: 0 | AP178: 0 | AQ178: 0 | AR178: 233
A179: 178 | B179: 22187 Puebla de Castro (La) | C179: 22187 | D179: 23 | E179: 2 | F179: 3 | G179: 0 | H179: 0 | I179: 1 | J179: 1 | K179: 0 | L179: 1 | M179: 6 | N179: 2 | O179: 0 | P179: 1 | Q179: 2 | R179: 1 | S179: 2 | T179: 1 | U179: 0 | V179: 0 | W179: 0 | X179: 19 | Y179: 3 | Z179: 0 | AA179: 1 | AB179: 0 | AC179: 0 | AD179: 1 | AE179: 1 | AF179: 3 | AG179: 2 | AH179: 1 | AI179: 1 | AJ179: 2 | AK179: 1 | AL179: 2 | AM179: 1 | AN179: 0 | AO179: 0 | AP179: 0 | AQ179: 0 | AR179: 419
A180: 179 | B180: 22188 Puente de Montañana | C180: 22188 | D180: 6 | E180: 1 | F180: 1 | G180: 0 | H180: 0 | I180: 1 | J180: 0 | K180: 1 | L180: 0 | M180: 1 | N180: 1 | O180: 0 | P180: 0 | Q180: 0 | R180: 0 | S180: 0 | T180: 0 | U180: 0 | V180: 0 | W180: 0 | X180: 7 | Y180: 0 | Z180: 0 | AA180: 0 | AB180: 0 | AC180: 1 | AD180: 1 | AE180: 1 | AF180: 1 | AG180: 0 | AH180: 0 | AI180: 0 | AJ180: 1 | AK180: 1 | AL180: 0 | AM180: 1 | AN180: 0 | AO180: 0 | AP180: 0 | AQ180: 0 | AR180: 100
A181: 180 | B181: 22189 Puértolas | C181: 22189 | D181: 5 | E181: 0 | F181: 0 | G181: 1 | H181: 1 | I181: 0 | J181: 1 | K181: 1 | L181: 1 | M181: 0 | N181: 0 | O181: 0 | P181: 0 | Q181: 0 | R181: 0 | S181: 0 | T181: 0 | U181: 0 | V181: 0 | W181: 0 | X181: 11 | Y181: 0 | Z181: 0 | AA181: 0 | AB181: 0 | AC181: 0 | AD181: 2 | AE181: 1 | AF181: 1 | AG181: 1 | AH181: 3 | AI181: 1 | AJ181: 0 | AK181: 0 | AL181: 1 | AM181: 1 | AN181: 0 | AO181: 0 | AP181: 0 | AQ181: 0 | AR181: 224
A182: 181 | B182: 22190 Pueyo de Araguás (El) | C182: 22190 | D182: 4 | E182: 0 | F182: 1 | G182: 0 | H182: 0 | I182: 0 | J182: 0 | K182: 0 | L182: 0 | M182: 0 | N182: 1 | O182: 0 | P182: 1 | Q182: 0 | R182: 1 | S182: 0 | T182: 0 | U182: 0 | V182: 0 | W182: 0 | X182: 3 | Y182: 0 | Z182: 0 | AA182: 1 | AB182: 0 | AC182: 0 | AD182: 0 | AE182: 0 | AF182: 0 | AG182: 0 | AH182: 1 | AI182: 1 | AJ182: 0 | AK182: 0 | AL182: 0 | AM182: 0 | AN182: 0 | AO182: 0 | AP182: 0 | AQ182: 0 | AR182: 173
A183: 182 | B183: 22193 Pueyo de Santa Cruz | C183: 22193 | D183: 6 | E183: 0 | F183: 0 | G183: 1 | H183: 0 | I183: 0 | J183: 1 | K183: 2 | L183: 1 | M183: 0 | N183: 0 | O183: 0 | P183: 1 | Q183: 0 | R183: 0 | S183: 0 | T183: 0 | U183: 0 | V183: 0 | W183: 0 | X183: 14 | Y183: 1 | Z183: 1 | AA183: 0 | AB183: 0 | AC183: 1 | AD183: 1 | AE183: 3 | AF183: 3 | AG183: 1 | AH183: 1 | AI183: 1 | AJ183: 1 | AK183: 0 | AL183: 0 | AM183: 0 | AN183: 0 | AO183: 0 | AP183: 0 | AQ183: 0 | AR183: 330
A184: 183 | B184: 22195 Quicena | C184: 22195 | D184: 8 | E184: 0 | F184: 1 | G184: 0 | H184: 0 | I184: 0 | J184: 1 | K184: 1 | L184: 1 | M184: 2 | N184: 1 | O184: 0 | P184: 0 | Q184: 0 | R184: 0 | S184: 1 | T184: 0 | U184: 0 | V184: 0 | W184: 0 | X184: 7 | Y184: 1 | Z184: 0 | AA184: 0 | AB184: 0 | AC184: 0 | AD184: 0 | AE184: 0 | AF184: 3 | AG184: 1 | AH184: 0 | AI184: 0 | AJ184: 1 | AK184: 1 | AL184: 0 | AM184: 0 | AN184: 0 | AO184: 0 | AP184: 0 | AQ184: 0 | AR184: 328
A185: 184 | B185: 22197 Robres | C185: 22197 | D185: 25 | E185: 2 | F185: 1 | G185: 1 | H185: 2 | I185: 1 | J185: 3 | K185: 3 | L185: 2 | M185: 3 | N185: 0 | O185: 3 | P185: 3 | Q185: 0 | R185: 0 | S185: 0 | T185: 1 | U185: 0 | V185: 0 | W185: 0 | X185: 26 | Y185: 2 | Z185: 5 | AA185: 0 | AB185: 1 | AC185: 3 | AD185: 2 | AE185: 2 | AF185: 3 | AG185: 3 | AH185: 0 | AI185: 2 | AJ185: 1 | AK185: 0 | AL185: 2 | AM185: 0 | AN185: 0 | AO185: 0 | AP185: 0 | AQ185: 0 | AR185: 526
A186: 185 | B186: 22199 Sabiñánigo | C186: 22199 | D186: 598 | E186: 31 | F186: 35 | G186: 35 | H186: 30 | I186: 44 | J186: 51 | K186: 45 | L186: 47 | M186: 74 | N186: 66 | O186: 61 | P186: 30 | Q186: 27 | R186: 13 | S186: 4 | T186: 3 | U186: 0 | V186: 2 | W186: 0 | X186: 592 | Y186: 34 | Z186: 35 | AA186: 24 | AB186: 32 | AC186: 38 | AD186: 48 | AE186: 62 | AF186: 76 | AG186: 65 | AH186: 62 | AI186: 41 | AJ186: 30 | AK186: 19 | AL186: 11 | AM186: 5 | AN186: 4 | AO186: 3 | AP186: 2 | AQ186: 1 | AR186: 9394
A187: 186 | B187: 22200 Sahún | C187: 22200 | D187: 7 | E187: 0 | F187: 0 | G187: 0 | H187: 1 | I187: 0 | J187: 0 | K187: 1 | L187: 0 | M187: 0 | N187: 1 | O187: 1 | P187: 3 | Q187: 0 | R187: 0 | S187: 0 | T187: 0 | U187: 0 | V187: 0 | W187: 0 | X187: 12 | Y187: 0 | Z187: 0 | AA187: 0 | AB187: 0 | AC187: 0 | AD187: 1 | AE187: 2 | AF187: 0 | AG187: 0 | AH187: 2 | AI187: 5 | AJ187: 0 | AK187: 1 | AL187: 0 | AM187: 0 | AN187: 1 | AO187: 0 | AP187: 0 | AQ187: 0 | AR187: 321
A188: 187 | B188: 22201 Salas Altas | C188: 22201 | D188: 6 | E188: 0 | F188: 0 | G188: 0 | H188: 0 | I188: 0 | J188: 0 | K188: 3 | L188: 1 | M188: 0 | N188: 0 | O188: 0 | P188: 0 | Q188: 1 | R188: 1 | S188: 0 | T188: 0 | U188: 0 | V188: 0 | W188: 0 | X188: 8 | Y188: 0 | Z188: 0 | AA188: 0 | AB188: 0 | AC188: 2 | AD188: 0 | AE188: 2 | AF188: 1 | AG188: 0 | AH188: 2 | AI188: 0 | AJ188: 0 | AK188: 0 | AL188: 1 | AM188: 0 | AN188: 0 | AO188: 0 | AP188: 0 | AQ188: 0 | AR188: 305
A189: 188 | B189: 22202 Salas Bajas | C189: 22202 | D189: 9 | E189: 0 | F189: 0 | G189: 0 | H189: 0 | I189: 2 | J189: 1 | K189: 1 | L189: 1 | M189: 2 | N189: 0 | O189: 0 | P189: 2 | Q189: 0 | R189: 0 | S189: 0 | T189: 0 | U189: 0 | V189: 0 | W189: 0 | X189: 7 | Y189: 0 | Z189: 0 | AA189: 1 | AB189: 1 | AC189: 1 | AD189: 1 | AE189: 0 | AF189: 1 | AG189: 1 | AH189: 0 | AI189: 1 | AJ189: 0 | AK189: 0 | AL189: 0 | AM189: 0 | AN189: 0 | AO189: 0 | AP189: 0 | AQ189: 0 | AR189: 191
A190: 189 | B190: 22203 Salillas | C190: 22203 | D190: 12 | E190: 1 | F190: 1 | G190: 0 | H190: 1 | I190: 2 | J190: 0 | K190: 0 | L190: 1 | M190: 2 | N190: 3 | O190: 0 | P190: 0 | Q190: 0 | R190: 1 | S190: 0 | T190: 0 | U190: 0 | V190: 0 | W190: 0 | X190: 7 | Y190: 0 | Z190: 1 | AA190: 0 | AB190: 0 | AC190: 1 | AD190: 0 | AE190: 0 | AF190: 1 | AG190: 3 | AH190: 0 | AI190: 0 | AJ190: 0 | AK190: 0 | AL190: 0 | AM190: 0 | AN190: 0 | AO190: 1 | AP190: 0 | AQ190: 0 | AR190: 104
A191: 190 | B191: 22204 Sallent de Gállego | C191: 22204 | D191: 63 | E191: 2 | F191: 3 | G191: 3 | H191: 3 | I191: 1 | J191: 4 | K191: 5 | L191: 11 | M191: 10 | N191: 7 | O191: 4 | P191: 1 | Q191: 2 | R191: 3 | S191: 2 | T191: 2 | U191: 0 | V191: 0 | W191: 0 | X191: 66 | Y191: 2 | Z191: 4 | AA191: 2 | AB191: 5 | AC191: 2 | AD191: 2 | AE191: 7 | AF191: 8 | AG191: 9 | AH191: 8 | AI191: 6 | AJ191: 2 | AK191: 2 | AL191: 4 | AM191: 2 | AN191: 1 | AO191: 0 | AP191: 0 | AQ191: 0 | AR191: 1562
A192: 191 | B192: 22205 San Esteban de Litera | C192: 22205 | D192: 52 | E192: 1 | F192: 1 | G192: 2 | H192: 0 | I192: 7 | J192: 7 | K192: 10 | L192: 9 | M192: 4 | N192: 6 | O192: 4 | P192: 0 | Q192: 0 | R192: 0 | S192: 1 | T192: 0 | U192: 0 | V192: 0 | W192: 0 | X192: 41 | Y192: 0 | Z192: 1 | AA192: 6 | AB192: 1 | AC192: 2 | AD192: 7 | AE192: 6 | AF192: 3 | AG192: 5 | AH192: 5 | AI192: 2 | AJ192: 0 | AK192: 2 | AL192: 1 | AM192: 0 | AN192: 0 | AO192: 0 | AP192: 0 | AQ192: 0 | AR192: 620
A193: 192 | B193: 22206 Sangarrén | C193: 22206 | D193: 19 | E193: 0 | F193: 0 | G193: 0 | H193: 1 | I193: 1 | J193: 0 | K193: 1 | L193: 6 | M193: 3 | N193: 2 | O193: 2 | P193: 2 | Q193: 0 | R193: 1 | S193: 0 | T193: 0 | U193: 0 | V193: 0 | W193: 0 | X193: 14 | Y193: 2 | Z193: 1 | AA193: 1 | AB193: 1 | AC193: 0 | AD193: 0 | AE193: 1 | AF193: 4 | AG193: 0 | AH193: 0 | AI193: 3 | AJ193: 1 | AK193: 0 | AL193: 0 | AM193: 0 | AN193: 0 | AO193: 0 | AP193: 0 | AQ193: 0 | AR193: 213
A194: 193 | B194: 22207 San Juan de Plan | C194: 22207 | D194: 0 | E194: 0 | F194: 0 | G194: 0 | H194: 0 | I194: 0 | J194: 0 | K194: 0 | L194: 0 | M194: 0 | N194: 0 | O194: 0 | P194: 0 | Q194: 0 | R194: 0 | S194: 0 | T194: 0 | U194: 0 | V194: 0 | W194: 0 | X194: 5 | Y194: 0 | Z194: 0 | AA194: 0 | AB194: 0 | AC194: 0 | AD194: 1 | AE194: 1 | AF194: 1 | AG194: 0 | AH194: 0 | AI194: 2 | AJ194: 0 | AK194: 0 | AL194: 0 | AM194: 0 | AN194: 0 | AO194: 0 | AP194: 0 | AQ194: 0 | AR194: 154
A195: 194 | B195: 22208 Santa Cilia | C195: 22208 | D195: 7 | E195: 0 | F195: 0 | G195: 0 | H195: 0 | I195: 0 | J195: 0 | K195: 0 | L195: 1 | M195: 2 | N195: 2 | O195: 1 | P195: 0 | Q195: 0 | R195: 0 | S195: 0 | T195: 0 | U195: 0 | V195: 1 | W195: 0 | X195: 6 | Y195: 0 | Z195: 1 | AA195: 0 | AB195: 1 | AC195: 0 | AD195: 0 | AE195: 1 | AF195: 0 | AG195: 3 | AH195: 0 | AI195: 0 | AJ195: 0 | AK195: 0 | AL195: 0 | AM195: 0 | AN195: 0 | AO195: 0 | AP195: 0 | AQ195: 0 | AR195: 256
A196: 195 | B196: 22209 Santa Cruz de la Serós | C196: 22209 | D196: 5 | E196: 0 | F196: 0 | G196: 0 | H196: 0 | I196: 1 | J196: 0 | K196: 0 | L196: 1 | M196: 0 | N196: 1 | O196: 0 | P196: 0 | Q196: 1 | R196: 1 | S196: 0 | T196: 0 | U196: 0 | V196: 0 | W196: 0 | X196: 2 | Y196: 0 | Z196: 0 | AA196: 0 | AB196: 0 | AC196: 0 | AD196: 0 | AE196: 0 | AF196: 0 | AG196: 1 | AH196: 0 | AI196: 0 | AJ196: 0 | AK196: 0 | AL196: 1 | AM196: 0 | AN196: 0 | AO196: 0 | AP196: 0 | AQ196: 0 | AR196: 191
A197: 196 | B197: 22212 Santaliestra y San Quílez | C197: 22212 | D197: 3 | E197: 0 | F197: 0 | G197: 0 | H197: 0 | I197: 0 | J197: 0 | K197: 0 | L197: 0 | M197: 0 | N197: 0 | O197: 1 | P197: 0 | Q197: 0 | R197: 0 | S197: 1 | T197: 1 | U197: 0 | V197: 0 | W197: 0 | X197: 1 | Y197: 0 | Z197: 0 | AA197: 0 | AB197: 0 | AC197: 0 | AD197: 0 | AE197: 0 | AF197: 0 | AG197: 0 | AH197: 0 | AI197: 0 | AJ197: 1 | AK197: 0 | AL197: 0 | AM197: 0 | AN197: 0 | AO197: 0 | AP197: 0 | AQ197: 0 | AR197: 77
A198: 197 | B198: 22213 Sariñena | C198: 22213 | D198: 428 | E198: 36 | F198: 32 | G198: 22 | H198: 24 | I198: 20 | J198: 42 | K198: 39 | L198: 51 | M198: 53 | N198: 40 | O198: 37 | P198: 12 | Q198: 7 | R198: 11 | S198: 1 | T198: 0 | U198: 1 | V198: 0 | W198: 0 | X198: 358 | Y198: 32 | Z198: 23 | AA198: 14 | AB198: 15 | AC198: 18 | AD198: 27 | AE198: 46 | AF198: 45 | AG198: 37 | AH198: 31 | AI198: 25 | AJ198: 17 | AK198: 13 | AL198: 10 | AM198: 3 | AN198: 1 | AO198: 1 | AP198: 0 | AQ198: 0 | AR198: 4093
A199: 198 | B199: 22214 Secastilla | C199: 22214 | D199: 8 | E199: 0 | F199: 1 | G199: 0 | H199: 1 | I199: 0 | J199: 1 | K199: 1 | L199: 1 | M199: 0 | N199: 0 | O199: 1 | P199: 2 | Q199: 0 | R199: 0 | S199: 0 | T199: 0 | U199: 0 | V199: 0 | W199: 0 | X199: 11 | Y199: 1 | Z199: 2 | AA199: 0 | AB199: 0 | AC199: 1 | AD199: 0 | AE199: 1 | AF199: 2 | AG199: 1 | AH199: 1 | AI199: 0 | AJ199: 2 | AK199: 0 | AL199: 0 | AM199: 0 | AN199: 0 | AO199: 0 | AP199: 0 | AQ199: 0 | AR199: 152
A200: 199 | B200: 22215 Seira | C200: 22215 | D200: 5 | E200: 1 | F200: 0 | G200: 0 | H200: 0 | I200: 0 | J200: 1 | K200: 1 | L200: 0 | M200: 1 | N200: 0 | O200: 0 | P200: 0 | Q200: 1 | R200: 0 | S200: 0 | T200: 0 | U200: 0 | V200: 0 | W200: 0 | X200: 7 | Y200: 1 | Z200: 0 | AA200: 0 | AB200: 0 | AC200: 0 | AD200: 0 | AE200: 1 | AF200: 1 | AG200: 1 | AH200: 0 | AI200: 1 | AJ200: 2 | AK200: 0 | AL200: 0 | AM200: 0 | AN200: 0 | AO200: 0 | AP200: 0 | AQ200: 0 | AR200: 160
... 569 more rows

Sheet 2024 (hidden)
A1: 2024 extranjeros | B1: referencia geográfica | C1: código | D1: TOTAL VARONES | E1: 01- de 0 a 4 | F1: 02- de 5 a 9 | G1: 03- de 10 a 14 | H1: 04- de 15 a 19 | I1: 05- de 20 a 24 | J1: 06- de 25 a 29 | K1: 07- de 30 a 34 | L1: 08- de 35 a 39 | M1: 09- de 40 a 44 | N1: 10- de 45 a 49 | O1: 11- de 50 a 54 | P1: 12- de 55 a 59 | Q1: 13- de 60 a 64 | R1: 14- de 65 a 69 | S1: 15- de 70 a 74 | T1: 16- de 75 a 79 | U1: 17- de 80 a 84 | V1: 18- de 85 a 89 | W1: 19- de 90 a 94 | X1: TOTAL MUJERES | Y1: 01- de 0 a 4 | Z1: 02- de 5 a 9 | AA1: 03- de 10 a 14 | AB1: 04- de 15 a 19 | AC1: 05- de 20 a 24 | AD1: 06- de 25 a 29 | AE1: 07- de 30 a 34 | AF1: 08- de 35 a 39 | AG1: 09- de 40 a 44 | AH1: 10- de 45 a 49 | AI1: 11- de 50 a 54 | AJ1: 12- de 55 a 59 | AK1: 13- de 60 a 64 | AL1: 14- de 65 a 69 | AM1: 15- de 70 a 74 | AN1: 16- de 75 a 79 | AO1: 17- de 80 a 84 | AP1: 18- de 85 a 89 | AQ1: 19- de 90 a 94 | AR1: Total 2024
A2: 1 | B2: ARAGÓN | C2: 2 | D2: 97634 | E2: 4488 | F2: 5213 | G2: 5311 | H2: 5581 | I2: 7621 | J2: 9042 | K2: 9802 | L2: 10272 | M2: 10760 | N2: 10284 | O2: 7670 | P2: 5197 | Q2: 3119 | R2: 1755 | S2: 842 | T2: 397 | U2: 181 | V2: 71 | W2: 28 | X2: 93801 | Y2: 4249 | Z2: 4882 | AA2: 4952 | AB2: 4638 | AC2: 6442 | AD2: 8485 | AE2: 10075 | AF2: 10938 | AG2: 10498 | AH2: 9208 | AI2: 6962 | AJ2: 4907 | AK2: 3093 | AL2: 2008 | AM2: 1273 | AN2: 648 | AO2: 310 | AP2: 168 | AQ2: 65 | AR2: 1351591 | AV2: 0
A3: 2 | B3: PROVINCIA DE HUESCA | C3: 22 | D3: 18003 | E3: 803 | F3: 997 | G3: 977 | H3: 1029 | I3: 1337 | J3: 1631 | K3: 1772 | L3: 1941 | M3: 2103 | N3: 1955 | O3: 1407 | P3: 913 | Q3: 541 | R3: 284 | S3: 171 | T3: 73 | U3: 46 | V3: 15 | W3: 8 | X3: 15846 | Y3: 753 | Z3: 899 | AA3: 832 | AB3: 755 | AC3: 1056 | AD3: 1431 | AE3: 1638 | AF3: 1861 | AG3: 1791 | AH3: 1537 | AI3: 1204 | AJ3: 864 | AK3: 501 | AL3: 315 | AM3: 214 | AN3: 100 | AO3: 51 | AP3: 33 | AQ3: 11 | AR3: 228519
A4: 3 | B4: PROVINCIA DE TERUEL | C4: 44 | D4: 8920 | E4: 441 | F4: 573 | G4: 600 | H4: 535 | I4: 693 | J4: 719 | K4: 785 | L4: 861 | M4: 963 | N4: 958 | O4: 652 | P4: 508 | Q4: 320 | R4: 165 | S4: 78 | T4: 47 | U4: 15 | V4: 4 | W4: 3 | X4: 8452 | Y4: 451 | Z4: 519 | AA4: 564 | AB4: 420 | AC4: 566 | AD4: 677 | AE4: 935 | AF4: 904 | AG4: 870 | AH4: 816 | AI4: 649 | AJ4: 397 | AK4: 300 | AL4: 178 | AM4: 110 | AN4: 48 | AO4: 29 | AP4: 15 | AQ4: 4 | AR4: 135309
A5: 4 | B5: PROVINCIA DE ZARAGOZA | C5: 50 | D5: 70711 | E5: 3244 | F5: 3643 | G5: 3734 | H5: 4017 | I5: 5591 | J5: 6692 | K5: 7245 | L5: 7470 | M5: 7694 | N5: 7371 | O5: 5611 | P5: 3776 | Q5: 2258 | R5: 1306 | S5: 593 | T5: 277 | U5: 120 | V5: 52 | W5: 17 | X5: 69503 | Y5: 3045 | Z5: 3464 | AA5: 3556 | AB5: 3463 | AC5: 4820 | AD5: 6377 | AE5: 7502 | AF5: 8173 | AG5: 7837 | AH5: 6855 | AI5: 5109 | AJ5: 3646 | AK5: 2292 | AL5: 1515 | AM5: 949 | AN5: 500 | AO5: 230 | AP5: 120 | AQ5: 50 | AR5: 987763
A6: 5 | B6: LA JACETANIA | C6: 1 | D6: 824 | E6: 29 | F6: 49 | G6: 43 | H6: 48 | I6: 68 | J6: 82 | K6: 85 | L6: 94 | M6: 92 | N6: 70 | O6: 51 | P6: 50 | Q6: 23 | R6: 17 | S6: 14 | T6: 4 | U6: 2 | V6: 2 | W6: 1 | X6: 963 | Y6: 23 | Z6: 43 | AA6: 53 | AB6: 58 | AC6: 84 | AD6: 85 | AE6: 105 | AF6: 93 | AG6: 108 | AH6: 95 | AI6: 67 | AJ6: 64 | AK6: 28 | AL6: 17 | AM6: 19 | AN6: 9 | AO6: 7 | AP6: 3 | AQ6: 2 | AR6: 18814
A7: 6 | B7: ALTO GÁLLEGO | C7: 2 | D7: 899 | E7: 32 | F7: 51 | G7: 60 | H7: 42 | I7: 64 | J7: 77 | K7: 73 | L7: 82 | M7: 97 | N7: 105 | O7: 86 | P7: 47 | Q7: 43 | R7: 19 | S7: 15 | T7: 4 | U7: 1 | V7: 1 | W7: 0 | X7: 883 | Y7: 42 | Z7: 47 | AA7: 49 | AB7: 38 | AC7: 53 | AD7: 81 | AE7: 79 | AF7: 107 | AG7: 97 | AH7: 96 | AI7: 65 | AJ7: 58 | AK7: 36 | AL7: 17 | AM7: 8 | AN7: 5 | AO7: 2 | AP7: 2 | AQ7: 1 | AR7: 14143
A8: 7 | B8: SOBRARBE | C8: 3 | D8: 553 | E8: 19 | F8: 33 | G8: 34 | H8: 39 | I8: 37 | J8: 42 | K8: 41 | L8: 53 | M8: 57 | N8: 49 | O8: 42 | P8: 35 | Q8: 37 | R8: 14 | S8: 10 | T8: 7 | U8: 3 | V8: 1 | W8: 0 | X8: 591 | Y8: 15 | Z8: 21 | AA8: 19 | AB8: 18 | AC8: 42 | AD8: 43 | AE8: 64 | AF8: 67 | AG8: 55 | AH8: 62 | AI8: 59 | AJ8: 51 | AK8: 35 | AL8: 16 | AM8: 14 | AN8: 6 | AO8: 1 | AP8: 2 | AQ8: 1 | AR8: 7888
A9: 8 | B9: RIBAGORZA | C9: 4 | D9: 918 | E9: 46 | F9: 50 | G9: 47 | H9: 36 | I9: 54 | J9: 81 | K9: 95 | L9: 112 | M9: 93 | N9: 92 | O9: 73 | P9: 53 | Q9: 36 | R9: 21 | S9: 14 | T9: 9 | U9: 6 | V9: 0 | W9: 0 | X9: 902 | Y9: 33 | Z9: 34 | AA9: 40 | AB9: 33 | AC9: 68 | AD9: 90 | AE9: 82 | AF9: 96 | AG9: 109 | AH9: 86 | AI9: 76 | AJ9: 69 | AK9: 41 | AL9: 20 | AM9: 16 | AN9: 6 | AO9: 3 | AP9: 0 | AQ9: 0 | AR9: 12720
A10: 9 | B10: CINCO VILLAS | C10: 5 | D10: 2635 | E10: 143 | F10: 141 | G10: 146 | H10: 148 | I10: 207 | J10: 214 | K10: 249 | L10: 248 | M10: 279 | N10: 295 | O10: 250 | P10: 147 | Q10: 91 | R10: 53 | S10: 17 | T10: 3 | U10: 2 | V10: 1 | W10: 1 | X10: 2286 | Y10: 143 | Z10: 150 | AA10: 153 | AB10: 143 | AC10: 150 | AD10: 188 | AE10: 227 | AF10: 243 | AG10: 240 | AH10: 195 | AI10: 171 | AJ10: 108 | AK10: 81 | AL10: 46 | AM10: 29 | AN10: 9 | AO10: 4 | AP10: 3 | AQ10: 3 | AR10: 30658
A11: 10 | B11: HOYA DE HUESCA/PLANA DE UESCA | C11: 6 | D11: 4138 | E11: 183 | F11: 261 | G11: 254 | H11: 332 | I11: 352 | J11: 396 | K11: 422 | L11: 467 | M11: 428 | N11: 344 | O11: 269 | P11: 164 | Q11: 114 | R11: 71 | S11: 38 | T11: 20 | U11: 12 | V11: 8 | W11: 3 | X11: 4150 | Y11: 187 | Z11: 254 | AA11: 250 | AB11: 224 | AC11: 272 | AD11: 377 | AE11: 429 | AF11: 480 | AG11: 461 | AH11: 369 | AI11: 289 | AJ11: 200 | AK11: 123 | AL11: 96 | AM11: 74 | AN11: 27 | AO11: 23 | AP11: 11 | AQ11: 4 | AR11: 70352
A12: 11 | B12: SOMONTANO DE BARBASTRO | C12: 7 | D12: 1560 | E12: 76 | F12: 92 | G12: 85 | H12: 79 | I12: 106 | J12: 142 | K12: 141 | L12: 148 | M12: 219 | N12: 168 | O12: 111 | P12: 71 | Q12: 47 | R12: 31 | S12: 20 | T12: 8 | U12: 13 | V12: 2 | W12: 1 | X12: 1548 | Y12: 60 | Z12: 74 | AA12: 67 | AB12: 70 | AC12: 103 | AD12: 144 | AE12: 177 | AF12: 187 | AG12: 176 | AH12: 132 | AI12: 107 | AJ12: 88 | AK12: 59 | AL12: 39 | AM12: 33 | AN12: 18 | AO12: 5 | AP12: 7 | AQ12: 2 | AR12: 24396
A13: 12 | B13: CINCA MEDIO | C13: 8 | D13: 2538 | E13: 103 | F13: 149 | G13: 136 | H13: 145 | I13: 191 | J13: 225 | K13: 239 | L13: 271 | M13: 283 | N13: 312 | O13: 208 | P13: 149 | Q13: 71 | R13: 29 | S13: 14 | T13: 8 | U13: 5 | V13: 0 | W13: 0 | X13: 2028 | Y13: 101 | Z13: 114 | AA13: 119 | AB13: 80 | AC13: 129 | AD13: 190 | AE13: 243 | AF13: 236 | AG13: 238 | AH13: 196 | AI13: 173 | AJ13: 98 | AK13: 51 | AL13: 24 | AM13: 21 | AN13: 8 | AO13: 2 | AP13: 5 | AQ13: 0 | AR13: 24866
A14: 13 | B14: LA LITERA/LA LLITERA | C14: 9 | D14: 2119 | E14: 93 | F14: 81 | G14: 99 | H14: 120 | I14: 154 | J14: 222 | K14: 241 | L14: 203 | M14: 259 | N14: 279 | O14: 163 | P14: 103 | Q14: 50 | R14: 22 | S14: 21 | T14: 5 | U14: 3 | V14: 0 | W14: 1 | X14: 1441 | Y14: 93 | Z14: 96 | AA14: 77 | AB14: 78 | AC14: 106 | AD14: 126 | AE14: 138 | AF14: 184 | AG14: 164 | AH14: 144 | AI14: 89 | AJ14: 53 | AK14: 34 | AL14: 31 | AM14: 11 | AN14: 12 | AO14: 3 | AP14: 2 | AQ14: 0 | AR14: 19072
A15: 14 | B15: LOS MONEGROS | C15: 10 | D15: 1274 | E15: 58 | F15: 73 | G15: 81 | H15: 55 | I15: 85 | J15: 101 | K15: 137 | L15: 142 | M15: 160 | N15: 135 | O15: 101 | P15: 65 | Q15: 41 | R15: 21 | S15: 12 | T15: 1 | U15: 3 | V15: 1 | W15: 2 | X15: 1158 | Y15: 69 | Z15: 84 | AA15: 56 | AB15: 60 | AC15: 51 | AD15: 95 | AE15: 114 | AF15: 151 | AG15: 113 | AH15: 115 | AI15: 95 | AJ15: 69 | AK15: 42 | AL15: 26 | AM15: 10 | AN15: 5 | AO15: 2 | AP15: 1 | AQ15: 0 | AR15: 18167
A16: 15 | B16: BAJO CINCA/BAIX CINCA | C16: 11 | D16: 3461 | E16: 175 | F16: 175 | G16: 149 | H16: 146 | I16: 239 | J16: 285 | K16: 326 | L16: 399 | M16: 451 | N16: 427 | O16: 333 | P16: 194 | Q16: 92 | R16: 49 | S16: 13 | T16: 8 | U16: 0 | V16: 0 | W16: 0 | X16: 2455 | Y16: 146 | Z16: 148 | AA16: 113 | AB16: 109 | AC16: 162 | AD16: 222 | AE16: 237 | AF16: 298 | AG16: 291 | AH16: 270 | AI16: 200 | AJ16: 132 | AK16: 66 | AL16: 38 | AM16: 15 | AN16: 4 | AO16: 3 | AP16: 0 | AQ16: 1 | AR16: 24924
A17: 16 | B17: TARAZONA Y EL MONCAYO | C17: 12 | D17: 872 | E17: 45 | F17: 57 | G17: 51 | H17: 64 | I17: 70 | J17: 75 | K17: 65 | L17: 112 | M17: 108 | N17: 81 | O17: 56 | P17: 34 | Q17: 28 | R17: 12 | S17: 9 | T17: 4 | U17: 0 | V17: 1 | W17: 0 | X17: 834 | Y17: 49 | Z17: 51 | AA17: 56 | AB17: 38 | AC17: 60 | AD17: 86 | AE17: 93 | AF17: 98 | AG17: 97 | AH17: 65 | AI17: 50 | AJ17: 27 | AK17: 27 | AL17: 19 | AM17: 6 | AN17: 7 | AO17: 3 | AP17: 1 | AQ17: 1 | AR17: 14167
A18: 17 | B18: CAMPO DE BORJA | C18: 13 | D18: 1104 | E18: 53 | F18: 73 | G18: 69 | H18: 73 | I18: 67 | J18: 91 | K18: 88 | L18: 111 | M18: 127 | N18: 136 | O18: 94 | P18: 67 | Q18: 29 | R18: 13 | S18: 7 | T18: 5 | U18: 1 | V18: 0 | W18: 0 | X18: 852 | Y18: 49 | Z18: 53 | AA18: 48 | AB18: 49 | AC18: 49 | AD18: 59 | AE18: 96 | AF18: 111 | AG18: 93 | AH18: 98 | AI18: 64 | AJ18: 36 | AK18: 18 | AL18: 10 | AM18: 7 | AN18: 6 | AO18: 2 | AP18: 4 | AQ18: 0 | AR18: 13886
A19: 18 | B19: ARANDA | C19: 14 | D19: 362 | E19: 13 | F19: 17 | G19: 11 | H19: 15 | I19: 24 | J19: 34 | K19: 40 | L19: 32 | M19: 39 | N19: 47 | O19: 42 | P19: 18 | Q19: 17 | R19: 5 | S19: 5 | T19: 3 | U19: 0 | V19: 0 | W19: 0 | X19: 285 | Y19: 6 | Z19: 11 | AA19: 14 | AB19: 14 | AC19: 8 | AD19: 21 | AE19: 22 | AF19: 43 | AG19: 24 | AH19: 42 | AI19: 35 | AJ19: 16 | AK19: 11 | AL19: 8 | AM19: 5 | AN19: 3 | AO19: 0 | AP19: 2 | AQ19: 0 | AR19: 6120
A20: 19 | B20: RIBERA ALTA DEL EBRO | C20: 15 | D20: 1826 | E20: 70 | F20: 93 | G20: 69 | H20: 108 | I20: 104 | J20: 116 | K20: 159 | L20: 187 | M20: 217 | N20: 220 | O20: 189 | P20: 140 | Q20: 85 | R20: 37 | S20: 19 | T20: 8 | U20: 5 | V20: 0 | W20: 0 | X20: 1810 | Y20: 77 | Z20: 100 | AA20: 101 | AB20: 87 | AC20: 102 | AD20: 119 | AE20: 189 | AF20: 215 | AG20: 177 | AH20: 211 | AI20: 159 | AJ20: 100 | AK20: 71 | AL20: 39 | AM20: 28 | AN20: 20 | AO20: 7 | AP20: 6 | AQ20: 2 | AR20: 28381
A21: 20 | B21: VALDEJALÓN | C21: 16 | D21: 4164 | E21: 227 | F21: 210 | G21: 206 | H21: 208 | I21: 294 | J21: 315 | K21: 349 | L21: 440 | M21: 444 | N21: 509 | O21: 396 | P21: 259 | Q21: 176 | R21: 90 | S21: 29 | T21: 7 | U21: 3 | V21: 2 | W21: 0 | X21: 3465 | Y21: 203 | Z21: 186 | AA21: 193 | AB21: 140 | AC21: 206 | AD21: 245 | AE21: 330 | AF21: 398 | AG21: 420 | AH21: 387 | AI21: 308 | AJ21: 199 | AK21: 115 | AL21: 66 | AM21: 42 | AN21: 13 | AO21: 8 | AP21: 4 | AQ21: 2 | AR21: 30396
A22: 21 | B22: CENTRAL | C22: 17 | D22: 51305 | E22: 2287 | F22: 2628 | G22: 2726 | H22: 2913 | I22: 4213 | J22: 5139 | K22: 5499 | L22: 5503 | M22: 5568 | N22: 5144 | O22: 3859 | P22: 2592 | Q22: 1528 | R22: 910 | S22: 430 | T22: 219 | U22: 87 | V22: 44 | W22: 16 | X22: 52819 | Y22: 2091 | Z22: 2478 | AA22: 2588 | AB22: 2612 | AC22: 3821 | AD22: 5137 | AE22: 5826 | AF22: 6271 | AG22: 6012 | AH22: 5143 | AI22: 3754 | AJ22: 2777 | AK22: 1714 | AL22: 1144 | AM22: 733 | AN22: 401 | AO22: 185 | AP22: 92 | AQ22: 40 | AR22: 777204
A23: 22 | B23: RIBERA BAJA DEL EBRO | C23: 18 | D23: 446 | E23: 18 | F23: 29 | G23: 26 | H23: 25 | I23: 33 | J23: 37 | K23: 39 | L23: 48 | M23: 50 | N23: 51 | O23: 30 | P23: 21 | Q23: 20 | R23: 9 | S23: 3 | T23: 4 | U23: 2 | V23: 1 | W23: 0 | X23: 461 | Y23: 29 | Z23: 28 | AA23: 30 | AB23: 22 | AC23: 26 | AD23: 40 | AE23: 47 | AF23: 62 | AG23: 59 | AH23: 35 | AI23: 21 | AJ23: 19 | AK23: 10 | AL23: 17 | AM23: 7 | AN23: 5 | AO23: 2 | AP23: 2 | AQ23: 0 | AR23: 8476
A24: 23 | B24: BAJO ARAGÓN-CASPE/BAIX ARAGÓ-CASP | C24: 19 | D24: 2549 | E24: 160 | F24: 125 | G24: 132 | H24: 167 | I24: 211 | J24: 237 | K24: 236 | L24: 231 | M24: 273 | N24: 250 | O24: 199 | P24: 156 | Q24: 87 | R24: 57 | S24: 16 | T24: 6 | U24: 5 | V24: 1 | W24: 0 | X24: 1774 | Y24: 162 | Z24: 117 | AA24: 102 | AB24: 98 | AC24: 117 | AD24: 120 | AE24: 171 | AF24: 191 | AG24: 174 | AH24: 170 | AI24: 139 | AJ24: 84 | AK24: 57 | AL24: 34 | AM24: 22 | AN24: 6 | AO24: 7 | AP24: 2 | AQ24: 1 | AR24: 15437
A25: 24 | B25: COMUNIDAD DE CALATAYUD | C25: 20 | D25: 3127 | E25: 126 | F25: 151 | G25: 168 | H25: 182 | I25: 222 | J25: 242 | K25: 275 | L25: 304 | M25: 348 | N25: 377 | O25: 271 | P25: 203 | Q25: 123 | R25: 75 | S25: 36 | T25: 13 | U25: 9 | V25: 2 | W25: 0 | X25: 2931 | Y25: 130 | Z25: 146 | AA25: 142 | AB25: 159 | AC25: 150 | AD25: 205 | AE25: 288 | AF25: 317 | AG25: 333 | AH25: 315 | AI25: 256 | AJ25: 189 | AK25: 125 | AL25: 88 | AM25: 49 | AN25: 26 | AO25: 8 | AP25: 4 | AQ25: 1 | AR25: 36111
A26: 25 | B26: CAMPO DE CARIÑENA | C26: 21 | D26: 1366 | E26: 58 | F26: 64 | G26: 76 | H26: 58 | I26: 76 | J26: 96 | K26: 151 | L26: 144 | M26: 147 | N26: 157 | O26: 140 | P26: 98 | Q26: 51 | R26: 28 | S26: 18 | T26: 3 | U26: 1 | V26: 0 | W26: 0 | X26: 1088 | Y26: 60 | Z26: 82 | AA26: 80 | AB26: 60 | AC26: 65 | AD26: 80 | AE26: 107 | AF26: 124 | AG26: 116 | AH26: 107 | AI26: 93 | AJ26: 44 | AK26: 34 | AL26: 28 | AM26: 5 | AN26: 2 | AO26: 1 | AP26: 0 | AQ26: 0 | AR26: 10128
A27: 26 | B27: CAMPO DE BELCHITE | C27: 22 | D27: 208 | E27: 6 | F27: 9 | G27: 14 | H27: 21 | I27: 20 | J27: 16 | K27: 14 | L27: 19 | M27: 24 | N27: 27 | O27: 19 | P27: 8 | Q27: 5 | R27: 2 | S27: 2 | T27: 1 | U27: 1 | V27: 0 | W27: 0 | X27: 237 | Y27: 9 | Z27: 20 | AA27: 15 | AB27: 11 | AC27: 21 | AD27: 21 | AE27: 19 | AF27: 26 | AG27: 35 | AH27: 18 | AI27: 15 | AJ27: 8 | AK27: 10 | AL27: 4 | AM27: 4 | AN27: 1 | AO27: 0 | AP27: 0 | AQ27: 0 | AR27: 4526
A28: 27 | B28: BAJO MARTÍN | C28: 23 | D28: 439 | E28: 28 | F28: 32 | G28: 26 | H28: 25 | I28: 47 | J28: 34 | K28: 36 | L28: 36 | M28: 47 | N28: 42 | O28: 37 | P28: 15 | Q28: 19 | R28: 10 | S28: 2 | T28: 3 | U28: 0 | V28: 0 | W28: 0 | X28: 375 | Y28: 21 | Z28: 30 | AA28: 36 | AB28: 23 | AC28: 25 | AD28: 27 | AE28: 51 | AF28: 29 | AG28: 41 | AH28: 30 | AI28: 21 | AJ28: 11 | AK28: 12 | AL28: 6 | AM28: 6 | AN28: 2 | AO28: 2 | AP28: 2 | AQ28: 0 | AR28: 6204
A29: 28 | B29: CAMPO DE DAROCA | C29: 24 | D29: 466 | E29: 27 | F29: 29 | G29: 29 | H29: 22 | I29: 37 | J29: 58 | K29: 53 | L29: 61 | M29: 34 | N29: 51 | O29: 36 | P29: 15 | Q29: 5 | R29: 5 | S29: 2 | T29: 0 | U29: 2 | V29: 0 | W29: 0 | X29: 388 | Y29: 21 | Z29: 26 | AA29: 23 | AB29: 17 | AC29: 31 | AD29: 34 | AE29: 57 | AF29: 36 | AG29: 36 | AH29: 41 | AI29: 28 | AJ29: 21 | AK29: 5 | AL29: 3 | AM29: 5 | AN29: 1 | AO29: 3 | AP29: 0 | AQ29: 0 | AR29: 5450
A30: 29 | B30: JILOCA | C30: 25 | D30: 1067 | E30: 56 | F30: 70 | G30: 91 | H30: 58 | I30: 73 | J30: 78 | K30: 108 | L30: 120 | M30: 94 | N30: 120 | O30: 90 | P30: 61 | Q30: 24 | R30: 13 | S30: 6 | T30: 4 | U30: 0 | V30: 1 | W30: 0 | X30: 974 | Y30: 59 | Z30: 73 | AA30: 72 | AB30: 48 | AC30: 85 | AD30: 74 | AE30: 114 | AF30: 101 | AG30: 96 | AH30: 82 | AI30: 71 | AJ30: 40 | AK30: 27 | AL30: 18 | AM30: 9 | AN30: 2 | AO30: 2 | AP30: 1 | AQ30: 0 | AR30: 12532
A31: 30 | B31: CUENCAS MINERAS | C31: 26 | D31: 466 | E31: 28 | F31: 34 | G31: 45 | H31: 17 | I31: 38 | J31: 48 | K31: 45 | L31: 30 | M31: 51 | N31: 42 | O31: 29 | P31: 25 | Q31: 15 | R31: 14 | S31: 3 | T31: 1 | U31: 1 | V31: 0 | W31: 0 | X31: 412 | Y31: 42 | Z31: 32 | AA31: 22 | AB31: 14 | AC31: 27 | AD31: 37 | AE31: 55 | AF31: 44 | AG31: 35 | AH31: 26 | AI31: 29 | AJ31: 17 | AK31: 16 | AL31: 10 | AM31: 3 | AN31: 1 | AO31: 1 | AP31: 1 | AQ31: 0 | AR31: 7800
A32: 31 | B32: ANDORRA-SIERRA DE ARCOS | C32: 27 | D32: 495 | E32: 33 | F32: 41 | G32: 40 | H32: 40 | I32: 45 | J32: 25 | K32: 38 | L32: 42 | M32: 49 | N32: 50 | O32: 36 | P32: 23 | Q32: 17 | R32: 11 | S32: 4 | T32: 1 | U32: 0 | V32: 0 | W32: 0 | X32: 544 | Y32: 17 | Z32: 30 | AA32: 50 | AB32: 34 | AC32: 45 | AD32: 44 | AE32: 65 | AF32: 57 | AG32: 60 | AH32: 57 | AI32: 39 | AJ32: 16 | AK32: 14 | AL32: 11 | AM32: 4 | AN32: 0 | AO32: 1 | AP32: 0 | AQ32: 0 | AR32: 9564
A33: 32 | B33: BAJO ARAGÓN | C33: 28 | D33: 2132 | E33: 93 | F33: 139 | G33: 143 | H33: 119 | I33: 150 | J33: 177 | K33: 159 | L33: 216 | M33: 246 | N33: 258 | O33: 163 | P33: 134 | Q33: 77 | R33: 25 | S33: 24 | T33: 5 | U33: 2 | V33: 1 | W33: 1 | X33: 2082 | Y33: 124 | Z33: 121 | AA33: 135 | AB33: 89 | AC33: 135 | AD33: 142 | AE33: 226 | AF33: 236 | AG33: 229 | AH33: 215 | AI33: 166 | AJ33: 110 | AK33: 70 | AL33: 39 | AM33: 21 | AN33: 12 | AO33: 8 | AP33: 4 | AQ33: 0 | AR33: 28673
A34: 33 | B34: COMUNIDAD DE TERUEL | C34: 29 | D34: 2668 | E34: 128 | F34: 167 | G34: 154 | H34: 179 | I34: 236 | J34: 251 | K34: 264 | L34: 251 | M34: 271 | N34: 260 | O34: 178 | P34: 136 | Q34: 99 | R34: 53 | S34: 18 | T34: 12 | U34: 10 | V34: 0 | W34: 1 | X34: 2598 | Y34: 117 | Z34: 139 | AA34: 148 | AB34: 145 | AC34: 165 | AD34: 235 | AE34: 271 | AF34: 275 | AG34: 259 | AH34: 270 | AI34: 217 | AJ34: 129 | AK34: 97 | AL34: 56 | AM34: 42 | AN34: 17 | AO34: 8 | AP34: 4 | AQ34: 4 | AR34: 46827
A35: 34 | B35: MAESTRAZGO | C35: 30 | D35: 160 | E35: 5 | F35: 8 | G35: 12 | H35: 9 | I35: 12 | J35: 9 | K35: 16 | L35: 16 | M35: 20 | N35: 17 | O35: 12 | P35: 12 | Q35: 3 | R35: 2 | S35: 4 | T35: 2 | U35: 0 | V35: 1 | W35: 0 | X35: 148 | Y35: 6 | Z35: 11 | AA35: 8 | AB35: 10 | AC35: 8 | AD35: 13 | AE35: 14 | AF35: 13 | AG35: 16 | AH35: 17 | AI35: 10 | AJ35: 6 | AK35: 7 | AL35: 4 | AM35: 3 | AN35: 1 | AO35: 1 | AP35: 0 | AQ35: 0 | AR35: 3113
A36: 35 | B36: SIERRA DE ALBARRACÍN | C36: 31 | D36: 172 | E36: 12 | F36: 11 | G36: 5 | H36: 18 | I36: 13 | J36: 10 | K36: 7 | L36: 15 | M36: 20 | N36: 22 | O36: 12 | P36: 11 | Q36: 5 | R36: 8 | S36: 2 | T36: 0 | U36: 0 | V36: 0 | W36: 1 | X36: 182 | Y36: 4 | Z36: 6 | AA36: 16 | AB36: 8 | AC36: 13 | AD36: 12 | AE36: 18 | AF36: 23 | AG36: 23 | AH36: 19 | AI36: 12 | AJ36: 7 | AK36: 9 | AL36: 4 | AM36: 3 | AN36: 3 | AO36: 2 | AP36: 0 | AQ36: 0 | AR36: 4537
A37: 36 | B37: GÚDAR-JAVALAMBRE | C37: 32 | D37: 577 | E37: 23 | F37: 41 | G37: 55 | H37: 28 | I37: 31 | J37: 42 | K37: 60 | L37: 56 | M37: 69 | N37: 62 | O37: 38 | P37: 36 | Q37: 19 | R37: 10 | S37: 0 | T37: 6 | U37: 1 | V37: 0 | W37: 0 | X37: 510 | Y37: 29 | Z37: 35 | AA37: 37 | AB37: 29 | AC37: 26 | AD37: 45 | AE37: 59 | AF37: 59 | AG37: 51 | AH37: 42 | AI37: 39 | AJ37: 27 | AK37: 17 | AL37: 5 | AM37: 7 | AN37: 1 | AO37: 1 | AP37: 1 | AQ37: 0 | AR37: 7792
A38: 37 | B38: MATARRAÑA/MATARRANYA | C38: 33 | D38: 744 | E38: 35 | F38: 30 | G38: 29 | H38: 42 | I38: 48 | J38: 45 | K38: 52 | L38: 79 | M38: 96 | N38: 85 | O38: 57 | P38: 55 | Q38: 42 | R38: 19 | S38: 15 | T38: 13 | U38: 1 | V38: 1 | W38: 0 | X38: 627 | Y38: 32 | Z38: 42 | AA38: 40 | AB38: 20 | AC38: 37 | AD38: 48 | AE38: 62 | AF38: 67 | AG38: 60 | AH38: 58 | AI38: 45 | AJ38: 34 | AK38: 31 | AL38: 25 | AM38: 12 | AN38: 9 | AO38: 3 | AP38: 2 | AQ38: 0 | AR38: 8267
A39: 38 | B39: 22001 Abiego | C39: 22001 | D39: 3 | E39: 0 | F39: 0 | G39: 1 | H39: 0 | I39: 0 | J39: 0 | K39: 1 | L39: 0 | M39: 0 | N39: 0 | O39: 0 | P39: 1 | Q39: 0 | R39: 0 | S39: 0 | T39: 0 | U39: 0 | V39: 0 | W39: 0 | X39: 5 | Y39: 0 | Z39: 0 | AA39: 0 | AB39: 0 | AC39: 0 | AD39: 1 | AE39: 0 | AF39: 0 | AG39: 2 | AH39: 0 | AI39: 0 | AJ39: 2 | AK39: 0 | AL39: 0 | AM39: 0 | AN39: 0 | AO39: 0 | AP39: 0 | AQ39: 0 | AR39: 491 | AS39: 0
A40: 39 | B40: 22002 Abizanda | C40: 22002 | D40: 24 | E40: 0 | F40: 0 | G40: 0 | H40: 0 | I40: 1 | J40: 2 | K40: 2 | L40: 4 | M40: 3 | N40: 1 | O40: 4 | P40: 2 | Q40: 3 | R40: 0 | S40: 0 | T40: 2 | U40: 0 | V40: 0 | W40: 0 | X40: 17 | Y40: 0 | Z40: 0 | AA40: 0 | AB40: 0 | AC40: 1 | AD40: 2 | AE40: 0 | AF40: 1 | AG40: 2 | AH40: 1 | AI40: 1 | AJ40: 4 | AK40: 2 | AL40: 1 | AM40: 2 | AN40: 0 | AO40: 0 | AP40: 0 | AQ40: 0 | AR40: 159
A41: 40 | B41: 22003 Adahuesca | C41: 22003 | D41: 6 | E41: 0 | F41: 1 | G41: 0 | H41: 0 | I41: 1 | J41: 1 | K41: 1 | L41: 0 | M41: 1 | N41: 0 | O41: 1 | P41: 0 | Q41: 0 | R41: 0 | S41: 0 | T41: 0 | U41: 0 | V41: 0 | W41: 0 | X41: 7 | Y41: 0 | Z41: 0 | AA41: 1 | AB41: 0 | AC41: 1 | AD41: 0 | AE41: 0 | AF41: 1 | AG41: 2 | AH41: 0 | AI41: 1 | AJ41: 0 | AK41: 0 | AL41: 0 | AM41: 0 | AN41: 0 | AO41: 1 | AP41: 0 | AQ41: 0 | AR41: 180
A42: 41 | B42: 22004 Agüero | C42: 22004 | D42: 5 | E42: 0 | F42: 0 | G42: 0 | H42: 1 | I42: 0 | J42: 0 | K42: 0 | L42: 1 | M42: 0 | N42: 2 | O42: 0 | P42: 0 | Q42: 0 | R42: 0 | S42: 1 | T42: 0 | U42: 0 | V42: 0 | W42: 0 | X42: 2 | Y42: 0 | Z42: 0 | AA42: 1 | AB42: 0 | AC42: 0 | AD42: 0 | AE42: 0 | AF42: 0 | AG42: 1 | AH42: 0 | AI42: 0 | AJ42: 0 | AK42: 0 | AL42: 0 | AM42: 0 | AN42: 0 | AO42: 0 | AP42: 0 | AQ42: 0 | AR42: 231
A43: 42 | B43: 22006 Aísa | C43: 22006 | D43: 8 | E43: 0 | F43: 1 | G43: 0 | H43: 0 | I43: 1 | J43: 0 | K43: 2 | L43: 0 | M43: 1 | N43: 2 | O43: 0 | P43: 0 | Q43: 0 | R43: 0 | S43: 0 | T43: 0 | U43: 0 | V43: 1 | W43: 0 | X43: 15 | Y43: 1 | Z43: 1 | AA43: 2 | AB43: 1 | AC43: 3 | AD43: 0 | AE43: 2 | AF43: 0 | AG43: 0 | AH43: 2 | AI43: 1 | AJ43: 0 | AK43: 2 | AL43: 0 | AM43: 0 | AN43: 0 | AO43: 0 | AP43: 0 | AQ43: 0 | AR43: 308
A44: 43 | B44: 22007 Albalate de Cinca | C44: 22007 | D44: 210 | E44: 5 | F44: 8 | G44: 6 | H44: 7 | I44: 15 | J44: 17 | K44: 23 | L44: 31 | M44: 19 | N44: 20 | O44: 23 | P44: 19 | Q44: 9 | R44: 4 | S44: 4 | T44: 0 | U44: 0 | V44: 0 | W44: 0 | X44: 116 | Y44: 11 | Z44: 3 | AA44: 3 | AB44: 2 | AC44: 9 | AD44: 8 | AE44: 11 | AF44: 17 | AG44: 13 | AH44: 16 | AI44: 13 | AJ44: 5 | AK44: 3 | AL44: 1 | AM44: 1 | AN44: 0 | AO44: 0 | AP44: 0 | AQ44: 0 | AR44: 866
A45: 44 | B45: 22008 Albalatillo | C45: 22008 | D45: 38 | E45: 1 | F45: 1 | G45: 0 | H45: 2 | I45: 4 | J45: 4 | K45: 11 | L45: 2 | M45: 1 | N45: 2 | O45: 3 | P45: 5 | Q45: 1 | R45: 0 | S45: 0 | T45: 0 | U45: 0 | V45: 0 | W45: 1 | X45: 39 | Y45: 3 | Z45: 3 | AA45: 1 | AB45: 0 | AC45: 5 | AD45: 8 | AE45: 5 | AF45: 1 | AG45: 0 | AH45: 4 | AI45: 7 | AJ45: 1 | AK45: 0 | AL45: 1 | AM45: 0 | AN45: 0 | AO45: 0 | AP45: 0 | AQ45: 0 | AR45: 416
A46: 45 | B46: 22009 Albelda | C46: 22009 | D46: 35 | E46: 3 | F46: 4 | G46: 1 | H46: 0 | I46: 2 | J46: 4 | K46: 4 | L46: 3 | M46: 5 | N46: 3 | O46: 1 | P46: 1 | Q46: 2 | R46: 2 | S46: 0 | T46: 0 | U46: 0 | V46: 0 | W46: 0 | X46: 24 | Y46: 1 | Z46: 2 | AA46: 0 | AB46: 1 | AC46: 1 | AD46: 2 | AE46: 2 | AF46: 2 | AG46: 4 | AH46: 4 | AI46: 2 | AJ46: 2 | AK46: 0 | AL46: 1 | AM46: 0 | AN46: 0 | AO46: 0 | AP46: 0 | AQ46: 0 | AR46: 954
A47: 46 | B47: 22011 Albero Alto | C47: 22011 | D47: 3 | E47: 0 | F47: 0 | G47: 0 | H47: 0 | I47: 0 | J47: 0 | K47: 0 | L47: 0 | M47: 1 | N47: 0 | O47: 1 | P47: 0 | Q47: 1 | R47: 0 | S47: 0 | T47: 0 | U47: 0 | V47: 0 | W47: 0 | X47: 6 | Y47: 1 | Z47: 0 | AA47: 0 | AB47: 0 | AC47: 0 | AD47: 0 | AE47: 0 | AF47: 1 | AG47: 0 | AH47: 0 | AI47: 0 | AJ47: 1 | AK47: 2 | AL47: 0 | AM47: 0 | AN47: 1 | AO47: 0 | AP47: 0 | AQ47: 0 | AR47: 291
A48: 47 | B48: 22012 Albero Bajo | C48: 22012 | D48: 1 | E48: 0 | F48: 0 | G48: 0 | H48: 0 | I48: 0 | J48: 0 | K48: 1 | L48: 0 | M48: 0 | N48: 0 | O48: 0 | P48: 0 | Q48: 0 | R48: 0 | S48: 0 | T48: 0 | U48: 0 | V48: 0 | W48: 0 | X48: 1 | Y48: 0 | Z48: 0 | AA48: 0 | AB48: 0 | AC48: 0 | AD48: 0 | AE48: 0 | AF48: 0 | AG48: 0 | AH48: 0 | AI48: 0 | AJ48: 0 | AK48: 0 | AL48: 0 | AM48: 1 | AN48: 0 | AO48: 0 | AP48: 0 | AQ48: 0 | AR48: 185
A49: 48 | B49: 22013 Alberuela de Tubo | C49: 22013 | D49: 6 | E49: 1 | F49: 0 | G49: 1 | H49: 0 | I49: 1 | J49: 0 | K49: 0 | L49: 1 | M49: 0 | N49: 1 | O49: 1 | P49: 0 | Q49: 0 | R49: 0 | S49: 0 | T49: 0 | U49: 0 | V49: 0 | W49: 0 | X49: 10 | Y49: 1 | Z49: 0 | AA49: 0 | AB49: 0 | AC49: 0 | AD49: 1 | AE49: 1 | AF49: 2 | AG49: 2 | AH49: 1 | AI49: 0 | AJ49: 1 | AK49: 1 | AL49: 0 | AM49: 0 | AN49: 0 | AO49: 0 | AP49: 0 | AQ49: 0 | AR49: 211
A50: 49 | B50: 22014 Alcalá de Gurrea | C50: 22014 | D50: 30 | E50: 1 | F50: 3 | G50: 2 | H50: 3 | I50: 3 | J50: 5 | K50: 7 | L50: 4 | M50: 1 | N50: 1 | O50: 0 | P50: 0 | Q50: 0 | R50: 0 | S50: 0 | T50: 0 | U50: 0 | V50: 0 | W50: 0 | X50: 21 | Y50: 1 | Z50: 0 | AA50: 2 | AB50: 2 | AC50: 1 | AD50: 4 | AE50: 0 | AF50: 4 | AG50: 2 | AH50: 2 | AI50: 2 | AJ50: 1 | AK50: 0 | AL50: 0 | AM50: 0 | AN50: 0 | AO50: 0 | AP50: 0 | AQ50: 0 | AR50: 1370
A51: 50 | B51: 22015 Alcalá del Obispo | C51: 22015 | D51: 17 | E51: 2 | F51: 1 | G51: 3 | H51: 2 | I51: 1 | J51: 1 | K51: 0 | L51: 0 | M51: 7 | N51: 0 | O51: 0 | P51: 0 | Q51: 0 | R51: 0 | S51: 0 | T51: 0 | U51: 0 | V51: 0 | W51: 0 | X51: 8 | Y51: 0 | Z51: 0 | AA51: 0 | AB51: 0 | AC51: 0 | AD51: 0 | AE51: 1 | AF51: 4 | AG51: 0 | AH51: 2 | AI51: 1 | AJ51: 0 | AK51: 0 | AL51: 0 | AM51: 0 | AN51: 0 | AO51: 0 | AP51: 0 | AQ51: 0 | AR51: 579
A52: 51 | B52: 22016 Alcampell | C52: 22016 | D52: 18 | E52: 1 | F52: 1 | G52: 0 | H52: 2 | I52: 0 | J52: 2 | K52: 2 | L52: 1 | M52: 0 | N52: 3 | O52: 4 | P52: 1 | Q52: 1 | R52: 0 | S52: 0 | T52: 0 | U52: 0 | V52: 0 | W52: 0 | X52: 17 | Y52: 0 | Z52: 2 | AA52: 1 | AB52: 1 | AC52: 1 | AD52: 2 | AE52: 0 | AF52: 5 | AG52: 0 | AH52: 2 | AI52: 1 | AJ52: 0 | AK52: 1 | AL52: 0 | AM52: 1 | AN52: 0 | AO52: 0 | AP52: 0 | AQ52: 0 | AR52: 536
A53: 52 | B53: 22017 Alcolea de Cinca | C53: 22017 | D53: 115 | E53: 3 | F53: 5 | G53: 0 | H53: 5 | I53: 9 | J53: 10 | K53: 10 | L53: 15 | M53: 16 | N53: 22 | O53: 8 | P53: 8 | Q53: 2 | R53: 1 | S53: 0 | T53: 1 | U53: 0 | V53: 0 | W53: 0 | X53: 68 | Y53: 5 | Z53: 0 | AA53: 7 | AB53: 3 | AC53: 10 | AD53: 6 | AE53: 9 | AF53: 4 | AG53: 7 | AH53: 4 | AI53: 4 | AJ53: 3 | AK53: 5 | AL53: 0 | AM53: 1 | AN53: 0 | AO53: 0 | AP53: 0 | AQ53: 0 | AR53: 767
A54: 53 | B54: 22018 Alcubierre | C54: 22018 | D54: 32 | E54: 2 | F54: 2 | G54: 5 | H54: 2 | I54: 1 | J54: 3 | K54: 3 | L54: 1 | M54: 6 | N54: 3 | O54: 2 | P54: 0 | Q54: 0 | R54: 1 | S54: 0 | T54: 0 | U54: 0 | V54: 0 | W54: 1 | X54: 25 | Y54: 1 | Z54: 1 | AA54: 2 | AB54: 3 | AC54: 1 | AD54: 0 | AE54: 4 | AF54: 4 | AG54: 3 | AH54: 1 | AI54: 1 | AJ54: 1 | AK54: 2 | AL54: 1 | AM54: 0 | AN54: 0 | AO54: 0 | AP54: 0 | AQ54: 0 | AR54: 1016
A55: 54 | B55: 22019 Alerre | C55: 22019 | D55: 4 | E55: 0 | F55: 0 | G55: 1 | H55: 0 | I55: 0 | J55: 0 | K55: 0 | L55: 0 | M55: 0 | N55: 1 | O55: 1 | P55: 0 | Q55: 0 | R55: 1 | S55: 0 | T55: 0 | U55: 0 | V55: 0 | W55: 0 | X55: 6 | Y55: 0 | Z55: 0 | AA55: 0 | AB55: 1 | AC55: 0 | AD55: 0 | AE55: 0 | AF55: 2 | AG55: 0 | AH55: 1 | AI55: 0 | AJ55: 0 | AK55: 1 | AL55: 0 | AM55: 1 | AN55: 0 | AO55: 0 | AP55: 0 | AQ55: 0 | AR55: 313
A56: 55 | B56: 22020 Alfántega | C56: 22020 | D56: 6 | E56: 0 | F56: 0 | G56: 0 | H56: 0 | I56: 0 | J56: 0 | K56: 2 | L56: 0 | M56: 0 | N56: 2 | O56: 1 | P56: 0 | Q56: 0 | R56: 1 | S56: 0 | T56: 0 | U56: 0 | V56: 0 | W56: 0 | X56: 8 | Y56: 0 | Z56: 0 | AA56: 0 | AB56: 0 | AC56: 0 | AD56: 1 | AE56: 0 | AF56: 1 | AG56: 1 | AH56: 3 | AI56: 0 | AJ56: 0 | AK56: 1 | AL56: 0 | AM56: 1 | AN56: 0 | AO56: 0 | AP56: 0 | AQ56: 0 | AR56: 269
A57: 56 | B57: 22021 Almudévar | C57: 22021 | D57: 98 | E57: 8 | F57: 5 | G57: 6 | H57: 8 | I57: 7 | J57: 5 | K57: 6 | L57: 16 | M57: 7 | N57: 11 | O57: 6 | P57: 3 | Q57: 3 | R57: 0 | S57: 3 | T57: 0 | U57: 3 | V57: 1 | W57: 0 | X57: 107 | Y57: 5 | Z57: 6 | AA57: 7 | AB57: 5 | AC57: 7 | AD57: 10 | AE57: 10 | AF57: 14 | AG57: 12 | AH57: 9 | AI57: 9 | AJ57: 3 | AK57: 4 | AL57: 3 | AM57: 0 | AN57: 2 | AO57: 1 | AP57: 0 | AQ57: 0 | AR57: 1291
A58: 57 | B58: 22022 Almunia de San Juan | C58: 22022 | D58: 27 | E58: 2 | F58: 1 | G58: 0 | H58: 4 | I58: 1 | J58: 5 | K58: 2 | L58: 3 | M58: 2 | N58: 1 | O58: 3 | P58: 1 | Q58: 0 | R58: 1 | S58: 1 | T58: 0 | U58: 0 | V58: 0 | W58: 0 | X58: 36 | Y58: 4 | Z58: 3 | AA58: 2 | AB58: 1 | AC58: 2 | AD58: 3 | AE58: 3 | AF58: 5 | AG58: 5 | AH58: 0 | AI58: 5 | AJ58: 2 | AK58: 0 | AL58: 0 | AM58: 0 | AN58: 1 | AO58: 0 | AP58: 0 | AQ58: 0 | AR58: 429
A59: 58 | B59: 22023 Almuniente | C59: 22023 | D59: 17 | E59: 0 | F59: 1 | G59: 0 | H59: 0 | I59: 2 | J59: 0 | K59: 2 | L59: 3 | M59: 2 | N59: 1 | O59: 3 | P59: 0 | Q59: 3 | R59: 0 | S59: 0 | T59: 0 | U59: 0 | V59: 0 | W59: 0 | X59: 20 | Y59: 1 | Z59: 2 | AA59: 1 | AB59: 1 | AC59: 2 | AD59: 2 | AE59: 0 | AF59: 3 | AG59: 1 | AH59: 0 | AI59: 3 | AJ59: 3 | AK59: 1 | AL59: 0 | AM59: 0 | AN59: 0 | AO59: 0 | AP59: 0 | AQ59: 0 | AR59: 400
A60: 59 | B60: 22024 Alquézar | C60: 22024 | D60: 35 | E60: 2 | F60: 1 | G60: 1 | H60: 1 | I60: 0 | J60: 0 | K60: 1 | L60: 7 | M60: 5 | N60: 1 | O60: 1 | P60: 3 | Q60: 4 | R60: 4 | S60: 2 | T60: 0 | U60: 1 | V60: 1 | W60: 0 | X60: 43 | Y60: 1 | Z60: 3 | AA60: 0 | AB60: 1 | AC60: 4 | AD60: 2 | AE60: 3 | AF60: 7 | AG60: 4 | AH60: 2 | AI60: 2 | AJ60: 4 | AK60: 3 | AL60: 1 | AM60: 2 | AN60: 2 | AO60: 1 | AP60: 1 | AQ60: 0 | AR60: 239
A61: 60 | B61: 22025 Altorricón | C61: 22025 | D61: 204 | E61: 10 | F61: 12 | G61: 8 | H61: 11 | I61: 18 | J61: 26 | K61: 20 | L61: 12 | M61: 27 | N61: 28 | O61: 12 | P61: 16 | Q61: 2 | R61: 1 | S61: 1 | T61: 0 | U61: 0 | V61: 0 | W61: 0 | X61: 105 | Y61: 13 | Z61: 6 | AA61: 5 | AB61: 3 | AC61: 9 | AD61: 8 | AE61: 16 | AF61: 15 | AG61: 7 | AH61: 9 | AI61: 5 | AJ61: 3 | AK61: 4 | AL61: 2 | AM61: 0 | AN61: 0 | AO61: 0 | AP61: 0 | AQ61: 0 | AR61: 884
A62: 61 | B62: 22027 Angüés | C62: 22027 | D62: 20 | E62: 1 | F62: 1 | G62: 4 | H62: 1 | I62: 1 | J62: 0 | K62: 1 | L62: 2 | M62: 6 | N62: 0 | O62: 3 | P62: 0 | Q62: 0 | R62: 0 | S62: 0 | T62: 0 | U62: 0 | V62: 0 | W62: 0 | X62: 15 | Y62: 1 | Z62: 1 | AA62: 0 | AB62: 4 | AC62: 0 | AD62: 0 | AE62: 0 | AF62: 1 | AG62: 4 | AH62: 3 | AI62: 0 | AJ62: 1 | AK62: 0 | AL62: 0 | AM62: 0 | AN62: 0 | AO62: 0 | AP62: 0 | AQ62: 0 | AR62: 725
A63: 62 | B63: 22028 Ansó | C63: 22028 | D63: 8 | E63: 0 | F63: 0 | G63: 0 | H63: 0 | I63: 0 | J63: 0 | K63: 2 | L63: 1 | M63: 0 | N63: 1 | O63: 1 | P63: 1 | Q63: 1 | R63: 1 | S63: 0 | T63: 0 | U63: 0 | V63: 0 | W63: 0 | X63: 5 | Y63: 0 | Z63: 0 | AA63: 0 | AB63: 0 | AC63: 0 | AD63: 1 | AE63: 0 | AF63: 0 | AG63: 1 | AH63: 1 | AI63: 0 | AJ63: 0 | AK63: 2 | AL63: 0 | AM63: 0 | AN63: 0 | AO63: 0 | AP63: 0 | AQ63: 0 | AR63: 301
A64: 63 | B64: 22029 Antillón | C64: 22029 | D64: 2 | E64: 0 | F64: 0 | G64: 1 | H64: 0 | I64: 0 | J64: 0 | K64: 1 | L64: 0 | M64: 0 | N64: 0 | O64: 0 | P64: 0 | Q64: 0 | R64: 0 | S64: 0 | T64: 0 | U64: 0 | V64: 0 | W64: 0 | X64: 3 | Y64: 0 | Z64: 0 | AA64: 0 | AB64: 0 | AC64: 0 | AD64: 0 | AE64: 0 | AF64: 1 | AG64: 0 | AH64: 1 | AI64: 0 | AJ64: 1 | AK64: 0 | AL64: 0 | AM64: 0 | AN64: 0 | AO64: 0 | AP64: 0 | AQ64: 0 | AR64: 154
A65: 64 | B65: 22032 Aragüés del Puerto | C65: 22032 | D65: 0 | E65: 0 | F65: 0 | G65: 0 | H65: 0 | I65: 0 | J65: 0 | K65: 0 | L65: 0 | M65: 0 | N65: 0 | O65: 0 | P65: 0 | Q65: 0 | R65: 0 | S65: 0 | T65: 0 | U65: 0 | V65: 0 | W65: 0 | X65: 3 | Y65: 0 | Z65: 0 | AA65: 0 | AB65: 0 | AC65: 0 | AD65: 0 | AE65: 0 | AF65: 0 | AG65: 1 | AH65: 0 | AI65: 1 | AJ65: 0 | AK65: 0 | AL65: 0 | AM65: 1 | AN65: 0 | AO65: 0 | AP65: 0 | AQ65: 0 | AR65: 131
A66: 65 | B66: 22035 Arén | C66: 22035 | D66: 32 | E66: 0 | F66: 2 | G66: 1 | H66: 1 | I66: 0 | J66: 2 | K66: 1 | L66: 5 | M66: 2 | N66: 5 | O66: 5 | P66: 1 | Q66: 3 | R66: 2 | S66: 1 | T66: 0 | U66: 1 | V66: 0 | W66: 0 | X66: 30 | Y66: 0 | Z66: 1 | AA66: 1 | AB66: 0 | AC66: 1 | AD66: 2 | AE66: 4 | AF66: 5 | AG66: 4 | AH66: 1 | AI66: 4 | AJ66: 1 | AK66: 3 | AL66: 2 | AM66: 1 | AN66: 0 | AO66: 0 | AP66: 0 | AQ66: 0 | AR66: 218
A67: 66 | B67: 22036 Argavieso | C67: 22036 | D67: 5 | E67: 0 | F67: 0 | G67: 0 | H67: 2 | I67: 0 | J67: 1 | K67: 0 | L67: 1 | M67: 0 | N67: 0 | O67: 1 | P67: 0 | Q67: 0 | R67: 0 | S67: 0 | T67: 0 | U67: 0 | V67: 0 | W67: 0 | X67: 4 | Y67: 0 | Z67: 0 | AA67: 0 | AB67: 0 | AC67: 0 | AD67: 1 | AE67: 0 | AF67: 1 | AG67: 0 | AH67: 1 | AI67: 0 | AJ67: 1 | AK67: 0 | AL67: 0 | AM67: 0 | AN67: 0 | AO67: 0 | AP67: 0 | AQ67: 0 | AR67: 226
A68: 67 | B68: 22037 Arguis | C68: 22037 | D68: 0 | E68: 0 | F68: 0 | G68: 0 | H68: 0 | I68: 0 | J68: 0 | K68: 0 | L68: 0 | M68: 0 | N68: 0 | O68: 0 | P68: 0 | Q68: 0 | R68: 0 | S68: 0 | T68: 0 | U68: 0 | V68: 0 | W68: 0 | X68: 2 | Y68: 0 | Z68: 0 | AA68: 0 | AB68: 0 | AC68: 0 | AD68: 0 | AE68: 0 | AF68: 1 | AG68: 0 | AH68: 0 | AI68: 0 | AJ68: 1 | AK68: 0 | AL68: 0 | AM68: 0 | AN68: 0 | AO68: 0 | AP68: 0 | AQ68: 0 | AR68: 138
A69: 68 | B69: 22039 Ayerbe | C69: 22039 | D69: 41 | E69: 2 | F69: 4 | G69: 3 | H69: 0 | I69: 3 | J69: 3 | K69: 3 | L69: 5 | M69: 10 | N69: 3 | O69: 1 | P69: 1 | Q69: 1 | R69: 0 | S69: 0 | T69: 1 | U69: 0 | V69: 1 | W69: 0 | X69: 54 | Y69: 2 | Z69: 2 | AA69: 5 | AB69: 4 | AC69: 6 | AD69: 0 | AE69: 9 | AF69: 6 | AG69: 6 | AH69: 8 | AI69: 2 | AJ69: 1 | AK69: 1 | AL69: 1 | AM69: 0 | AN69: 0 | AO69: 0 | AP69: 1 | AQ69: 0 | AR69: 962
A70: 69 | B70: 22040 Azanuy-Alins | C70: 22040 | D70: 5 | E70: 1 | F70: 0 | G70: 0 | H70: 0 | I70: 0 | J70: 0 | K70: 1 | L70: 1 | M70: 0 | N70: 0 | O70: 1 | P70: 0 | Q70: 0 | R70: 1 | S70: 0 | T70: 0 | U70: 0 | V70: 0 | W70: 0 | X70: 3 | Y70: 0 | Z70: 1 | AA70: 0 | AB70: 0 | AC70: 0 | AD70: 0 | AE70: 0 | AF70: 1 | AG70: 0 | AH70: 0 | AI70: 0 | AJ70: 0 | AK70: 0 | AL70: 1 | AM70: 0 | AN70: 0 | AO70: 0 | AP70: 0 | AQ70: 0 | AR70: 261
A71: 70 | B71: 22041 Azara | C71: 22041 | D71: 2 | E71: 0 | F71: 0 | G71: 0 | H71: 0 | I71: 0 | J71: 0 | K71: 0 | L71: 0 | M71: 0 | N71: 0 | O71: 0 | P71: 1 | Q71: 1 | R71: 0 | S71: 0 | T71: 0 | U71: 0 | V71: 0 | W71: 0 | X71: 2 | Y71: 0 | Z71: 0 | AA71: 0 | AB71: 0 | AC71: 0 | AD71: 0 | AE71: 0 | AF71: 1 | AG71: 0 | AH71: 0 | AI71: 0 | AJ71: 0 | AK71: 1 | AL71: 0 | AM71: 0 | AN71: 0 | AO71: 0 | AP71: 0 | AQ71: 0 | AR71: 8677
A72: 71 | B72: 22042 Azlor | C72: 22042 | D72: 4 | E72: 0 | F72: 0 | G72: 0 | H72: 0 | I72: 0 | J72: 0 | K72: 0 | L72: 0 | M72: 3 | N72: 0 | O72: 0 | P72: 1 | Q72: 0 | R72: 0 | S72: 0 | T72: 0 | U72: 0 | V72: 0 | W72: 0 | X72: 10 | Y72: 0 | Z72: 1 | AA72: 0 | AB72: 0 | AC72: 1 | AD72: 0 | AE72: 2 | AF72: 0 | AG72: 2 | AH72: 0 | AI72: 0 | AJ72: 2 | AK72: 1 | AL72: 1 | AM72: 0 | AN72: 0 | AO72: 0 | AP72: 0 | AQ72: 0 | AR72: 128
A73: 72 | B73: 22043 Baells | C73: 22043 | D73: 4 | E73: 0 | F73: 0 | G73: 1 | H73: 0 | I73: 1 | J73: 0 | K73: 0 | L73: 0 | M73: 0 | N73: 1 | O73: 1 | P73: 0 | Q73: 0 | R73: 0 | S73: 0 | T73: 0 | U73: 0 | V73: 0 | W73: 0 | X73: 5 | Y73: 0 | Z73: 1 | AA73: 0 | AB73: 0 | AC73: 0 | AD73: 1 | AE73: 0 | AF73: 0 | AG73: 2 | AH73: 0 | AI73: 0 | AJ73: 1 | AK73: 0 | AL73: 0 | AM73: 0 | AN73: 0 | AO73: 0 | AP73: 0 | AQ73: 0 | AR73: 103
A74: 73 | B74: 22044 Bailo | C74: 22044 | D74: 11 | E74: 0 | F74: 0 | G74: 1 | H74: 1 | I74: 2 | J74: 0 | K74: 0 | L74: 1 | M74: 3 | N74: 0 | O74: 0 | P74: 2 | Q74: 0 | R74: 0 | S74: 1 | T74: 0 | U74: 0 | V74: 0 | W74: 0 | X74: 6 | Y74: 0 | Z74: 0 | AA74: 0 | AB74: 0 | AC74: 0 | AD74: 0 | AE74: 0 | AF74: 1 | AG74: 1 | AH74: 0 | AI74: 0 | AJ74: 0 | AK74: 1 | AL74: 0 | AM74: 0 | AN74: 1 | AO74: 2 | AP74: 0 | AQ74: 0 | AR74: 225
A75: 74 | B75: 22045 Baldellou | C75: 22045 | D75: 4 | E75: 0 | F75: 0 | G75: 0 | H75: 0 | I75: 0 | J75: 1 | K75: 1 | L75: 1 | M75: 0 | N75: 1 | O75: 0 | P75: 0 | Q75: 0 | R75: 0 | S75: 0 | T75: 0 | U75: 0 | V75: 0 | W75: 0 | X75: 1 | Y75: 0 | Z75: 0 | AA75: 0 | AB75: 0 | AC75: 0 | AD75: 0 | AE75: 0 | AF75: 0 | AG75: 1 | AH75: 0 | AI75: 0 | AJ75: 0 | AK75: 0 | AL75: 0 | AM75: 0 | AN75: 0 | AO75: 0 | AP75: 0 | AQ75: 0 | AR75: 802
A76: 75 | B76: 22046 Ballobar | C76: 22046 | D76: 43 | E76: 4 | F76: 2 | G76: 0 | H76: 2 | I76: 2 | J76: 5 | K76: 2 | L76: 4 | M76: 4 | N76: 5 | O76: 9 | P76: 2 | Q76: 1 | R76: 0 | S76: 1 | T76: 0 | U76: 0 | V76: 0 | W76: 0 | X76: 29 | Y76: 3 | Z76: 2 | AA76: 1 | AB76: 1 | AC76: 0 | AD76: 4 | AE76: 2 | AF76: 2 | AG76: 4 | AH76: 3 | AI76: 4 | AJ76: 1 | AK76: 1 | AL76: 1 | AM76: 0 | AN76: 0 | AO76: 0 | AP76: 0 | AQ76: 0 | AR76: 1018
A77: 76 | B77: 22047 Banastás | C77: 22047 | D77: 2 | E77: 0 | F77: 0 | G77: 0 | H77: 0 | I77: 0 | J77: 0 | K77: 0 | L77: 0 | M77: 0 | N77: 0 | O77: 0 | P77: 1 | Q77: 1 | R77: 0 | S77: 0 | T77: 0 | U77: 0 | V77: 0 | W77: 0 | X77: 3 | Y77: 0 | Z77: 0 | AA77: 0 | AB77: 0 | AC77: 0 | AD77: 0 | AE77: 0 | AF77: 1 | AG77: 1 | AH77: 1 | AI77: 0 | AJ77: 0 | AK77: 0 | AL77: 0 | AM77: 0 | AN77: 0 | AO77: 0 | AP77: 0 | AQ77: 0 | AR77: 1431
A78: 77 | B78: 22048 Barbastro | C78: 22048 | D78: 1297 | E78: 68 | F78: 77 | G78: 73 | H78: 73 | I78: 96 | J78: 124 | K78: 120 | L78: 117 | M78: 184 | N78: 148 | O78: 91 | P78: 53 | Q78: 33 | R78: 18 | S78: 14 | T78: 4 | U78: 3 | V78: 1 | W78: 0 | X78: 1239 | Y78: 53 | Z78: 58 | AA78: 54 | AB78: 63 | AC78: 82 | AD78: 120 | AE78: 148 | AF78: 148 | AG78: 139 | AH78: 111 | AI78: 86 | AJ78: 68 | AK78: 35 | AL78: 29 | AM78: 23 | AN78: 13 | AO78: 2 | AP78: 6 | AQ78: 1 | AR78: 8757
A79: 78 | B79: 22049 Barbués | C79: 22049 | D79: 2 | E79: 0 | F79: 0 | G79: 0 | H79: 0 | I79: 0 | J79: 0 | K79: 0 | L79: 1 | M79: 0 | N79: 1 | O79: 0 | P79: 0 | Q79: 0 | R79: 0 | S79: 0 | T79: 0 | U79: 0 | V79: 0 | W79: 0 | X79: 1 | Y79: 0 | Z79: 0 | AA79: 0 | AB79: 0 | AC79: 0 | AD79: 0 | AE79: 0 | AF79: 0 | AG79: 0 | AH79: 0 | AI79: 1 | AJ79: 0 | AK79: 0 | AL79: 0 | AM79: 0 | AN79: 0 | AO79: 0 | AP79: 0 | AQ79: 0 | AR79: 310
A80: 79 | B80: 22050 Barbuñales | C80: 22050 | D80: 2 | E80: 0 | F80: 0 | G80: 0 | H80: 0 | I80: 0 | J80: 0 | K80: 0 | L80: 0 | M80: 0 | N80: 0 | O80: 0 | P80: 0 | Q80: 1 | R80: 0 | S80: 0 | T80: 0 | U80: 1 | V80: 0 | W80: 0 | X80: 3 | Y80: 0 | Z80: 0 | AA80: 0 | AB80: 0 | AC80: 0 | AD80: 0 | AE80: 0 | AF80: 0 | AG80: 0 | AH80: 0 | AI80: 0 | AJ80: 0 | AK80: 2 | AL80: 0 | AM80: 0 | AN80: 0 | AO80: 1 | AP80: 0 | AQ80: 0 | AR80: 186
A81: 80 | B81: 22051 Bárcabo | C81: 22051 | D81: 13 | E81: 0 | F81: 0 | G81: 0 | H81: 0 | I81: 0 | J81: 0 | K81: 0 | L81: 0 | M81: 0 | N81: 2 | O81: 2 | P81: 1 | Q81: 2 | R81: 2 | S81: 3 | T81: 0 | U81: 1 | V81: 0 | W81: 0 | X81: 13 | Y81: 0 | Z81: 0 | AA81: 0 | AB81: 0 | AC81: 0 | AD81: 0 | AE81: 0 | AF81: 1 | AG81: 0 | AH81: 3 | AI81: 0 | AJ81: 1 | AK81: 0 | AL81: 4 | AM81: 3 | AN81: 1 | AO81: 0 | AP81: 0 | AQ81: 0 | AR81: 922
A82: 81 | B82: 22052 Belver de Cinca | C82: 22052 | D82: 216 | E82: 4 | F82: 7 | G82: 4 | H82: 8 | I82: 12 | J82: 16 | K82: 25 | L82: 29 | M82: 32 | N82: 35 | O82: 20 | P82: 14 | Q82: 7 | R82: 3 | S82: 0 | T82: 0 | U82: 0 | V82: 0 | W82: 0 | X82: 92 | Y82: 8 | Z82: 5 | AA82: 3 | AB82: 4 | AC82: 2 | AD82: 13 | AE82: 13 | AF82: 8 | AG82: 13 | AH82: 5 | AI82: 5 | AJ82: 8 | AK82: 1 | AL82: 3 | AM82: 1 | AN82: 0 | AO82: 0 | AP82: 0 | AQ82: 0 | AR82: 1634
A83: 82 | B83: 22053 Benabarre | C83: 22053 | D83: 116 | E83: 8 | F83: 7 | G83: 8 | H83: 10 | I83: 6 | J83: 7 | K83: 11 | L83: 12 | M83: 12 | N83: 13 | O83: 11 | P83: 5 | Q83: 1 | R83: 2 | S83: 2 | T83: 0 | U83: 1 | V83: 0 | W83: 0 | X83: 114 | Y83: 5 | Z83: 2 | AA83: 6 | AB83: 6 | AC83: 13 | AD83: 8 | AE83: 8 | AF83: 12 | AG83: 13 | AH83: 15 | AI83: 17 | AJ83: 6 | AK83: 1 | AL83: 0 | AM83: 1 | AN83: 0 | AO83: 1 | AP83: 0 | AQ83: 0 | AR83: 5911
A84: 83 | B84: 22054 Benasque | C84: 22054 | D84: 117 | E84: 3 | F84: 4 | G84: 5 | H84: 4 | I84: 9 | J84: 12 | K84: 16 | L84: 17 | M84: 15 | N84: 11 | O84: 9 | P84: 6 | Q84: 1 | R84: 2 | S84: 2 | T84: 0 | U84: 1 | V84: 0 | W84: 0 | X84: 114 | Y84: 1 | Z84: 5 | AA84: 5 | AB84: 1 | AC84: 11 | AD84: 15 | AE84: 15 | AF84: 10 | AG84: 16 | AH84: 8 | AI84: 17 | AJ84: 3 | AK84: 2 | AL84: 1 | AM84: 2 | AN84: 2 | AO84: 0 | AP84: 0 | AQ84: 0 | AR84: 1363
A85: 84 | B85: 22055 Berbegal | C85: 22055 | D85: 6 | E85: 0 | F85: 1 | G85: 1 | H85: 1 | I85: 1 | J85: 0 | K85: 0 | L85: 1 | M85: 0 | N85: 0 | O85: 1 | P85: 0 | Q85: 0 | R85: 0 | S85: 0 | T85: 0 | U85: 0 | V85: 0 | W85: 0 | X85: 9 | Y85: 0 | Z85: 0 | AA85: 0 | AB85: 0 | AC85: 4 | AD85: 1 | AE85: 1 | AF85: 0 | AG85: 2 | AH85: 0 | AI85: 1 | AJ85: 0 | AK85: 0 | AL85: 0 | AM85: 0 | AN85: 0 | AO85: 0 | AP85: 0 | AQ85: 0 | AR85: 270
A86: 85 | B86: 22057 Bielsa | C86: 22057 | D86: 26 | E86: 0 | F86: 0 | G86: 1 | H86: 2 | I86: 0 | J86: 1 | K86: 1 | L86: 3 | M86: 3 | N86: 6 | O86: 3 | P86: 0 | Q86: 2 | R86: 1 | S86: 2 | T86: 1 | U86: 0 | V86: 0 | W86: 0 | X86: 35 | Y86: 1 | Z86: 0 | AA86: 0 | AB86: 1 | AC86: 4 | AD86: 3 | AE86: 4 | AF86: 1 | AG86: 5 | AH86: 1 | AI86: 5 | AJ86: 2 | AK86: 2 | AL86: 3 | AM86: 1 | AN86: 1 | AO86: 0 | AP86: 1 | AQ86: 0 | AR86: 341
A87: 86 | B87: 22058 Bierge | C87: 22058 | D87: 11 | E87: 0 | F87: 1 | G87: 0 | H87: 1 | I87: 0 | J87: 0 | K87: 1 | L87: 0 | M87: 5 | N87: 0 | O87: 0 | P87: 1 | Q87: 0 | R87: 1 | S87: 0 | T87: 0 | U87: 1 | V87: 0 | W87: 0 | X87: 14 | Y87: 1 | Z87: 0 | AA87: 0 | AB87: 0 | AC87: 0 | AD87: 0 | AE87: 2 | AF87: 1 | AG87: 2 | AH87: 1 | AI87: 4 | AJ87: 1 | AK87: 1 | AL87: 1 | AM87: 0 | AN87: 0 | AO87: 0 | AP87: 0 | AQ87: 0 | AR87: 729
A88: 87 | B88: 22059 Biescas | C88: 22059 | D88: 94 | E88: 2 | F88: 6 | G88: 5 | H88: 3 | I88: 5 | J88: 9 | K88: 4 | L88: 11 | M88: 10 | N88: 10 | O88: 10 | P88: 4 | Q88: 10 | R88: 3 | S88: 2 | T88: 0 | U88: 0 | V88: 0 | W88: 0 | X88: 79 | Y88: 4 | Z88: 4 | AA88: 3 | AB88: 3 | AC88: 5 | AD88: 10 | AE88: 5 | AF88: 10 | AG88: 8 | AH88: 9 | AI88: 4 | AJ88: 7 | AK88: 3 | AL88: 2 | AM88: 1 | AN88: 0 | AO88: 0 | AP88: 1 | AQ88: 0 | AR88: 904
A89: 88 | B89: 22060 Binaced | C89: 22060 | D89: 193 | E89: 2 | F89: 2 | G89: 6 | H89: 6 | I89: 12 | J89: 26 | K89: 35 | L89: 30 | M89: 29 | N89: 19 | O89: 11 | P89: 9 | Q89: 3 | R89: 2 | S89: 1 | T89: 0 | U89: 0 | V89: 0 | W89: 0 | X89: 67 | Y89: 3 | Z89: 2 | AA89: 7 | AB89: 2 | AC89: 2 | AD89: 17 | AE89: 8 | AF89: 11 | AG89: 4 | AH89: 3 | AI89: 2 | AJ89: 5 | AK89: 1 | AL89: 0 | AM89: 0 | AN89: 0 | AO89: 0 | AP89: 0 | AQ89: 0 | AR89: 932
A90: 89 | B90: 22061 Binéfar | C90: 22061 | D90: 1314 | E90: 60 | F90: 46 | G90: 56 | H90: 71 | I90: 98 | J90: 130 | K90: 156 | L90: 136 | M90: 169 | N90: 183 | O90: 94 | P90: 59 | Q90: 31 | R90: 11 | S90: 10 | T90: 2 | U90: 1 | V90: 0 | W90: 1 | X90: 904 | Y90: 70 | Z90: 56 | AA90: 42 | AB90: 51 | AC90: 74 | AD90: 83 | AE90: 81 | AF90: 110 | AG90: 108 | AH90: 92 | AI90: 53 | AJ90: 34 | AK90: 16 | AL90: 16 | AM90: 5 | AN90: 10 | AO90: 1 | AP90: 2 | AQ90: 0 | AR90: 5657
A91: 90 | B91: 22062 Bisaurri | C91: 22062 | D91: 2 | E91: 0 | F91: 0 | G91: 0 | H91: 0 | I91: 0 | J91: 0 | K91: 0 | L91: 0 | M91: 2 | N91: 0 | O91: 0 | P91: 0 | Q91: 0 | R91: 0 | S91: 0 | T91: 0 | U91: 0 | V91: 0 | W91: 0 | X91: 3 | Y91: 0 | Z91: 0 | AA91: 0 | AB91: 0 | AC91: 0 | AD91: 1 | AE91: 0 | AF91: 0 | AG91: 1 | AH91: 1 | AI91: 0 | AJ91: 0 | AK91: 0 | AL91: 0 | AM91: 0 | AN91: 0 | AO91: 0 | AP91: 0 | AQ91: 0 | AR91: 245
A92: 91 | B92: 22063 Biscarrués | C92: 22063 | D92: 10 | E92: 0 | F92: 1 | G92: 0 | H92: 0 | I92: 0 | J92: 1 | K92: 2 | L92: 0 | M92: 2 | N92: 0 | O92: 1 | P92: 0 | Q92: 1 | R92: 2 | S92: 0 | T92: 0 | U92: 0 | V92: 0 | W92: 0 | X92: 4 | Y92: 0 | Z92: 0 | AA92: 0 | AB92: 0 | AC92: 0 | AD92: 0 | AE92: 0 | AF92: 0 | AG92: 0 | AH92: 1 | AI92: 0 | AJ92: 2 | AK92: 0 | AL92: 1 | AM92: 0 | AN92: 0 | AO92: 0 | AP92: 0 | AQ92: 0 | AR92: 357
A93: 92 | B93: 22064 Blecua y Torres | C93: 22064 | D93: 2 | E93: 0 | F93: 0 | G93: 0 | H93: 0 | I93: 0 | J93: 0 | K93: 0 | L93: 0 | M93: 1 | N93: 0 | O93: 0 | P93: 1 | Q93: 0 | R93: 0 | S93: 0 | T93: 0 | U93: 0 | V93: 0 | W93: 0 | X93: 3 | Y93: 0 | Z93: 0 | AA93: 0 | AB93: 0 | AC93: 0 | AD93: 0 | AE93: 1 | AF93: 1 | AG93: 0 | AH93: 1 | AI93: 0 | AJ93: 0 | AK93: 0 | AL93: 0 | AM93: 0 | AN93: 0 | AO93: 0 | AP93: 0 | AQ93: 0 | AR93: 175
A94: 93 | B94: 22066 Boltaña | C94: 22066 | D94: 83 | E94: 1 | F94: 6 | G94: 4 | H94: 6 | I94: 7 | J94: 6 | K94: 10 | L94: 4 | M94: 11 | N94: 6 | O94: 4 | P94: 8 | Q94: 8 | R94: 1 | S94: 1 | T94: 0 | U94: 0 | V94: 0 | W94: 0 | X94: 83 | Y94: 3 | Z94: 4 | AA94: 3 | AB94: 1 | AC94: 8 | AD94: 2 | AE94: 9 | AF94: 12 | AG94: 7 | AH94: 10 | AI94: 7 | AJ94: 6 | AK94: 7 | AL94: 1 | AM94: 1 | AN94: 1 | AO94: 0 | AP94: 1 | AQ94: 0 | AR94: 771
A95: 94 | B95: 22067 Bonansa | C95: 22067 | D95: 2 | E95: 0 | F95: 0 | G95: 0 | H95: 0 | I95: 0 | J95: 0 | K95: 1 | L95: 0 | M95: 0 | N95: 0 | O95: 1 | P95: 0 | Q95: 0 | R95: 0 | S95: 0 | T95: 0 | U95: 0 | V95: 0 | W95: 0 | X95: 2 | Y95: 0 | Z95: 0 | AA95: 0 | AB95: 0 | AC95: 0 | AD95: 0 | AE95: 1 | AF95: 0 | AG95: 1 | AH95: 0 | AI95: 0 | AJ95: 0 | AK95: 0 | AL95: 0 | AM95: 0 | AN95: 0 | AO95: 0 | AP95: 0 | AQ95: 0 | AR95: 276
A96: 95 | B96: 22068 Borau | C96: 22068 | D96: 3 | E96: 0 | F96: 0 | G96: 0 | H96: 0 | I96: 0 | J96: 0 | K96: 0 | L96: 0 | M96: 0 | N96: 0 | O96: 0 | P96: 1 | Q96: 1 | R96: 1 | S96: 0 | T96: 0 | U96: 0 | V96: 0 | W96: 0 | X96: 3 | Y96: 0 | Z96: 0 | AA96: 0 | AB96: 0 | AC96: 0 | AD96: 1 | AE96: 0 | AF96: 0 | AG96: 1 | AH96: 0 | AI96: 0 | AJ96: 1 | AK96: 0 | AL96: 0 | AM96: 0 | AN96: 0 | AO96: 0 | AP96: 0 | AQ96: 0 | AR96: 402
A97: 96 | B97: 22069 Broto | C97: 22069 | D97: 43 | E97: 2 | F97: 4 | G97: 0 | H97: 3 | I97: 6 | J97: 2 | K97: 3 | L97: 6 | M97: 5 | N97: 5 | O97: 3 | P97: 2 | Q97: 1 | R97: 1 | S97: 0 | T97: 0 | U97: 0 | V97: 0 | W97: 0 | X97: 50 | Y97: 2 | Z97: 1 | AA97: 2 | AB97: 3 | AC97: 4 | AD97: 7 | AE97: 5 | AF97: 2 | AG97: 4 | AH97: 8 | AI97: 5 | AJ97: 2 | AK97: 5 | AL97: 0 | AM97: 0 | AN97: 0 | AO97: 0 | AP97: 0 | AQ97: 0 | AR97: 422
A98: 97 | B98: 22072 Caldearenas | C98: 22072 | D98: 7 | E98: 0 | F98: 0 | G98: 0 | H98: 0 | I98: 0 | J98: 1 | K98: 1 | L98: 0 | M98: 3 | N98: 0 | O98: 0 | P98: 0 | Q98: 0 | R98: 0 | S98: 2 | T98: 0 | U98: 0 | V98: 0 | W98: 0 | X98: 4 | Y98: 0 | Z98: 0 | AA98: 0 | AB98: 0 | AC98: 0 | AD98: 0 | AE98: 0 | AF98: 1 | AG98: 1 | AH98: 0 | AI98: 0 | AJ98: 1 | AK98: 1 | AL98: 0 | AM98: 0 | AN98: 0 | AO98: 0 | AP98: 0 | AQ98: 0 | AR98: 329
A99: 98 | B99: 22074 Campo | C99: 22074 | D99: 49 | E99: 3 | F99: 1 | G99: 2 | H99: 1 | I99: 6 | J99: 6 | K99: 5 | L99: 5 | M99: 3 | N99: 4 | O99: 7 | P99: 3 | Q99: 0 | R99: 1 | S99: 1 | T99: 1 | U99: 0 | V99: 0 | W99: 0 | X99: 42 | Y99: 0 | Z99: 2 | AA99: 3 | AB99: 2 | AC99: 3 | AD99: 6 | AE99: 1 | AF99: 4 | AG99: 5 | AH99: 8 | AI99: 3 | AJ99: 1 | AK99: 2 | AL99: 1 | AM99: 1 | AN99: 0 | AO99: 0 | AP99: 0 | AQ99: 0 | AR99: 426
A100: 99 | B100: 22075 Camporrells | C100: 22075 | D100: 12 | E100: 0 | F100: 0 | G100: 1 | H100: 2 | I100: 1 | J100: 0 | K100: 0 | L100: 1 | M100: 0 | N100: 1 | O100: 3 | P100: 1 | Q100: 1 | R100: 0 | S100: 1 | T100: 0 | U100: 0 | V100: 0 | W100: 0 | X100: 14 | Y100: 0 | Z100: 0 | AA100: 2 | AB100: 0 | AC100: 1 | AD100: 1 | AE100: 1 | AF100: 0 | AG100: 2 | AH100: 1 | AI100: 3 | AJ100: 0 | AK100: 1 | AL100: 1 | AM100: 0 | AN100: 1 | AO100: 0 | AP100: 0 | AQ100: 0 | AR100: 263
A101: 100 | B101: 22076 Canal de Berdún | C101: 22076 | D101: 8 | E101: 1 | F101: 0 | G101: 1 | H101: 0 | I101: 1 | J101: 0 | K101: 1 | L101: 0 | M101: 0 | N101: 0 | O101: 1 | P101: 1 | Q101: 0 | R101: 1 | S101: 1 | T101: 0 | U101: 0 | V101: 0 | W101: 0 | X101: 18 | Y101: 1 | Z101: 0 | AA101: 2 | AB101: 0 | AC101: 1 | AD101: 0 | AE101: 4 | AF101: 1 | AG101: 0 | AH101: 2 | AI101: 3 | AJ101: 2 | AK101: 0 | AL101: 0 | AM101: 1 | AN101: 0 | AO101: 1 | AP101: 0 | AQ101: 0 | AR101: 422
A102: 101 | B102: 22077 Candasnos | C102: 22077 | D102: 27 | E102: 0 | F102: 1 | G102: 1 | H102: 4 | I102: 3 | J102: 3 | K102: 2 | L102: 0 | M102: 4 | N102: 4 | O102: 3 | P102: 0 | Q102: 1 | R102: 1 | S102: 0 | T102: 0 | U102: 0 | V102: 0 | W102: 0 | X102: 26 | Y102: 0 | Z102: 1 | AA102: 0 | AB102: 3 | AC102: 1 | AD102: 5 | AE102: 2 | AF102: 2 | AG102: 8 | AH102: 2 | AI102: 0 | AJ102: 1 | AK102: 1 | AL102: 0 | AM102: 0 | AN102: 0 | AO102: 0 | AP102: 0 | AQ102: 0 | AR102: 662
A103: 102 | B103: 22078 Canfranc | C103: 22078 | D103: 46 | E103: 2 | F103: 1 | G103: 1 | H103: 5 | I103: 4 | J103: 14 | K103: 1 | L103: 7 | M103: 6 | N103: 1 | O103: 2 | P103: 1 | Q103: 1 | R103: 0 | S103: 0 | T103: 0 | U103: 0 | V103: 0 | W103: 0 | X103: 34 | Y103: 0 | Z103: 2 | AA103: 0 | AB103: 2 | AC103: 2 | AD103: 5 | AE103: 4 | AF103: 4 | AG103: 3 | AH103: 5 | AI103: 2 | AJ103: 3 | AK103: 2 | AL103: 0 | AM103: 0 | AN103: 0 | AO103: 0 | AP103: 0 | AQ103: 0 | AR103: 405
A104: 103 | B104: 22079 Capdesaso | C104: 22079 | D104: 11 | E104: 0 | F104: 0 | G104: 0 | H104: 1 | I104: 0 | J104: 3 | K104: 1 | L104: 0 | M104: 0 | N104: 3 | O104: 1 | P104: 1 | Q104: 1 | R104: 0 | S104: 0 | T104: 0 | U104: 0 | V104: 0 | W104: 0 | X104: 49 | Y104: 0 | Z104: 0 | AA104: 0 | AB104: 0 | AC104: 1 | AD104: 0 | AE104: 1 | AF104: 5 | AG104: 8 | AH104: 11 | AI104: 7 | AJ104: 12 | AK104: 4 | AL104: 0 | AM104: 0 | AN104: 0 | AO104: 0 | AP104: 0 | AQ104: 0 | AR104: 230
A105: 104 | B105: 22080 Capella | C105: 22080 | D105: 41 | E105: 1 | F105: 2 | G105: 2 | H105: 1 | I105: 4 | J105: 3 | K105: 3 | L105: 5 | M105: 5 | N105: 5 | O105: 2 | P105: 4 | Q105: 1 | R105: 1 | S105: 1 | T105: 0 | U105: 1 | V105: 0 | W105: 0 | X105: 31 | Y105: 1 | Z105: 0 | AA105: 1 | AB105: 1 | AC105: 2 | AD105: 4 | AE105: 2 | AF105: 3 | AG105: 6 | AH105: 3 | AI105: 2 | AJ105: 2 | AK105: 2 | AL105: 0 | AM105: 1 | AN105: 1 | AO105: 0 | AP105: 0 | AQ105: 0 | AR105: 235
A106: 105 | B106: 22081 Casbas de Huesca | C106: 22081 | D106: 6 | E106: 0 | F106: 0 | G106: 0 | H106: 0 | I106: 0 | J106: 1 | K106: 0 | L106: 0 | M106: 1 | N106: 1 | O106: 0 | P106: 1 | Q106: 0 | R106: 0 | S106: 1 | T106: 1 | U106: 0 | V106: 0 | W106: 0 | X106: 13 | Y106: 0 | Z106: 1 | AA106: 1 | AB106: 1 | AC106: 0 | AD106: 0 | AE106: 2 | AF106: 0 | AG106: 1 | AH106: 3 | AI106: 1 | AJ106: 2 | AK106: 0 | AL106: 1 | AM106: 0 | AN106: 0 | AO106: 0 | AP106: 0 | AQ106: 0 | AR106: 257
A107: 106 | B107: 22082 Castejón del Puente | C107: 22082 | D107: 8 | E107: 0 | F107: 1 | G107: 2 | H107: 0 | I107: 0 | J107: 0 | K107: 1 | L107: 1 | M107: 3 | N107: 0 | O107: 0 | P107: 0 | Q107: 0 | R107: 0 | S107: 0 | T107: 0 | U107: 0 | V107: 0 | W107: 0 | X107: 7 | Y107: 0 | Z107: 1 | AA107: 0 | AB107: 0 | AC107: 1 | AD107: 1 | AE107: 3 | AF107: 1 | AG107: 0 | AH107: 0 | AI107: 0 | AJ107: 0 | AK107: 0 | AL107: 0 | AM107: 0 | AN107: 0 | AO107: 0 | AP107: 0 | AQ107: 0 | AR107: 354
A108: 107 | B108: 22083 Castejón de Monegros | C108: 22083 | D108: 16 | E108: 0 | F108: 0 | G108: 2 | H108: 2 | I108: 1 | J108: 2 | K108: 1 | L108: 0 | M108: 3 | N108: 2 | O108: 2 | P108: 1 | Q108: 0 | R108: 0 | S108: 0 | T108: 0 | U108: 0 | V108: 0 | W108: 0 | X108: 19 | Y108: 0 | Z108: 2 | AA108: 1 | AB108: 0 | AC108: 2 | AD108: 1 | AE108: 2 | AF108: 2 | AG108: 2 | AH108: 4 | AI108: 3 | AJ108: 0 | AK108: 0 | AL108: 0 | AM108: 0 | AN108: 0 | AO108: 0 | AP108: 0 | AQ108: 0 | AR108: 321
A109: 108 | B109: 22084 Castejón de Sos | C109: 22084 | D109: 40 | E109: 0 | F109: 3 | G109: 6 | H109: 1 | I109: 5 | J109: 1 | K109: 5 | L109: 3 | M109: 8 | N109: 3 | O109: 1 | P109: 2 | Q109: 1 | R109: 0 | S109: 0 | T109: 0 | U109: 1 | V109: 0 | W109: 0 | X109: 47 | Y109: 1 | Z109: 2 | AA109: 2 | AB109: 1 | AC109: 3 | AD109: 3 | AE109: 5 | AF109: 9 | AG109: 6 | AH109: 9 | AI109: 3 | AJ109: 2 | AK109: 1 | AL109: 0 | AM109: 0 | AN109: 0 | AO109: 0 | AP109: 0 | AQ109: 0 | AR109: 510
A110: 109 | B110: 22085 Castelflorite | C110: 22085 | D110: 4 | E110: 0 | F110: 0 | G110: 0 | H110: 0 | I110: 1 | J110: 0 | K110: 0 | L110: 0 | M110: 0 | N110: 2 | O110: 0 | P110: 1 | Q110: 0 | R110: 0 | S110: 0 | T110: 0 | U110: 0 | V110: 0 | W110: 0 | X110: 3 | Y110: 0 | Z110: 1 | AA110: 0 | AB110: 0 | AC110: 0 | AD110: 0 | AE110: 0 | AF110: 0 | AG110: 1 | AH110: 0 | AI110: 0 | AJ110: 1 | AK110: 0 | AL110: 0 | AM110: 0 | AN110: 0 | AO110: 0 | AP110: 0 | AQ110: 0 | AR110: 105
A111: 110 | B111: 22086 Castiello de Jaca | C111: 22086 | D111: 7 | E111: 0 | F111: 0 | G111: 0 | H111: 1 | I111: 1 | J111: 0 | K111: 0 | L111: 1 | M111: 0 | N111: 2 | O111: 1 | P111: 0 | Q111: 0 | R111: 1 | S111: 0 | T111: 0 | U111: 0 | V111: 0 | W111: 0 | X111: 10 | Y111: 0 | Z111: 0 | AA111: 1 | AB111: 1 | AC111: 0 | AD111: 0 | AE111: 1 | AF111: 1 | AG111: 3 | AH111: 1 | AI111: 0 | AJ111: 1 | AK111: 0 | AL111: 0 | AM111: 0 | AN111: 0 | AO111: 0 | AP111: 1 | AQ111: 0 | AR111: 353
A112: 111 | B112: 22087 Castigaleu | C112: 22087 | D112: 11 | E112: 1 | F112: 1 | G112: 0 | H112: 1 | I112: 0 | J112: 2 | K112: 1 | L112: 1 | M112: 1 | N112: 2 | O112: 1 | P112: 0 | Q112: 0 | R112: 0 | S112: 0 | T112: 0 | U112: 0 | V112: 0 | W112: 0 | X112: 9 | Y112: 2 | Z112: 0 | AA112: 0 | AB112: 0 | AC112: 1 | AD112: 1 | AE112: 1 | AF112: 1 | AG112: 0 | AH112: 2 | AI112: 1 | AJ112: 0 | AK112: 0 | AL112: 0 | AM112: 0 | AN112: 0 | AO112: 0 | AP112: 0 | AQ112: 0 | AR112: 401
A113: 112 | B113: 22088 Castillazuelo | C113: 22088 | D113: 7 | E113: 0 | F113: 1 | G113: 1 | H113: 0 | I113: 0 | J113: 0 | K113: 2 | L113: 0 | M113: 0 | N113: 2 | O113: 0 | P113: 0 | Q113: 1 | R113: 0 | S113: 0 | T113: 0 | U113: 0 | V113: 0 | W113: 0 | X113: 4 | Y113: 0 | Z113: 1 | AA113: 0 | AB113: 0 | AC113: 0 | AD113: 0 | AE113: 0 | AF113: 0 | AG113: 1 | AH113: 1 | AI113: 1 | AJ113: 0 | AK113: 0 | AL113: 0 | AM113: 0 | AN113: 0 | AO113: 0 | AP113: 0 | AQ113: 0 | AR113: 212
A114: 113 | B114: 22089 Castillonroy | C114: 22089 | D114: 18 | E114: 0 | F114: 0 | G114: 1 | H114: 2 | I114: 1 | J114: 1 | K114: 4 | L114: 2 | M114: 1 | N114: 3 | O114: 2 | P114: 0 | Q114: 0 | R114: 1 | S114: 0 | T114: 0 | U114: 0 | V114: 0 | W114: 0 | X114: 21 | Y114: 0 | Z114: 0 | AA114: 2 | AB114: 1 | AC114: 0 | AD114: 2 | AE114: 2 | AF114: 5 | AG114: 3 | AH114: 1 | AI114: 3 | AJ114: 0 | AK114: 1 | AL114: 0 | AM114: 0 | AN114: 0 | AO114: 1 | AP114: 0 | AQ114: 0 | AR114: 586
A115: 114 | B115: 22090 Colungo | C115: 22090 | D115: 8 | E115: 0 | F115: 0 | G115: 1 | H115: 1 | I115: 0 | J115: 1 | K115: 0 | L115: 1 | M115: 0 | N115: 1 | O115: 1 | P115: 0 | Q115: 0 | R115: 0 | S115: 0 | T115: 0 | U115: 2 | V115: 0 | W115: 0 | X115: 13 | Y115: 0 | Z115: 0 | AA115: 1 | AB115: 0 | AC115: 0 | AD115: 1 | AE115: 2 | AF115: 0 | AG115: 3 | AH115: 2 | AI115: 1 | AJ115: 1 | AK115: 0 | AL115: 0 | AM115: 0 | AN115: 1 | AO115: 0 | AP115: 0 | AQ115: 1 | AR115: 152
A116: 115 | B116: 22094 Chalamera | C116: 22094 | D116: 13 | E116: 1 | F116: 2 | G116: 1 | H116: 1 | I116: 0 | J116: 1 | K116: 1 | L116: 0 | M116: 1 | N116: 5 | O116: 0 | P116: 0 | Q116: 0 | R116: 0 | S116: 0 | T116: 0 | U116: 0 | V116: 0 | W116: 0 | X116: 7 | Y116: 1 | Z116: 0 | AA116: 0 | AB116: 0 | AC116: 2 | AD116: 0 | AE116: 1 | AF116: 1 | AG116: 1 | AH116: 0 | AI116: 0 | AJ116: 1 | AK116: 0 | AL116: 0 | AM116: 0 | AN116: 0 | AO116: 0 | AP116: 0 | AQ116: 0 | AR116: 93
A117: 116 | B117: 22095 Chía | C117: 22095 | D117: 1 | E117: 0 | F117: 0 | G117: 0 | H117: 0 | I117: 0 | J117: 0 | K117: 0 | L117: 0 | M117: 0 | N117: 1 | O117: 0 | P117: 0 | Q117: 0 | R117: 0 | S117: 0 | T117: 0 | U117: 0 | V117: 0 | W117: 0 | X117: 2 | Y117: 0 | Z117: 0 | AA117: 0 | AB117: 0 | AC117: 0 | AD117: 0 | AE117: 0 | AF117: 0 | AG117: 1 | AH117: 0 | AI117: 1 | AJ117: 0 | AK117: 0 | AL117: 0 | AM117: 0 | AN117: 0 | AO117: 0 | AP117: 0 | AQ117: 0 | AR117: 121
A118: 117 | B118: 22096 Chimillas | C118: 22096 | D118: 5 | E118: 0 | F118: 0 | G118: 0 | H118: 0 | I118: 0 | J118: 2 | K118: 0 | L118: 1 | M118: 0 | N118: 1 | O118: 0 | P118: 1 | Q118: 0 | R118: 0 | S118: 0 | T118: 0 | U118: 0 | V118: 0 | W118: 0 | X118: 2 | Y118: 0 | Z118: 0 | AA118: 0 | AB118: 0 | AC118: 0 | AD118: 0 | AE118: 0 | AF118: 0 | AG118: 1 | AH118: 0 | AI118: 0 | AJ118: 1 | AK118: 0 | AL118: 0 | AM118: 0 | AN118: 0 | AO118: 0 | AP118: 0 | AQ118: 0 | AR118: 426
A119: 118 | B119: 22099 Esplús | C119: 22099 | D119: 54 | E119: 2 | F119: 3 | G119: 3 | H119: 2 | I119: 6 | J119: 4 | K119: 8 | L119: 5 | M119: 7 | N119: 5 | O119: 5 | P119: 1 | Q119: 1 | R119: 0 | S119: 1 | T119: 0 | U119: 1 | V119: 0 | W119: 0 | X119: 33 | Y119: 2 | Z119: 1 | AA119: 2 | AB119: 0 | AC119: 3 | AD119: 2 | AE119: 4 | AF119: 2 | AG119: 6 | AH119: 2 | AI119: 5 | AJ119: 1 | AK119: 1 | AL119: 1 | AM119: 0 | AN119: 1 | AO119: 0 | AP119: 0 | AQ119: 0 | AR119: 817
A120: 119 | B120: 22102 Estada | C120: 22102 | D120: 9 | E120: 1 | F120: 1 | G120: 1 | H120: 0 | I120: 0 | J120: 0 | K120: 0 | L120: 3 | M120: 0 | N120: 1 | O120: 1 | P120: 1 | Q120: 0 | R120: 0 | S120: 0 | T120: 0 | U120: 0 | V120: 0 | W120: 0 | X120: 10 | Y120: 0 | Z120: 0 | AA120: 1 | AB120: 0 | AC120: 0 | AD120: 0 | AE120: 2 | AF120: 3 | AG120: 0 | AH120: 0 | AI120: 2 | AJ120: 0 | AK120: 2 | AL120: 0 | AM120: 0 | AN120: 0 | AO120: 0 | AP120: 0 | AQ120: 0 | AR120: 217
A121: 120 | B121: 22103 Estadilla | C121: 22103 | D121: 27 | E121: 2 | F121: 2 | G121: 0 | H121: 1 | I121: 2 | J121: 3 | K121: 1 | L121: 2 | M121: 5 | N121: 1 | O121: 4 | P121: 2 | Q121: 0 | R121: 1 | S121: 0 | T121: 0 | U121: 1 | V121: 0 | W121: 0 | X121: 36 | Y121: 1 | Z121: 3 | AA121: 5 | AB121: 0 | AC121: 5 | AD121: 3 | AE121: 2 | AF121: 6 | AG121: 2 | AH121: 3 | AI121: 1 | AJ121: 1 | AK121: 2 | AL121: 0 | AM121: 1 | AN121: 1 | AO121: 0 | AP121: 0 | AQ121: 0 | AR121: 8300
A122: 121 | B122: 22105 Estopiñán del Castillo | C122: 22105 | D122: 13 | E122: 0 | F122: 2 | G122: 0 | H122: 0 | I122: 1 | J122: 2 | K122: 2 | L122: 1 | M122: 1 | N122: 1 | O122: 3 | P122: 0 | Q122: 0 | R122: 0 | S122: 0 | T122: 0 | U122: 0 | V122: 0 | W122: 0 | X122: 9 | Y122: 1 | Z122: 0 | AA122: 0 | AB122: 0 | AC122: 1 | AD122: 3 | AE122: 0 | AF122: 1 | AG122: 0 | AH122: 0 | AI122: 1 | AJ122: 1 | AK122: 0 | AL122: 1 | AM122: 0 | AN122: 0 | AO122: 0 | AP122: 0 | AQ122: 0 | AR122: 404
A123: 122 | B123: 22106 Fago | C123: 22106 | D123: 0 | E123: 0 | F123: 0 | G123: 0 | H123: 0 | I123: 0 | J123: 0 | K123: 0 | L123: 0 | M123: 0 | N123: 0 | O123: 0 | P123: 0 | Q123: 0 | R123: 0 | S123: 0 | T123: 0 | U123: 0 | V123: 0 | W123: 0 | X123: 0 | Y123: 0 | Z123: 0 | AA123: 0 | AB123: 0 | AC123: 0 | AD123: 0 | AE123: 0 | AF123: 0 | AG123: 0 | AH123: 0 | AI123: 0 | AJ123: 0 | AK123: 0 | AL123: 0 | AM123: 0 | AN123: 0 | AO123: 0 | AP123: 0 | AQ123: 0 | AR123: 85
A124: 123 | B124: 22107 Fanlo | C124: 22107 | D124: 3 | E124: 0 | F124: 0 | G124: 2 | H124: 0 | I124: 0 | J124: 0 | K124: 0 | L124: 0 | M124: 1 | N124: 0 | O124: 0 | P124: 0 | Q124: 0 | R124: 0 | S124: 0 | T124: 0 | U124: 0 | V124: 0 | W124: 0 | X124: 8 | Y124: 0 | Z124: 0 | AA124: 0 | AB124: 0 | AC124: 0 | AD124: 1 | AE124: 1 | AF124: 1 | AG124: 2 | AH124: 0 | AI124: 2 | AJ124: 1 | AK124: 0 | AL124: 0 | AM124: 0 | AN124: 0 | AO124: 0 | AP124: 0 | AQ124: 0 | AR124: 272
A125: 124 | B125: 22109 Fiscal | C125: 22109 | D125: 24 | E125: 1 | F125: 1 | G125: 2 | H125: 2 | I125: 1 | J125: 2 | K125: 6 | L125: 1 | M125: 0 | N125: 1 | O125: 0 | P125: 4 | Q125: 1 | R125: 1 | S125: 1 | T125: 0 | U125: 0 | V125: 0 | W125: 0 | X125: 23 | Y125: 0 | Z125: 0 | AA125: 1 | AB125: 3 | AC125: 1 | AD125: 2 | AE125: 1 | AF125: 2 | AG125: 2 | AH125: 4 | AI125: 2 | AJ125: 2 | AK125: 1 | AL125: 0 | AM125: 2 | AN125: 0 | AO125: 0 | AP125: 0 | AQ125: 0 | AR125: 1080
A126: 125 | B126: 22110 Fonz | C126: 22110 | D126: 66 | E126: 5 | F126: 4 | G126: 4 | H126: 4 | I126: 6 | J126: 6 | K126: 9 | L126: 5 | M126: 6 | N126: 10 | O126: 3 | P126: 1 | Q126: 1 | R126: 1 | S126: 0 | T126: 1 | U126: 0 | V126: 0 | W126: 0 | X126: 42 | Y126: 2 | Z126: 1 | AA126: 3 | AB126: 1 | AC126: 1 | AD126: 8 | AE126: 8 | AF126: 2 | AG126: 6 | AH126: 3 | AI126: 4 | AJ126: 2 | AK126: 0 | AL126: 0 | AM126: 1 | AN126: 0 | AO126: 0 | AP126: 0 | AQ126: 0 | AR126: 2135
A127: 126 | B127: 22111 Foradada del Toscar | C127: 22111 | D127: 18 | E127: 2 | F127: 1 | G127: 1 | H127: 1 | I127: 0 | J127: 3 | K127: 3 | L127: 3 | M127: 1 | N127: 2 | O127: 0 | P127: 0 | Q127: 0 | R127: 0 | S127: 1 | T127: 0 | U127: 0 | V127: 0 | W127: 0 | X127: 9 | Y127: 1 | Z127: 0 | AA127: 0 | AB127: 0 | AC127: 0 | AD127: 1 | AE127: 1 | AF127: 1 | AG127: 3 | AH127: 0 | AI127: 1 | AJ127: 1 | AK127: 0 | AL127: 0 | AM127: 0 | AN127: 0 | AO127: 0 | AP127: 0 | AQ127: 0 | AR127: 829
A128: 127 | B128: 22112 Fraga | C128: 22112 | D128: 2170 | E128: 123 | F128: 125 | G128: 121 | H128: 103 | I128: 154 | J128: 167 | K128: 185 | L128: 236 | M128: 270 | N128: 265 | O128: 203 | P128: 121 | Q128: 52 | R128: 30 | S128: 9 | T128: 6 | U128: 0 | V128: 0 | W128: 0 | X128: 1678 | Y128: 92 | Z128: 111 | AA128: 92 | AB128: 75 | AC128: 108 | AD128: 132 | AE128: 164 | AF128: 224 | AG128: 203 | AH128: 188 | AI128: 127 | AJ128: 75 | AK128: 49 | AL128: 21 | AM128: 9 | AN128: 4 | AO128: 3 | AP128: 0 | AQ128: 1 | AR128: 7934
A129: 128 | B129: 22113 Fueva (La) | C129: 22113 | D129: 28 | E129: 0 | F129: 1 | G129: 2 | H129: 2 | I129: 3 | J129: 0 | K129: 2 | L129: 4 | M129: 2 | N129: 0 | O129: 1 | P129: 3 | Q129: 4 | R129: 1 | S129: 2 | T129: 0 | U129: 1 | V129: 0 | W129: 0 | X129: 21 | Y129: 0 | Z129: 0 | AA129: 0 | AB129: 0 | AC129: 1 | AD129: 2 | AE129: 2 | AF129: 3 | AG129: 3 | AH129: 1 | AI129: 3 | AJ129: 1 | AK129: 3 | AL129: 1 | AM129: 1 | AN129: 0 | AO129: 0 | AP129: 0 | AQ129: 0 | AR129: 458
A130: 129 | B130: 22114 Gistaín | C130: 22114 | D130: 0 | E130: 0 | F130: 0 | G130: 0 | H130: 0 | I130: 0 | J130: 0 | K130: 0 | L130: 0 | M130: 0 | N130: 0 | O130: 0 | P130: 0 | Q130: 0 | R130: 0 | S130: 0 | T130: 0 | U130: 0 | V130: 0 | W130: 0 | X130: 0 | Y130: 0 | Z130: 0 | AA130: 0 | AB130: 0 | AC130: 0 | AD130: 0 | AE130: 0 | AF130: 0 | AG130: 0 | AH130: 0 | AI130: 0 | AJ130: 0 | AK130: 0 | AL130: 0 | AM130: 0 | AN130: 0 | AO130: 0 | AP130: 0 | AQ130: 0 | AR130: 26291
A131: 130 | B131: 22115 Grado (El) | C131: 22115 | D131: 17 | E131: 0 | F131: 2 | G131: 0 | H131: 0 | I131: 0 | J131: 1 | K131: 3 | L131: 2 | M131: 0 | N131: 0 | O131: 1 | P131: 2 | Q131: 0 | R131: 1 | S131: 1 | T131: 2 | U131: 1 | V131: 0 | W131: 1 | X131: 15 | Y131: 1 | Z131: 1 | AA131: 2 | AB131: 0 | AC131: 0 | AD131: 0 | AE131: 3 | AF131: 2 | AG131: 0 | AH131: 0 | AI131: 2 | AJ131: 1 | AK131: 0 | AL131: 1 | AM131: 2 | AN131: 0 | AO131: 0 | AP131: 0 | AQ131: 0 | AR131: 262
A132: 131 | B132: 22116 Grañén | C132: 22116 | D132: 121 | E132: 5 | F132: 10 | G132: 11 | H132: 8 | I132: 6 | J132: 10 | K132: 9 | L132: 16 | M132: 10 | N132: 14 | O132: 8 | P132: 9 | Q132: 4 | R132: 1 | S132: 0 | T132: 0 | U132: 0 | V132: 0 | W132: 0 | X132: 126 | Y132: 10 | Z132: 12 | AA132: 10 | AB132: 7 | AC132: 7 | AD132: 13 | AE132: 11 | AF132: 17 | AG132: 9 | AH132: 12 | AI132: 6 | AJ132: 4 | AK132: 3 | AL132: 1 | AM132: 2 | AN132: 1 | AO132: 1 | AP132: 0 | AQ132: 0 | AR132: 1248
A133: 132 | B133: 22117 Graus | C133: 22117 | D133: 305 | E133: 24 | F133: 17 | G133: 18 | H133: 12 | I133: 17 | J133: 29 | K133: 27 | L133: 32 | M133: 28 | N133: 30 | O133: 22 | P133: 15 | Q133: 18 | R133: 11 | S133: 0 | T133: 4 | U133: 1 | V133: 0 | W133: 0 | X133: 300 | Y133: 16 | Z133: 15 | AA133: 17 | AB133: 12 | AC133: 20 | AD133: 24 | AE133: 29 | AF133: 30 | AG133: 35 | AH133: 27 | AI133: 13 | AJ133: 33 | AK133: 19 | AL133: 4 | AM133: 4 | AN133: 2 | AO133: 0 | AP133: 0 | AQ133: 0 | AR133: 1763
A134: 133 | B134: 22119 Gurrea de Gállego | C134: 22119 | D134: 42 | E134: 0 | F134: 4 | G134: 2 | H134: 1 | I134: 4 | J134: 3 | K134: 3 | L134: 6 | M134: 6 | N134: 5 | O134: 4 | P134: 2 | Q134: 1 | R134: 0 | S134: 1 | T134: 0 | U134: 0 | V134: 0 | W134: 0 | X134: 43 | Y134: 5 | Z134: 1 | AA134: 1 | AB134: 1 | AC134: 1 | AD134: 7 | AE134: 0 | AF134: 6 | AG134: 2 | AH134: 4 | AI134: 6 | AJ134: 4 | AK134: 1 | AL134: 1 | AM134: 1 | AN134: 2 | AO134: 0 | AP134: 0 | AQ134: 0 | AR134: 857
A135: 134 | B135: 22122 Hoz de Jaca | C135: 22122 | D135: 0 | E135: 0 | F135: 0 | G135: 0 | H135: 0 | I135: 0 | J135: 0 | K135: 0 | L135: 0 | M135: 0 | N135: 0 | O135: 0 | P135: 0 | Q135: 0 | R135: 0 | S135: 0 | T135: 0 | U135: 0 | V135: 0 | W135: 0 | X135: 0 | Y135: 0 | Z135: 0 | AA135: 0 | AB135: 0 | AC135: 0 | AD135: 0 | AE135: 0 | AF135: 0 | AG135: 0 | AH135: 0 | AI135: 0 | AJ135: 0 | AK135: 0 | AL135: 0 | AM135: 0 | AN135: 0 | AO135: 0 | AP135: 0 | AQ135: 0 | AR135: 6806
A136: 135 | B136: 22124 Huerto | C136: 22124 | D136: 16 | E136: 0 | F136: 1 | G136: 3 | H136: 1 | I136: 0 | J136: 2 | K136: 1 | L136: 1 | M136: 5 | N136: 1 | O136: 0 | P136: 0 | Q136: 0 | R136: 0 | S136: 0 | T136: 1 | U136: 0 | V136: 0 | W136: 0 | X136: 17 | Y136: 2 | Z136: 0 | AA136: 1 | AB136: 1 | AC136: 1 | AD136: 1 | AE136: 4 | AF136: 2 | AG136: 1 | AH136: 0 | AI136: 0 | AJ136: 2 | AK136: 1 | AL136: 1 | AM136: 0 | AN136: 0 | AO136: 0 | AP136: 0 | AQ136: 0 | AR136: 184
A137: 136 | B137: 22125 Huesca | C137: 22125 | D137: 3561 | E137: 161 | F137: 226 | G137: 215 | H137: 276 | I137: 312 | J137: 354 | K137: 370 | L137: 408 | M137: 363 | N137: 296 | O137: 236 | P137: 141 | Q137: 95 | R137: 55 | S137: 28 | T137: 13 | U137: 6 | V137: 3 | W137: 3 | X137: 3623 | Y137: 164 | Z137: 231 | AA137: 222 | AB137: 194 | AC137: 249 | AD137: 346 | AE137: 385 | AF137: 409 | AG137: 403 | AH137: 315 | AI137: 254 | AJ137: 163 | AK137: 100 | AL137: 78 | AM137: 59 | AN137: 21 | AO137: 18 | AP137: 8 | AQ137: 4 | AR137: 26311
A138: 137 | B138: 22126 Ibieca | C138: 22126 | D138: 1 | E138: 0 | F138: 0 | G138: 0 | H138: 0 | I138: 0 | J138: 0 | K138: 0 | L138: 1 | M138: 0 | N138: 0 | O138: 0 | P138: 0 | Q138: 0 | R138: 0 | S138: 0 | T138: 0 | U138: 0 | V138: 0 | W138: 0 | X138: 2 | Y138: 0 | Z138: 0 | AA138: 0 | AB138: 0 | AC138: 0 | AD138: 0 | AE138: 0 | AF138: 0 | AG138: 0 | AH138: 0 | AI138: 0 | AJ138: 2 | AK138: 0 | AL138: 0 | AM138: 0 | AN138: 0 | AO138: 0 | AP138: 0 | AQ138: 0 | AR138: 164
A139: 138 | B139: 22127 Igriés | C139: 22127 | D139: 28 | E139: 0 | F139: 0 | G139: 1 | H139: 2 | I139: 2 | J139: 3 | K139: 5 | L139: 1 | M139: 4 | N139: 2 | O139: 2 | P139: 3 | Q139: 1 | R139: 2 | S139: 0 | T139: 0 | U139: 0 | V139: 0 | W139: 0 | X139: 16 | Y139: 1 | Z139: 0 | AA139: 1 | AB139: 0 | AC139: 1 | AD139: 0 | AE139: 3 | AF139: 3 | AG139: 2 | AH139: 1 | AI139: 1 | AJ139: 2 | AK139: 0 | AL139: 1 | AM139: 0 | AN139: 0 | AO139: 0 | AP139: 0 | AQ139: 0 | AR139: 821
A140: 139 | B140: 22128 Ilche | C140: 22128 | D140: 4 | E140: 0 | F140: 0 | G140: 0 | H140: 0 | I140: 0 | J140: 0 | K140: 1 | L140: 0 | M140: 0 | N140: 0 | O140: 0 | P140: 0 | Q140: 2 | R140: 1 | S140: 0 | T140: 0 | U140: 0 | V140: 0 | W140: 0 | X140: 6 | Y140: 0 | Z140: 0 | AA140: 0 | AB140: 0 | AC140: 0 | AD140: 0 | AE140: 0 | AF140: 0 | AG140: 2 | AH140: 0 | AI140: 0 | AJ140: 1 | AK140: 2 | AL140: 1 | AM140: 0 | AN140: 0 | AO140: 0 | AP140: 0 | AQ140: 0 | AR140: 719
A141: 140 | B141: 22129 Isábena | C141: 22129 | D141: 27 | E141: 0 | F141: 2 | G141: 0 | H141: 1 | I141: 1 | J141: 3 | K141: 2 | L141: 9 | M141: 2 | N141: 2 | O141: 0 | P141: 3 | Q141: 2 | R141: 0 | S141: 0 | T141: 0 | U141: 0 | V141: 0 | W141: 0 | X141: 25 | Y141: 0 | Z141: 0 | AA141: 1 | AB141: 1 | AC141: 1 | AD141: 4 | AE141: 3 | AF141: 4 | AG141: 1 | AH141: 2 | AI141: 2 | AJ141: 3 | AK141: 1 | AL141: 2 | AM141: 0 | AN141: 0 | AO141: 0 | AP141: 0 | AQ141: 0 | AR141: 162
A142: 141 | B142: 22130 Jaca | C142: 22130 | D142: 676 | E142: 26 | F142: 45 | G142: 39 | H142: 39 | I142: 56 | J142: 65 | K142: 75 | L142: 75 | M142: 72 | N142: 62 | O142: 37 | P142: 40 | Q142: 19 | R142: 10 | S142: 11 | T142: 3 | U142: 1 | V142: 0 | W142: 1 | X142: 795 | Y142: 20 | Z142: 35 | AA142: 48 | AB142: 53 | AC142: 76 | AD142: 74 | AE142: 86 | AF142: 77 | AG142: 87 | AH142: 76 | AI142: 53 | AJ142: 50 | AK142: 20 | AL142: 13 | AM142: 12 | AN142: 8 | AO142: 3 | AP142: 2 | AQ142: 2 | AR142: 6847
A143: 142 | B143: 22131 Jasa | C143: 22131 | D143: 0 | E143: 0 | F143: 0 | G143: 0 | H143: 0 | I143: 0 | J143: 0 | K143: 0 | L143: 0 | M143: 0 | N143: 0 | O143: 0 | P143: 0 | Q143: 0 | R143: 0 | S143: 0 | T143: 0 | U143: 0 | V143: 0 | W143: 0 | X143: 1 | Y143: 0 | Z143: 0 | AA143: 0 | AB143: 0 | AC143: 0 | AD143: 0 | AE143: 0 | AF143: 0 | AG143: 0 | AH143: 1 | AI143: 0 | AJ143: 0 | AK143: 0 | AL143: 0 | AM143: 0 | AN143: 0 | AO143: 0 | AP143: 0 | AQ143: 0 | AR143: 125
A144: 143 | B144: 22133 Labuerda | C144: 22133 | D144: 21 | E144: 1 | F144: 4 | G144: 2 | H144: 1 | I144: 2 | J144: 1 | K144: 2 | L144: 1 | M144: 3 | N144: 1 | O144: 0 | P144: 0 | Q144: 2 | R144: 1 | S144: 0 | T144: 0 | U144: 0 | V144: 0 | W144: 0 | X144: 27 | Y144: 1 | Z144: 0 | AA144: 2 | AB144: 1 | AC144: 0 | AD144: 0 | AE144: 6 | AF144: 5 | AG144: 2 | AH144: 2 | AI144: 4 | AJ144: 3 | AK144: 1 | AL144: 0 | AM144: 0 | AN144: 0 | AO144: 0 | AP144: 0 | AQ144: 0 | AR144: 220
A145: 144 | B145: 22135 Laluenga | C145: 22135 | D145: 3 | E145: 0 | F145: 1 | G145: 0 | H145: 0 | I145: 0 | J145: 2 | K145: 0 | L145: 0 | M145: 0 | N145: 0 | O145: 0 | P145: 0 | Q145: 0 | R145: 0 | S145: 0 | T145: 0 | U145: 0 | V145: 0 | W145: 0 | X145: 8 | Y145: 0 | Z145: 0 | AA145: 0 | AB145: 1 | AC145: 0 | AD145: 1 | AE145: 0 | AF145: 2 | AG145: 2 | AH145: 0 | AI145: 0 | AJ145: 1 | AK145: 0 | AL145: 0 | AM145: 0 | AN145: 1 | AO145: 0 | AP145: 0 | AQ145: 0 | AR145: 263
A146: 145 | B146: 22136 Lalueza | C146: 22136 | D146: 51 | E146: 1 | F146: 2 | G146: 0 | H146: 4 | I146: 5 | J146: 8 | K146: 6 | L146: 1 | M146: 8 | N146: 7 | O146: 2 | P146: 1 | Q146: 0 | R146: 4 | S146: 1 | T146: 0 | U146: 1 | V146: 0 | W146: 0 | X146: 50 | Y146: 2 | Z146: 3 | AA146: 7 | AB146: 2 | AC146: 0 | AD146: 3 | AE146: 4 | AF146: 6 | AG146: 12 | AH146: 3 | AI146: 2 | AJ146: 2 | AK146: 1 | AL146: 2 | AM146: 0 | AN146: 1 | AO146: 0 | AP146: 0 | AQ146: 0 | AR146: 631
A147: 146 | B147: 22137 Lanaja | C147: 22137 | D147: 67 | E147: 2 | F147: 4 | G147: 3 | H147: 2 | I147: 3 | J147: 4 | K147: 7 | L147: 9 | M147: 11 | N147: 8 | O147: 6 | P147: 4 | Q147: 3 | R147: 1 | S147: 0 | T147: 0 | U147: 0 | V147: 0 | W147: 0 | X147: 42 | Y147: 0 | Z147: 4 | AA147: 1 | AB147: 1 | AC147: 4 | AD147: 3 | AE147: 4 | AF147: 8 | AG147: 5 | AH147: 4 | AI147: 5 | AJ147: 2 | AK147: 1 | AL147: 0 | AM147: 0 | AN147: 0 | AO147: 0 | AP147: 0 | AQ147: 0 | AR147: 928
A148: 147 | B148: 22139 Laperdiguera | C148: 22139 | D148: 3 | E148: 0 | F148: 0 | G148: 0 | H148: 0 | I148: 0 | J148: 0 | K148: 0 | L148: 0 | M148: 1 | N148: 0 | O148: 0 | P148: 0 | Q148: 1 | R148: 1 | S148: 0 | T148: 0 | U148: 0 | V148: 0 | W148: 0 | X148: 4 | Y148: 0 | Z148: 0 | AA148: 0 | AB148: 0 | AC148: 0 | AD148: 1 | AE148: 0 | AF148: 0 | AG148: 1 | AH148: 0 | AI148: 0 | AJ148: 1 | AK148: 1 | AL148: 0 | AM148: 0 | AN148: 0 | AO148: 0 | AP148: 0 | AQ148: 0 | AR148: 95
A149: 148 | B149: 22141 Lascellas-Ponzano | C149: 22141 | D149: 0 | E149: 0 | F149: 0 | G149: 0 | H149: 0 | I149: 0 | J149: 0 | K149: 0 | L149: 0 | M149: 0 | N149: 0 | O149: 0 | P149: 0 | Q149: 0 | R149: 0 | S149: 0 | T149: 0 | U149: 0 | V149: 0 | W149: 0 | X149: 2 | Y149: 0 | Z149: 0 | AA149: 0 | AB149: 0 | AC149: 0 | AD149: 1 | AE149: 0 | AF149: 0 | AG149: 0 | AH149: 0 | AI149: 0 | AJ149: 0 | AK149: 1 | AL149: 0 | AM149: 0 | AN149: 0 | AO149: 0 | AP149: 0 | AQ149: 0 | AR149: 120
A150: 149 | B150: 22142 Lascuarre | C150: 22142 | D150: 7 | E150: 0 | F150: 0 | G150: 1 | H150: 0 | I150: 0 | J150: 1 | K150: 2 | L150: 1 | M150: 0 | N150: 0 | O150: 0 | P150: 1 | Q150: 0 | R150: 0 | S150: 1 | T150: 0 | U150: 0 | V150: 0 | W150: 0 | X150: 10 | Y150: 1 | Z150: 1 | AA150: 0 | AB150: 0 | AC150: 0 | AD150: 1 | AE150: 1 | AF150: 1 | AG150: 0 | AH150: 0 | AI150: 0 | AJ150: 0 | AK150: 2 | AL150: 1 | AM150: 1 | AN150: 0 | AO150: 1 | AP150: 0 | AQ150: 0 | AR150: 328
A151: 150 | B151: 22143 Laspaúles | C151: 22143 | D151: 13 | E151: 0 | F151: 0 | G151: 0 | H151: 1 | I151: 0 | J151: 1 | K151: 0 | L151: 3 | M151: 2 | N151: 1 | O151: 2 | P151: 2 | Q151: 0 | R151: 0 | S151: 0 | T151: 1 | U151: 0 | V151: 0 | W151: 0 | X151: 26 | Y151: 0 | Z151: 0 | AA151: 2 | AB151: 3 | AC151: 6 | AD151: 0 | AE151: 1 | AF151: 2 | AG151: 3 | AH151: 2 | AI151: 1 | AJ151: 6 | AK151: 0 | AL151: 0 | AM151: 0 | AN151: 0 | AO151: 0 | AP151: 0 | AQ151: 0 | AR151: 264
A152: 151 | B152: 22144 Laspuña | C152: 22144 | D152: 5 | E152: 1 | F152: 0 | G152: 0 | H152: 0 | I152: 0 | J152: 0 | K152: 0 | L152: 1 | M152: 1 | N152: 0 | O152: 1 | P152: 0 | Q152: 1 | R152: 0 | S152: 0 | T152: 0 | U152: 0 | V152: 0 | W152: 0 | X152: 7 | Y152: 0 | Z152: 0 | AA152: 1 | AB152: 0 | AC152: 0 | AD152: 0 | AE152: 2 | AF152: 2 | AG152: 1 | AH152: 0 | AI152: 1 | AJ152: 0 | AK152: 0 | AL152: 0 | AM152: 0 | AN152: 0 | AO152: 0 | AP152: 0 | AQ152: 0 | AR152: 9360
A153: 152 | B153: 22149 Loarre | C153: 22149 | D153: 1 | E153: 0 | F153: 0 | G153: 0 | H153: 0 | I153: 0 | J153: 0 | K153: 1 | L153: 0 | M153: 0 | N153: 0 | O153: 0 | P153: 0 | Q153: 0 | R153: 0 | S153: 0 | T153: 0 | U153: 0 | V153: 0 | W153: 0 | X153: 4 | Y153: 0 | Z153: 0 | AA153: 0 | AB153: 1 | AC153: 0 | AD153: 0 | AE153: 0 | AF153: 0 | AG153: 2 | AH153: 1 | AI153: 0 | AJ153: 0 | AK153: 0 | AL153: 0 | AM153: 0 | AN153: 0 | AO153: 0 | AP153: 0 | AQ153: 0 | AR153: 338
A154: 153 | B154: 22150 Loporzano | C154: 22150 | D154: 10 | E154: 0 | F154: 0 | G154: 0 | H154: 1 | I154: 0 | J154: 2 | K154: 0 | L154: 0 | M154: 0 | N154: 0 | O154: 0 | P154: 2 | Q154: 0 | R154: 1 | S154: 0 | T154: 1 | U154: 2 | V154: 1 | W154: 0 | X154: 12 | Y154: 1 | Z154: 0 | AA154: 0 | AB154: 1 | AC154: 0 | AD154: 1 | AE154: 0 | AF154: 1 | AG154: 1 | AH154: 2 | AI154: 1 | AJ154: 0 | AK154: 0 | AL154: 0 | AM154: 1 | AN154: 1 | AO154: 1 | AP154: 1 | AQ154: 0 | AR154: 386
A155: 154 | B155: 22151 Loscorrales | C155: 22151 | D155: 0 | E155: 0 | F155: 0 | G155: 0 | H155: 0 | I155: 0 | J155: 0 | K155: 0 | L155: 0 | M155: 0 | N155: 0 | O155: 0 | P155: 0 | Q155: 0 | R155: 0 | S155: 0 | T155: 0 | U155: 0 | V155: 0 | W155: 0 | X155: 1 | Y155: 0 | Z155: 0 | AA155: 0 | AB155: 0 | AC155: 0 | AD155: 0 | AE155: 1 | AF155: 0 | AG155: 0 | AH155: 0 | AI155: 0 | AJ155: 0 | AK155: 0 | AL155: 0 | AM155: 0 | AN155: 0 | AO155: 0 | AP155: 0 | AQ155: 0 | AR155: 377
A156: 155 | B156: 22155 Monesma y Cajigar | C156: 22155 | D156: 4 | E156: 0 | F156: 0 | G156: 0 | H156: 0 | I156: 0 | J156: 0 | K156: 0 | L156: 2 | M156: 1 | N156: 0 | O156: 1 | P156: 0 | Q156: 0 | R156: 0 | S156: 0 | T156: 0 | U156: 0 | V156: 0 | W156: 0 | X156: 4 | Y156: 0 | Z156: 0 | AA156: 0 | AB156: 0 | AC156: 0 | AD156: 1 | AE156: 0 | AF156: 1 | AG156: 0 | AH156: 0 | AI156: 0 | AJ156: 0 | AK156: 0 | AL156: 2 | AM156: 0 | AN156: 0 | AO156: 0 | AP156: 0 | AQ156: 0 | AR156: 69
A157: 156 | B157: 22156 Monflorite-Lascasas | C157: 22156 | D157: 33 | E157: 1 | F157: 5 | G157: 5 | H157: 2 | I157: 0 | J157: 3 | K157: 6 | L157: 5 | M157: 1 | N157: 2 | O157: 1 | P157: 0 | Q157: 1 | R157: 1 | S157: 0 | T157: 0 | U157: 0 | V157: 0 | W157: 0 | X157: 27 | Y157: 3 | Z157: 3 | AA157: 2 | AB157: 0 | AC157: 1 | AD157: 2 | AE157: 3 | AF157: 4 | AG157: 3 | AH157: 1 | AI157: 1 | AJ157: 1 | AK157: 1 | AL157: 2 | AM157: 0 | AN157: 0 | AO157: 0 | AP157: 0 | AQ157: 0 | AR157: 529
A158: 157 | B158: 22157 Montanuy | C158: 22157 | D158: 5 | E158: 1 | F158: 0 | G158: 0 | H158: 0 | I158: 0 | J158: 0 | K158: 0 | L158: 0 | M158: 0 | N158: 1 | O158: 2 | P158: 0 | Q158: 1 | R158: 0 | S158: 0 | T158: 0 | U158: 0 | V158: 0 | W158: 0 | X158: 11 | Y158: 1 | Z158: 0 | AA158: 0 | AB158: 0 | AC158: 1 | AD158: 1 | AE158: 1 | AF158: 2 | AG158: 1 | AH158: 1 | AI158: 1 | AJ158: 0 | AK158: 0 | AL158: 2 | AM158: 0 | AN158: 0 | AO158: 0 | AP158: 0 | AQ158: 0 | AR158: 508
A159: 158 | B159: 22158 Monzón | C159: 22158 | D159: 1867 | E159: 86 | F159: 126 | G159: 116 | H159: 112 | I159: 143 | J159: 155 | K159: 154 | L159: 179 | M159: 207 | N159: 233 | O159: 155 | P159: 109 | Q159: 55 | R159: 18 | S159: 8 | T159: 6 | U159: 5 | V159: 0 | W159: 0 | X159: 1631 | Y159: 71 | Z159: 100 | AA159: 96 | AB159: 67 | AC159: 102 | AD159: 143 | AE159: 194 | AF159: 191 | AG159: 195 | AH159: 161 | AI159: 138 | AJ159: 79 | AK159: 41 | AL159: 22 | AM159: 17 | AN159: 7 | AO159: 2 | AP159: 5 | AQ159: 0 | AR159: 9220
A160: 159 | B160: 22160 Naval | C160: 22160 | D160: 16 | E160: 0 | F160: 0 | G160: 0 | H160: 0 | I160: 0 | J160: 2 | K160: 0 | L160: 1 | M160: 1 | N160: 1 | O160: 4 | P160: 2 | Q160: 1 | R160: 0 | S160: 1 | T160: 2 | U160: 1 | V160: 0 | W160: 0 | X160: 10 | Y160: 0 | Z160: 0 | AA160: 0 | AB160: 0 | AC160: 0 | AD160: 2 | AE160: 0 | AF160: 1 | AG160: 0 | AH160: 2 | AI160: 1 | AJ160: 0 | AK160: 1 | AL160: 1 | AM160: 2 | AN160: 0 | AO160: 0 | AP160: 0 | AQ160: 0 | AR160: 630
A161: 160 | B161: 22162 Novales | C161: 22162 | D161: 14 | E161: 0 | F161: 1 | G161: 4 | H161: 0 | I161: 1 | J161: 1 | K161: 2 | L161: 1 | M161: 0 | N161: 2 | O161: 0 | P161: 1 | Q161: 0 | R161: 0 | S161: 0 | T161: 1 | U161: 0 | V161: 0 | W161: 0 | X161: 15 | Y161: 0 | Z161: 2 | AA161: 1 | AB161: 3 | AC161: 1 | AD161: 0 | AE161: 2 | AF161: 1 | AG161: 3 | AH161: 0 | AI161: 0 | AJ161: 1 | AK161: 0 | AL161: 1 | AM161: 0 | AN161: 0 | AO161: 0 | AP161: 0 | AQ161: 0 | AR161: 475
A162: 161 | B162: 22163 Nueno | C162: 22163 | D162: 21 | E162: 2 | F162: 0 | G162: 1 | H162: 1 | I162: 1 | J162: 0 | K162: 0 | L162: 2 | M162: 2 | N162: 1 | O162: 2 | P162: 1 | Q162: 2 | R162: 2 | S162: 3 | T162: 1 | U162: 0 | V162: 0 | W162: 0 | X162: 6 | Y162: 0 | Z162: 0 | AA162: 0 | AB162: 0 | AC162: 0 | AD162: 2 | AE162: 0 | AF162: 1 | AG162: 0 | AH162: 1 | AI162: 0 | AJ162: 0 | AK162: 0 | AL162: 1 | AM162: 1 | AN162: 0 | AO162: 0 | AP162: 0 | AQ162: 0 | AR162: 495
A163: 162 | B163: 22164 Olvena | C163: 22164 | D163: 1 | E163: 0 | F163: 0 | G163: 0 | H163: 0 | I163: 0 | J163: 0 | K163: 0 | L163: 0 | M163: 0 | N163: 1 | O163: 0 | P163: 0 | Q163: 0 | R163: 0 | S163: 0 | T163: 0 | U163: 0 | V163: 0 | W163: 0 | X163: 1 | Y163: 0 | Z163: 0 | AA163: 0 | AB163: 0 | AC163: 0 | AD163: 1 | AE163: 0 | AF163: 0 | AG163: 0 | AH163: 0 | AI163: 0 | AJ163: 0 | AK163: 0 | AL163: 0 | AM163: 0 | AN163: 0 | AO163: 0 | AP163: 0 | AQ163: 0 | AR163: 328
A164: 163 | B164: 22165 Ontiñena | C164: 22165 | D164: 39 | E164: 4 | F164: 0 | G164: 1 | H164: 1 | I164: 5 | J164: 0 | K164: 4 | L164: 8 | M164: 4 | N164: 6 | O164: 2 | P164: 1 | Q164: 2 | R164: 1 | S164: 0 | T164: 0 | U164: 0 | V164: 0 | W164: 0 | X164: 22 | Y164: 0 | Z164: 0 | AA164: 1 | AB164: 1 | AC164: 2 | AD164: 3 | AE164: 2 | AF164: 1 | AG164: 6 | AH164: 3 | AI164: 0 | AJ164: 1 | AK164: 2 | AL164: 0 | AM164: 0 | AN164: 0 | AO164: 0 | AP164: 0 | AQ164: 0 | AR164: 388
A165: 164 | B165: 22167 Osso de Cinca | C165: 22167 | D165: 117 | E165: 2 | F165: 2 | G165: 0 | H165: 3 | I165: 6 | J165: 6 | K165: 14 | L165: 10 | M165: 18 | N165: 14 | O165: 14 | P165: 12 | Q165: 11 | R165: 4 | S165: 1 | T165: 0 | U165: 0 | V165: 0 | W165: 0 | X165: 43 | Y165: 2 | Z165: 1 | AA165: 2 | AB165: 1 | AC165: 2 | AD165: 3 | AE165: 2 | AF165: 6 | AG165: 3 | AH165: 7 | AI165: 5 | AJ165: 5 | AK165: 2 | AL165: 2 | AM165: 0 | AN165: 0 | AO165: 0 | AP165: 0 | AQ165: 0 | AR165: 479
A166: 165 | B166: 22168 Palo | C166: 22168 | D166: 0 | E166: 0 | F166: 0 | G166: 0 | H166: 0 | I166: 0 | J166: 0 | K166: 0 | L166: 0 | M166: 0 | N166: 0 | O166: 0 | P166: 0 | Q166: 0 | R166: 0 | S166: 0 | T166: 0 | U166: 0 | V166: 0 | W166: 0 | X166: 2 | Y166: 0 | Z166: 0 | AA166: 0 | AB166: 0 | AC166: 0 | AD166: 0 | AE166: 0 | AF166: 0 | AG166: 1 | AH166: 0 | AI166: 0 | AJ166: 0 | AK166: 1 | AL166: 0 | AM166: 0 | AN166: 0 | AO166: 0 | AP166: 0 | AQ166: 0 | AR166: 71
A167: 166 | B167: 22170 Panticosa | C167: 22170 | D167: 26 | E167: 2 | F167: 0 | G167: 0 | H167: 0 | I167: 2 | J167: 3 | K167: 2 | L167: 2 | M167: 0 | N167: 4 | O167: 6 | P167: 2 | Q167: 1 | R167: 0 | S167: 1 | T167: 1 | U167: 0 | V167: 0 | W167: 0 | X167: 24 | Y167: 4 | Z167: 0 | AA167: 1 | AB167: 0 | AC167: 2 | AD167: 1 | AE167: 3 | AF167: 2 | AG167: 3 | AH167: 3 | AI167: 2 | AJ167: 3 | AK167: 0 | AL167: 0 | AM167: 0 | AN167: 0 | AO167: 0 | AP167: 0 | AQ167: 0 | AR167: 562
A168: 167 | B168: 22172 Peñalba | C168: 22172 | D168: 132 | E168: 1 | F168: 2 | G168: 4 | H168: 1 | I168: 11 | J168: 19 | K168: 17 | L168: 27 | M168: 15 | N168: 14 | O168: 8 | P168: 7 | Q168: 5 | R168: 0 | S168: 1 | T168: 0 | U168: 0 | V168: 0 | W168: 0 | X168: 61 | Y168: 4 | Z168: 4 | AA168: 0 | AB168: 5 | AC168: 1 | AD168: 7 | AE168: 5 | AF168: 5 | AG168: 3 | AH168: 9 | AI168: 8 | AJ168: 4 | AK168: 2 | AL168: 2 | AM168: 1 | AN168: 1 | AO168: 0 | AP168: 0 | AQ168: 0 | AR168: 442
A169: 168 | B169: 22173 Peñas de Riglos (Las) | C169: 22173 | D169: 7 | E169: 0 | F169: 0 | G169: 0 | H169: 0 | I169: 1 | J169: 0 | K169: 0 | L169: 0 | M169: 0 | N169: 2 | O169: 0 | P169: 1 | Q169: 0 | R169: 2 | S169: 0 | T169: 0 | U169: 0 | V169: 1 | W169: 0 | X169: 10 | Y169: 0 | Z169: 0 | AA169: 0 | AB169: 0 | AC169: 1 | AD169: 1 | AE169: 0 | AF169: 0 | AG169: 3 | AH169: 0 | AI169: 0 | AJ169: 2 | AK169: 0 | AL169: 1 | AM169: 0 | AN169: 0 | AO169: 1 | AP169: 1 | AQ169: 0 | AR169: 321
A170: 169 | B170: 22174 Peralta de Alcofea | C170: 22174 | D170: 44 | E170: 1 | F170: 2 | G170: 3 | H170: 0 | I170: 3 | J170: 5 | K170: 4 | L170: 2 | M170: 5 | N170: 9 | O170: 4 | P170: 1 | Q170: 1 | R170: 3 | S170: 1 | T170: 0 | U170: 0 | V170: 0 | W170: 0 | X170: 52 | Y170: 2 | Z170: 2 | AA170: 2 | AB170: 3 | AC170: 5 | AD170: 4 | AE170: 4 | AF170: 6 | AG170: 7 | AH170: 7 | AI170: 2 | AJ170: 1 | AK170: 4 | AL170: 2 | AM170: 1 | AN170: 0 | AO170: 0 | AP170: 0 | AQ170: 0 | AR170: 403
A171: 170 | B171: 22175 Peralta de Calasanz | C171: 22175 | D171: 10 | E171: 1 | F171: 0 | G171: 0 | H171: 1 | I171: 0 | J171: 1 | K171: 0 | L171: 0 | M171: 0 | N171: 1 | O171: 2 | P171: 3 | Q171: 1 | R171: 0 | S171: 0 | T171: 0 | U171: 0 | V171: 0 | W171: 0 | X171: 14 | Y171: 0 | Z171: 0 | AA171: 1 | AB171: 0 | AC171: 2 | AD171: 1 | AE171: 1 | AF171: 2 | AG171: 2 | AH171: 2 | AI171: 1 | AJ171: 1 | AK171: 1 | AL171: 0 | AM171: 0 | AN171: 0 | AO171: 0 | AP171: 0 | AQ171: 0 | AR171: 238
A172: 171 | B172: 22176 Peraltilla | C172: 22176 | D172: 5 | E172: 0 | F172: 0 | G172: 0 | H172: 0 | I172: 0 | J172: 0 | K172: 0 | L172: 3 | M172: 0 | N172: 0 | O172: 1 | P172: 1 | Q172: 0 | R172: 0 | S172: 0 | T172: 0 | U172: 0 | V172: 0 | W172: 0 | X172: 8 | Y172: 0 | Z172: 0 | AA172: 0 | AB172: 1 | AC172: 0 | AD172: 3 | AE172: 0 | AF172: 2 | AG172: 0 | AH172: 1 | AI172: 0 | AJ172: 1 | AK172: 0 | AL172: 0 | AM172: 0 | AN172: 0 | AO172: 0 | AP172: 0 | AQ172: 0 | AR172: 329
A173: 172 | B173: 22177 Perarrúa | C173: 22177 | D173: 4 | E173: 1 | F173: 1 | G173: 0 | H173: 0 | I173: 0 | J173: 0 | K173: 0 | L173: 1 | M173: 0 | N173: 1 | O173: 0 | P173: 0 | Q173: 0 | R173: 0 | S173: 0 | T173: 0 | U173: 0 | V173: 0 | W173: 0 | X173: 5 | Y173: 0 | Z173: 0 | AA173: 2 | AB173: 0 | AC173: 0 | AD173: 0 | AE173: 1 | AF173: 0 | AG173: 0 | AH173: 1 | AI173: 0 | AJ173: 0 | AK173: 0 | AL173: 1 | AM173: 0 | AN173: 0 | AO173: 0 | AP173: 0 | AQ173: 0 | AR173: 98
A174: 173 | B174: 22178 Pertusa | C174: 22178 | D174: 0 | E174: 0 | F174: 0 | G174: 0 | H174: 0 | I174: 0 | J174: 0 | K174: 0 | L174: 0 | M174: 0 | N174: 0 | O174: 0 | P174: 0 | Q174: 0 | R174: 0 | S174: 0 | T174: 0 | U174: 0 | V174: 0 | W174: 0 | X174: 5 | Y174: 0 | Z174: 0 | AA174: 0 | AB174: 1 | AC174: 0 | AD174: 1 | AE174: 0 | AF174: 0 | AG174: 0 | AH174: 2 | AI174: 0 | AJ174: 0 | AK174: 0 | AL174: 0 | AM174: 1 | AN174: 0 | AO174: 0 | AP174: 0 | AQ174: 0 | AR174: 196
A175: 174 | B175: 22181 Piracés | C175: 22181 | D175: 0 | E175: 0 | F175: 0 | G175: 0 | H175: 0 | I175: 0 | J175: 0 | K175: 0 | L175: 0 | M175: 0 | N175: 0 | O175: 0 | P175: 0 | Q175: 0 | R175: 0 | S175: 0 | T175: 0 | U175: 0 | V175: 0 | W175: 0 | X175: 2 | Y175: 0 | Z175: 0 | AA175: 0 | AB175: 0 | AC175: 0 | AD175: 0 | AE175: 0 | AF175: 0 | AG175: 0 | AH175: 2 | AI175: 0 | AJ175: 0 | AK175: 0 | AL175: 0 | AM175: 0 | AN175: 0 | AO175: 0 | AP175: 0 | AQ175: 0 | AR175: 142
A176: 175 | B176: 22182 Plan | C176: 22182 | D176: 10 | E176: 1 | F176: 0 | G176: 1 | H176: 0 | I176: 0 | J176: 2 | K176: 2 | L176: 1 | M176: 0 | N176: 1 | O176: 0 | P176: 1 | Q176: 0 | R176: 0 | S176: 0 | T176: 1 | U176: 0 | V176: 0 | W176: 0 | X176: 6 | Y176: 0 | Z176: 0 | AA176: 0 | AB176: 0 | AC176: 1 | AD176: 1 | AE176: 0 | AF176: 0 | AG176: 0 | AH176: 0 | AI176: 2 | AJ176: 1 | AK176: 1 | AL176: 0 | AM176: 0 | AN176: 0 | AO176: 0 | AP176: 0 | AQ176: 0 | AR176: 311
A177: 176 | B177: 22184 Poleñino | C177: 22184 | D177: 7 | E177: 0 | F177: 0 | G177: 0 | H177: 1 | I177: 1 | J177: 0 | K177: 2 | L177: 0 | M177: 0 | N177: 0 | O177: 0 | P177: 1 | Q177: 2 | R177: 0 | S177: 0 | T177: 0 | U177: 0 | V177: 0 | W177: 0 | X177: 10 | Y177: 0 | Z177: 1 | AA177: 3 | AB177: 0 | AC177: 0 | AD177: 0 | AE177: 1 | AF177: 0 | AG177: 0 | AH177: 0 | AI177: 3 | AJ177: 0 | AK177: 2 | AL177: 0 | AM177: 0 | AN177: 0 | AO177: 0 | AP177: 0 | AQ177: 0 | AR177: 284
